Workbook

Sheet Instructions
I2: Validation - Croisement des tables
B3: Instructions:
A4: 1 | B4: Dupliquer votre modèle de détermination avant de passer aux étapes suivantes. | I4: Ovoltotrec | J4: Rapport GTYF | K4: Rapport ECONO
A5: 2 | B5: Coller les OUTPUTs ci-dessous dans votre modèle de détermination. | I5: =VLOOKUP("Ovoltotrec",Output!$C:$AM,8,FALSE) -> 2751200 | J5: =VLOOKUP("OVOLTOTREC",GTYF!$C:$AQ,8,FALSE)=I5 -> TRUE | K5: =VLOOKUP("OVOLTOTREC",Econo!$C:$AQ,8,FALSE)=I5 -> TRUE
B6: Outputs pour Cahier_Détermination_2023
A7: 3 | B7: Ajouter l'agrégat FCIMPROD_SNAT au thème 5 de la section LANSCAPE de votre modèle et les courbes SNAT
B8: *AGGREGATE FCIMPROD_SNAT FCxxxx
A9: 4 | B9: Copier coller la syntaxe TARGET_GTYF_DET, TARGET_ECONO, TARGET AREA, TARGET DETAIL (voir plus bas) dans la section "Reports" du scénario de détermination.
B10: *TARGET GTYF_DET.dbf
B11: *TARGET_ECONO.dbf
B12: *TARGET AREA.dbf et *TARGET DETAIL.dbf
A13: 5 | B13: Insérer la syntaxe économique dans les sections Output, Lanscape, …
A14: 6 | B14: Compiler le scénario (Faire une fleche sur vos scénarios)
A15: 7 | B15: Ouvrir vos rapports Output, GTYF et ECONO directement de WS. Contrôle A --> Contrôle C
A16: 8 | B16: Copier/coller vos rapports Output, GTYF et ECONO dans les onglets appropriés. Attention de respecter le nombres de colonnes. Les onglets Output, GTYF et ECONO sont préformatés et contiennent des formules aux colonnes AM à AP.
A17: 9 | B17: Valider que la cellule I5 indique vrai lorsque vous aurez collé vos données dans les onglets "Output", "GTYF" et ÉCONO" pour s'assurer que les données proviennent de la même optimisation.
A18: 10 | B18: Utiliser le fichier DBF pour copier/coller votre calendrier de COS dans l'onglet Cedule_COS et y ajouter les COS absents (COS fermés ou toujours ouverts) et compléter leur calendrier par des "0" ou des "1".
A19: 11 | B19: Compléter toutes les cellules et onglets de couleur | D19: jaune
A20: 12 | B20: Notez que les tableaux 9, 10, 13, 15 et 17 ont des instructions particulières

Sheet Suivi_modif
B2: Modifications apportées au cahier:
B3: Version originale (v1) | C3: Version de départ | D3: Inclus ??
B4: Version modifiée 2 novembre 2021 (v2) | C4: Correction du calcul de % de sapin en P0 (cellule O9) | D4: OUI
B5: Version modifiée 4 novembre 2021 (v3) | C5: Correction du % récolte volume sur pied destiné à l'aménagement (Tableau - CelluleV59) | D5: OUI
B6: Version modifiée 4 novembre 2021 (v3) | C6: Correction des valideurs Vrai/Faux (Tableau - Cellule W101, W102, W103) | D6: OUI
B7: Version modifiée 8 novembre 2021 (v4) | C7: Onglet "UTA" - Amélioration de la syntaxe des rechercheV | D7: OUI
B8: Version modifiée 8 novembre 2021 (v4) | C8: Tableau 3 - ligne 50: changé la police de caractère pour du Arial | D8: OUI
B9: Version modifiée 9 novembre 2021 (v5) | C9: Onglet "Target_ECONO": La syntaxe du rapport a été corrigée. | D9: OUI
B10: Version modifiée 11 novembre 2021 (v6) | C10: Tableau 1 - Entente Crie - Correction pour considérer le code "EXEC" pour les UA avec Entente Crie | D10: NON | E10: non-intégrée car pas d'impact pour UA vague 3
B11: Version modifiée 15 novembre 2021 (v7) | C11: Tableau 3 - Ligne 49 en caractère gras - ligne 51 en caractère normal. | D11: OUI
C12: Tableau 8 - Arrondi ajouté dans formules cellules G102 et G103 | D12: OUI | E12: Joufr3 25/11/2021
C13: Tableau 10 - format % dans la cellule H143 | D13: OUI | E13: benan3 9/12/2021
B14: Validation par CARMI5 2021-11-12
B16: 1. Validation des intrants, Somme des OUTPUT P0@P30 du cahier = Somme des OUTPUT P0@P30 du modèle :
B17: Onglet OUTPUT | C17: OK
B18: Onglet GTYF | C18: OK
B19: Onglet Econo | C19: OK
B20: 2. Validation des tableaux, Confrontation avec le cahier d'analyse de la détermination (BENAN) et le fichier de consignation
B21: Validation des catégories de superficie | C21: Ok | D21: Cahier BENAN
B22: Tableau 1 | C22: OK | D22: Cahier BENAN
B23: Tableau 3 | C23: OK | D23: Fichier consignation
B24: Tableau 4 | C24: OK | D24: Cahier BENAN
B25: Tableau 8 | C25: OK | D25: Pour 2023-28 P2@P3 au lieu de P2@P6 aucune validation possible. Pour 2018-23 fichier de consignation
B26: Tableau 9 | C26: OK | D26: Fonctionnement et affichage
B27: Tableau 10 | C27: OK | D27: 10 ha de NET de plus que dans le fichier de consignation | I27: Fichier de consignation préparé à partir du RSPS qui donne 520 ha en NET pour p2..p6
B28: Tableau 13 | C28: OK | D28: Écart sur le TOTAL <= 100, masque la ligne Mélezes, Pruche et Autres feuillus durs car < 1%
B29: 3. Validation des figures, Confrontation avec le cahier d'analyse de la détermination (BENAN) et le fichier de consignation
B30: Figure 2 | C30: OK | D30: Fonctionnement et affichage
B31: Figure 3 | C31: OK | D31: Fonctionnement et affichage
B32: Figure 4 | C32: OK | D32: Fonctionnement et affichage
B33: Figure 5 | C33: OK | D33: Fonctionnement et affichage
B34: Figure 6 | C34: OK | D34: Fonctionnement et affichage
B35: Figure 7 | C35: OK | D35: Fonctionnement et affichage
B36: Figure 9b | C36: OK | D36: Fonctionnement et affichage. Apparence semblable au cahier de BENAN
B37: Figure 9c | C37: OK | D37: Fonctionnement et affichage. Apparence semblable au cahier de BENAN
B38: Figure 10a | C38: OK | D38: Fonctionnement et affichage. Apparence semblable au cahier de BENAN
B39: Figure 10c | C39: OK | D39: N/A
B40: Figure 11b | C40: OK | D40: Fonctionnement et affichage.
B41: Figure 14 | C41: OK | D41: Fonctionnement et affichage. Apparence semblable au cahier de BENAN
B42: Figure 15a | C42: OK | D42: Fonctionnement et affichage. Apparence semblable au cahier de BENAN
B43: Figure 19 | C43: OK | D43: Fonctionnement et affichage. Nombre d'UTR conforme au modèle
B44: Figure 20 | C44: OK | D44: Fonctionnement et affichage.
B45: Figure 21 | C45: OK | D45: Fonctionnement et affichage.
B46: Figure 22 | C46: OK | D46: Fonctionnement et affichage.
B47: 4. Validation des UTA
B48: Conforme au nombre d'UTA du modèle | C48: OK
B49: Conforme au nombre de COS du modèle | C49: OK
B50: Cédule conforme à la solution BfecOpt | C50: Non Conforme, 56 COS | D50: Fichier de comaparaison:T:\Donnees\02_Courant\01_CPF\01_UA\07352\70_Determination\74_Spatialisation\BFECopt1.4.6.1_7352\solutions_det7352VF.dbf
C51: Validation effectuée et données onglet "Cedule_COS" et calendrier cellule D49 semblable JOUFR3

Sheet Tableaux
T1: Instructions : Compléter les cellules oranges | AB1: Avec l'utilisation de l'outil à Éric
B2: PROER1 : vous pouvez utiliser l'outil FoxPro pour compléter les cellules oranges : | T2: 1) Cellule V11 : Inscrire la superficie totale brute de la carte WS
B3: l'outil intérroge la carte Woodstock et met les valeurs dans un fichier Excel | T3: 2) Cellule V15 : Inscrire la superficie WS des GS RP1 et RP2 (ça ne devrait être que du EXEX et EXTI)
B4: interroge_carte_WS_pour cahier_analyse.FXP | T4: 3) Cellule V24 : Inscrire la superficie WS des GS RP3 à RP9 sur INC
B5: T:\Donnees\Courant\CPF_2023-2028\Comite_Vague_2\30_Phase1\32_Sce1\Outils | T5: 4) Cellule V25 : Inscrire la superficie WS des GS SNAT sur INC (qui ne sont pas des RP)
T6: 5) Cellules L20 à S21 : Inscrire la superficie de la carte WS pour chacune des cases oranges
B7: Catégories | I7: Superficie | Z7: Total | AA7: Sup_aff
I8: ha | J8: % | V8: Période | Z8: Total | AA8: Sup_empche
B9: Superficie totale du territoire d'analyse (EXHU exclu) | I9: =V11-V16 -> 470895.4 | J9: =IFERROR(I9/I9,"-") -> 1 | S9: =LEFT(B$25,10) -> Tableau 1. | T9: Output | U9: Superficie | V9: 0 | Z9: Total | AA9: Sup_ecot
B10: Pertes (emprise chemin, écotone, improductif) | I10: =U20+V20+Y20 -> 10069 | J10: =I10/I9 -> 0.021382668 | S10: =LEFT(B$25,10) -> Tableau 1. | T10: OSUPTOT | U10: WS | V10: =VLOOKUP(T10,Output!$C:$H,6,FALSE) -> 460921.8 | Z10: INC | AA10: Sup_brivAB
B11: Territoire improductif (EXEX + EXTI) | I11: =SUM(V13:V14) -> 81697.6 | J11: =I11/I9 -> 0.173494156 | S11: Tableau 1. | U11: Brute | V11: 470990 | X11: Sup_soustraite : | Y11: =T20+U20+V20+Y20+AA20 -> 15680 | Z11: INC | AA11: Sup_brivCD
B12: sans possibilité de remise en production | I12: =I11-I13 -> 81697.6 | J12: - | S12: Tableau 1. | U12: pertes | V12: =U20+V20+Y20 -> 10069 | X12: Sup nette : | Y12: =V11-Y11 -> 455310 | Z12: Total | AA12: Sup_impro
B13: avec possibilité de remise en production (RP1 et RP2) | I13: =V15 -> 0 | J13: - | S13: Tableau 1. | T13: OSUPEXEX | U13: EXEX | V13: =VLOOKUP(T13,Output!$C:$H,6,FALSE) -> 66230.6 | Z13: Total | AA13: Sup_pentf
S14: Tableau 1. | T14: OSUPEXTI | U14: EXTI | V14: =VLOOKUP(T14,Output!$C:$H,6,FALSE) -> 15467 | Z14: INC | AA14: Sup_pentf
B15: Territoire inclus dans l’UA mais exclu des activités d'aménagement (EXIN) | I15: =V17 -> 92947.2 | J15: =I15/I9 -> 0.1973839626 | S15: Tableau 1. | U15: RP1/RP2 | V15: =AB3 -> 0
B16: pentes abruptes et sommets (codes F et S) --> potentiellement récoltables | I16: =AA21 -> 2591 | J16: - | S16: Tableau 1. | T16: OSUPEXHU | U16: EXHU | V16: =VLOOKUP(T16,Output!$C:$H,6,FALSE) -> 94.6
B17: bandes riveraines (densité AB) --> potentiellement récoltables | I17: =W21 -> 17262 | J17: - | S17: Tableau 1. | T17: OSUPEXIN | U17: EXIN | V17: =VLOOKUP(T17,Output!$C:$H,6,FALSE) -> 92947.2
B18: bandes riveraines (densité CD) --> potentiellement récoltables | I18: =X21 -> 2549 | J18: - | S18: Tableau 1. | T18: ↓ | U18: ↓ | V18: ↓ | Y18: ↓ | AA18: ↓
B19: autres | I19: =I15-I16-I17-I18 -> 70545.2 | S19: Tableau 1. | T19: Sup_aff | U19: Sup_empche | V19: Sup_ecot | W19: Sup_brivAB | X19: Sup_brivCD | Y19: Sup_impro | Z19: Sup_aut | AA19: Sup_pentf
B20: Territoire destiné à l'aménagement forestier (INC) | I20: =V22 -> 286182.4 | J20: =I20/I9 -> 0.6077409123 | S20: Tableau 1. | T20: 2410 | U20: 4990 | V20: 3751 | Y20: 1328 | AA20: 3201 | AB20: Total
B21: forestier exploitable | I21: =V22-I22-I23 -> 286182.4 | J21: - | S21: Tableau 1. | W21: 17262 | X21: 2549 | AA21: 2591 | AB21: INC
B22: forestier inexploitable avec possibilité de remise en production (RP3 à RP15) | I22: =V24 -> 0 | J22: - | S22: Tableau 1. | T22: OSUPINC | U22: INC | V22: =VLOOKUP(T22,Output!$C:$H,6,FALSE) -> 286182.4
B23: forestier inexploitable sans possibilité de remise en production (SNAT) | I23: =V25 -> 0 | J23: - | S23: Tableau 1.
S24: Tableau 1. | U24: RP3 à RP9 | V24: =AB4 -> 0
B25: Tableau 1. Répartition de la superficie de l'unité d'aménagement pas catégorie de territoire | S25: Tableau 1. | U25: SNAT | V25: =AB5 -> 0
B26: Catégories | F26: Superficies
F27: Hectares | G27: %
B28: Superficie totale de l’unité d’aménagement | F28: =ROUND(I9,-1) -> 470900 | G28: =F28/F28 -> 1
B29: Retraits de superficie
B30: Territoire non forestier | F30: =ROUND(I10+I11,-1) -> 91770 | G30: =F30/F28 -> 0.1948821406
B31: Territoire forestier peu productif (30 à 50 m³/ha) | F31: =ROUND(I22+I23,-1) -> 0 | G31: =F31/F28 -> 0
B32: Territoire forestier exclu de l’aménagement | F32: =ROUND(F28-F30-F31-F33,-1) -> 92950 | G32: =F32/F28 -> 0.1973879805 | N32: À compléter UA : | O32: UA:
B33: Superficie destinée à l’aménagement forestier | F33: =ROUND(I21,-1) -> 286180 | G33: =F33/F28 -> 0.607729879 | O33: 07352 | T33: Légende | U33: Output | V33: P2@P6
S34: =LEFT(B$46,10) -> Tableau 3. | T34: Sepm | U34: OVOLGSEPMREC | V34: =IFERROR(VLOOKUP($U34,Output!$C:$AM,37,FALSE)/5,0) -> 279602.974
S35: Tableau 3.
S36: Tableau 3. | T36: Tho | U36: OVOLTHOREC | V36: =IFERROR(VLOOKUP($U36,Output!$C:$AM,37,FALSE)/5,0) -> 10489.9648
S37: Tableau 3. | T37: Pru | U37: OVOLPRUREC | V37: =IFERROR(VLOOKUP($U37,Output!$C:$AM,37,FALSE)/5,0) -> 113.7392
S38: Tableau 3. | T38: Pins | U38: OVOLGPINSREC | V38: =IFERROR(VLOOKUP($U38,Output!$C:$AM,37,FALSE)/5,0) -> 12628.1824
S39: Tableau 3. | T39: Peu | U39: OVOLGPEUREC | V39: =IFERROR(VLOOKUP($U39,Output!$C:$AM,37,FALSE)/5,0) -> 30456.52
S40: Tableau 3. | T40: Bop | U40: OVOLGBPREC | V40: =IFERROR(VLOOKUP($U40,Output!$C:$AM,37,FALSE)/5,0) -> 115697.6404
S41: Tableau 3. | T41: Boj | U41: OVOLBOJREC | V41: =IFERROR(VLOOKUP($U41,Output!$C:$AM,37,FALSE)/5,0) -> 56797.704
S42: Tableau 3. | T42: Ers | U42: OVOLERSREC | V42: =IFERROR(VLOOKUP($U42,Output!$C:$AM,37,FALSE)/5,0) -> 9520.2144
S43: Tableau 3. | T43: Err | U43: OVOLGEROREC | V43: =IFERROR(VLOOKUP($U43,Output!$C:$AM,37,FALSE)/5,0) -> 33012.4104
S44: Tableau 3. | T44: Autre .F. (Auf) | V44: =V47-V42-V41 -> 1922.0816
S45: Tableau 3. | T45: résineux | U45: OVOLGRREC | V45: =IFERROR(VLOOKUP($U45,Output!$C:$AM,37,FALSE)/5,0) -> 302831.89
B46: Tableau 3. Possibilités forestières par essence ou par groupe d’essences et écart avec la période 2018-2023 | S46: Tableau 3. | T46: intolérant | U46: OVOLGFIREC | V46: =IFERROR(VLOOKUP($U46,Output!$C:$AM,37,FALSE)/5,0) -> 179168.804
B47: Périodes | C47: ="Possibilités forestières (m"&CHAR(179)&" bruts/an)" -> Possibilités forestières (m³ bruts/an) | S47: Tableau 3. | T47: Tolérant | U47: OVOLGFTREC | V47: =IFERROR(VLOOKUP($U47,Output!$C:$AM,37,FALSE)/5,0) -> 68240
C48: SEPM | D48: Thuya | E48: Pruche | F48: Pins blanc et rouge | G48: Peupliers | H48: Bouleau à papier | I48: Bouleau jaune | J48: Érables à sucre et rouge | K48: Autres feuillus durs | L48: Total | N48: Possibilité forestière unitaire (PAC / Sup destinée à l'aménagement) | S48: Tableau 3. | T48: Total récoltés | U48: OVOLTOTREC | V48: =IFERROR(VLOOKUP($U48,Output!$C:$AM,37,FALSE)/5,0) -> 550240
B49: 2023-2028 | C49: =ROUND(V$34,-2) -> 279600 | D49: =ROUND(V$36,-2) -> 10500 | E49: =ROUND(V$37,-2) -> 100 | F49: =ROUND(V$38,-2) -> 12600 | G49: =ROUND(V$39,-2) -> 30500 | H49: =ROUND(V$40,-2) -> 115700 | I49: =ROUND(V$41,-2) -> 56800 | J49: =ROUND(V$50,-2) -> 42500 | K49: =ROUND(V$44,-2) -> 1900 | L49: =SUM(C49:K49) -> 550200 | N49: =V57 -> 1.922705989 | S49: Tableau 3. | T49: FN sur pied | U49: OVOLGFNREC | V49: =IFERROR(VLOOKUP($U49,Output!$C:$AM,37,FALSE)/5,0) -> 1514.438
C50: =C49/$L$49 -> 0.5081788441 | D50: 0.01908396947 | E50: 0.0001817520901 | F50: 0.02290076336 | G50: 0.0554343875 | H50: 0.2102871683 | I50: 0.1032351872 | J50: 0.07724463831 | K50: 0.003453289713 | L50: =SUM(C50:K50) -> 1 | S50: Tableau 3. | T50: ER | V50: =V42+V43 -> 42532.6248
B51: 2018-2023 | C51: =VLOOKUP($O$33,DataLocal!$A$6:$W$35,13,FALSE) -> 130000 | D51: =VLOOKUP($O$33,DataLocal!$A$6:$W$35,14,FALSE) -> 19300 | E51: =VLOOKUP($O$33,DataLocal!$A$6:$W$35,15,FALSE) -> 300 | F51: =VLOOKUP($O$33,DataLocal!$A$6:$W$35,16,FALSE) -> 28300 | G51: =VLOOKUP($O$33,DataLocal!$A$6:$W$35,17,FALSE) -> 21100 | H51: =VLOOKUP($O$33,DataLocal!$A$6:$W$35,18,FALSE) -> 84400 | I51: =VLOOKUP($O$33,DataLocal!$A$6:$W$35,19,FALSE) -> 46700 | J51: =VLOOKUP($O$33,DataLocal!$A$6:$W$35,20,FALSE) -> 50800 | K51: =VLOOKUP($O$33,DataLocal!$A$6:$W$35,21,FALSE) -> 1400 | L51: =VLOOKUP($O$33,DataLocal!$A$6:$W$35,23,FALSE) -> 382300 | N51: % du volume sur pied initial | S51: Tableau 3. | U51: OVOLSABREC | V51: =IFERROR(VLOOKUP($U51,Output!$C:$AM,37,FALSE)/5,0) -> 129487.7144
B52: Écart | C52: =IFERROR((C49/C$51)-1,0) -> 1.150769231 | D52: -0.4559585492 | E52: -0.6666666667 | F52: -0.554770318 | G52: 0.4454976303 | H52: 0.3708530806 | I52: 0.2162740899 | J52: -0.1633858268 | K52: 0.3571428571 | L52: 0.439183887 | N52: =V59 -> 0.01549413169 | S52: Tableau 3. | U52: OVOLGEPXREC | V52: =IFERROR(VLOOKUP($U52,Output!$C:$AM,37,FALSE)/5,0) -> 128499.782
B53: ="Répartition de la composante SEPM des possibilités forestières 2023-2028 : sapin ("&IFERROR(ROUND(V51/V34*100,0),0)&"%), épinettes ("&IFERROR(ROUND(V52/V34*100,0),0)&"%), pin gris ("&IFERROR(ROUND(V53/V34*100,0),0)&"%) et mélèzes ("&IFERROR(ROUND(V54/V34*100,0),0)&"%)." -> Répartition de la composante SEPM des possibilités forestières 2023-2028 : sapin (46%), épinettes (46%), pin gris (7%) et mélèzes (0%). | S53: Tableau 3. | U53: OVOLGPGREC | V53: =IFERROR(VLOOKUP($U53,Output!$C:$AM,37,FALSE)/5,0) -> 20931.7244
B54: ="Répartition de la composante Érables à sucre et rouge des possibilités forestières 2023-2028 : érable à sucre("&IFERROR(ROUND(V42/(V42+V43)*100,0),0)&"%) et érable rouge ("&IFERROR(ROUND(V43/(V42+V43)*100,0),0)&"%)." -> Répartition de la composante Érables à sucre et rouge des possibilités forestières 2023-2028 : érable à sucre(22%) et érable rouge (78%). | S54: Tableau 3. | U54: OVOLGMLREC | V54: =IFERROR(VLOOKUP($U54,Output!$C:$AM,37,FALSE)/5,0) -> 682.3812
B55: Copier/Coller le tableau ci-dessus avec les lignes 53 et 54 | S55: Tableau 3. | U55: OSUPINC | V55: =IFERROR(VLOOKUP($U55,Output!$C:$AM,6,FALSE),0) -> 286182.4
S56: Tableau 3. | U56: OVOLTOTPIEDINC | V56: =IFERROR(VLOOKUP($U56,Output!$C:$AM,7,FALSE),0) -> 36579610.84
S57: Tableau 3. | U57: Possibilité forestière unitaire | V57: =IFERROR(V48/F33,0) -> 1.922705989
S58: Tableau 3. | U58: % récolte volume sur pied
U59: % récolte volume sur pied destiné à l'aménagement | V59: =V48/Figures!V19 -> 0.01549413169
B61: Tableau 4. Répartition des superficies récoltées et des possibilités forestières par grand type de forêt
B62: Grands types de forêt | D62: Superficie récoltée* | H62: Possibilités forestières* | S62: =LEFT(B$61,10) -> Tableau 4. | V62: Output total non arrondi | W62: Écart entre la somme du tableau et le output total
D63: Coupes totales | F63: Coupes partielles | H63: Résineux | J63: Feuillus tolérants | L63: Feuillus intolérants | N63: Total | S63: Tableau 4. | T63: Total | Z63: P2 à P6
D64: ha/an | E64: % | F64: ha/an | G64: % | H64: m³ bruts/an | I64: % | J64: ="m"&CHAR(179)&" bruts/an" -> m³ bruts/an | K64: % | L64: ="m"&CHAR(179)&" bruts/an" -> m³ bruts/an | M64: % | N64: ="m"&CHAR(179)&" bruts/an" -> m³ bruts/an | O64: % | S64: Tableau 4. | T64: ha/an | U64: % | Y64: Famille de courbe | Z64: OSUPINC | AA64: OSUPREALREGAFIN | AB64: OSUPREALREGAPAR | AC64: OSUPREALREGAPRE | AD64: OVOLGRREC | AE64: OVOLGAURREC | AF64: OVOLGFIREC | AG64: OVOLGFTREC | AH64: OVOLTOTREC
B65: Bétulaies blanches | D65: =ROUND(AA65/5,-1) -> 150 | E65: =IFERROR(D65/D$79,0) -> 0.05597014925 | F65: =ROUND(AB65/5,-1) -> 0 | G65: =IFERROR(F65/F$79,0) -> 0 | H65: =ROUND(AD65/5,-2) -> 6300 | I65: =IFERROR(H65/H$79,0) -> 0.02080581242 | J65: =ROUND(AG65/5,-2) -> 2200 | K65: =IFERROR(J65/J$79,0) -> 0.03216374269 | L65: =ROUND(AF65/5,-2) -> 17700 | M65: =L65/L$79 -> 0.09877232143 | N65: =H65+J65+L65 -> 26200 | O65: =N65/$N$79 -> 0.04760174419 | S65: Tableau 4. | T65: =D65+F65 -> 150 | U65: =IFERROR(T65/T$79,0) -> 0.03826530612 | V65: =(AA65+AB65)/5 -> 146.7868 | W65: =T65-V65 -> 3.2132 | Y65: (FCTYF_BOP) | Z65: =VLOOKUP(Z$64&$Y65,GTYF!$C:$AP,6,FALSE) -> 18590.7 | AA65: =VLOOKUP(AA$64&$Y65,GTYF!$C:$AP,37,FALSE) -> 733.934 | AB65: =VLOOKUP(AB$64&$Y65,GTYF!$C:$AP,37,FALSE) -> 0 | AC65: =VLOOKUP(AC$64&$Y65,GTYF!$C:$AP,37,FALSE) -> 733.934 | AD65: =VLOOKUP(AD$64&$Y65,GTYF!$C:$AP,37,FALSE) -> 31260.488 | AE65: =VLOOKUP(AE$64&$Y65,GTYF!$C:$AP,37,FALSE) -> 1818.412 | AF65: =VLOOKUP(AF$64&$Y65,GTYF!$C:$AP,37,FALSE) -> 88613.174 | AG65: =VLOOKUP(AG$64&$Y65,GTYF!$C:$AP,37,FALSE) -> 10844.376 | AH65: =VLOOKUP(AH$64&$Y65,GTYF!$C:$AP,37,FALSE) -> 130718.04
B66: Bétulaies blanches à résineux | D66: 600 | E66: =IFERROR(D66/D$79,0) -> 0.223880597 | F66: 0 | G66: =IFERROR(F66/F$79,0) -> 0 | H66: =ROUND(AD66/5,-2) -> 43200 | I66: =IFERROR(H66/H$79,0) -> 0.142668428 | J66: =ROUND(AG66/5,-2) -> 6900 | K66: 0.100877193 | L66: =ROUND(AF66/5,-2) -> 54900 | M66: =L66/L$79 -> 0.3063616071 | N66: =H66+J66+L66 -> 105000 | O66: 0.1907703488 | S66: Tableau 4. | T66: 600 | U66: =IFERROR(T66/T$79,0) -> 0.1530612245 | V66: =(AA66+AB66)/5 -> 598.5036 | W66: 1.4964 | Y66: (FCTYF_BOPR) | Z66: =VLOOKUP(Z$64&$Y66,GTYF!$C:$AP,6,FALSE) -> 32111 | AA66: =VLOOKUP(AA$64&$Y66,GTYF!$C:$AP,37,FALSE) -> 2992.518 | AB66: =VLOOKUP(AB$64&$Y66,GTYF!$C:$AP,37,FALSE) -> 0 | AC66: =VLOOKUP(AC$64&$Y66,GTYF!$C:$AP,37,FALSE) -> 2992.518 | AD66: =VLOOKUP(AD$64&$Y66,GTYF!$C:$AP,37,FALSE) -> 215908.882 | AE66: =VLOOKUP(AE$64&$Y66,GTYF!$C:$AP,37,FALSE) -> 27822.288 | AF66: =VLOOKUP(AF$64&$Y66,GTYF!$C:$AP,37,FALSE) -> 274586.206 | AG66: =VLOOKUP(AG$64&$Y66,GTYF!$C:$AP,37,FALSE) -> 34322.3 | AH66: =VLOOKUP(AH$64&$Y66,GTYF!$C:$AP,37,FALSE) -> 524817.384
B67: Cédrières | D67: 0 | E67: 0 | F67: 50 | G67: 0.04032258065 | H67: =ROUND(AD67/5,-2) -> 2500 | I67: 0.008256274769 | J67: 600 | K67: 0.008771929825 | L67: 1000 | M67: 0.005580357143 | N67: 4100 | O67: 0.007449127907 | S67: Tableau 4. | T67: 50 | U67: 0.01275510204 | V67: =(AA67+AB67)/5 -> 50 | W67: 0 | Y67: (FCTYF_THO) | Z67: =VLOOKUP(Z$64&$Y67,GTYF!$C:$AP,6,FALSE) -> 10566.6 | AA67: =VLOOKUP(AA$64&$Y67,GTYF!$C:$AP,37,FALSE) -> 0 | AB67: =VLOOKUP(AB$64&$Y67,GTYF!$C:$AP,37,FALSE) -> 250 | AC67: =VLOOKUP(AC$64&$Y67,GTYF!$C:$AP,37,FALSE) -> 250 | AD67: =VLOOKUP(AD$64&$Y67,GTYF!$C:$AP,37,FALSE) -> 12669.5 | AE67: =VLOOKUP(AE$64&$Y67,GTYF!$C:$AP,37,FALSE) -> 9286.5 | AF67: =VLOOKUP(AF$64&$Y67,GTYF!$C:$AP,37,FALSE) -> 4755 | AG67: =VLOOKUP(AG$64&$Y67,GTYF!$C:$AP,37,FALSE) -> 3115 | AH67: =VLOOKUP(AH$64&$Y67,GTYF!$C:$AP,37,FALSE) -> 20539.5
B68: Érablières rouges | D68: 30 | E68: 0.01119402985 | F68: 0 | G68: 0 | H68: 1100 | I68: 0.003632760898 | J68: 1100 | K68: 0.01608187135 | L68: 2400 | M68: 0.01339285714 | N68: 4600 | O68: 0.00835755814 | S68: Tableau 4. | T68: 30 | U68: 0.007653061224 | V68: =(AA68+AB68)/5 -> 25.6208 | W68: 4.3792 | Y68: (FCTYF_ERO) | Z68: =VLOOKUP(Z$64&$Y68,GTYF!$C:$AP,6,FALSE) -> 4412.1 | AA68: =VLOOKUP(AA$64&$Y68,GTYF!$C:$AP,37,FALSE) -> 128.104 | AB68: =VLOOKUP(AB$64&$Y68,GTYF!$C:$AP,37,FALSE) -> 0 | AC68: =VLOOKUP(AC$64&$Y68,GTYF!$C:$AP,37,FALSE) -> 128.104 | AD68: =VLOOKUP(AD$64&$Y68,GTYF!$C:$AP,37,FALSE) -> 5467.06 | AE68: =VLOOKUP(AE$64&$Y68,GTYF!$C:$AP,37,FALSE) -> 720.752 | AF68: =VLOOKUP(AF$64&$Y68,GTYF!$C:$AP,37,FALSE) -> 11760.486 | AG68: =VLOOKUP(AG$64&$Y68,GTYF!$C:$AP,37,FALSE) -> 5282.272 | AH68: =VLOOKUP(AH$64&$Y68,GTYF!$C:$AP,37,FALSE) -> 22509.822
B69: Feuillus tolérants | D69: 0 | E69: 0 | F69: 340 | G69: 0.2741935484 | H69: 3100 | I69: 0.01023778071 | J69: 19800 | K69: 0.2894736842 | L69: 5400 | M69: 0.03013392857 | N69: 28300 | O69: 0.05141715116 | S69: Tableau 4. | T69: 340 | U69: 0.08673469388 | V69: 338.2656 | W69: 1.7344 | Y69: (FCTYF_FT) | Z69: =VLOOKUP(Z$64&$Y69,GTYF!$C:$AP,6,FALSE) -> 47797.6 | AA69: =VLOOKUP(AA$64&$Y69,GTYF!$C:$AP,37,FALSE) -> 0 | AB69: =VLOOKUP(AB$64&$Y69,GTYF!$C:$AP,37,FALSE) -> 1691.328 | AC69: =VLOOKUP(AC$64&$Y69,GTYF!$C:$AP,37,FALSE) -> 1691.328 | AD69: =VLOOKUP(AD$64&$Y69,GTYF!$C:$AP,37,FALSE) -> 15596.278 | AE69: =VLOOKUP(AE$64&$Y69,GTYF!$C:$AP,37,FALSE) -> 1103.25 | AF69: =VLOOKUP(AF$64&$Y69,GTYF!$C:$AP,37,FALSE) -> 27179.066 | AG69: =VLOOKUP(AG$64&$Y69,GTYF!$C:$AP,37,FALSE) -> 98761.438 | AH69: =VLOOKUP(AH$64&$Y69,GTYF!$C:$AP,37,FALSE) -> 141540.048
B70: Feuillus tolérants à résineux | D70: 10 | E70: 0.003731343284 | F70: 730 | G70: 0.5887096774 | H70: 22000 | I70: 0.07265521797 | J70: 27500 | K70: 0.4020467836 | L70: 11900 | M70: 0.06640625 | N70: 61400 | O70: 0.1115552326 | S70: Tableau 4. | T70: 740 | U70: 0.1887755102 | V70: 742.5272 | W70: -2.5272 | Y70: (FCTYF_FTR) | Z70: =VLOOKUP(Z$64&$Y70,GTYF!$C:$AP,6,FALSE) -> 28011 | AA70: =VLOOKUP(AA$64&$Y70,GTYF!$C:$AP,37,FALSE) -> 63.32 | AB70: =VLOOKUP(AB$64&$Y70,GTYF!$C:$AP,37,FALSE) -> 3649.316 | AC70: =VLOOKUP(AC$64&$Y70,GTYF!$C:$AP,37,FALSE) -> 3712.636 | AD70: =VLOOKUP(AD$64&$Y70,GTYF!$C:$AP,37,FALSE) -> 110216.688 | AE70: =VLOOKUP(AE$64&$Y70,GTYF!$C:$AP,37,FALSE) -> 9484.1 | AF70: =VLOOKUP(AF$64&$Y70,GTYF!$C:$AP,37,FALSE) -> 59338.422 | AG70: =VLOOKUP(AG$64&$Y70,GTYF!$C:$AP,37,FALSE) -> 137336.94 | AH70: =VLOOKUP(AH$64&$Y70,GTYF!$C:$AP,37,FALSE) -> 306887.85
B71: Pessières | D71: =ROUND(AA71/5,-1) -> 460 | E71: 0.171641791 | F71: 10 | G71: 0.008064516129 | H71: 65500 | I71: 0.2163143989 | J71: 200 | K71: 0.002923976608 | L71: 5700 | M71: 0.03180803571 | N71: 71400 | O71: 0.1297238372 | S71: Tableau 4. | T71: 470 | U71: 0.1198979592 | V71: 470.7228 | W71: =T71-V71 -> -0.7228 | Y71: (FCTYF_EPX) | Z71: =VLOOKUP(Z$64&$Y71,GTYF!$C:$AP,6,FALSE) -> 56987.5 | AA71: =VLOOKUP(AA$64&$Y71,GTYF!$C:$AP,37,FALSE) -> 2313.614 | AB71: =VLOOKUP(AB$64&$Y71,GTYF!$C:$AP,37,FALSE) -> 40 | AC71: =VLOOKUP(AC$64&$Y71,GTYF!$C:$AP,37,FALSE) -> 2353.614 | AD71: =VLOOKUP(AD$64&$Y71,GTYF!$C:$AP,37,FALSE) -> 327592.908 | AE71: =VLOOKUP(AE$64&$Y71,GTYF!$C:$AP,37,FALSE) -> 8962.596 | AF71: =VLOOKUP(AF$64&$Y71,GTYF!$C:$AP,37,FALSE) -> 28628.812 | AG71: =VLOOKUP(AG$64&$Y71,GTYF!$C:$AP,37,FALSE) -> 1155.452 | AH71: =VLOOKUP(AH$64&$Y71,GTYF!$C:$AP,37,FALSE) -> 357377.172
B72: Peupleraies | D72: 80 | E72: 0.02985074627 | F72: 0 | G72: 0 | H72: 2300 | I72: 0.007595772787 | J72: 400 | K72: 0.005847953216 | L72: 11500 | M72: 0.06417410714 | N72: 14200 | O72: 0.0257994186 | S72: Tableau 4. | T72: 80 | U72: 0.02040816327 | V72: 79.5392 | W72: 0.4608 | Y72: (FCTYF_PEU) | Z72: =VLOOKUP(Z$64&$Y72,GTYF!$C:$AP,6,FALSE) -> 4950.3 | AA72: =VLOOKUP(AA$64&$Y72,GTYF!$C:$AP,37,FALSE) -> 397.696 | AB72: =VLOOKUP(AB$64&$Y72,GTYF!$C:$AP,37,FALSE) -> 0 | AC72: =VLOOKUP(AC$64&$Y72,GTYF!$C:$AP,37,FALSE) -> 397.696 | AD72: =VLOOKUP(AD$64&$Y72,GTYF!$C:$AP,37,FALSE) -> 11597.08 | AE72: =VLOOKUP(AE$64&$Y72,GTYF!$C:$AP,37,FALSE) -> 406.892 | AF72: =VLOOKUP(AF$64&$Y72,GTYF!$C:$AP,37,FALSE) -> 57515.506 | AG72: =VLOOKUP(AG$64&$Y72,GTYF!$C:$AP,37,FALSE) -> 1997.184 | AH72: =VLOOKUP(AH$64&$Y72,GTYF!$C:$AP,37,FALSE) -> 71109.774
B73: Peupleraies à résineux | D73: 70 | E73: 0.02611940299 | F73: 0 | G73: 0 | H73: 4700 | I73: 0.01552179657 | J73: 100 | K73: 0.001461988304 | L73: 8200 | M73: 0.04575892857 | N73: 13000 | O73: 0.02361918605 | S73: Tableau 4. | T73: 70 | U73: 0.01785714286 | V73: 69.392 | W73: 0.608 | Y73: (FCTYF_PEUR) | Z73: =VLOOKUP(Z$64&$Y73,GTYF!$C:$AP,6,FALSE) -> 2618.8 | AA73: =VLOOKUP(AA$64&$Y73,GTYF!$C:$AP,37,FALSE) -> 346.96 | AB73: =VLOOKUP(AB$64&$Y73,GTYF!$C:$AP,37,FALSE) -> 0 | AC73: =VLOOKUP(AC$64&$Y73,GTYF!$C:$AP,37,FALSE) -> 346.96 | AD73: =VLOOKUP(AD$64&$Y73,GTYF!$C:$AP,37,FALSE) -> 23376.188 | AE73: =VLOOKUP(AE$64&$Y73,GTYF!$C:$AP,37,FALSE) -> 1270.252 | AF73: =VLOOKUP(AF$64&$Y73,GTYF!$C:$AP,37,FALSE) -> 41045.676 | AG73: =VLOOKUP(AG$64&$Y73,GTYF!$C:$AP,37,FALSE) -> 303.038 | AH73: =VLOOKUP(AH$64&$Y73,GTYF!$C:$AP,37,FALSE) -> 64724.896
B74: Pinèdes blanches | D74: 0 | E74: 0 | F74: 110 | G74: 0.08870967742 | H74: 7600 | I74: 0.0250990753 | J74: 100 | K74: 0.001461988304 | L74: 2300 | M74: 0.01283482143 | N74: 10000 | O74: 0.01816860465 | S74: Tableau 4. | T74: 110 | U74: 0.02806122449 | V74: 107.5588 | W74: 2.4412 | Y74: (FCTYF_PIN) | Z74: =VLOOKUP(Z$64&$Y74,GTYF!$C:$AP,6,FALSE) -> 7326.6 | AA74: =VLOOKUP(AA$64&$Y74,GTYF!$C:$AP,37,FALSE) -> 0 | AB74: =VLOOKUP(AB$64&$Y74,GTYF!$C:$AP,37,FALSE) -> 537.794 | AC74: =VLOOKUP(AC$64&$Y74,GTYF!$C:$AP,37,FALSE) -> 537.794 | AD74: =VLOOKUP(AD$64&$Y74,GTYF!$C:$AP,37,FALSE) -> 37959.492 | AE74: =VLOOKUP(AE$64&$Y74,GTYF!$C:$AP,37,FALSE) -> 30832.412 | AF74: =VLOOKUP(AF$64&$Y74,GTYF!$C:$AP,37,FALSE) -> 11671.148 | AG74: =VLOOKUP(AG$64&$Y74,GTYF!$C:$AP,37,FALSE) -> 690.01 | AH74: =VLOOKUP(AH$64&$Y74,GTYF!$C:$AP,37,FALSE) -> 50317.914
B75: Pinèdes grises | D75: 90 | E75: 0.03358208955 | F75: 0 | G75: 0 | H75: 16100 | I75: 0.05317040951 | J75: 0 | K75: 0 | L75: 800 | M75: 0.004464285714 | N75: 16900 | O75: 0.03070494186 | S75: Tableau 4. | T75: 90 | U75: 0.02295918367 | V75: 90.388 | W75: -0.388 | Y75: (FCTYF_PIG) | Z75: =VLOOKUP(Z$64&$Y75,GTYF!$C:$AP,6,FALSE) -> 3772.6 | AA75: =VLOOKUP(AA$64&$Y75,GTYF!$C:$AP,37,FALSE) -> 431.94 | AB75: =VLOOKUP(AB$64&$Y75,GTYF!$C:$AP,37,FALSE) -> 20 | AC75: =VLOOKUP(AC$64&$Y75,GTYF!$C:$AP,37,FALSE) -> 451.94 | AD75: =VLOOKUP(AD$64&$Y75,GTYF!$C:$AP,37,FALSE) -> 80427.884 | AE75: =VLOOKUP(AE$64&$Y75,GTYF!$C:$AP,37,FALSE) -> 232.734 | AF75: =VLOOKUP(AF$64&$Y75,GTYF!$C:$AP,37,FALSE) -> 3862.108 | AG75: =VLOOKUP(AG$64&$Y75,GTYF!$C:$AP,37,FALSE) -> 0 | AH75: =VLOOKUP(AH$64&$Y75,GTYF!$C:$AP,37,FALSE) -> 84290.194
B76: Prucheraies | D76: 0 | E76: 0 | F76: 0 | G76: 0 | H76: 0 | I76: 0 | J76: 0 | K76: 0 | L76: 0 | M76: 0 | N76: 0 | O76: 0 | S76: Tableau 4. | T76: 0 | U76: 0 | V76: 0 | W76: 0 | Y76: (FCTYF_PRU) | Z76: =VLOOKUP(Z$64&$Y76,GTYF!$C:$AP,6,FALSE) -> 0 | AA76: =VLOOKUP(AA$64&$Y76,GTYF!$C:$AP,37,FALSE) -> 0 | AB76: =VLOOKUP(AB$64&$Y76,GTYF!$C:$AP,37,FALSE) -> 0 | AC76: =VLOOKUP(AC$64&$Y76,GTYF!$C:$AP,37,FALSE) -> 0 | AD76: =VLOOKUP(AD$64&$Y76,GTYF!$C:$AP,37,FALSE) -> 0 | AE76: =VLOOKUP(AE$64&$Y76,GTYF!$C:$AP,37,FALSE) -> 0 | AF76: =VLOOKUP(AF$64&$Y76,GTYF!$C:$AP,37,FALSE) -> 0 | AG76: =VLOOKUP(AG$64&$Y76,GTYF!$C:$AP,37,FALSE) -> 0 | AH76: =VLOOKUP(AH$64&$Y76,GTYF!$C:$AP,37,FALSE) -> 0
B77: Résineux à feuillus | D77: 940 | E77: 0.3507462687 | F77: 0 | G77: 0 | H77: 96800 | I77: 0.319682959 | J77: 8400 | K77: 0.1228070175 | L77: 52100 | M77: 0.2907366071 | N77: 157300 | O77: 0.2857921512 | S77: Tableau 4. | T77: 940 | U77: 0.2397959184 | V77: 943.7876 | W77: -3.7876 | Y77: (FCTYF_RF) | Z77: =VLOOKUP(Z$64&$Y77,GTYF!$C:$AP,6,FALSE) -> 57676.3 | AA77: =VLOOKUP(AA$64&$Y77,GTYF!$C:$AP,37,FALSE) -> 4718.938 | AB77: =VLOOKUP(AB$64&$Y77,GTYF!$C:$AP,37,FALSE) -> 0 | AC77: =VLOOKUP(AC$64&$Y77,GTYF!$C:$AP,37,FALSE) -> 4718.938 | AD77: =VLOOKUP(AD$64&$Y77,GTYF!$C:$AP,37,FALSE) -> 484131.512 | AE77: =VLOOKUP(AE$64&$Y77,GTYF!$C:$AP,37,FALSE) -> 20421.768 | AF77: =VLOOKUP(AF$64&$Y77,GTYF!$C:$AP,37,FALSE) -> 260573.554 | AG77: =VLOOKUP(AG$64&$Y77,GTYF!$C:$AP,37,FALSE) -> 42043.19 | AH77: =VLOOKUP(AH$64&$Y77,GTYF!$C:$AP,37,FALSE) -> 786748.26
B78: Sapinières | D78: 250 | E78: 0.09328358209 | F78: 0 | G78: 0 | H78: 31600 | I78: 0.1043593131 | J78: =ROUND(AG78/5,-2) -> 1100 | K78: 0.01608187135 | L78: 5300 | M78: 0.02957589286 | N78: 38000 | O78: 0.06904069767 | S78: Tableau 4. | T78: 250 | U78: 0.0637755102 | V78: 247.2644 | W78: 2.7356 | Y78: (FCTYF_SAB) | Z78: =VLOOKUP(Z$64&$Y78,GTYF!$C:$AP,6,FALSE) -> 11361.3 | AA78: =VLOOKUP(AA$64&$Y78,GTYF!$C:$AP,37,FALSE) -> 1236.322 | AB78: =VLOOKUP(AB$64&$Y78,GTYF!$C:$AP,37,FALSE) -> 0 | AC78: =VLOOKUP(AC$64&$Y78,GTYF!$C:$AP,37,FALSE) -> 1236.322 | AD78: =VLOOKUP(AD$64&$Y78,GTYF!$C:$AP,37,FALSE) -> 157955.488 | AE78: =VLOOKUP(AE$64&$Y78,GTYF!$C:$AP,37,FALSE) -> 3785.416 | AF78: =VLOOKUP(AF$64&$Y78,GTYF!$C:$AP,37,FALSE) -> 26314.866 | AG78: =VLOOKUP(AG$64&$Y78,GTYF!$C:$AP,37,FALSE) -> 5348.792 | AH78: =VLOOKUP(AH$64&$Y78,GTYF!$C:$AP,37,FALSE) -> 189619.146
B79: Total | D79: =SUM(D65:D78) -> 2680 | E79: =SUM(E65:E78) -> 1 | F79: =SUM(F65:F78) -> 1240 | G79: =SUM(G65:G78) -> 1 | H79: =SUM(H65:H78) -> 302800 | I79: =SUM(I65:I78) -> 1 | J79: 68400 | K79: 1 | L79: 179200 | M79: 1 | N79: =SUM(N65:N78) -> 550400 | O79: 1 | S79: Tableau 4. | T79: =SUM(T65:T78) -> 3920 | U79: =SUM(U65:U78) -> 1 | V79: =SUM(V65:V78) -> 3910.3568 | W79: 9.6432 | Y79: Somme | Z79: =SUM(Z65:Z78) -> 286182.4 | AA79: =SUM(AA65:AA78) -> 13363.346 | AB79: =SUM(AB65:AB78) -> 6188.438 | AC79: =SUM(AC65:AC78) -> 19551.784
B80: * Les superficies sont arrondies à la dizaine près et les volumes à la centaine près. Cette opération peut engendrer de légères distorsions sur les sommes | S80: Tableau 4. | Y80: Total (Output) | Z80: =VLOOKUP(Z$64,Output!$C:$AP,6,FALSE) -> 286182.4
Y81: Écart | Z81: =Z79-Z80 -> 0
N82: Écart de possibilité
N83: =Instructions!I5/5-N79 -> -160 | O83: Valideur
B84: Tableau 8. Traitements commerciaux supportant les possibilités forestières
B85: Traitements commerciaux (récolte) | G85: Superficie annuelle moyenne (ha/an) | H85: Superficie antérieure (ha/an) | I85: Écart (ha/an)
T88: Légende | U88: Name | V88: PERIOD2@6
B89: Coupe avec protection de la régénération et des sols (CPRS) | G89: =IFERROR(ROUND(V89,-1),0)-G90-G91 -> 2670 | H89: =IFERROR(ROUND(VLOOKUP(O33,DataLocal!$A:$BH,37,FALSE),-1),0) -> 2510 | I89: =G89-H89 -> 160 | S89: =LEFT(B$84,10) -> Tableau 8. | T89: Coupes avec protection de la régénération et des sols (CPRS) | U89: OSUPCT | V89: =IFERROR(VLOOKUP(U89,Output!$C:$AQ,37,FALSE)/5,"0000") -> 2672.67
B90: Coupe avec protection des petites tiges marchandes (CPPTM) | G90: =IFERROR(ROUND(V90,-1),0) -> 0 | H90: =IFERROR(ROUND(VLOOKUP(O33,DataLocal!$A:$BH,38,FALSE),-1),0) -> 0 | I90: =G90-H90 -> 0 | S90: Tableau 8. | T90: Coupe avec protection des petites tiges marchandes (CPPTM) | U90: OSUPREALACPPTM | V90: =IFERROR(VLOOKUP(U90,Output!$C:$AQ,37,FALSE)/5,"0000") -> 0
B91: Coupe avec réserve de semenciers (CRS) | G91: =IFERROR(ROUND(V91,-1),0) -> 0 | H91: =IFERROR(ROUND(VLOOKUP(33,DataLocal!$A:$BH,39,FALSE),-1),0) -> 0 | I91: 0 | S91: Tableau 8. | T91: Coupe avec réserve de semenciers (CRS) | U91: OSUPREALACRS | V91: =IFERROR(VLOOKUP(U91,Output!$C:$AQ,37,FALSE)/5,"0000") -> 0
B92: Total des coupes finales | G92: =SUM(G89:G91) -> 2670 | H92: =SUM(H89:H91) -> 2510 | I92: 160 | S92: Tableau 8.
B93: Éclaircie commerciale | G93: =IFERROR(ROUND(V93,-1),0) -> 10 | H93: =IFERROR(ROUND(VLOOKUP(O33,DataLocal!$A:$BH,40,FALSE),-1),0) -> 110 | I93: -100 | S93: Tableau 8. | T93: Éclaircie commerciale (EC) | U93: OSUPEC_SEPM | V93: =IFERROR(VLOOKUP(U93,Output!$C:$AQ,37,FALSE)/5,"0000") -> 12
B94: Coupe progressive régulière | G94: =IFERROR(ROUND(V94+V95,-1),0) -> 0 | H94: =IFERROR(ROUND(VLOOKUP(O33,DataLocal!$A:$BH,41,FALSE),-1),0) -> 320 | I94: -320 | S94: Tableau 8. | T94: Coupe progressive régulière initiale (CPROG) | U94: OSUPCPROG_INI | V94: =IFERROR(VLOOKUP(U94,Output!$C:$AQ,37,FALSE)/5,"0000") -> 0000
B95: Coupe progressive irrégulière à régénération lente (CPIL) | G95: =IFERROR(ROUND(V96+V97,-1),0) -> 1180 | H95: =IFERROR(ROUND(VLOOKUP(O33,DataLocal!$A:$BH,42,FALSE),-1),0) -> 170 | I95: 1010 | S95: Tableau 8. | T95: Coupe progressive régulière finale (CPROG) | U95: OSUPCPROG_FIN | V95: =IFERROR(VLOOKUP(U95,Output!$C:$AQ,37,FALSE)/5,"0000") -> 0000
B96: Coupe progressive irrégulière à couvert permanent (CPICP) | G96: =IFERROR(ROUND(V98,-1),0) -> 50 | H96: =IFERROR(ROUND(VLOOKUP(O33,DataLocal!$A:$BH,43,FALSE),-1),0) -> 470 | I96: -420 | S96: Tableau 8. | T96: Coupe progessive irrégulière initiale (CPIRL) | U96: OSUPCPIRL_INI | V96: =IFERROR(VLOOKUP(U96,Output!$C:$AQ,37,FALSE)/5,"0000") -> 1175.6868
B97: Coupes de jardinage ou d'amélioration | G97: =IFERROR(ROUND(V99,-1),0) -> 0 | H97: =IFERROR(ROUND(VLOOKUP(O33,DataLocal!$A:$BH,44,FALSE),-1),0) -> 0 | I97: 0 | T97: Coupe progessive irrégulière finale (CPIRL) | U97: OSUPCPIRL_FIN | V97: =IFERROR(VLOOKUP(U97,Output!$C:$AQ,37,FALSE)/5,"0000") -> 0
B98: Total des coupes partielles | G98: =SUM(G93:G97) -> 1240 | H98: =SUM(H93:H97) -> 1070 | I98: 170 | S98: =LEFT(B$84,10) -> Tableau 8. | T98: Coupe à couvert permanent (CPICP) | U98: OSUPCPICP | V98: =IFERROR(VLOOKUP(U98,Output!$C:$AQ,37,FALSE)/5,"0000") -> 50
B99: Total des activités de récolte | G99: =G92+G98 -> 3910 | H99: =H98+H92 -> 3580 | I99: 330 | S99: =LEFT(B$84,10) -> Tableau 8. | T99: Coupe de jardinage (CJ) | U99: OSUPCJ | V99: =IFERROR(VLOOKUP(U99,Output!$C:$AQ,37,FALSE)/5,"0000") -> 0000
B100: % des coupes totales / récolte | G100: =IFERROR(G92/G99,0) -> 0.6828644501 | H100: =IFERROR(H92/H99,0) -> 0.7011173184 | I100: =ROUND(G100-H100,2) -> -0.02 | W100: Valideur
B101: % des coupes partielles / récolte | G101: =IFERROR(G98/G99,0) -> 0.3171355499 | H101: =IFERROR(H98/H99,0) -> 0.2988826816 | I101: =ROUND(G101-H101,2) -> 0.02 | S101: =LEFT(B$84,10) -> Tableau 8. | U101: OSUPREALREGAPAR | V101: =VLOOKUP(U101,Output!$C:$AQ,37,FALSE)/5 -> 1237.6868 | W101: =ROUND(SUM(V93:V99),0)=ROUND(V101,0) -> TRUE
B102: Coupes partielles de peuplements résineux | G102: =ROUND(((AB67+AB71+AB75+AB76+AB77+AB78)/5),-1) -> 60 | H102: =IFERROR(ROUND(VLOOKUP(O33,DataLocal!$A:$BH,45,FALSE),-1),0) -> 390 | I102: -330 | S102: =LEFT(B$84,10) -> Tableau 8. | U102: OSUPREALREGAFIN | V102: =VLOOKUP(U102,Output!$C:$AQ,37,FALSE)/5 -> 2672.67 | W102: =ROUND((V89),0)=ROUND(V102,0) -> TRUE
B103: Coupes partielles de peuplements de feuillus tolérants et de pins | G103: =ROUND(((AB69+AB70+AB74)/5),-1) -> 1180 | H103: =IFERROR(ROUND(VLOOKUP(O33,DataLocal!$A:$BH,46,FALSE),-1),0) -> 670 | I103: 510 | J103: Arrondi ajouté dans formules cellules G102 et G103 | S103: =LEFT(B$84,10) -> Tableau 8. | U103: OSUPREALREGAPRE | V103: =VLOOKUP(U103,Output!$C:$AQ,37,FALSE)/5 -> 3910.3576 | W103: =ROUND(V89+SUM(V93:V99),0)=ROUND(V103,0) -> TRUE
B109: Tableau 9. Variables descriptives reliées aux coupes partielles et totales par grand type de forêt | L109: La CRV est-elle compabilisée avec les coupes partielles (regaPar)?
B110: Grands types de forêt | E110: Coupes partielles | H110: Coupes totales | L110: Si Oui - Remplacer alors les valeurs (colonne H et I) par celles-ci
E111: Rotation moyenne | F111: Prélèvement moyen | G111: Surface terrière moyenne avant coupe | H111: Âge moyen des peuplements | I111: Volume moyen toutes essences | J111: Dimension des bois SEPM | M111: Âge moyen des peuplements | N111: Volume moyen toutes essences
S113: Référence Tableau 63 du cahier d'analyse VF
E115: Années | F115: ="m"&CHAR(179)&"/ha" -> m³/ha | G115: ="m"&CHAR(178)&"/ha" -> m²/ha | H115: Années | I115: ="m"&CHAR(179)&"/an" -> m³/an | J115: ="dcm"&CHAR(179)&"/tige" -> dcm³/tige | M115: Années | N115: ="m"&CHAR(179)&"/an" -> m³/an | S115: =LEFT(B$109,10) -> Tableau 9. | V115: OSUPREALREGAPRE | W115: OSUPINC | X115: OVOLGSEPMRECREGAFIN | Y115: ONBTGSEPMRECREGAFIN | Z115: OVOLTOTRECACT | AA115: OVOLTOTRECACFP | AB115: OVOLTOTRECACRS | AC115: OVOLTOTRECACPPTM | AD115: OSUPREALREGAFIN | AE115: OVOLTOTRECACRV | AF115: OAGETOTRECACT | AG115: OAGETOTRECACFP | AH115: OAGETOTRECACRS | AI115: OAGETOTRECACPPTM | AJ115: OSUPREALREGAFIN | AK115: OAGETOTRECACRV | AM115: OVOLTOTRECaEC | AN115: OVOLTOTRECaEC2 | AO115: OVOLTOTRECaEC3 | AP115: OVOLTOTRECaCA | AQ115: OVOLTOTRECaCA2 | AR115: OVOLTOTRECaCPROG | AS115: OVOLTOTRECaCPIL | AT115: OVOLTOTRECaCPIP | AU115: OVOLTOTRECaCPFORT | AV115: OVOLTOTRECaCPFAIBL | AW115: OVOLTOTRECaCP | AX115: OVOLTOTRECaCPJ | AY115: OVOLTOTRECaCJ | AZ115: SOMME | BA115: OSUPREALREGAPAR
B116: =T116 -> Bétulaies blanches | E116: - | F116: =IFERROR($AZ116/$BA116,"-") -> - | G116: - | H116: >120 | I116: =IFERROR(($Z116+$AA116+$AB116+$AC116+$AE116)/$AD116,"-") -> 178.1059877 | J116: =(IFERROR(X116/Y116*1000,"-")) -> 163.7899945 | M116: =IFERROR(($AF116+$AG116+$AH116+$AI116)/$AJ116*5,"-") -> 131.7701728 | N116: =IFERROR(($Z116+$AA116+$AB116+$AC116)/$AD116,"-") -> 178.1059877 | S116: =LEFT(B$109,10) -> Tableau 9. | T116: Bétulaies blanches | U116: (FCTYF_BOP) | V116: =VLOOKUP(V$115&$U116,GTYF!$C:$AQ,37,FALSE) -> 733.934 | W116: =VLOOKUP(W$115&$U116,GTYF!$C:$AQ,6,FALSE) -> 18590.7 | X116: =VLOOKUP(X$115&$U116,GTYF!$C:$AQ,37,FALSE) -> 29442.078 | Y116: =VLOOKUP(Y$115&$U116,GTYF!$C:$AQ,37,FALSE) -> 179755.046 | Z116: =VLOOKUP(Z$115&$U116,GTYF!$C:$AQ,37,FALSE) -> 130718.04 | AA116: =VLOOKUP(AA$115&$U116,GTYF!$C:$AQ,37,FALSE) -> 0 | AB116: =VLOOKUP(AB$115&$U116,GTYF!$C:$AQ,37,FALSE) -> 0 | AC116: =VLOOKUP(AC$115&$U116,GTYF!$C:$AQ,37,FALSE) -> 0 | AD116: =VLOOKUP(AD$115&$U116,GTYF!$C:$AQ,37,FALSE) -> 733.934 | AE116: =VLOOKUP(AE$115&$U116,GTYF!$C:$AQ,37,FALSE) -> 0 | AF116: =VLOOKUP(AF$115&$U116,GTYF!$C:$AQ,37,FALSE) -> 19342.122 | AG116: =VLOOKUP(AG$115&$U116,GTYF!$C:$AQ,37,FALSE) -> 0 | AH116: =VLOOKUP(AH$115&$U116,GTYF!$C:$AQ,37,FALSE) -> 0 | AI116: =VLOOKUP(AI$115&$U116,GTYF!$C:$AQ,37,FALSE) -> 0 | AJ116: =VLOOKUP(AJ$115&$U116,GTYF!$C:$AQ,37,FALSE) -> 733.934 | AK116: =VLOOKUP(AK$115&$U116,GTYF!$C:$AQ,37,FALSE) -> 0 | AM116: =VLOOKUP(AM$115&$U116,GTYF!$C:$AQ,37,FALSE) -> 0 | AN116: =VLOOKUP(AN$115&$U116,GTYF!$C:$AQ,37,FALSE) -> 0 | AO116: =VLOOKUP(AO$115&$U116,GTYF!$C:$AQ,37,FALSE) -> 0 | AP116: =VLOOKUP(AP$115&$U116,GTYF!$C:$AQ,37,FALSE) -> 0 | AQ116: =VLOOKUP(AQ$115&$U116,GTYF!$C:$AQ,37,FALSE) -> 0 | AR116: =VLOOKUP(AR$115&$U116,GTYF!$C:$AQ,37,FALSE) -> 0 | AS116: =VLOOKUP(AS$115&$U116,GTYF!$C:$AQ,37,FALSE) -> 0 | AT116: =VLOOKUP(AT$115&$U116,GTYF!$C:$AQ,37,FALSE) -> 0 | AU116: =VLOOKUP(AU$115&$U116,GTYF!$C:$AQ,37,FALSE) -> 0 | AV116: =VLOOKUP(AV$115&$U116,GTYF!$C:$AQ,37,FALSE) -> 0 | AW116: =VLOOKUP(AW$115&$U116,GTYF!$C:$AQ,37,FALSE) -> 0 | AX116: =VLOOKUP(AX$115&$U116,GTYF!$C:$AQ,37,FALSE) -> 0 | AY116: =VLOOKUP(AY$115&$U116,GTYF!$C:$AQ,37,FALSE) -> 0 | AZ116: =SUM(AM116:AY116) -> 0 | BA116: =VLOOKUP(BA$115&$U116,GTYF!$C:$AQ,37,FALSE) -> 0
B117: Bétulaies blanches à résineux | E117: - | F117: - | G117: - | H117: =IFERROR(($AF117+$AG117+$AH117+$AI117+$AK117)/$AJ117*5,"-") -> 114.5992071 | I117: =IFERROR(($Z117+$AA117+$AB117+$AC117+$AE117)/$AD117,"-") -> 175.376517 | J117: =(IFERROR(X117/Y117*1000,"-")) -> 167.6496907 | M117: =IFERROR(($AF117+$AG117+$AH117+$AI117)/$AJ117*5,"-") -> 114.5992071 | N117: =IFERROR(($Z117+$AA117+$AB117+$AC117)/$AD117,"-") -> 175.376517 | S117: Tableau 9. | T117: Bétulaies blanches à résineux | U117: (FCTYF_BOPR) | V117: =VLOOKUP(V$115&$U117,GTYF!$C:$AQ,37,FALSE) -> 2992.518 | W117: =VLOOKUP(W$115&$U117,GTYF!$C:$AQ,6,FALSE) -> 32111 | X117: =VLOOKUP(X$115&$U117,GTYF!$C:$AQ,37,FALSE) -> 188086.592 | Y117: =VLOOKUP(Y$115&$U117,GTYF!$C:$AQ,37,FALSE) -> 1121902.41 | Z117: =VLOOKUP(Z$115&$U117,GTYF!$C:$AQ,37,FALSE) -> 524817.384 | AA117: =VLOOKUP(AA$115&$U117,GTYF!$C:$AQ,37,FALSE) -> 0 | AB117: =VLOOKUP(AB$115&$U117,GTYF!$C:$AQ,37,FALSE) -> 0 | AC117: =VLOOKUP(AC$115&$U117,GTYF!$C:$AQ,37,FALSE) -> 0 | AD117: =VLOOKUP(AD$115&$U117,GTYF!$C:$AQ,37,FALSE) -> 2992.518 | AE117: =VLOOKUP(AE$115&$U117,GTYF!$C:$AQ,37,FALSE) -> 0 | AF117: =VLOOKUP(AF$115&$U117,GTYF!$C:$AQ,37,FALSE) -> 68588.038 | AG117: =VLOOKUP(AG$115&$U117,GTYF!$C:$AQ,37,FALSE) -> 0 | AH117: =VLOOKUP(AH$115&$U117,GTYF!$C:$AQ,37,FALSE) -> 0 | AI117: =VLOOKUP(AI$115&$U117,GTYF!$C:$AQ,37,FALSE) -> 0 | AJ117: =VLOOKUP(AJ$115&$U117,GTYF!$C:$AQ,37,FALSE) -> 2992.518 | AK117: =VLOOKUP(AK$115&$U117,GTYF!$C:$AQ,37,FALSE) -> 0 | AM117: =VLOOKUP(AM$115&$U117,GTYF!$C:$AQ,37,FALSE) -> 0 | AN117: =VLOOKUP(AN$115&$U117,GTYF!$C:$AQ,37,FALSE) -> 0 | AO117: =VLOOKUP(AO$115&$U117,GTYF!$C:$AQ,37,FALSE) -> 0 | AP117: =VLOOKUP(AP$115&$U117,GTYF!$C:$AQ,37,FALSE) -> 0 | AQ117: =VLOOKUP(AQ$115&$U117,GTYF!$C:$AQ,37,FALSE) -> 0 | AR117: =VLOOKUP(AR$115&$U117,GTYF!$C:$AQ,37,FALSE) -> 0 | AS117: =VLOOKUP(AS$115&$U117,GTYF!$C:$AQ,37,FALSE) -> 0 | AT117: =VLOOKUP(AT$115&$U117,GTYF!$C:$AQ,37,FALSE) -> 0 | AU117: =VLOOKUP(AU$115&$U117,GTYF!$C:$AQ,37,FALSE) -> 0 | AV117: =VLOOKUP(AV$115&$U117,GTYF!$C:$AQ,37,FALSE) -> 0 | AW117: =VLOOKUP(AW$115&$U117,GTYF!$C:$AQ,37,FALSE) -> 0 | AX117: =VLOOKUP(AX$115&$U117,GTYF!$C:$AQ,37,FALSE) -> 0 | AY117: =VLOOKUP(AY$115&$U117,GTYF!$C:$AQ,37,FALSE) -> 0 | AZ117: =SUM(AM117:AY117) -> 0 | BA117: =VLOOKUP(BA$115&$U117,GTYF!$C:$AQ,37,FALSE) -> 0
B118: Cédrières | E118: 40 | F118: 82.158 | G118: 37 | H118: =IFERROR(($AF118+$AG118+$AH118+$AI118+$AK118)/$AJ118*5,"-") -> - | I118: - | J118: =(IFERROR(X118/Y118*1000,"-")) -> - | M118: - | N118: - | S118: Tableau 9. | T118: Cédrières | U118: (FCTYF_THO) | V118: =VLOOKUP(V$115&$U118,GTYF!$C:$AQ,37,FALSE) -> 250 | W118: =VLOOKUP(W$115&$U118,GTYF!$C:$AQ,6,FALSE) -> 10566.6 | X118: =VLOOKUP(X$115&$U118,GTYF!$C:$AQ,37,FALSE) -> 0 | Y118: =VLOOKUP(Y$115&$U118,GTYF!$C:$AQ,37,FALSE) -> 0 | Z118: =VLOOKUP(Z$115&$U118,GTYF!$C:$AQ,37,FALSE) -> 0 | AA118: =VLOOKUP(AA$115&$U118,GTYF!$C:$AQ,37,FALSE) -> 0 | AB118: =VLOOKUP(AB$115&$U118,GTYF!$C:$AQ,37,FALSE) -> 0 | AC118: =VLOOKUP(AC$115&$U118,GTYF!$C:$AQ,37,FALSE) -> 0 | AD118: =VLOOKUP(AD$115&$U118,GTYF!$C:$AQ,37,FALSE) -> 0 | AE118: =VLOOKUP(AE$115&$U118,GTYF!$C:$AQ,37,FALSE) -> 0 | AF118: =VLOOKUP(AF$115&$U118,GTYF!$C:$AQ,37,FALSE) -> 0 | AG118: =VLOOKUP(AG$115&$U118,GTYF!$C:$AQ,37,FALSE) -> 0 | AH118: =VLOOKUP(AH$115&$U118,GTYF!$C:$AQ,37,FALSE) -> 0 | AI118: =VLOOKUP(AI$115&$U118,GTYF!$C:$AQ,37,FALSE) -> 0 | AJ118: =VLOOKUP(AJ$115&$U118,GTYF!$C:$AQ,37,FALSE) -> 0 | AK118: =VLOOKUP(AK$115&$U118,GTYF!$C:$AQ,37,FALSE) -> 0 | AM118: =VLOOKUP(AM$115&$U118,GTYF!$C:$AQ,37,FALSE) -> 0 | AN118: =VLOOKUP(AN$115&$U118,GTYF!$C:$AQ,37,FALSE) -> 0 | AO118: =VLOOKUP(AO$115&$U118,GTYF!$C:$AQ,37,FALSE) -> 0 | AP118: =VLOOKUP(AP$115&$U118,GTYF!$C:$AQ,37,FALSE) -> 0 | AQ118: =VLOOKUP(AQ$115&$U118,GTYF!$C:$AQ,37,FALSE) -> 0 | AR118: =VLOOKUP(AR$115&$U118,GTYF!$C:$AQ,37,FALSE) -> 0 | AS118: =VLOOKUP(AS$115&$U118,GTYF!$C:$AQ,37,FALSE) -> 0 | AT118: =VLOOKUP(AT$115&$U118,GTYF!$C:$AQ,37,FALSE) -> 3779.5 | AU118: =VLOOKUP(AU$115&$U118,GTYF!$C:$AQ,37,FALSE) -> 0 | AV118: =VLOOKUP(AV$115&$U118,GTYF!$C:$AQ,37,FALSE) -> 16760 | AW118: =VLOOKUP(AW$115&$U118,GTYF!$C:$AQ,37,FALSE) -> 0 | AX118: =VLOOKUP(AX$115&$U118,GTYF!$C:$AQ,37,FALSE) -> 0 | AY118: =VLOOKUP(AY$115&$U118,GTYF!$C:$AQ,37,FALSE) -> 0 | AZ118: 20539.5 | BA118: =VLOOKUP(BA$115&$U118,GTYF!$C:$AQ,37,FALSE) -> 250
B119: Érablières rouges | E119: - | F119: - | G119: - | H119: >120 | I119: 175.7152158 | J119: ND | M119: 131.0252607 | N119: 175.7152158 | S119: Tableau 9. | T119: Érablières rouges | U119: (FCTYF_ERO) | V119: =VLOOKUP(V$115&$U119,GTYF!$C:$AQ,37,FALSE) -> 128.104 | W119: =VLOOKUP(W$115&$U119,GTYF!$C:$AQ,6,FALSE) -> 4412.1 | X119: =VLOOKUP(X$115&$U119,GTYF!$C:$AQ,37,FALSE) -> 4746.308 | Y119: =VLOOKUP(Y$115&$U119,GTYF!$C:$AQ,37,FALSE) -> 23878.832 | Z119: =VLOOKUP(Z$115&$U119,GTYF!$C:$AQ,37,FALSE) -> 22509.822 | AA119: =VLOOKUP(AA$115&$U119,GTYF!$C:$AQ,37,FALSE) -> 0 | AB119: =VLOOKUP(AB$115&$U119,GTYF!$C:$AQ,37,FALSE) -> 0 | AC119: =VLOOKUP(AC$115&$U119,GTYF!$C:$AQ,37,FALSE) -> 0 | AD119: =VLOOKUP(AD$115&$U119,GTYF!$C:$AQ,37,FALSE) -> 128.104 | AE119: =VLOOKUP(AE$115&$U119,GTYF!$C:$AQ,37,FALSE) -> 0 | AF119: =VLOOKUP(AF$115&$U119,GTYF!$C:$AQ,37,FALSE) -> 3356.972 | AG119: =VLOOKUP(AG$115&$U119,GTYF!$C:$AQ,37,FALSE) -> 0 | AH119: =VLOOKUP(AH$115&$U119,GTYF!$C:$AQ,37,FALSE) -> 0 | AI119: =VLOOKUP(AI$115&$U119,GTYF!$C:$AQ,37,FALSE) -> 0 | AJ119: =VLOOKUP(AJ$115&$U119,GTYF!$C:$AQ,37,FALSE) -> 128.104 | AK119: =VLOOKUP(AK$115&$U119,GTYF!$C:$AQ,37,FALSE) -> 0 | AM119: =VLOOKUP(AM$115&$U119,GTYF!$C:$AQ,37,FALSE) -> 0 | AN119: =VLOOKUP(AN$115&$U119,GTYF!$C:$AQ,37,FALSE) -> 0 | AO119: =VLOOKUP(AO$115&$U119,GTYF!$C:$AQ,37,FALSE) -> 0 | AP119: =VLOOKUP(AP$115&$U119,GTYF!$C:$AQ,37,FALSE) -> 0 | AQ119: =VLOOKUP(AQ$115&$U119,GTYF!$C:$AQ,37,FALSE) -> 0 | AR119: =VLOOKUP(AR$115&$U119,GTYF!$C:$AQ,37,FALSE) -> 0 | AS119: =VLOOKUP(AS$115&$U119,GTYF!$C:$AQ,37,FALSE) -> 0 | AT119: =VLOOKUP(AT$115&$U119,GTYF!$C:$AQ,37,FALSE) -> 0 | AU119: =VLOOKUP(AU$115&$U119,GTYF!$C:$AQ,37,FALSE) -> 0 | AV119: =VLOOKUP(AV$115&$U119,GTYF!$C:$AQ,37,FALSE) -> 0 | AW119: =VLOOKUP(AW$115&$U119,GTYF!$C:$AQ,37,FALSE) -> 0 | AX119: =VLOOKUP(AX$115&$U119,GTYF!$C:$AQ,37,FALSE) -> 0 | AY119: =VLOOKUP(AY$115&$U119,GTYF!$C:$AQ,37,FALSE) -> 0 | AZ119: 0 | BA119: =VLOOKUP(BA$115&$U119,GTYF!$C:$AQ,37,FALSE) -> 0
B120: Feuillus tolérants | E120: 72 | F120: 83.68574635 | G120: 26 | H120: - | I120: - | J120: - | M120: - | N120: - | S120: Tableau 9. | T120: Feuillus tolérants | U120: (FCTYF_FT) | V120: =VLOOKUP(V$115&$U120,GTYF!$C:$AQ,37,FALSE) -> 1691.328 | W120: =VLOOKUP(W$115&$U120,GTYF!$C:$AQ,6,FALSE) -> 47797.6 | X120: =VLOOKUP(X$115&$U120,GTYF!$C:$AQ,37,FALSE) -> 0 | Y120: =VLOOKUP(Y$115&$U120,GTYF!$C:$AQ,37,FALSE) -> 0 | Z120: =VLOOKUP(Z$115&$U120,GTYF!$C:$AQ,37,FALSE) -> 0 | AA120: =VLOOKUP(AA$115&$U120,GTYF!$C:$AQ,37,FALSE) -> 0 | AB120: =VLOOKUP(AB$115&$U120,GTYF!$C:$AQ,37,FALSE) -> 0 | AC120: =VLOOKUP(AC$115&$U120,GTYF!$C:$AQ,37,FALSE) -> 0 | AD120: =VLOOKUP(AD$115&$U120,GTYF!$C:$AQ,37,FALSE) -> 0 | AE120: =VLOOKUP(AE$115&$U120,GTYF!$C:$AQ,37,FALSE) -> 0 | AF120: =VLOOKUP(AF$115&$U120,GTYF!$C:$AQ,37,FALSE) -> 0 | AG120: =VLOOKUP(AG$115&$U120,GTYF!$C:$AQ,37,FALSE) -> 0 | AH120: =VLOOKUP(AH$115&$U120,GTYF!$C:$AQ,37,FALSE) -> 0 | AI120: =VLOOKUP(AI$115&$U120,GTYF!$C:$AQ,37,FALSE) -> 0 | AJ120: =VLOOKUP(AJ$115&$U120,GTYF!$C:$AQ,37,FALSE) -> 0 | AK120: =VLOOKUP(AK$115&$U120,GTYF!$C:$AQ,37,FALSE) -> 0 | AM120: =VLOOKUP(AM$115&$U120,GTYF!$C:$AQ,37,FALSE) -> 0 | AN120: =VLOOKUP(AN$115&$U120,GTYF!$C:$AQ,37,FALSE) -> 0 | AO120: =VLOOKUP(AO$115&$U120,GTYF!$C:$AQ,37,FALSE) -> 0 | AP120: =VLOOKUP(AP$115&$U120,GTYF!$C:$AQ,37,FALSE) -> 0 | AQ120: =VLOOKUP(AQ$115&$U120,GTYF!$C:$AQ,37,FALSE) -> 0 | AR120: =VLOOKUP(AR$115&$U120,GTYF!$C:$AQ,37,FALSE) -> 0 | AS120: =VLOOKUP(AS$115&$U120,GTYF!$C:$AQ,37,FALSE) -> 92962.524 | AT120: =VLOOKUP(AT$115&$U120,GTYF!$C:$AQ,37,FALSE) -> 0 | AU120: =VLOOKUP(AU$115&$U120,GTYF!$C:$AQ,37,FALSE) -> 48577.522 | AV120: =VLOOKUP(AV$115&$U120,GTYF!$C:$AQ,37,FALSE) -> 0 | AW120: =VLOOKUP(AW$115&$U120,GTYF!$C:$AQ,37,FALSE) -> 0 | AX120: =VLOOKUP(AX$115&$U120,GTYF!$C:$AQ,37,FALSE) -> 0 | AY120: =VLOOKUP(AY$115&$U120,GTYF!$C:$AQ,37,FALSE) -> 0 | AZ120: 141540.046 | BA120: =VLOOKUP(BA$115&$U120,GTYF!$C:$AQ,37,FALSE) -> 1691.328
B121: Feuillus tolérants à résineux | E121: 47 | F121: =IFERROR($AZ121/$BA121,"-") -> 81.13684373 | G121: 26 | H121: >120 | I121: 170.4654138 | J121: ND | M121: 140.2289956 | N121: 170.4654138 | S121: Tableau 9. | T121: Feuillus tolérants à résineux | U121: (FCTYF_FTR) | V121: =VLOOKUP(V$115&$U121,GTYF!$C:$AQ,37,FALSE) -> 3712.636 | W121: =VLOOKUP(W$115&$U121,GTYF!$C:$AQ,6,FALSE) -> 28011 | X121: =VLOOKUP(X$115&$U121,GTYF!$C:$AQ,37,FALSE) -> 4019.212 | Y121: =VLOOKUP(Y$115&$U121,GTYF!$C:$AQ,37,FALSE) -> 17960.96 | Z121: =VLOOKUP(Z$115&$U121,GTYF!$C:$AQ,37,FALSE) -> 10793.87 | AA121: =VLOOKUP(AA$115&$U121,GTYF!$C:$AQ,37,FALSE) -> 0 | AB121: =VLOOKUP(AB$115&$U121,GTYF!$C:$AQ,37,FALSE) -> 0 | AC121: =VLOOKUP(AC$115&$U121,GTYF!$C:$AQ,37,FALSE) -> 0 | AD121: =VLOOKUP(AD$115&$U121,GTYF!$C:$AQ,37,FALSE) -> 63.32 | AE121: =VLOOKUP(AE$115&$U121,GTYF!$C:$AQ,37,FALSE) -> 0 | AF121: =VLOOKUP(AF$115&$U121,GTYF!$C:$AQ,37,FALSE) -> 1775.86 | AG121: =VLOOKUP(AG$115&$U121,GTYF!$C:$AQ,37,FALSE) -> 0 | AH121: =VLOOKUP(AH$115&$U121,GTYF!$C:$AQ,37,FALSE) -> 0 | AI121: =VLOOKUP(AI$115&$U121,GTYF!$C:$AQ,37,FALSE) -> 0 | AJ121: =VLOOKUP(AJ$115&$U121,GTYF!$C:$AQ,37,FALSE) -> 63.32 | AK121: =VLOOKUP(AK$115&$U121,GTYF!$C:$AQ,37,FALSE) -> 0 | AM121: =VLOOKUP(AM$115&$U121,GTYF!$C:$AQ,37,FALSE) -> 0 | AN121: =VLOOKUP(AN$115&$U121,GTYF!$C:$AQ,37,FALSE) -> 0 | AO121: =VLOOKUP(AO$115&$U121,GTYF!$C:$AQ,37,FALSE) -> 0 | AP121: =VLOOKUP(AP$115&$U121,GTYF!$C:$AQ,37,FALSE) -> 0 | AQ121: =VLOOKUP(AQ$115&$U121,GTYF!$C:$AQ,37,FALSE) -> 0 | AR121: =VLOOKUP(AR$115&$U121,GTYF!$C:$AQ,37,FALSE) -> 0 | AS121: =VLOOKUP(AS$115&$U121,GTYF!$C:$AQ,37,FALSE) -> 235625.698 | AT121: =VLOOKUP(AT$115&$U121,GTYF!$C:$AQ,37,FALSE) -> 0 | AU121: =VLOOKUP(AU$115&$U121,GTYF!$C:$AQ,37,FALSE) -> 60468.284 | AV121: =VLOOKUP(AV$115&$U121,GTYF!$C:$AQ,37,FALSE) -> 0 | AW121: =VLOOKUP(AW$115&$U121,GTYF!$C:$AQ,37,FALSE) -> 0 | AX121: =VLOOKUP(AX$115&$U121,GTYF!$C:$AQ,37,FALSE) -> 0 | AY121: =VLOOKUP(AY$115&$U121,GTYF!$C:$AQ,37,FALSE) -> 0 | AZ121: =SUM(AM121:AY121) -> 296093.982 | BA121: =VLOOKUP(BA$115&$U121,GTYF!$C:$AQ,37,FALSE) -> 3649.316
B122: Pessières | E122: 35 | F122: 49.83 | G122: 32 | H122: 97.99741011 | I122: 153.6055591 | J122: 137.0280191 | M122: 97.99741011 | N122: 153.6055591 | S122: Tableau 9. | T122: Pessières | U122: (FCTYF_EPX) | V122: =VLOOKUP(V$115&$U122,GTYF!$C:$AQ,37,FALSE) -> 2353.614 | W122: =VLOOKUP(W$115&$U122,GTYF!$C:$AQ,6,FALSE) -> 56987.5 | X122: =VLOOKUP(X$115&$U122,GTYF!$C:$AQ,37,FALSE) -> 316875.118 | Y122: =VLOOKUP(Y$115&$U122,GTYF!$C:$AQ,37,FALSE) -> 2312484.118 | Z122: =VLOOKUP(Z$115&$U122,GTYF!$C:$AQ,37,FALSE) -> 355383.972 | AA122: =VLOOKUP(AA$115&$U122,GTYF!$C:$AQ,37,FALSE) -> 0 | AB122: =VLOOKUP(AB$115&$U122,GTYF!$C:$AQ,37,FALSE) -> 0 | AC122: =VLOOKUP(AC$115&$U122,GTYF!$C:$AQ,37,FALSE) -> 0 | AD122: =VLOOKUP(AD$115&$U122,GTYF!$C:$AQ,37,FALSE) -> 2313.614 | AE122: =VLOOKUP(AE$115&$U122,GTYF!$C:$AQ,37,FALSE) -> 0 | AF122: =VLOOKUP(AF$115&$U122,GTYF!$C:$AQ,37,FALSE) -> 45345.636 | AG122: =VLOOKUP(AG$115&$U122,GTYF!$C:$AQ,37,FALSE) -> 0 | AH122: =VLOOKUP(AH$115&$U122,GTYF!$C:$AQ,37,FALSE) -> 0 | AI122: =VLOOKUP(AI$115&$U122,GTYF!$C:$AQ,37,FALSE) -> 0 | AJ122: =VLOOKUP(AJ$115&$U122,GTYF!$C:$AQ,37,FALSE) -> 2313.614 | AK122: =VLOOKUP(AK$115&$U122,GTYF!$C:$AQ,37,FALSE) -> 0 | AM122: =VLOOKUP(AM$115&$U122,GTYF!$C:$AQ,37,FALSE) -> 1993.2 | AN122: =VLOOKUP(AN$115&$U122,GTYF!$C:$AQ,37,FALSE) -> 0 | AO122: =VLOOKUP(AO$115&$U122,GTYF!$C:$AQ,37,FALSE) -> 0 | AP122: =VLOOKUP(AP$115&$U122,GTYF!$C:$AQ,37,FALSE) -> 0 | AQ122: =VLOOKUP(AQ$115&$U122,GTYF!$C:$AQ,37,FALSE) -> 0 | AR122: =VLOOKUP(AR$115&$U122,GTYF!$C:$AQ,37,FALSE) -> 0 | AS122: =VLOOKUP(AS$115&$U122,GTYF!$C:$AQ,37,FALSE) -> 0 | AT122: =VLOOKUP(AT$115&$U122,GTYF!$C:$AQ,37,FALSE) -> 0 | AU122: =VLOOKUP(AU$115&$U122,GTYF!$C:$AQ,37,FALSE) -> 0 | AV122: =VLOOKUP(AV$115&$U122,GTYF!$C:$AQ,37,FALSE) -> 0 | AW122: =VLOOKUP(AW$115&$U122,GTYF!$C:$AQ,37,FALSE) -> 0 | AX122: =VLOOKUP(AX$115&$U122,GTYF!$C:$AQ,37,FALSE) -> 0 | AY122: =VLOOKUP(AY$115&$U122,GTYF!$C:$AQ,37,FALSE) -> 0 | AZ122: 1993.2 | BA122: =VLOOKUP(BA$115&$U122,GTYF!$C:$AQ,37,FALSE) -> 40
B123: Peupleraies | E123: - | F123: - | G123: - | H123: 87.3868231 | I123: 178.804348 | J123: 143.9501905 | M123: 87.3868231 | N123: 178.804348 | S123: Tableau 9. | T123: Peupleraies | U123: (FCTYF_PEU) | V123: =VLOOKUP(V$115&$U123,GTYF!$C:$AQ,37,FALSE) -> 397.696 | W123: =VLOOKUP(W$115&$U123,GTYF!$C:$AQ,6,FALSE) -> 4950.3 | X123: =VLOOKUP(X$115&$U123,GTYF!$C:$AQ,37,FALSE) -> 11190.186 | Y123: =VLOOKUP(Y$115&$U123,GTYF!$C:$AQ,37,FALSE) -> 77736.514 | Z123: =VLOOKUP(Z$115&$U123,GTYF!$C:$AQ,37,FALSE) -> 71109.774 | AA123: =VLOOKUP(AA$115&$U123,GTYF!$C:$AQ,37,FALSE) -> 0 | AB123: =VLOOKUP(AB$115&$U123,GTYF!$C:$AQ,37,FALSE) -> 0 | AC123: =VLOOKUP(AC$115&$U123,GTYF!$C:$AQ,37,FALSE) -> 0 | AD123: =VLOOKUP(AD$115&$U123,GTYF!$C:$AQ,37,FALSE) -> 397.696 | AE123: =VLOOKUP(AE$115&$U123,GTYF!$C:$AQ,37,FALSE) -> 0 | AF123: =VLOOKUP(AF$115&$U123,GTYF!$C:$AQ,37,FALSE) -> 6950.678 | AG123: =VLOOKUP(AG$115&$U123,GTYF!$C:$AQ,37,FALSE) -> 0 | AH123: =VLOOKUP(AH$115&$U123,GTYF!$C:$AQ,37,FALSE) -> 0 | AI123: =VLOOKUP(AI$115&$U123,GTYF!$C:$AQ,37,FALSE) -> 0 | AJ123: =VLOOKUP(AJ$115&$U123,GTYF!$C:$AQ,37,FALSE) -> 397.696 | AK123: =VLOOKUP(AK$115&$U123,GTYF!$C:$AQ,37,FALSE) -> 0 | AM123: =VLOOKUP(AM$115&$U123,GTYF!$C:$AQ,37,FALSE) -> 0 | AN123: =VLOOKUP(AN$115&$U123,GTYF!$C:$AQ,37,FALSE) -> 0 | AO123: =VLOOKUP(AO$115&$U123,GTYF!$C:$AQ,37,FALSE) -> 0 | AP123: =VLOOKUP(AP$115&$U123,GTYF!$C:$AQ,37,FALSE) -> 0 | AQ123: =VLOOKUP(AQ$115&$U123,GTYF!$C:$AQ,37,FALSE) -> 0 | AR123: =VLOOKUP(AR$115&$U123,GTYF!$C:$AQ,37,FALSE) -> 0 | AS123: =VLOOKUP(AS$115&$U123,GTYF!$C:$AQ,37,FALSE) -> 0 | AT123: =VLOOKUP(AT$115&$U123,GTYF!$C:$AQ,37,FALSE) -> 0 | AU123: =VLOOKUP(AU$115&$U123,GTYF!$C:$AQ,37,FALSE) -> 0 | AV123: =VLOOKUP(AV$115&$U123,GTYF!$C:$AQ,37,FALSE) -> 0 | AW123: =VLOOKUP(AW$115&$U123,GTYF!$C:$AQ,37,FALSE) -> 0 | AX123: =VLOOKUP(AX$115&$U123,GTYF!$C:$AQ,37,FALSE) -> 0 | AY123: =VLOOKUP(AY$115&$U123,GTYF!$C:$AQ,37,FALSE) -> 0 | AZ123: 0 | BA123: =VLOOKUP(BA$115&$U123,GTYF!$C:$AQ,37,FALSE) -> 0
B124: Peupleraies à résineux | E124: - | F124: - | G124: - | H124: 75.05966106 | I124: 186.548582 | J124: 138.4223794 | M124: 75.05966106 | N124: 186.548582 | S124: Tableau 9. | T124: Peupleraies à résineux | U124: (FCTYF_PEUR) | V124: =VLOOKUP(V$115&$U124,GTYF!$C:$AQ,37,FALSE) -> 346.96 | W124: =VLOOKUP(W$115&$U124,GTYF!$C:$AQ,6,FALSE) -> 2618.8 | X124: =VLOOKUP(X$115&$U124,GTYF!$C:$AQ,37,FALSE) -> 22105.938 | Y124: =VLOOKUP(Y$115&$U124,GTYF!$C:$AQ,37,FALSE) -> 159699.162 | Z124: =VLOOKUP(Z$115&$U124,GTYF!$C:$AQ,37,FALSE) -> 64724.896 | AA124: =VLOOKUP(AA$115&$U124,GTYF!$C:$AQ,37,FALSE) -> 0 | AB124: =VLOOKUP(AB$115&$U124,GTYF!$C:$AQ,37,FALSE) -> 0 | AC124: =VLOOKUP(AC$115&$U124,GTYF!$C:$AQ,37,FALSE) -> 0 | AD124: =VLOOKUP(AD$115&$U124,GTYF!$C:$AQ,37,FALSE) -> 346.96 | AE124: =VLOOKUP(AE$115&$U124,GTYF!$C:$AQ,37,FALSE) -> 0 | AF124: =VLOOKUP(AF$115&$U124,GTYF!$C:$AQ,37,FALSE) -> 5208.54 | AG124: =VLOOKUP(AG$115&$U124,GTYF!$C:$AQ,37,FALSE) -> 0 | AH124: =VLOOKUP(AH$115&$U124,GTYF!$C:$AQ,37,FALSE) -> 0 | AI124: =VLOOKUP(AI$115&$U124,GTYF!$C:$AQ,37,FALSE) -> 0 | AJ124: =VLOOKUP(AJ$115&$U124,GTYF!$C:$AQ,37,FALSE) -> 346.96 | AK124: =VLOOKUP(AK$115&$U124,GTYF!$C:$AQ,37,FALSE) -> 0 | AM124: =VLOOKUP(AM$115&$U124,GTYF!$C:$AQ,37,FALSE) -> 0 | AN124: =VLOOKUP(AN$115&$U124,GTYF!$C:$AQ,37,FALSE) -> 0 | AO124: =VLOOKUP(AO$115&$U124,GTYF!$C:$AQ,37,FALSE) -> 0 | AP124: =VLOOKUP(AP$115&$U124,GTYF!$C:$AQ,37,FALSE) -> 0 | AQ124: =VLOOKUP(AQ$115&$U124,GTYF!$C:$AQ,37,FALSE) -> 0 | AR124: =VLOOKUP(AR$115&$U124,GTYF!$C:$AQ,37,FALSE) -> 0 | AS124: =VLOOKUP(AS$115&$U124,GTYF!$C:$AQ,37,FALSE) -> 0 | AT124: =VLOOKUP(AT$115&$U124,GTYF!$C:$AQ,37,FALSE) -> 0 | AU124: =VLOOKUP(AU$115&$U124,GTYF!$C:$AQ,37,FALSE) -> 0 | AV124: =VLOOKUP(AV$115&$U124,GTYF!$C:$AQ,37,FALSE) -> 0 | AW124: =VLOOKUP(AW$115&$U124,GTYF!$C:$AQ,37,FALSE) -> 0 | AX124: =VLOOKUP(AX$115&$U124,GTYF!$C:$AQ,37,FALSE) -> 0 | AY124: =VLOOKUP(AY$115&$U124,GTYF!$C:$AQ,37,FALSE) -> 0 | AZ124: 0 | BA124: =VLOOKUP(BA$115&$U124,GTYF!$C:$AQ,37,FALSE) -> 0
B125: Pinèdes blanches | E125: 44 | F125: 93.56354292 | G125: 29 | H125: - | I125: - | J125: - | M125: - | N125: - | S125: Tableau 9. | T125: Pinèdes blanches | U125: (FCTYF_PIN) | V125: =VLOOKUP(V$115&$U125,GTYF!$C:$AQ,37,FALSE) -> 537.794 | W125: =VLOOKUP(W$115&$U125,GTYF!$C:$AQ,6,FALSE) -> 7326.6 | X125: =VLOOKUP(X$115&$U125,GTYF!$C:$AQ,37,FALSE) -> 0 | Y125: =VLOOKUP(Y$115&$U125,GTYF!$C:$AQ,37,FALSE) -> 0 | Z125: =VLOOKUP(Z$115&$U125,GTYF!$C:$AQ,37,FALSE) -> 0 | AA125: =VLOOKUP(AA$115&$U125,GTYF!$C:$AQ,37,FALSE) -> 0 | AB125: =VLOOKUP(AB$115&$U125,GTYF!$C:$AQ,37,FALSE) -> 0 | AC125: =VLOOKUP(AC$115&$U125,GTYF!$C:$AQ,37,FALSE) -> 0 | AD125: =VLOOKUP(AD$115&$U125,GTYF!$C:$AQ,37,FALSE) -> 0 | AE125: =VLOOKUP(AE$115&$U125,GTYF!$C:$AQ,37,FALSE) -> 0 | AF125: =VLOOKUP(AF$115&$U125,GTYF!$C:$AQ,37,FALSE) -> 0 | AG125: =VLOOKUP(AG$115&$U125,GTYF!$C:$AQ,37,FALSE) -> 0 | AH125: =VLOOKUP(AH$115&$U125,GTYF!$C:$AQ,37,FALSE) -> 0 | AI125: =VLOOKUP(AI$115&$U125,GTYF!$C:$AQ,37,FALSE) -> 0 | AJ125: =VLOOKUP(AJ$115&$U125,GTYF!$C:$AQ,37,FALSE) -> 0 | AK125: =VLOOKUP(AK$115&$U125,GTYF!$C:$AQ,37,FALSE) -> 0 | AM125: =VLOOKUP(AM$115&$U125,GTYF!$C:$AQ,37,FALSE) -> 0 | AN125: =VLOOKUP(AN$115&$U125,GTYF!$C:$AQ,37,FALSE) -> 0 | AO125: =VLOOKUP(AO$115&$U125,GTYF!$C:$AQ,37,FALSE) -> 0 | AP125: =VLOOKUP(AP$115&$U125,GTYF!$C:$AQ,37,FALSE) -> 0 | AQ125: =VLOOKUP(AQ$115&$U125,GTYF!$C:$AQ,37,FALSE) -> 0 | AR125: =VLOOKUP(AR$115&$U125,GTYF!$C:$AQ,37,FALSE) -> 0 | AS125: =VLOOKUP(AS$115&$U125,GTYF!$C:$AQ,37,FALSE) -> 36219.014 | AT125: =VLOOKUP(AT$115&$U125,GTYF!$C:$AQ,37,FALSE) -> 0 | AU125: =VLOOKUP(AU$115&$U125,GTYF!$C:$AQ,37,FALSE) -> 14098.898 | AV125: =VLOOKUP(AV$115&$U125,GTYF!$C:$AQ,37,FALSE) -> 0 | AW125: =VLOOKUP(AW$115&$U125,GTYF!$C:$AQ,37,FALSE) -> 0 | AX125: =VLOOKUP(AX$115&$U125,GTYF!$C:$AQ,37,FALSE) -> 0 | AY125: =VLOOKUP(AY$115&$U125,GTYF!$C:$AQ,37,FALSE) -> 0 | AZ125: 50317.912 | BA125: =VLOOKUP(BA$115&$U125,GTYF!$C:$AQ,37,FALSE) -> 537.794
B126: Pinèdes grises | E126: 25 | F126: 35.31 | G126: 27 | H126: 82.87076909 | I126: 193.5083438 | J126: 180.9835835 | M126: 82.87076909 | N126: 193.5083438 | S126: Tableau 9. | T126: Pinèdes grises | U126: (FCTYF_PIG) | V126: =VLOOKUP(V$115&$U126,GTYF!$C:$AQ,37,FALSE) -> 451.94 | W126: =VLOOKUP(W$115&$U126,GTYF!$C:$AQ,6,FALSE) -> 3772.6 | X126: =VLOOKUP(X$115&$U126,GTYF!$C:$AQ,37,FALSE) -> 79524.352 | Y126: =VLOOKUP(Y$115&$U126,GTYF!$C:$AQ,37,FALSE) -> 439400.914 | Z126: =VLOOKUP(Z$115&$U126,GTYF!$C:$AQ,37,FALSE) -> 83583.994 | AA126: =VLOOKUP(AA$115&$U126,GTYF!$C:$AQ,37,FALSE) -> 0 | AB126: =VLOOKUP(AB$115&$U126,GTYF!$C:$AQ,37,FALSE) -> 0 | AC126: =VLOOKUP(AC$115&$U126,GTYF!$C:$AQ,37,FALSE) -> 0 | AD126: =VLOOKUP(AD$115&$U126,GTYF!$C:$AQ,37,FALSE) -> 431.94 | AE126: =VLOOKUP(AE$115&$U126,GTYF!$C:$AQ,37,FALSE) -> 0 | AF126: =VLOOKUP(AF$115&$U126,GTYF!$C:$AQ,37,FALSE) -> 7159.04 | AG126: =VLOOKUP(AG$115&$U126,GTYF!$C:$AQ,37,FALSE) -> 0 | AH126: =VLOOKUP(AH$115&$U126,GTYF!$C:$AQ,37,FALSE) -> 0 | AI126: =VLOOKUP(AI$115&$U126,GTYF!$C:$AQ,37,FALSE) -> 0 | AJ126: =VLOOKUP(AJ$115&$U126,GTYF!$C:$AQ,37,FALSE) -> 431.94 | AK126: =VLOOKUP(AK$115&$U126,GTYF!$C:$AQ,37,FALSE) -> 0 | AM126: =VLOOKUP(AM$115&$U126,GTYF!$C:$AQ,37,FALSE) -> 706.2 | AN126: =VLOOKUP(AN$115&$U126,GTYF!$C:$AQ,37,FALSE) -> 0 | AO126: =VLOOKUP(AO$115&$U126,GTYF!$C:$AQ,37,FALSE) -> 0 | AP126: =VLOOKUP(AP$115&$U126,GTYF!$C:$AQ,37,FALSE) -> 0 | AQ126: =VLOOKUP(AQ$115&$U126,GTYF!$C:$AQ,37,FALSE) -> 0 | AR126: =VLOOKUP(AR$115&$U126,GTYF!$C:$AQ,37,FALSE) -> 0 | AS126: =VLOOKUP(AS$115&$U126,GTYF!$C:$AQ,37,FALSE) -> 0 | AT126: =VLOOKUP(AT$115&$U126,GTYF!$C:$AQ,37,FALSE) -> 0 | AU126: =VLOOKUP(AU$115&$U126,GTYF!$C:$AQ,37,FALSE) -> 0 | AV126: =VLOOKUP(AV$115&$U126,GTYF!$C:$AQ,37,FALSE) -> 0 | AW126: =VLOOKUP(AW$115&$U126,GTYF!$C:$AQ,37,FALSE) -> 0 | AX126: =VLOOKUP(AX$115&$U126,GTYF!$C:$AQ,37,FALSE) -> 0 | AY126: =VLOOKUP(AY$115&$U126,GTYF!$C:$AQ,37,FALSE) -> 0 | AZ126: 706.2 | BA126: =VLOOKUP(BA$115&$U126,GTYF!$C:$AQ,37,FALSE) -> 20
B127: Prucheraies | E127: - | F127: - | G127: - | H127: - | I127: - | J127: - | M127: - | N127: - | S127: Tableau 9. | T127: Prucheraies | U127: (FCTYF_PRU) | V127: =VLOOKUP(V$115&$U127,GTYF!$C:$AQ,37,FALSE) -> 0 | W127: =VLOOKUP(W$115&$U127,GTYF!$C:$AQ,6,FALSE) -> 0 | X127: =VLOOKUP(X$115&$U127,GTYF!$C:$AQ,37,FALSE) -> 0 | Y127: =VLOOKUP(Y$115&$U127,GTYF!$C:$AQ,37,FALSE) -> 0 | Z127: =VLOOKUP(Z$115&$U127,GTYF!$C:$AQ,37,FALSE) -> 0 | AA127: =VLOOKUP(AA$115&$U127,GTYF!$C:$AQ,37,FALSE) -> 0 | AB127: =VLOOKUP(AB$115&$U127,GTYF!$C:$AQ,37,FALSE) -> 0 | AC127: =VLOOKUP(AC$115&$U127,GTYF!$C:$AQ,37,FALSE) -> 0 | AD127: =VLOOKUP(AD$115&$U127,GTYF!$C:$AQ,37,FALSE) -> 0 | AE127: =VLOOKUP(AE$115&$U127,GTYF!$C:$AQ,37,FALSE) -> 0 | AF127: =VLOOKUP(AF$115&$U127,GTYF!$C:$AQ,37,FALSE) -> 0 | AG127: =VLOOKUP(AG$115&$U127,GTYF!$C:$AQ,37,FALSE) -> 0 | AH127: =VLOOKUP(AH$115&$U127,GTYF!$C:$AQ,37,FALSE) -> 0 | AI127: =VLOOKUP(AI$115&$U127,GTYF!$C:$AQ,37,FALSE) -> 0 | AJ127: =VLOOKUP(AJ$115&$U127,GTYF!$C:$AQ,37,FALSE) -> 0 | AK127: =VLOOKUP(AK$115&$U127,GTYF!$C:$AQ,37,FALSE) -> 0 | AM127: =VLOOKUP(AM$115&$U127,GTYF!$C:$AQ,37,FALSE) -> 0 | AN127: =VLOOKUP(AN$115&$U127,GTYF!$C:$AQ,37,FALSE) -> 0 | AO127: =VLOOKUP(AO$115&$U127,GTYF!$C:$AQ,37,FALSE) -> 0 | AP127: =VLOOKUP(AP$115&$U127,GTYF!$C:$AQ,37,FALSE) -> 0 | AQ127: =VLOOKUP(AQ$115&$U127,GTYF!$C:$AQ,37,FALSE) -> 0 | AR127: =VLOOKUP(AR$115&$U127,GTYF!$C:$AQ,37,FALSE) -> 0 | AS127: =VLOOKUP(AS$115&$U127,GTYF!$C:$AQ,37,FALSE) -> 0 | AT127: =VLOOKUP(AT$115&$U127,GTYF!$C:$AQ,37,FALSE) -> 0 | AU127: =VLOOKUP(AU$115&$U127,GTYF!$C:$AQ,37,FALSE) -> 0 | AV127: =VLOOKUP(AV$115&$U127,GTYF!$C:$AQ,37,FALSE) -> 0 | AW127: =VLOOKUP(AW$115&$U127,GTYF!$C:$AQ,37,FALSE) -> 0 | AX127: =VLOOKUP(AX$115&$U127,GTYF!$C:$AQ,37,FALSE) -> 0 | AY127: =VLOOKUP(AY$115&$U127,GTYF!$C:$AQ,37,FALSE) -> 0 | AZ127: 0 | BA127: =VLOOKUP(BA$115&$U127,GTYF!$C:$AQ,37,FALSE) -> 0
B128: Résineux à feuillus | E128: - | F128: - | G128: - | H128: 76.49217896 | I128: 166.7214657 | J128: 153.150824 | M128: 76.49217896 | N128: 166.7214657 | S128: Tableau 9. | T128: Résineux à feuillus | U128: (FCTYF_RF) | V128: =VLOOKUP(V$115&$U128,GTYF!$C:$AQ,37,FALSE) -> 4718.938 | W128: =VLOOKUP(W$115&$U128,GTYF!$C:$AQ,6,FALSE) -> 57676.3 | X128: =VLOOKUP(X$115&$U128,GTYF!$C:$AQ,37,FALSE) -> 463709.742 | Y128: =VLOOKUP(Y$115&$U128,GTYF!$C:$AQ,37,FALSE) -> 3027797.892 | Z128: =VLOOKUP(Z$115&$U128,GTYF!$C:$AQ,37,FALSE) -> 786748.26 | AA128: =VLOOKUP(AA$115&$U128,GTYF!$C:$AQ,37,FALSE) -> 0 | AB128: =VLOOKUP(AB$115&$U128,GTYF!$C:$AQ,37,FALSE) -> 0 | AC128: =VLOOKUP(AC$115&$U128,GTYF!$C:$AQ,37,FALSE) -> 0 | AD128: =VLOOKUP(AD$115&$U128,GTYF!$C:$AQ,37,FALSE) -> 4718.938 | AE128: =VLOOKUP(AE$115&$U128,GTYF!$C:$AQ,37,FALSE) -> 0 | AF128: =VLOOKUP(AF$115&$U128,GTYF!$C:$AQ,37,FALSE) -> 72192.37 | AG128: =VLOOKUP(AG$115&$U128,GTYF!$C:$AQ,37,FALSE) -> 0 | AH128: =VLOOKUP(AH$115&$U128,GTYF!$C:$AQ,37,FALSE) -> 0 | AI128: =VLOOKUP(AI$115&$U128,GTYF!$C:$AQ,37,FALSE) -> 0 | AJ128: =VLOOKUP(AJ$115&$U128,GTYF!$C:$AQ,37,FALSE) -> 4718.938 | AK128: =VLOOKUP(AK$115&$U128,GTYF!$C:$AQ,37,FALSE) -> 0 | AM128: =VLOOKUP(AM$115&$U128,GTYF!$C:$AQ,37,FALSE) -> 0 | AN128: =VLOOKUP(AN$115&$U128,GTYF!$C:$AQ,37,FALSE) -> 0 | AO128: =VLOOKUP(AO$115&$U128,GTYF!$C:$AQ,37,FALSE) -> 0 | AP128: =VLOOKUP(AP$115&$U128,GTYF!$C:$AQ,37,FALSE) -> 0 | AQ128: =VLOOKUP(AQ$115&$U128,GTYF!$C:$AQ,37,FALSE) -> 0 | AR128: =VLOOKUP(AR$115&$U128,GTYF!$C:$AQ,37,FALSE) -> 0 | AS128: =VLOOKUP(AS$115&$U128,GTYF!$C:$AQ,37,FALSE) -> 0 | AT128: =VLOOKUP(AT$115&$U128,GTYF!$C:$AQ,37,FALSE) -> 0 | AU128: =VLOOKUP(AU$115&$U128,GTYF!$C:$AQ,37,FALSE) -> 0 | AV128: =VLOOKUP(AV$115&$U128,GTYF!$C:$AQ,37,FALSE) -> 0 | AW128: =VLOOKUP(AW$115&$U128,GTYF!$C:$AQ,37,FALSE) -> 0 | AX128: =VLOOKUP(AX$115&$U128,GTYF!$C:$AQ,37,FALSE) -> 0 | AY128: =VLOOKUP(AY$115&$U128,GTYF!$C:$AQ,37,FALSE) -> 0 | AZ128: 0 | BA128: =VLOOKUP(BA$115&$U128,GTYF!$C:$AQ,37,FALSE) -> 0
B129: Sapinières | E129: - | F129: - | G129: - | H129: 59.12839859 | I129: 153.373592 | J129: 138.5983141 | M129: =IFERROR(($AF129+$AG129+$AH129+$AI129)/$AJ129*5,"-") -> 59.12839859 | N129: 153.373592 | S129: Tableau 9. | T129: Sapinières | U129: (FCTYF_SAB) | V129: =VLOOKUP(V$115&$U129,GTYF!$C:$AQ,37,FALSE) -> 1236.322 | W129: =VLOOKUP(W$115&$U129,GTYF!$C:$AQ,6,FALSE) -> 11361.3 | X129: =VLOOKUP(X$115&$U129,GTYF!$C:$AQ,37,FALSE) -> 154170.07 | Y129: =VLOOKUP(Y$115&$U129,GTYF!$C:$AQ,37,FALSE) -> 1112351.698 | Z129: =VLOOKUP(Z$115&$U129,GTYF!$C:$AQ,37,FALSE) -> 189619.146 | AA129: =VLOOKUP(AA$115&$U129,GTYF!$C:$AQ,37,FALSE) -> 0 | AB129: =VLOOKUP(AB$115&$U129,GTYF!$C:$AQ,37,FALSE) -> 0 | AC129: =VLOOKUP(AC$115&$U129,GTYF!$C:$AQ,37,FALSE) -> 0 | AD129: =VLOOKUP(AD$115&$U129,GTYF!$C:$AQ,37,FALSE) -> 1236.322 | AE129: =VLOOKUP(AE$115&$U129,GTYF!$C:$AQ,37,FALSE) -> 0 | AF129: =VLOOKUP(AF$115&$U129,GTYF!$C:$AQ,37,FALSE) -> 14620.348 | AG129: =VLOOKUP(AG$115&$U129,GTYF!$C:$AQ,37,FALSE) -> 0 | AH129: =VLOOKUP(AH$115&$U129,GTYF!$C:$AQ,37,FALSE) -> 0 | AI129: =VLOOKUP(AI$115&$U129,GTYF!$C:$AQ,37,FALSE) -> 0 | AJ129: =VLOOKUP(AJ$115&$U129,GTYF!$C:$AQ,37,FALSE) -> 1236.322 | AK129: =VLOOKUP(AK$115&$U129,GTYF!$C:$AQ,37,FALSE) -> 0 | AM129: =VLOOKUP(AM$115&$U129,GTYF!$C:$AQ,37,FALSE) -> 0 | AN129: =VLOOKUP(AN$115&$U129,GTYF!$C:$AQ,37,FALSE) -> 0 | AO129: =VLOOKUP(AO$115&$U129,GTYF!$C:$AQ,37,FALSE) -> 0 | AP129: =VLOOKUP(AP$115&$U129,GTYF!$C:$AQ,37,FALSE) -> 0 | AQ129: =VLOOKUP(AQ$115&$U129,GTYF!$C:$AQ,37,FALSE) -> 0 | AR129: =VLOOKUP(AR$115&$U129,GTYF!$C:$AQ,37,FALSE) -> 0 | AS129: =VLOOKUP(AS$115&$U129,GTYF!$C:$AQ,37,FALSE) -> 0 | AT129: =VLOOKUP(AT$115&$U129,GTYF!$C:$AQ,37,FALSE) -> 0 | AU129: =VLOOKUP(AU$115&$U129,GTYF!$C:$AQ,37,FALSE) -> 0 | AV129: =VLOOKUP(AV$115&$U129,GTYF!$C:$AQ,37,FALSE) -> 0 | AW129: =VLOOKUP(AW$115&$U129,GTYF!$C:$AQ,37,FALSE) -> 0 | AX129: =VLOOKUP(AX$115&$U129,GTYF!$C:$AQ,37,FALSE) -> 0 | AY129: =VLOOKUP(AY$115&$U129,GTYF!$C:$AQ,37,FALSE) -> 0 | AZ129: 0 | BA129: =VLOOKUP(BA$115&$U129,GTYF!$C:$AQ,37,FALSE) -> 0
B130: Tous les grands types de forêt | S130: Tableau 9. | T130: Tous les GTYF | V130: =SUM(V116:V129) -> 19551.784 | W130: =SUM(W116:W129) -> 286182.4 | X130: 1273869.596 | Y130: 8472967.546 | Z130: 2240009.158 | AA130: 0 | AB130: 0 | AC130: 0 | AD130: 13363.346 | AE130: 0 | AF130: 244539.604 | AG130: 0 | AH130: 0 | AI130: 0 | AJ130: 13363.346 | AK130: 0
L131: Les statistiques portants sur les coupes partielles proviennent d'un Script R et sont disponibles ici:
L132: T:\Donnees\02_Courant\01_CPF\01_UA\0XXXX\70_Determination\72_Rapport\01_Cahier_DET\Tableau_9
L133: Données T:\Donnees\02_Courant\01_CPF\01_UA\07352\70_Determination\72_Rapport\01_Cahier_DET\Tableau_9\Coupes_partielles_P2_a_P6.xlsx intégrées
B134: Tableau 10. Traitements non commerciaux supportant les possibilités forestières | L134: valeur colonne F Tableau 9 correspond aux valeurs de l'outil R de F. Plante
B135: Traitements non commerciaux | F135: Superficie annuelle moyenne (ha/an) | G135: Superficie antérieure (ha/an) | H135: Écart (ha/an) | X135: Exemple U03772
K138: Le texte en rouge demande à l'analyste de valider la nature exacte du traitement et les superficies - variable selon la vague et l'UA - veuillez ensuite mettre en noir et supprimer la remarque si elle ne s'applique pas (si DEG_1 ne contient pas de regarni)
B139: Ligniculture (essences à croissance rapide) | F139: =ROUND(V139,-1) -> 0 | G139: =IFERROR(ROUND(VLOOKUP(O33,DataLocal!$A:$BH,47,FALSE),-1),0) -> 0 | H139: =F139-G139 -> 0 | I139: 0 | J139: 0 | S139: =LEFT(B$134,11) -> Tableau 10. | T139: Plantation ligniculture (pins, feuillus) | U139: OSUPPL_PPF | V139: =IFERROR(VLOOKUP(U139,Output!C:AQ,37,FALSE),0)/5 -> 0
B140: Plantation intensive (2 000 plants/ha) | F140: =ROUND(V140,-1) -> 90 | G140: =IFERROR(ROUND(VLOOKUP(O33,DataLocal!$A:$BH,48,FALSE),-1),0) -> 0 | H140: =F140-G140 -> 90 | I140: 90 | J140: 0 | S140: =LEFT(B$134,11) -> Tableau 10. | T140: Plantation intensive | U140: OSUPPL_SEPM_I | V140: =IFERROR(VLOOKUP(U140,Output!C:AQ,37,FALSE),0)/5 -> 93.2136
B141: Plantation de base (1 600 plants/ha) | F141: =ROUND(V141,-1) -> 370 | G141: =IFERROR(ROUND(VLOOKUP(O33,DataLocal!$A:$BH,49,FALSE),-1),0) -> 720 | H141: -350 | I141: 370 | J141: 720 | S141: Tableau 10. | T141: Plantation de base | U141: OSUPPL_SEPM_E | V141: =IFERROR(VLOOKUP(U141,Output!C:AQ,37,FALSE),0)/5 -> 370.3808
B142: Regarni | F142: =ROUND(V142,-1) -> 80 | G142: =IFERROR(ROUND(VLOOKUP(O33,DataLocal!$A:$BH,50,FALSE),-1),0) -> 190 | H142: -110 | I142: 80 | J142: 190 | S142: Tableau 10. | T142: Regarni | U142: OSUPREG | V142: =IFERROR(VLOOKUP(U142,Output!C:AQ,37,FALSE),0)/5 -> 77.918
B143: % des plantations dans les coupes totales | F143: =IFERROR(SUM(F139:F141)/G92,0) -> 0.1722846442 | G143: =IFERROR(SUM(G139:G141)/H92,0) -> 0.2868525896 | H143: =F143-G143 -> -0.1145679454 | I143: 0.1722846442 | J143: 0.2868525896 | S143: Tableau 10.
B144: Total des travaux de reboisement | F144: =ROUND(SUM(F139:F142),-1) -> 540 | G144: =ROUND(SUM(G139:G142),-1) -> 910 | H144: -370 | I144: 540 | J144: 910 | S144: Tableau 10.
B145: Nettoiement (régénération naturelle et plantation) | F145: =ROUND(V145,-1) -> 530 | G145: =IFERROR(ROUND(VLOOKUP(O33,DataLocal!$A:$BH,51,FALSE),-1),0) -> 40 | H145: 490 | I145: 520 | J145: 40 | S145: Tableau 10. | T145: Nettoiement | U145: OSUPREALNET | V145: =IFERROR(VLOOKUP(U145,Output!C:AQ,37,FALSE),0)/5 -> 525.7012
B146: Éclaircie précommerciale | F146: =ROUND(V146,-1) -> 80 | G146: =IFERROR(ROUND(VLOOKUP(O33,DataLocal!$A:$BH,52,FALSE),-1),0) -> 20 | H146: 60 | I146: 80 | J146: 20 | S146: Tableau 10. | T146: Éclaircie précommerciale de la régénération naturelle | U146: OSUPREALEPC | V146: =IFERROR(VLOOKUP(U146,Output!C:AQ,37,FALSE),0)/5 -> 75.9996 | X146: Exemple U09751
B147: Dégagement de la régénération naturelle (et regarni) | F147: =ROUND(V147,-1) -> 80 | G147: =IFERROR(ROUND(VLOOKUP(O33,DataLocal!$A:$BH,53,FALSE),-1),0) -> 280 | H147: -200 | I147: 80 | J147: 280 | S147: Tableau 10. | T147: Dégagement de la régénération naturelle | U147: OSUPDEG_2 | V147: =IFERROR(VLOOKUP(U147,Output!C:AQ,37,FALSE),0)/5 -> 77.918
B148: Dégagement des plantations | F148: =ROUND(V148,-1) -> 390 | G148: =IFERROR(ROUND(VLOOKUP(O33,DataLocal!$A:$BH,54,FALSE),-1),0) -> 670 | H148: -280 | I148: 390 | J148: 670 | S148: Tableau 10. | T148: Dégagement de plantation | U148: OSUPDEG_1 | V148: =IFERROR(VLOOKUP(U148,Output!C:AQ,37,FALSE),0)/5 -> 393.0128
B149: Élagage | F149: =ROUND(V149,-1) -> 80 | G149: =IFERROR(ROUND(VLOOKUP(O33,DataLocal!$A:$BN,66,FALSE),-1),0) -> 60 | H149: 20 | I149: 80 | J149: 60 | S149: Tableau 10. | T149: Élagage (plantation) | U149: OSUPELAG | V149: =IFERROR(VLOOKUP(U149,Output!C:AQ,37,FALSE),0)/5 -> 77.918
B150: Total des travaux d'éducation | F150: =SUM(F145:F149) -> 1160 | G150: =SUM(G145:G149) -> 1070 | H150: 90 | I150: 1150 | J150: 1070 | S150: Tableau 10. | U150: OSUPSCA_LIGN | V150: =IFERROR(VLOOKUP(U150,Output!C:AQ,37,FALSE),0)/5 -> 0
B151: Scarifiage partiel | F151: =ROUND(V152,-1) -> 360 | G151: =IFERROR(ROUND(VLOOKUP(O33,DataLocal!$A:$BH,58,FALSE),-1),0) -> 410 | H151: -50 | I151: 360 | J151: 410 | S151: Tableau 10. | U151: OSUPSCA_LRD | V151: =IFERROR(VLOOKUP(U151,Output!C:AQ,37,FALSE),0)/5 -> 0
B152: Scarifiage en plein | F152: =ROUND(V153+V150+V151,-1) -> 460 | G152: =IFERROR(ROUND(VLOOKUP(O33,DataLocal!$A:$BH,59,FALSE),-1),0) -> 860 | H152: -400 | I152: 460 | J152: 860 | S152: Tableau 10. | U152: OSUPSCA_PART | V152: =IFERROR(VLOOKUP(U152,Output!C:AQ,37,FALSE),0)/5 -> 355.5588
B153: Total de la préparation de terrain | F153: =IFERROR(SUM(F151:F152),0) -> 820 | G153: =IFERROR(SUM(G151:G152),0) -> 1270 | H153: -450 | I153: 820 | J153: 1270 | S153: Tableau 10. | U153: OSUPSCA_REG | V153: =IFERROR(VLOOKUP(U153,Output!C:AQ,37,FALSE),0)/5 -> 463.5944
B154: Total des travaux sans récolte | F154: =F153+F150+F144 -> 2520 | G154: =G153+G150+G144 -> 3250 | H154: -730 | I154: 2510 | J154: 3250
B160: Tableau 13 : Variation du volume sur pied à court, moyen et long terme | L160: % du volume total | U160: colonne | V160: 37 | W160: 38 | X160: 39 | Y160: 40 | AF160: 37 | AG160: 38 | AH160: 39 | AI160: 40
B161: Essences | C161: Volume moyen sur pied (m3) | G161: Volume moyen sur pied (%) | V161: Volume moyen sur pied (m3) | Z161: Volume moyen sur pied (%) | AF161: Volume dans courbe SNAT
C162: 2023 à 2048 | D162: 2048 à 2073 | E162: 2073 à 2118 | F162: 2118 à 2168 | G162: =C162 -> 2023 à 2048 | H162: =D162 -> 2048 à 2073 | I162: 2073 à 2118 | J162: 2118 à 2168 | L162: 2023 à 2048 | T162: Légende | U162: Name | V162: p 2 à 6 | W162: p 7 à 11 | X162: p 12 à 20 | Y162: p 21 à 30 | Z162: p 2 à 6 | AA162: p 7 à 11 | AB162: p 12 à 20 | AC162: p 21 à 30 | AE162: Name | AF162: p 2 à 6 | AG162: p 7 à 11 | AH162: p 12 à 20 | AI162: p 21 à 30
B163: =T163 -> Sapin baumier | C163: =ROUND(V163-AF163,-2) -> 5611900 | D163: =ROUND(W163-AG163,-2) -> 3989100 | E163: 3148000 | F163: 2912400 | G163: =C163/C$177 -> 0.1599638564 | H163: =D163/D$177 -> 0.123689955 | I163: =E163/E$177 -> 0.09943836906 | J163: =F163/F$177 -> 0.09199628528 | L163: =C163/C$177 -> 0.1599638564 | S163: =LEFT(B$160,11) -> Tableau 13 | T163: Sapin baumier | U163: OVOLSABPIEDINC | V163: =VLOOKUP($U163,Output!$C:$AQ,V$160,FALSE) -> 5611921.886 | W163: =VLOOKUP($U163,Output!$C:$AQ,W$160,FALSE) -> 3989138.234 | X163: =VLOOKUP($U163,Output!$C:$AQ,X$160,FALSE) -> 3147996.43 | Y163: =VLOOKUP($U163,Output!$C:$AQ,Y$160,FALSE) -> 2912382.786 | Z163: =V163/V$178 -> 0.1599646405 | AA163: =W163/W$178 -> 0.123690999 | AB163: =X163/X$178 -> 0.09943836196 | AC163: =Y163/Y$178 -> 0.09199583928 | AE163: OVOLSABPIEDSNAT | AF163: =IFERROR(VLOOKUP($AE163,Output!$C:$AQ,AF$160,FALSE),0) -> 0 | AG163: =IFERROR(VLOOKUP($AE163,Output!$C:$AQ,AG$160,FALSE),0) -> 0 | AH163: =IFERROR(VLOOKUP($AE163,Output!$C:$AQ,AH$160,FALSE),0) -> 0 | AI163: =IFERROR(VLOOKUP($AE163,Output!$C:$AQ,AI$160,FALSE),0) -> 0
B164: =T164 -> Épinettes | C164: =ROUND(V164-AF164,-2) -> 7854700 | D164: 7900300 | E164: 7289500 | F164: 8135300 | G164: 0.2238935304 | H164: 0.244964466 | I164: 0.2302592094 | J164: 0.2569761639 | L164: 0.2238935304 | S164: Tableau 13 | T164: Épinettes | U164: OVOLgEpxPIEDINC | V164: =VLOOKUP($U164,Output!$C:$AQ,V$160,FALSE) -> 7854689.086 | W164: =VLOOKUP($U164,Output!$C:$AQ,W$160,FALSE) -> 7900328.366 | X164: =VLOOKUP($U164,Output!$C:$AQ,X$160,FALSE) -> 7289450.552 | Y164: =VLOOKUP($U164,Output!$C:$AQ,Y$160,FALSE) -> 8135253.3 | Z164: 0.2238934435 | AA164: 0.2449650653 | AB164: 0.2302578921 | AC164: 0.2569749618 | AE164: OVOLgEpxPIEDSNAT | AF164: =IFERROR(VLOOKUP($AE164,Output!$C:$AQ,AF$160,FALSE),0) -> 0 | AG164: =IFERROR(VLOOKUP($AE164,Output!$C:$AQ,AG$160,FALSE),0) -> 0 | AH164: =IFERROR(VLOOKUP($AE164,Output!$C:$AQ,AH$160,FALSE),0) -> 0 | AI164: =IFERROR(VLOOKUP($AE164,Output!$C:$AQ,AI$160,FALSE),0) -> 0
B165: =T165 -> Pin gris | C165: 797400 | D165: 981800 | E165: 1481300 | F165: 1088600 | G165: 0.02272941056 | H165: 0.03044265569 | I165: 0.04679099622 | J165: 0.03438647032 | L165: 0.02272941056 | S165: Tableau 13 | T165: Pin gris | U165: OVOLgPgPIEDINC | V165: =VLOOKUP($U165,Output!$C:$AQ,V$160,FALSE) -> 797412.644 | W165: =VLOOKUP($U165,Output!$C:$AQ,W$160,FALSE) -> 981804.228 | X165: =VLOOKUP($U165,Output!$C:$AQ,X$160,FALSE) -> 1481317.799 | Y165: =VLOOKUP($U165,Output!$C:$AQ,Y$160,FALSE) -> 1088631.522 | Z165: 0.02272979373 | AA165: 0.03044275196 | AB165: 0.04679160816 | AC165: 0.03438750257 | AE165: OVOLgPgPIEDSNAT | AF165: =IFERROR(VLOOKUP($AE165,Output!$C:$AQ,AF$160,FALSE),0) -> 0 | AG165: =IFERROR(VLOOKUP($AE165,Output!$C:$AQ,AG$160,FALSE),0) -> 0 | AH165: =IFERROR(VLOOKUP($AE165,Output!$C:$AQ,AH$160,FALSE),0) -> 0 | AI165: =IFERROR(VLOOKUP($AE165,Output!$C:$AQ,AI$160,FALSE),0) -> 0
B166: =T166 -> Mélèzes | C166: 51700 | D166: 42300 | E166: 26100 | F166: 24800 | G166: 0.00147367761 | H166: 0.001311595371 | I166: 0.0008244413699 | J166: 0.0007833772404 | L166: 0.00147367761 | S166: Tableau 13 | T166: Mélèzes | U166: OVOLgMlPIEDINC | V166: =VLOOKUP($U166,Output!$C:$AQ,V$160,FALSE) -> 51689.848 | W166: =VLOOKUP($U166,Output!$C:$AQ,W$160,FALSE) -> 42253.79 | X166: =VLOOKUP($U166,Output!$C:$AQ,X$160,FALSE) -> 26136.01667 | Y166: =VLOOKUP($U166,Output!$C:$AQ,Y$160,FALSE) -> 24778.406 | Z166: 0.001473389709 | AA166: 0.00131016104 | AB166: 0.0008255799341 | AC166: 0.0007826959653 | AE166: OVOLGMlPIEDSNAT | AF166: =IFERROR(VLOOKUP($AE166,Output!$C:$AQ,AF$160,FALSE),0) -> 0 | AG166: =IFERROR(VLOOKUP($AE166,Output!$C:$AQ,AG$160,FALSE),0) -> 0 | AH166: =IFERROR(VLOOKUP($AE166,Output!$C:$AQ,AH$160,FALSE),0) -> 0 | AI166: =IFERROR(VLOOKUP($AE166,Output!$C:$AQ,AI$160,FALSE),0) -> 0
B167: Thuya | C167: =ROUND(V167-AF167,-2) -> 1706800 | D167: 1591200 | E167: 1599500 | F167: 1636500 | G167: 0.0486513142 | H167: 0.04933831099 | I167: 0.05052467322 | J167: 0.05169342153 | L167: 0.0486513142 | S167: Tableau 13 | T167: Thuya | U167: OVOLTHOPIEDINC | V167: =VLOOKUP($U167,Output!$C:$AQ,V$160,FALSE) -> 1706802.384 | W167: =VLOOKUP($U167,Output!$C:$AQ,W$160,FALSE) -> 1591221.234 | X167: =VLOOKUP($U167,Output!$C:$AQ,X$160,FALSE) -> 1599462.27 | Y167: =VLOOKUP($U167,Output!$C:$AQ,Y$160,FALSE) -> 1636498.186 | Z167: 0.04865143088 | AA167: 0.04933891295 | AB167: 0.0505235351 | AC167: 0.05169341916 | AE167: OVOLTHOPIEDSNAT | AF167: =IFERROR(VLOOKUP($AE167,Output!$C:$AQ,AF$160,FALSE),0) -> 0 | AG167: =IFERROR(VLOOKUP($AE167,Output!$C:$AQ,AG$160,FALSE),0) -> 0 | AH167: =IFERROR(VLOOKUP($AE167,Output!$C:$AQ,AH$160,FALSE),0) -> 0 | AI167: =IFERROR(VLOOKUP($AE167,Output!$C:$AQ,AI$160,FALSE),0) -> 0
B168: Pruche | C168: 8900 | D168: 10800 | E168: 15400 | F168: 15300 | G168: 0.0002536891823 | H168: 0.0003348754139 | I168: 0.000486451996 | J168: 0.0004832932168 | L168: 0.0002536891823 | S168: Tableau 13 | T168: Pruche | U168: OVOLPRUPIEDINC | V168: =VLOOKUP($U168,Output!$C:$AQ,V$160,FALSE) -> 8897.092 | W168: =VLOOKUP($U168,Output!$C:$AQ,W$160,FALSE) -> 10800.306 | X168: =VLOOKUP($U168,Output!$C:$AQ,X$160,FALSE) -> 15392.41778 | Y168: =VLOOKUP($U168,Output!$C:$AQ,Y$160,FALSE) -> 15346.566 | Z168: 0.0002536065455 | AA168: 0.000334884519 | AB168: 0.000486213007 | AC168: 0.0004847646491 | AE168: OVOLPRUPIEDSNAT | AF168: =IFERROR(VLOOKUP($AE168,Output!$C:$AQ,AF$160,FALSE),0) -> 0 | AG168: =IFERROR(VLOOKUP($AE168,Output!$C:$AQ,AG$160,FALSE),0) -> 0 | AH168: =IFERROR(VLOOKUP($AE168,Output!$C:$AQ,AH$160,FALSE),0) -> 0 | AI168: =IFERROR(VLOOKUP($AE168,Output!$C:$AQ,AI$160,FALSE),0) -> 0
B169: Pins blanc et rouge | C169: 915200 | D169: 940500 | E169: 806700 | F169: 732000 | G169: 0.02608722917 | H169: 0.0291620673 | I169: 0.02548187177 | J169: 0.02312226371 | L169: 0.02608722917 | S169: Tableau 13 | T169: Pins blanc et rouge | U169: OVOLGPINSPIEDINC | V169: =VLOOKUP($U169,Output!$C:$AQ,V$160,FALSE) -> 915178.158 | W169: =VLOOKUP($U169,Output!$C:$AQ,W$160,FALSE) -> 940485.524 | X169: =VLOOKUP($U169,Output!$C:$AQ,X$160,FALSE) -> 806656.2978 | Y169: =VLOOKUP($U169,Output!$C:$AQ,Y$160,FALSE) -> 731966.914 | Z169: 0.02608663271 | AA169: 0.02916158508 | AB169: 0.02548051839 | AC169: 0.02312124316 | AE169: OVOLGPINSCPIEDSNAT | AF169: =IFERROR(VLOOKUP($AE169,Output!$C:$AQ,AF$160,FALSE),0) -> 0 | AG169: =IFERROR(VLOOKUP($AE169,Output!$C:$AQ,AG$160,FALSE),0) -> 0 | AH169: =IFERROR(VLOOKUP($AE169,Output!$C:$AQ,AH$160,FALSE),0) -> 0 | AI169: =IFERROR(VLOOKUP($AE169,Output!$C:$AQ,AI$160,FALSE),0) -> 0
B170: Peupliers | C170: 1241900 | D170: 1155600 | E170: 1017500 | F170: 1242400 | G170: 0.03539961747 | H170: 0.03583166929 | I170: 0.03214057831 | J170: 0.03924467272 | L170: 0.03539961747 | S170: Tableau 13 | T170: Peupliers | U170: OVOLGPEUPIEDINC | V170: =VLOOKUP($U170,Output!$C:$AQ,V$160,FALSE) -> 1241867.968 | W170: =VLOOKUP($U170,Output!$C:$AQ,W$160,FALSE) -> 1155611.51 | X170: =VLOOKUP($U170,Output!$C:$AQ,X$160,FALSE) -> 1017455.917 | Y170: =VLOOKUP($U170,Output!$C:$AQ,Y$160,FALSE) -> 1242402.53 | Z170: 0.03539873987 | AA170: 0.0358319852 | AB170: 0.03213921997 | AC170: 0.03924479434 | AE170: OVOLPEUPIEDSNAT | AF170: =IFERROR(VLOOKUP($AE170,Output!$C:$AQ,AF$160,FALSE),0) -> 0 | AG170: =IFERROR(VLOOKUP($AE170,Output!$C:$AQ,AG$160,FALSE),0) -> 0 | AH170: =IFERROR(VLOOKUP($AE170,Output!$C:$AQ,AH$160,FALSE),0) -> 0 | AI170: =IFERROR(VLOOKUP($AE170,Output!$C:$AQ,AI$160,FALSE),0) -> 0
B171: Bouleau à papier | C171: 5813300 | D171: 4719200 | E171: 6372300 | F171: 7693600 | G171: 0.1657046431 | H171: 0.1463281531 | I171: 0.2012868866 | J171: 0.2430238361 | L171: 0.1657046431 | N171: =(F171-C171)/C171 -> 0.3234479556 | S171: Tableau 13 | T171: Bouleau à papier | U171: OVOLgBpPIEDINC | V171: =VLOOKUP($U171,Output!$C:$AQ,V$160,FALSE) -> 5813349.588 | W171: =VLOOKUP($U171,Output!$C:$AQ,W$160,FALSE) -> 4719240.024 | X171: =VLOOKUP($U171,Output!$C:$AQ,X$160,FALSE) -> 6372299.86 | Y171: =VLOOKUP($U171,Output!$C:$AQ,Y$160,FALSE) -> 7693609.4 | Z171: 0.1657062225 | AA171: 0.1463292267 | AB171: 0.2012870961 | AC171: 0.2430243913 | AE171: OVOLgBpPIEDSNAT | AF171: =IFERROR(VLOOKUP($AE171,Output!$C:$AQ,AF$160,FALSE),0) -> 0 | AG171: =IFERROR(VLOOKUP($AE171,Output!$C:$AQ,AG$160,FALSE),0) -> 0 | AH171: =IFERROR(VLOOKUP($AE171,Output!$C:$AQ,AH$160,FALSE),0) -> 0 | AI171: =IFERROR(VLOOKUP($AE171,Output!$C:$AQ,AI$160,FALSE),0) -> 0
B172: Bouleau jaune | C172: 4885100 | D172: 4437900 | E172: 3697600 | F172: 2458700 | G172: 0.1392468567 | H172: 0.1376058888 | I172: 0.1167990195 | J172: 0.07766490407 | L172: 0.1392468567 | N172: =(F172-C172)/C172 -> -0.4966940288 | S172: Tableau 13 | T172: Bouleau jaune | U172: OVOLBOJPIEDINC | V172: =VLOOKUP($U172,Output!$C:$AQ,V$160,FALSE) -> 4885127.922 | W172: =VLOOKUP($U172,Output!$C:$AQ,W$160,FALSE) -> 4437889.172 | X172: =VLOOKUP($U172,Output!$C:$AQ,X$160,FALSE) -> 3697645.714 | Y172: =VLOOKUP($U172,Output!$C:$AQ,Y$160,FALSE) -> 2458680.914 | Z172: 0.139247792 | AA172: 0.1376053957 | AB172: 0.1168005876 | AC172: 0.07766438371 | AE172: OVOLBOJPIEDSNAT | AF172: =IFERROR(VLOOKUP($AE172,Output!$C:$AQ,AF$160,FALSE),0) -> 0 | AG172: =IFERROR(VLOOKUP($AE172,Output!$C:$AQ,AG$160,FALSE),0) -> 0 | AH172: =IFERROR(VLOOKUP($AE172,Output!$C:$AQ,AH$160,FALSE),0) -> 0 | AI172: =IFERROR(VLOOKUP($AE172,Output!$C:$AQ,AI$160,FALSE),0) -> 0
B173: Érable rouge | C173: 2304200 | D173: 1995700 | E173: 1471200 | F173: 1344700 | G173: 0.06567984425 | H173: 0.06188063552 | I173: 0.04647195952 | J173: 0.04247610384 | L173: 0.06567984425 | S173: Tableau 13 | T173: Érable rouge | U173: OVOLgEroPIEDINC | V173: =VLOOKUP($U173,Output!$C:$AQ,V$160,FALSE) -> 2304164.288 | W173: =VLOOKUP($U173,Output!$C:$AQ,W$160,FALSE) -> 1995679.904 | X173: =VLOOKUP($U173,Output!$C:$AQ,X$160,FALSE) -> 1471171.983 | Y173: =VLOOKUP($U173,Output!$C:$AQ,Y$160,FALSE) -> 1344691.731 | Z173: 0.06567889209 | AA173: 0.06187994162 | AB173: 0.04647112391 | AC173: 0.04247588777 | AE173: OVOLgEroPIEDSNAT | AF173: =IFERROR(VLOOKUP($AE173,Output!$C:$AQ,AF$160,FALSE),0) -> 0 | AG173: =IFERROR(VLOOKUP($AE173,Output!$C:$AQ,AG$160,FALSE),0) -> 0 | AH173: =IFERROR(VLOOKUP($AE173,Output!$C:$AQ,AH$160,FALSE),0) -> 0 | AI173: =IFERROR(VLOOKUP($AE173,Output!$C:$AQ,AI$160,FALSE),0) -> 0
B174: Érable à sucre | C174: 3561400 | D174: 4121200 | E174: 4352200 | F174: 4006800 | G174: 0.1015155791 | H174: 0.1277859774 | I174: 0.1374763881 | J174: 0.1265659648 | L174: 0.1015155791 | S174: Tableau 13 | T174: Érable à sucre | U174: OVOLERSPIEDINC | V174: =VLOOKUP($U174,Output!$C:$AQ,V$160,FALSE) -> 3561386.51 | W174: =VLOOKUP($U174,Output!$C:$AQ,W$160,FALSE) -> 4121208.034 | X174: =VLOOKUP($U174,Output!$C:$AQ,X$160,FALSE) -> 4352153.051 | Y174: =VLOOKUP($U174,Output!$C:$AQ,Y$160,FALSE) -> 4006815.713 | Z174: 0.1015152962 | AA174: 0.1277860803 | AB174: 0.1374750512 | AC174: 0.1265665956 | AE174: OVOLERSPIEDSNAT | AF174: =IFERROR(VLOOKUP($AE174,Output!$C:$AQ,AF$160,FALSE),0) -> 0 | AG174: =IFERROR(VLOOKUP($AE174,Output!$C:$AQ,AG$160,FALSE),0) -> 0 | AH174: =IFERROR(VLOOKUP($AE174,Output!$C:$AQ,AH$160,FALSE),0) -> 0 | AI174: =IFERROR(VLOOKUP($AE174,Output!$C:$AQ,AI$160,FALSE),0) -> 0
B175: Autres feuillus durs | C175: =ROUND(V175-AF175,-2) -> 329800 | D175: 365200 | E175: 380600 | F175: 366700 | G175: 0.009400751946 | H175: 0.01132375011 | I175: 0.01202231362 | J175: 0.01158324331 | L175: 0.009400751946 | S175: Tableau 13 | T175: Autres feuillus durs | V175: =V178-V176-V174-V173-V172-V171-V170-V169-V168-V167 -> 329777.49 | W175: =W178-W176-W174-W173-W172-W171-W170-W169-W168-W167 -> 365176.566 | X175: =X178-X176-X174-X173-X172-X171-X170-X169-X168-X167 -> 380628.0522 | Y175: =Y178-Y176-Y174-Y173-Y172-Y171-Y170-Y169-Y168-Y167 -> 366708.388 | Z175: 0.009400119727 | AA175: 0.01132301054 | AB175: 0.0120232125 | AC175: 0.01158352058 | AE175: Autres feuillus durs | AF175: =AF178-AF176-AF174-AF173-AF172-AF171-AF170-AF169-AF168-AF167 -> 0 | AG175: =AG178-AG176-AG174-AG173-AG172-AG171-AG170-AG169-AG168-AG167 -> 0 | AH175: =AH178-AH176-AH174-AH173-AH172-AH171-AH170-AH169-AH168-AH167 -> 0 | AI175: =AI178-AI176-AI174-AI173-AI172-AI171-AI170-AI169-AI168-AI167 -> 0
B176: Autres essences | C176: =IF($L$163<0.0095,C163,0)+IF($L$164<0.0095,C164,0)+IF($L$165<0.0095,C165,0)+IF($L$166<0.0095,C166,0)+IF($L$167<0.0095,C167,0)+IF($L$168<0.0095,C168,0)+IF($L$169<0.0095,C169,0)+IF($L$170<0.0095,C170,0)+IF($L$171<0.0095,C171,0)+IF($L$172<0.0095,C172,0)+IF($L$173<0.0095,C173,0)+IF($L$174<0.0095,C174+0)+IF($L$175<0.0095,C175,0) -> 390400 | D176: =IF($L$163<0.0095,D163,0)+IF($L$164<0.0095,D164,0)+IF($L$165<0.0095,D165,0)+IF($L$166<0.0095,D166,0)+IF($L$167<0.0095,D167,0)+IF($L$168<0.0095,D168,0)+IF($L$169<0.0095,D169,0)+IF($L$170<0.0095,D170,0)+IF($L$171<0.0095,D171,0)+IF($L$172<0.0095,D172,0)+IF($L$173<0.0095,D173,0)+IF($L$174<0.0095,D174+0)+IF($L$175<0.0095,D175,0) -> 418300 | E176: =IF($L$163<0.0095,E163,0)+IF($L$164<0.0095,E164,0)+IF($L$165<0.0095,E165,0)+IF($L$166<0.0095,E166,0)+IF($L$167<0.0095,E167,0)+IF($L$168<0.0095,E168,0)+IF($L$169<0.0095,E169,0)+IF($L$170<0.0095,E170,0)+IF($L$171<0.0095,E171,0)+IF($L$172<0.0095,E172,0)+IF($L$173<0.0095,E173,0)+IF($L$174<0.0095,E174+0)+IF($L$175<0.0095,E175,0) -> 422100 | F176: =IF($L$163<0.0095,F163,0)+IF($L$164<0.0095,F164,0)+IF($L$165<0.0095,F165,0)+IF($L$166<0.0095,F166,0)+IF($L$167<0.0095,F167,0)+IF($L$168<0.0095,F168,0)+IF($L$169<0.0095,F169,0)+IF($L$170<0.0095,F170,0)+IF($L$171<0.0095,F171,0)+IF($L$172<0.0095,F172,0)+IF($L$173<0.0095,F173,0)+IF($L$174<0.0095,F174+0)+IF($L$175<0.0095,F175,0) -> 406800 | G176: 0.01112811874 | H176: 0.01297022089 | I176: 0.01333320698 | J176: 0.01284991377 | L176: 0.01112811874 | S176: Tableau 13 | T176: SEPM | U176: OVOLGSEPMPIEDINC | V176: =VLOOKUP($U176,Output!$C:$AQ,V$160,FALSE) -> 14315713.46 | W176: =VLOOKUP($U176,Output!$C:$AQ,W$160,FALSE) -> 12913524.62 | X176: =VLOOKUP($U176,Output!$C:$AQ,X$160,FALSE) -> 11944900.8 | Y176: =VLOOKUP($U176,Output!$C:$AQ,Y$160,FALSE) -> 12161046.02 | Z176: 0.4080612674 | AA176: 0.4004089773 | AB176: 0.3773134422 | AC176: 0.3841409997 | AE176: OVOLgSEPMPIEDSNAT | AF176: =IFERROR(VLOOKUP($AE176,Output!$C:$AQ,AF$160,FALSE),0) -> 0 | AG176: =IFERROR(VLOOKUP($AE176,Output!$C:$AQ,AG$160,FALSE),0) -> 0 | AH176: =IFERROR(VLOOKUP($AE176,Output!$C:$AQ,AH$160,FALSE),0) -> 0 | AI176: =IFERROR(VLOOKUP($AE176,Output!$C:$AQ,AI$160,FALSE),0) -> 0
B177: Total | C177: =ROUND(V178-AF178,-2) -> 35082300 | D177: =ROUND(W178-AG178,-2) -> 32250800 | E177: =ROUND(X178-AH178,-2) -> 31657800 | F177: =ROUND(Y178-AI178,-2) -> 31657800 | G177: 1 | H177: 1 | I177: 1 | J177: 1 | S177: Tableau 13 | T177: FN - ERS BOJ | U177: OVOLGFNPIEDINC | V177: =VLOOKUP($U177,Output!$C:$AQ,V$160,FALSE) -> 219885.304 | W177: =VLOOKUP($U177,Output!$C:$AQ,W$160,FALSE) -> 217693.42 | X177: =VLOOKUP($U177,Output!$C:$AQ,X$160,FALSE) -> 187910.9489 | Y177: =VLOOKUP($U177,Output!$C:$AQ,Y$160,FALSE) -> 167522.786 | Z177: 0.006267705488 | AA177: 0.006750008403 | AB177: 0.005935698266 | AC177: 0.005291680534 | AE177: OVOLgFnPIEDSNAT | AF177: =IFERROR(VLOOKUP($AE177,Output!$C:$AQ,AF$160,FALSE),0) -> 0 | AG177: =IFERROR(VLOOKUP($AE177,Output!$C:$AQ,AG$160,FALSE),0) -> 0 | AH177: =IFERROR(VLOOKUP($AE177,Output!$C:$AQ,AH$160,FALSE),0) -> 0 | AI177: =IFERROR(VLOOKUP($AE177,Output!$C:$AQ,AI$160,FALSE),0) -> 0
L178: Masquer les essences du tableau qui sont en surbrillance (< 1%) | S178: Tableau 13 | T178: TOT sur pied | U178: OVOLTOTPIEDINC | V178: =VLOOKUP($U178,Output!$C:$AQ,V$160,FALSE) -> 35082264.86 | W178: =VLOOKUP($U178,Output!$C:$AQ,W$160,FALSE) -> 32250836.89 | X178: =VLOOKUP($U178,Output!$C:$AQ,X$160,FALSE) -> 31657766.36 | Y178: =VLOOKUP($U178,Output!$C:$AQ,Y$160,FALSE) -> 31657766.36 | Z178: 1 | AA178: 1 | AB178: 1 | AC178: 1 | AE178: OVOLTOTPIEDSNAT | AF178: =IFERROR(VLOOKUP($AE178,Output!$C:$AQ,AF$160,FALSE),0) -> 0 | AG178: =IFERROR(VLOOKUP($AE178,Output!$C:$AQ,AG$160,FALSE),0) -> 0 | AH178: =IFERROR(VLOOKUP($AE178,Output!$C:$AQ,AH$160,FALSE),0) -> 0 | AI178: =IFERROR(VLOOKUP($AE178,Output!$C:$AQ,AI$160,FALSE),0) -> 0
L179: Ces volumes sont comptabilisés dans "Autres essences" | S179: Tableau 13 | T179: Érables à sucre et rouge
D182: P2 | E182: P3 | F182: P4 | G182: P5 | H182: P6
B183: Tableau 15 Statistiques sur les compartiments d’organisation spatiale admissibles à la récolte par période
B184: Compartiments d'organisation spatiale | D184: 2023-2028 | E184: 2028-2033 | F184: 2033-2038 | G184: 2038-2043 | H184: 2043-2048
B185: Nombre total | D185: =Cedule_COS!G6 -> 315
B186: En pessière | D186: =COUNTIF(Cedule_COS!$A$10:$A$1009,"<S*") -> 0 | J186: Fait la sommation automatique des COS débutant par la lettre "P" ou par "C", valider et corriger si nécessaire
B187: En sapinière | D187: =COUNTIF(Cedule_COS!$A$10:$A$1009,"S*") -> 315 | J187: Fait la sommation automatique des COS débutant par la lettre "S", valider et corriger si nécessaire
B188: Admissibles à la récolte | D188: =Cedule_COS!C7 -> 86 | E188: =Cedule_COS!D7 -> 56 | F188: =Cedule_COS!E7 -> 65 | G188: =Cedule_COS!F7 -> 52 | H188: =Cedule_COS!G7 -> 53
B189: % de compartiments admissibles | D189: =Cedule_COS!C8 -> 0.273015873 | E189: =Cedule_COS!D8 -> 0.1777777778 | F189: =Cedule_COS!E8 -> 0.2063492063 | G189: =Cedule_COS!F8 -> 0.1650793651 | H189: =Cedule_COS!G8 -> 0.1682539683
B193: Tableau 17 Superficies considérées pour l'analyse de la mortalité d'ici la période 2023-2028 | S193: =LEFT(B$193,11) -> Tableau 17 | T193: Légende | V193: Output | W193: Valeur | X193: Période | Y193: Année
F194: ha | G194: % | S194: =LEFT(B$193,11) -> Tableau 17 | T194: Incluses aux activités de récolte | V194: OSUPINC | W194: =VLOOKUP($V194,Output!$C:$AQ,6,FALSE) -> 286182.4 | X194: P0 | Y194: 2018
B195: Épidémie sévère confirmée à la photo-interprétation | G195: =F195/W$194 -> 0 | J195: Faire une sélection sur le thème 8 = "INC" et seulement les années correspondant à l'épidémie actuelle | S195: =LEFT(B$193,11) -> Tableau 17 | T195: Épidémie sévère confirmée à la photo-interprétation | V195: Requete dans la table d'attribut
B196: Défoliation cumulative (cote ≥ 15) | F196: =ROUND(W196,-1) ->  | G196: =F196/W$194 ->  | J196: Des champs avaient été ajoutés par l'analyste à la fin de table d'attribut de la carte woodstock | S196: =LEFT(B$193,11) -> Tableau 17 | T196: Défoliation cumulative projetée 2023 ≥ 15 | V196: OSUPINC15+ | W196: =VLOOKUP($V196,Output!$C:$AQ,7,FALSE) ->  | X196: P1 | Y196: 2023
B197: Mortalité projetée | F197: =ROUND(SUM(W197:W198),-1) ->  | G197: =F197/W$194 ->  | J197: et c'est sur ces derniers que doivent se réaliser les requêtes | S197: =LEFT(B$193,11) -> Tableau 17 | T197: Mortalité projetée (sommation des 2 actions) | V197: osupaTBEmort | W197: =VLOOKUP($V197,Output!$C:$AQ,8,FALSE) ->  | X197: P2 | Y197: 2028
B198: Récupération prévue 2018-2023 | F198: =-ROUND(W199,-1) ->  | G198: =F198/W$194 ->  | V198: Osupactiontberetard | W198: =VLOOKUP($V198,Output!$C:$AQ,8,FALSE) ->  | X198: P2 | Y198: 2028
S199: =LEFT(B$193,11) -> Tableau 17 | T199: Récolte prévue à court terme (récupération) | V199: osuprealregapre_15+ | W199: =VLOOKUP($V199,Output!$C:$AQ,7,FALSE) ->  | X199: P1 | Y199: 2023

Sheet Figures
B2: Figure 2. Répartition du volume de bois marchand sur pied en début de calcul (m3). | N2: Volume sur pied en P0 | S2: Source: CahierDetermination_2018-2023 | V2: Volume sur pied en P0 - volume en SNAT | Z2: Volume dans courbe SNAT
L3: Conserver les GTYF même s'ils sont absents de l'UA | S3: Intrants | T3: Légende | U3: Name | V3: PERIOD0 | W3: % | X3: PERIOD0 | Z3: Name | AB3: PERIOD0
N4: Total | O4: =V19 -> 35512800 | S4: =LEFT(B$2,10) -> Figure 2. | T4: Autres feuillus durs | V4: =ROUND(V19-V17-V11-V12-V10-V8-V9-V6-V5-V7,-2) -> 305200 | W4: =IFERROR(V4/$V$19,0) -> 0.008594084386 | X4: =X19-X17-X11-X12-X10-X8-X9-X6-X5-X7 -> 305240.3 | Z4: Autres feuillus durs | AB4: =ROUND(AB19-AB17-AB11-AB12-AB10-AB8-AB9-AB6-AB5-AB7,-2) -> 0
N5: % R | O5: =(V17+V12+V11+V10)/V19 -> 0.4692786826 | S5: Figure 2. | T5: Érable à sucre | U5: OVOLERSPIEDINC | V5: =ROUND(X5-AB5,-2) -> 3189100 | W5: 0.08980142371 | X5: =VLOOKUP(U5,Output!$C:$AQ,6,FALSE) -> 3189050.94 | Z5: OVOLERSPIEDSNAT | AB5: =IFERROR(VLOOKUP(Z5,Output!$C:$AQ,6,FALSE),0) -> 0
N6: %SEPM | O6: =V17/V19 -> 0.3959220337 | S6: Figure 2. | T6: Érable rouge | U6: OVOLgEroPIEDINC | V6: 2191900 | W6: 0.06172140749 | X6: =VLOOKUP(U6,Output!$C:$AQ,6,FALSE) -> 2191926.22 | Z6: OVOLgEroPIEDSNAT | AB6: =IFERROR(VLOOKUP(Z6,Output!$C:$AQ,6,FALSE),0) -> 0
N7: % Fi | O7: =W21 -> 0.2946543218 | P7: =O7*O4 -> 10464000 | S7: Figure 2. | T7: Bouleau jaune | U7: OVOLBOJPIEDINC | V7: 4889100 | W7: 0.1376714875 | X7: =VLOOKUP(U7,Output!$C:$AQ,6,FALSE) -> 4889062.96 | Z7: OVOLBOJPIEDSNAT | AB7: =IFERROR(VLOOKUP(Z7,Output!$C:$AQ,6,FALSE),0) -> 0
N8: % FT | O8: =W22 -> 0.2360669956 | S8: Figure 2. | T8: Bouleau à papier | U8: OVOLgBpPIEDINC | V8: 6686300 | W8: 0.1882785925 | X8: =VLOOKUP(U8,Output!$C:$AQ,6,FALSE) -> 6686302.1 | Z8: OVOLgBpPIEDSNAT | AB8: =IFERROR(VLOOKUP(Z8,Output!$C:$AQ,6,FALSE),0) -> 0
N9: %Sapin | O9: =V16/V17 -> 0.4397274596 | S9: Figure 2. | T9: Peupliers | U9: OVOLGPEUPIEDINC | V9: 1585800 | W9: 0.04465432182 | X9: =VLOOKUP(U9,Output!$C:$AQ,6,FALSE) -> 1585764.58 | Z9: OVOLPEUPIEDSNAT | AB9: =IFERROR(VLOOKUP(Z9,Output!$C:$AQ,6,FALSE),0) -> 0
N10: %ERR | O10: =IFERROR(V6/(V5+V6),0) -> 0.407340643 | S10: Figure 2. | T10: Pins blanc et rouge | U10: OVOLGPINSPIEDINC | V10: 846200 | W10: 0.0238280282 | X10: =VLOOKUP(U10,Output!$C:$AQ,6,FALSE) -> 846242.09 | Z10: OVOLGPINSCPIEDSNAT | AB10: =IFERROR(VLOOKUP(Z10,Output!$C:$AQ,6,FALSE),0) -> 0
S11: Figure 2. | T11: Pruche | U11: OVOLPRUPIEDINC | V11: 12300 | W11: 0.0003463539907 | X11: =VLOOKUP(U11,Output!$C:$AQ,6,FALSE) -> 12273.43 | Z11: OVOLPRUPIEDSNAT | AB11: =IFERROR(VLOOKUP(Z11,Output!$C:$AQ,6,FALSE),0) -> 0
N12: Volume sur pied au calcul 2015-2018 | P12: UA | S12: Figure 2. | T12: Thuya | U12: OVOLTHOPIEDINC | V12: 1746600 | W12: 0.04918226668 | X12: =VLOOKUP(U12,Output!$C:$AQ,6,FALSE) -> 1746603.48 | Z12: OVOLTHOPIEDSNAT | AB12: =IFERROR(VLOOKUP(Z12,Output!$C:$AQ,6,FALSE),0) -> 0
P13: =Tableaux!O33 -> 07352 | S13: Figure 2. | T13: Mélèzes | U13: OVOLgMlPIEDINC | V13: 46800 | W13: 0.001317834696 | X13: =VLOOKUP(U13,Output!$C:$AQ,6,FALSE) -> 46837.2 | Z13: OVOLGMlPIEDSNAT | AB13: =IFERROR(VLOOKUP(Z13,Output!$C:$AQ,6,FALSE),0) -> 0
N14: Total | O14: =VLOOKUP(P13,DataLocal!$A:$BM,61,FALSE) -> 32976000 | S14: Figure 2. | T14: Pin gris | U14: OVOLgPgPIEDINC | V14: 658500 | W14: 0.01854260999 | X14: =VLOOKUP(U14,Output!$C:$AQ,6,FALSE) -> 658520.45 | Z14: OVOLgPgPIEDSNAT | AB14: =IFERROR(VLOOKUP(Z14,Output!$C:$AQ,6,FALSE),0) -> 0
N15: % R | O15: =VLOOKUP(P13,DataLocal!$A:$BM,62,FALSE) -> 0.45 | S15: Figure 2. | T15: Épinettes | U15: OVOLgEpxPIEDINC | V15: 7172300 | W15: 0.201963799 | X15: =VLOOKUP(U15,Output!$C:$AQ,6,FALSE) -> 7172261.91 | Z15: OVOLgEpxPIEDSNAT | AB15: =IFERROR(VLOOKUP(Z15,Output!$C:$AQ,6,FALSE),0) -> 0
N16: % SEPM | O16: =VLOOKUP(P13,DataLocal!$A:$BM,63,FALSE) -> 0.31 | S16: Figure 2. | T16: Sapin baumier | U16: OVOLSABPIEDINC | V16: =ROUND(X16-AB16,-2) -> 6182700 | W16: 0.1740977901 | X16: =VLOOKUP(U16,Output!$C:$AQ,6,FALSE) -> 6182728.3 | Z16: OVOLSABPIEDSNAT | AB16: =IFERROR(VLOOKUP(Z16,Output!$C:$AQ,6,FALSE),0) -> 0
N17: % Fi | O17: =VLOOKUP(P13,DataLocal!$A:$BM,64,FALSE) -> 0.3 | S17: Figure 2. | T17: SEPM | U17: OVOLGSEPMPIEDINC | V17: =ROUND(X17-AB17,-2) -> 14060300 | W17: =IFERROR(V17/$V$19,0) -> 0.3959220337 | X17: =VLOOKUP(U17,Output!$C:$AQ,6,FALSE) -> 14060347.86 | Z17: OVOLgSEPMPIEDSNAT | AB17: =IFERROR(VLOOKUP(Z17,Output!$C:$AQ,6,FALSE),0) -> 0
N18: % Ft | O18: =VLOOKUP(P13,DataLocal!$A:$BM,65,FALSE) -> 0.25 | S18: Figure 2. | T18: FN - ERS BOJ | U18: OVOLGFNPIEDINC | V18: 210400 | W18: 0.005924624361 | X18: =VLOOKUP(U18,Output!$C:$AQ,6,FALSE) -> 210367.06 | Z18: OVOLgFnPIEDSNAT | AB18: =IFERROR(VLOOKUP(Z18,Output!$C:$AQ,6,FALSE),0) -> 0
S19: Figure 2. | T19: TOT sur pied | U19: OVOLTOTPIEDINC | V19: =ROUND(X19-AB19,-2) -> 35512800 | W19: 1 | X19: =VLOOKUP(U19,Output!$C:$AQ,6,FALSE) -> 35512813.96 | Z19: OVOLTOTPIEDSNAT | AB19: =IFERROR(VLOOKUP(Z19,Output!$C:$AQ,6,FALSE),0) -> 0
N20: Vol R | O20: =ROUND(O15*$O$14,-2) -> 14839200 | T20: Érables à sucre et rouge | U20: Érables à sucre et rouge | V20: =V5+V6 -> 5381000 | W20: 0.1515228312 | X20: =X5+X6 -> 5380977.16 | Z20: Érables à sucre et rouge | AB20: =AB5+AB6 -> 0
N21: Vol SEPM | O21: =ROUND(O16*$O$14,-2) -> 10222600 | P21: Traduits en m3 | T21: gFi | U21: OVOLgFiPIEDINC | V21: =ROUND(X21-AB21,-2) -> 10464000 | W21: 0.2946543218 | X21: =VLOOKUP(U21,Output!$C:$AQ,6,FALSE) -> 10463992.89 | Z21: OVOLgFiPIEDSNAT | AB21: =IFERROR(VLOOKUP(Z21,Output!$C:$AQ,6,FALSE),0) -> 0
N22: Vol Fi | O22: =ROUND(O17*$O$14,-2) -> 9892800 | P22: approximativement | T22: gFt | U22: OVOLgFtPIEDINC | V22: 8383400 | W22: 0.2360669956 | X22: =VLOOKUP(U22,Output!$C:$AQ,6,FALSE) -> 8383354.2 | Z22: OVOLgFtPIEDSNAT | AB22: =IFERROR(VLOOKUP(Z22,Output!$C:$AQ,6,FALSE),0) -> 0
N23: Vol Ft | O23: =ROUND(O18*$O$14,-2) -> 8244000
B27: Type de couvert : | C27: =#REF! -> 
B28: Figure 3. Répartition de la superficie par grand type de forêt en début de calcul (ha). | S28: Intrants | T28: Légende | V28: PERIOD0 | W28: % | X28: PERIOD0
S29: =LEFT(B$28,10) -> Figure 3. | T29: Sapinières | U29: (FCTYF_SAB) | V29: =ROUND(X29,-1) -> 11360 | W29: =V29/V$44 -> 0.03983131438 | X29: =VLOOKUP("OSUPINC"&$U29,GTYF!$C:$AP,6,FALSE) -> 11361.3
S30: Figure 3. | T30: Résineux à feuillus | U30: (FCTYF_RF) | V30: =ROUND(X30,-1) -> 57680 | W30: 0.2022420963 | X30: =VLOOKUP("OSUPINC"&$U30,GTYF!$C:$AP,6,FALSE) -> 57676.3
S31: Figure 3. | T31: Prucheraies | U31: (FCTYF_PRU) | V31: 0 | W31: 0 | X31: =VLOOKUP("OSUPINC"&$U31,GTYF!$C:$AP,6,FALSE) -> 0
S32: Figure 3. | T32: Pinèdes grises | U32: (FCTYF_PIG) | V32: 3770 | W32: 0.01321866683 | X32: =VLOOKUP("OSUPINC"&$U32,GTYF!$C:$AP,6,FALSE) -> 3772.6
L33: Conserver les GTYF même s'ils sont absents de l'UA | S33: Figure 3. | T33: Pinèdes blanches | U33: (FCTYF_PIN) | V33: 7330 | W33: 0.02570101535 | X33: =VLOOKUP("OSUPINC"&$U33,GTYF!$C:$AP,6,FALSE) -> 7326.6
S34: Figure 3. | T34: Peupleraies à résineux | U34: (FCTYF_PEUR) | V34: 2620 | W34: 0.009186447507 | X34: =VLOOKUP("OSUPINC"&$U34,GTYF!$C:$AP,6,FALSE) -> 2618.8
S35: Figure 3. | T35: Peupleraies | U35: (FCTYF_PEU) | V35: 4950 | W35: 0.01735607449 | X35: =VLOOKUP("OSUPINC"&$U35,GTYF!$C:$AP,6,FALSE) -> 4950.3
S36: Figure 3. | T36: Pessières | U36: (FCTYF_EPX) | V36: 56990 | W36: 0.1998227647 | X36: =VLOOKUP("OSUPINC"&$U36,GTYF!$C:$AP,6,FALSE) -> 56987.5
S37: Figure 3. | T37: Feuillus tolérants à résineux | U37: (FCTYF_FTR) | V37: 28010 | W37: 0.09821083767 | X37: =VLOOKUP("OSUPINC"&$U37,GTYF!$C:$AP,6,FALSE) -> 28011
S38: Figure 3. | T38: Feuillus tolérants | U38: (FCTYF_FT) | V38: 47800 | W38: 0.1676000728 | X38: =VLOOKUP("OSUPINC"&$U38,GTYF!$C:$AP,6,FALSE) -> 47797.6
S39: Figure 3. | T39: Érablières rouges | U39: (FCTYF_ERO) | V39: 4410 | W39: 0.01546268455 | X39: =VLOOKUP("OSUPINC"&$U39,GTYF!$C:$AP,6,FALSE) -> 4412.1
S40: Figure 3. | T40: Cédrières | U40: (FCTYF_THO) | V40: 10570 | W40: 0.03706135502 | X40: =VLOOKUP("OSUPINC"&$U40,GTYF!$C:$AP,6,FALSE) -> 10566.6
S41: Figure 3. | T41: Bétulaies blanches à résineux | U41: (FCTYF_BOPR) | V41: 32110 | W41: 0.1125865761 | X41: =VLOOKUP("OSUPINC"&$U41,GTYF!$C:$AP,6,FALSE) -> 32111
S42: Figure 3. | T42: Bétulaies blanches | U42: (FCTYF_BOP) | V42: 18590 | W42: 0.06518170197 | X42: =VLOOKUP("OSUPINC"&$U42,GTYF!$C:$AP,6,FALSE) -> 18590.7
U43: Somme: | V43: =SUM(V29:V42) -> 286190 | X43: =SUM(X29:X42) -> 286182.4
T44: OSUPINC | U44: Tous | V44: =VLOOKUP("OSUPINC",Output!$C:$AP,7,FALSE) -> 285202.74
V45: =V43-V44 -> 987.26 | W45: Écart
V49: 2018
B50: Figure 4. Superficie destinée à l'aménagement forestier par classe d'âge en début de calcul (ha). | S50: Intrants | U50: Name | V50: PERIOD0 | X50: Classe d'âge | Y50: OUTPUT | Z50: Superficie (ha) | AA50: Pourcentage (%)
S51: =LEFT(B$50,10) -> Figure 4. | T51: 10 ans | U51: OSUP_INC_CLASSEAGEFCAGEAGE1 | V51: =VLOOKUP(U51,Output!$C:$AQ,6,FALSE) -> 8402.8 | X51: 10 | Z51: =ROUND(SUM(V51:V54),-1) -> 25590 | AA51: =IFERROR(Z51/$V$89,0) -> 0.08941849673
S52: Figure 4. | T52: 10 ans | U52: OSUP_INC_CLASSEAGEFCAGEAGE2 | V52: =VLOOKUP(U52,Output!$C:$AQ,6,FALSE) -> 7160.2 | X52: 30 | Z52: =ROUND(SUM(V55:V58),-1) -> 28340 | AA52: 0.09902775293
S53: Figure 4. | T53: 10 ans | U53: OSUP_INC_CLASSEAGEFCAGEAGE3 | V53: =VLOOKUP(U53,Output!$C:$AQ,6,FALSE) -> 9452.5 | X53: 50 | Z53: =ROUND(SUM(V59:V62),-1) -> 63310 | AA53: 0.221222549
S54: Figure 4. | T54: 10 ans | U54: OSUP_INC_CLASSEAGEFCAGEAGE4 | V54: =VLOOKUP(U54,Output!$C:$AQ,6,FALSE) -> 579.4 | X54: 70 | Z54: =ROUND(SUM(V63:V66),-1) -> 37950 | AA54: 0.1326077355
S55: Figure 4. | T55: 30 ans | U55: OSUP_INC_CLASSEAGEFCAGEAGE5 | V55: =VLOOKUP(U55,Output!$C:$AQ,6,FALSE) -> 1961.6 | X55: 90 | Z55: =ROUND(SUM(V67:V70),-1) -> 19980 | AA55: 0.0698156141
S56: Figure 4. | T56: 30 ans | U56: OSUP_INC_CLASSEAGEFCAGEAGE6 | V56: =VLOOKUP(U56,Output!$C:$AQ,6,FALSE) -> 2575.6 | X56: 120 et plus | Z56: =ROUND(SUM(V71:V80),-1) -> 12890 | AA56: 0.04504120449
S57: Figure 4. | T57: 30 ans | U57: OSUP_INC_CLASSEAGEFCAGEAGE7 | V57: =VLOOKUP(U57,Output!$C:$AQ,6,FALSE) -> 2660.8
S58: Figure 4. | T58: 30 ans | U58: OSUP_INC_CLASSEAGEFCAGEAGE8 | V58: =VLOOKUP(U58,Output!$C:$AQ,6,FALSE) -> 21142.5
S59: Figure 4. | T59: 50 ans | U59: OSUP_INC_CLASSEAGEFCAGEAGE9 | V59: =VLOOKUP(U59,Output!$C:$AQ,6,FALSE) -> 21575
S60: Figure 4. | T60: 50 ans | U60: OSUP_INC_CLASSEAGEFCAGEAGE10 | V60: =VLOOKUP(U60,Output!$C:$AQ,6,FALSE) -> 10039.2
S61: Figure 4. | T61: 50 ans | U61: OSUP_INC_CLASSEAGEFCAGEAGE11 | V61: =VLOOKUP(U61,Output!$C:$AQ,6,FALSE) -> 16300.7
N62: Proportion de la superficie dont l'évolution est suivi en âge: | S62: Figure 4. | T62: 50 ans | U62: OSUP_INC_CLASSEAGEFCAGEAGE12 | V62: =VLOOKUP(U62,Output!$C:$AQ,6,FALSE) -> 15393.5
N63: =IF(AND($W$81>=99.5%,$W$81<100%),"> 99%",IF(AND($W$81>=0.1%,$W$81<0.5%),"< 1%",$W$81)) -> 0.6571630541 | S63: Figure 4. | T63: 70 ans | U63: OSUP_INC_CLASSEAGEFCAGEAGE13 | V63: =VLOOKUP(U63,Output!$C:$AQ,6,FALSE) -> 16378.6
S64: Figure 4. | T64: 70 ans | U64: OSUP_INC_CLASSEAGEFCAGEAGE14 | V64: =VLOOKUP(U64,Output!$C:$AQ,6,FALSE) -> 10055.2
S65: Figure 4. | T65: 70 ans | U65: OSUP_INC_CLASSEAGEFCAGEAGE15 | V65: =VLOOKUP(U65,Output!$C:$AQ,6,FALSE) -> 5510.2
S66: Figure 4. | T66: 70 ans | U66: OSUP_INC_CLASSEAGEFCAGEAGE16 | V66: =VLOOKUP(U66,Output!$C:$AQ,6,FALSE) -> 6010.2
S67: Figure 4. | T67: 90 ans | U67: OSUP_INC_CLASSEAGEFCAGEAGE17 | V67: =VLOOKUP(U67,Output!$C:$AQ,6,FALSE) -> 3294.3
S68: Figure 4. | T68: 90 ans | U68: OSUP_INC_CLASSEAGEFCAGEAGE18 | V68: =VLOOKUP(U68,Output!$C:$AQ,6,FALSE) -> 3536.4
B69: Figure 5. Superficie destinée à l'aménagement forestier par classe de surface terrière en début de calcul (ha) | S69: Figure 4. | T69: 90 ans | U69: OSUP_INC_CLASSEAGEFCAGEAGE19 | V69: =VLOOKUP(U69,Output!$C:$AQ,6,FALSE) -> 3608.1
S70: Figure 4. | T70: 90 ans | U70: OSUP_INC_CLASSEAGEFCAGEAGE20 | V70: =VLOOKUP(U70,Output!$C:$AQ,6,FALSE) -> 9541.2
S71: Figure 4. | T71: 120 et plus | U71: OSUP_INC_CLASSEAGEFCAGEAGE21 | V71: =VLOOKUP(U71,Output!$C:$AQ,6,FALSE) -> 1705.6
S72: Figure 4. | T72: 120 et plus | U72: OSUP_INC_CLASSEAGEFCAGEAGE22 | V72: =VLOOKUP(U72,Output!$C:$AQ,6,FALSE) -> 513.5
S73: Figure 4. | T73: 120 et plus | U73: OSUP_INC_CLASSEAGEFCAGEAGE23 | V73: =VLOOKUP(U73,Output!$C:$AQ,6,FALSE) -> 513.1
S74: Figure 4. | T74: 120 et plus | U74: OSUP_INC_CLASSEAGEFCAGEAGE24 | V74: =VLOOKUP(U74,Output!$C:$AQ,6,FALSE) -> 691.7
S75: Figure 4. | T75: 120 et plus | U75: OSUP_INC_CLASSEAGEFCAGEAGE25 | V75: =VLOOKUP(U75,Output!$C:$AQ,6,FALSE) -> 236.8
N76: Proportion de la superficie dont l'évolution est suivi en surface terrière: | S76: Figure 4. | T76: 120 et plus | U76: OSUP_INC_CLASSEAGEFCAGEAGE26 | V76: =VLOOKUP(U76,Output!$C:$AQ,6,FALSE) -> 0
N77: =IF(AND($W$88>=99.5%,$W$88<100%),"> 99%",IF(AND($W$88>=0.1%,$W$88<0.5%),"< 1%",$W$88)) -> 0.3428369459 | S77: Figure 4. | T77: 120 et plus | U77: OSUP_INC_CLASSEAGEFCAGEAGE27 | V77: =VLOOKUP(U77,Output!$C:$AQ,6,FALSE) -> 0
S78: Figure 4. | T78: 120 et plus | U78: OSUP_INC_CLASSEAGEFCAGEAGE28 | V78: =VLOOKUP(U78,Output!$C:$AQ,6,FALSE) -> 0
S79: Figure 4. | T79: 120 et plus | U79: OSUP_INC_CLASSEAGEFCAGEAGE29 | V79: =VLOOKUP(U79,Output!$C:$AQ,6,FALSE) -> 0
S80: Figure 4. | T80: 120 et plus | U80: OSUP_INC_CLASSEAGEFCAGEAGE30+ | V80: =VLOOKUP(U80,Output!$C:$AQ,6,FALSE) -> 9229.8
U81: Sous-total | V81: =SUM(V51:V80) -> 188068.5 | W81: =V81/V89 -> 0.6571630541
S82: =LEFT(B$69,10) -> Figure 5. | T82: <16 | U82: OSUPINC_ST016(FCST) | V82: =VLOOKUP(U82,GTYF!$C:$AQ,6,FALSE) -> 6021.2 | W82: =IFERROR(V82/$V$88,0) -> 0.06136948995
S83: Figure 5. | T83: 16 à 18 | U83: OSUPINC_ST1619(FCST) | V83: =VLOOKUP(U83,GTYF!$C:$AQ,6,FALSE) -> 8015.6 | W83: 0.08169688495
S84: Figure 5. | T84: 19 à 21 | U84: OSUPINC_ST1922(FCST) | V84: =VLOOKUP(U84,GTYF!$C:$AQ,6,FALSE) -> 18489.9 | W84: 0.18845342
S85: Figure 5. | T85: 22 à 24 | U85: OSUPINC_ST2225(FCST) | V85: =VLOOKUP(U85,GTYF!$C:$AQ,6,FALSE) -> 42540.8 | W85: 0.433585863
S86: Figure 5. | T86: 25 à 28 | U86: OSUPINC_ST2528(FCST) | V86: =VLOOKUP(U86,GTYF!$C:$AQ,6,FALSE) -> 11266 | W86: 0.1148257281
S87: Figure 5. | T87: 29+ | U87: OSUPINC_ST29+(FCST) | V87: =VLOOKUP(U87,GTYF!$C:$AQ,6,FALSE) -> 11780.4 | W87: 0.1200686141
S88: Figure 5. | T88: Total 0-29+ | U88: Sous-total | V88: =SUM(V82:V87) -> 98113.9 | W88: =V88/V89 -> 0.3428369459
U89: OSUPINC | V89: =VLOOKUP(U89,Output!$C:$AQ,6,FALSE) -> 286182.4
A91: 80 | B91: Figure 6. Évolution des volumes et des possibilités forestières à rendement non-décroissant
U93: Période | V93: P0 | W93: P1 | X93: P2 | Y93: P3 | Z93: P4 | AA93: P5 | AB93: P6 | AC93: P7 | AD93: P8 | AE93: P9 | AF93: P10 | AG93: P11 | AH93: P12 | AI93: P13 | AJ93: P14 | AK93: P15 | AL93: P16 | AM93: P17 | AN93: P18 | AO93: P19 | AP93: P20 | AQ93: P21 | AR93: P22 | AS93: P23 | AT93: P24 | AU93: P25 | AV93: P26 | AW93: P27 | AX93: P28 | AY93: P29 | AZ93: P30
U94: Colonne | V94: 6 | W94: 7 | X94: 8 | Y94: 9 | Z94: 10 | AA94: 11 | AB94: 12 | AC94: 13 | AD94: 14 | AE94: 15 | AF94: 16 | AG94: 17 | AH94: 18 | AI94: 19 | AJ94: 20 | AK94: 21 | AL94: 22 | AM94: 23 | AN94: 24 | AO94: 25 | AP94: 26 | AQ94: 27 | AR94: 28 | AS94: 29 | AT94: 30 | AU94: 31 | AV94: 32 | AW94: 33 | AX94: 34 | AY94: 35 | AZ94: 36
S95: =LEFT(B$91,10) -> Figure 6. | T95: Légende | U95: Axe des "X" Début de période | W95: 2018 | X95: 2023 | Y95: 2028 | Z95: 2033 | AA95: 2038 | AB95: 2043 | AC95: 2048 | AD95: 2053 | AE95: 2058 | AF95: 2063 | AG95: 2068 | AH95: 2073 | AI95: 2078 | AJ95: 2083 | AK95: 2088 | AL95: 2093 | AM95: 2098 | AN95: 2103 | AO95: 2108 | AP95: 2113 | AQ95: 2118 | AR95: 2123 | AS95: 2128 | AT95: 2133 | AU95: 2138 | AV95: 2143 | AW95: 2148 | AX95: 2153 | AY95: 2158 | AZ95: 2163
S96: =LEFT(B$91,10) -> Figure 6. | T96: Possibilités forestières quinquennales | U96: OVOLTOTREC | V96: =VLOOKUP($U96,Output!$C:$AM,V$94,FALSE) -> 0 | W96: =VLOOKUP($U96,Output!$C:$AM,W$94,FALSE) -> 1738538.09 | X96: =VLOOKUP($U96,Output!$C:$AM,X$94,FALSE) -> 2751200 | Y96: =VLOOKUP($U96,Output!$C:$AM,Y$94,FALSE) -> 2751200 | Z96: =VLOOKUP($U96,Output!$C:$AM,Z$94,FALSE) -> 2751200 | AA96: =VLOOKUP($U96,Output!$C:$AM,AA$94,FALSE) -> 2751200 | AB96: =VLOOKUP($U96,Output!$C:$AM,AB$94,FALSE) -> 2751200 | AC96: =VLOOKUP($U96,Output!$C:$AM,AC$94,FALSE) -> 2751209.42 | AD96: =VLOOKUP($U96,Output!$C:$AM,AD$94,FALSE) -> 2751209.62 | AE96: =VLOOKUP($U96,Output!$C:$AM,AE$94,FALSE) -> 2751209.62 | AF96: =VLOOKUP($U96,Output!$C:$AM,AF$94,FALSE) -> 2751209.95 | AG96: =VLOOKUP($U96,Output!$C:$AM,AG$94,FALSE) -> 2751210.23 | AH96: =VLOOKUP($U96,Output!$C:$AM,AH$94,FALSE) -> 2784197.98 | AI96: =VLOOKUP($U96,Output!$C:$AM,AI$94,FALSE) -> 2784207.93 | AJ96: =VLOOKUP($U96,Output!$C:$AM,AJ$94,FALSE) -> 2784207.93 | AK96: =VLOOKUP($U96,Output!$C:$AM,AK$94,FALSE) -> 2784219.09 | AL96: =VLOOKUP($U96,Output!$C:$AM,AL$94,FALSE) -> 2784219.09 | AM96: =VLOOKUP($U96,Output!$C:$AM,AM$94,FALSE) -> 2784223.37 | AN96: =VLOOKUP($U96,Output!$C:$AM,AN$94,FALSE) -> 2784223.37 | AO96: =VLOOKUP($U96,Output!$C:$AM,AO$94,FALSE) -> 2784223.37 | AP96: =VLOOKUP($U96,Output!$C:$AM,AP$94,FALSE) -> 2784226.05 | AQ96: =VLOOKUP($U96,Output!$C:$AM,AQ$94,FALSE) -> 2784226.05 | AR96: =VLOOKUP($U96,Output!$C:$AM,AR$94,FALSE) -> 2784226.05 | AS96: =VLOOKUP($U96,Output!$C:$AM,AS$94,FALSE) -> 2784231.26 | AT96: =VLOOKUP($U96,Output!$C:$AM,AT$94,FALSE) -> 2784231.65 | AU96: =VLOOKUP($U96,Output!$C:$AM,AU$94,FALSE) -> 2784232.65 | AV96: =VLOOKUP($U96,Output!$C:$AM,AV$94,FALSE) -> 2859201.25 | AW96: =VLOOKUP($U96,Output!$C:$AM,AW$94,FALSE) -> 2975948.09 | AX96: =VLOOKUP($U96,Output!$C:$AM,AX$94,FALSE) -> 3107657.47 | AY96: =VLOOKUP($U96,Output!$C:$AM,AY$94,FALSE) -> 3107659.38 | AZ96: =VLOOKUP($U96,Output!$C:$AM,AZ$94,FALSE) -> 3107659.38
S97: =LEFT(B$91,10) -> Figure 6. | T97: Volume à maturité | U97: OVOLMATUREADM | V97: =VLOOKUP($U97,Output!$C:$AM,V$94,FALSE) -> 19477889.08 | W97: =VLOOKUP($U97,Output!$C:$AM,W$94,FALSE) -> 22758126.65 | X97: =VLOOKUP($U97,Output!$C:$AM,X$94,FALSE) -> 26852190.84 | Y97: =VLOOKUP($U97,Output!$C:$AM,Y$94,FALSE) -> 27546047.96 | Z97: =VLOOKUP($U97,Output!$C:$AM,Z$94,FALSE) -> 28687123.84 | AA97: =VLOOKUP($U97,Output!$C:$AM,AA$94,FALSE) -> 28632474.48 | AB97: =VLOOKUP($U97,Output!$C:$AM,AB$94,FALSE) -> 27989757.02 | AC97: =VLOOKUP($U97,Output!$C:$AM,AC$94,FALSE) -> 26564888.68 | AD97: =VLOOKUP($U97,Output!$C:$AM,AD$94,FALSE) -> 25868298.82 | AE97: =VLOOKUP($U97,Output!$C:$AM,AE$94,FALSE) -> 25179161.88 | AF97: =VLOOKUP($U97,Output!$C:$AM,AF$94,FALSE) -> 25046858.22 | AG97: =VLOOKUP($U97,Output!$C:$AM,AG$94,FALSE) -> 24178555.81 | AH97: =VLOOKUP($U97,Output!$C:$AM,AH$94,FALSE) -> 24386795.38 | AI97: =VLOOKUP($U97,Output!$C:$AM,AI$94,FALSE) -> 23161062.39 | AJ97: =VLOOKUP($U97,Output!$C:$AM,AJ$94,FALSE) -> 22277500.91 | AK97: =VLOOKUP($U97,Output!$C:$AM,AK$94,FALSE) -> 22534226.3 | AL97: =VLOOKUP($U97,Output!$C:$AM,AL$94,FALSE) -> 22427582.78 | AM97: =VLOOKUP($U97,Output!$C:$AM,AM$94,FALSE) -> 22238016.18 | AN97: =VLOOKUP($U97,Output!$C:$AM,AN$94,FALSE) -> 22163805.54 | AO97: =VLOOKUP($U97,Output!$C:$AM,AO$94,FALSE) -> 21830935.08 | AP97: =VLOOKUP($U97,Output!$C:$AM,AP$94,FALSE) -> 22307436.84 | AQ97: =VLOOKUP($U97,Output!$C:$AM,AQ$94,FALSE) -> 22114728.47 | AR97: =VLOOKUP($U97,Output!$C:$AM,AR$94,FALSE) -> 22109402.97 | AS97: =VLOOKUP($U97,Output!$C:$AM,AS$94,FALSE) -> 21517956 | AT97: =VLOOKUP($U97,Output!$C:$AM,AT$94,FALSE) -> 20578390.7 | AU97: =VLOOKUP($U97,Output!$C:$AM,AU$94,FALSE) -> 20524822.18 | AV97: =VLOOKUP($U97,Output!$C:$AM,AV$94,FALSE) -> 20914017.09 | AW97: =VLOOKUP($U97,Output!$C:$AM,AW$94,FALSE) -> 21042504.13 | AX97: =VLOOKUP($U97,Output!$C:$AM,AX$94,FALSE) -> 20726140.51 | AY97: =VLOOKUP($U97,Output!$C:$AM,AY$94,FALSE) -> 20233115.96 | AZ97: =VLOOKUP($U97,Output!$C:$AM,AZ$94,FALSE) -> 20265094.53
S98: =LEFT(B$91,10) -> Figure 6. | T98: Volume sur pied | U98: OVOLTOTPIEDINC | V98: =VLOOKUP($U98,Output!$C:$AM,V$94,FALSE) -> 35512813.96 | W98: =VLOOKUP($U98,Output!$C:$AM,W$94,FALSE) -> 36579610.84 | X98: =VLOOKUP($U98,Output!$C:$AM,X$94,FALSE) -> 36261727.12 | Y98: =VLOOKUP($U98,Output!$C:$AM,Y$94,FALSE) -> 35634826.18 | Z98: =VLOOKUP($U98,Output!$C:$AM,Z$94,FALSE) -> 35034065.74 | AA98: =VLOOKUP($U98,Output!$C:$AM,AA$94,FALSE) -> 34528405.21 | AB98: =VLOOKUP($U98,Output!$C:$AM,AB$94,FALSE) -> 33952300.06 | AC98: =VLOOKUP($U98,Output!$C:$AM,AC$94,FALSE) -> 33333597.48 | AD98: =VLOOKUP($U98,Output!$C:$AM,AD$94,FALSE) -> 32609105.7 | AE98: =VLOOKUP($U98,Output!$C:$AM,AE$94,FALSE) -> 31995948.55 | AF98: =VLOOKUP($U98,Output!$C:$AM,AF$94,FALSE) -> 31657766.36 | AG98: =VLOOKUP($U98,Output!$C:$AM,AG$94,FALSE) -> 31657766.36 | AH98: =VLOOKUP($U98,Output!$C:$AM,AH$94,FALSE) -> 31657766.36 | AI98: =VLOOKUP($U98,Output!$C:$AM,AI$94,FALSE) -> 31657766.36 | AJ98: =VLOOKUP($U98,Output!$C:$AM,AJ$94,FALSE) -> 31657766.36 | AK98: =VLOOKUP($U98,Output!$C:$AM,AK$94,FALSE) -> 31657766.36 | AL98: =VLOOKUP($U98,Output!$C:$AM,AL$94,FALSE) -> 31657766.36 | AM98: =VLOOKUP($U98,Output!$C:$AM,AM$94,FALSE) -> 31657766.36 | AN98: =VLOOKUP($U98,Output!$C:$AM,AN$94,FALSE) -> 31657766.36 | AO98: =VLOOKUP($U98,Output!$C:$AM,AO$94,FALSE) -> 31657766.36 | AP98: =VLOOKUP($U98,Output!$C:$AM,AP$94,FALSE) -> 31657766.36 | AQ98: =VLOOKUP($U98,Output!$C:$AM,AQ$94,FALSE) -> 31657766.36 | AR98: =VLOOKUP($U98,Output!$C:$AM,AR$94,FALSE) -> 31657766.36 | AS98: =VLOOKUP($U98,Output!$C:$AM,AS$94,FALSE) -> 31657766.36 | AT98: =VLOOKUP($U98,Output!$C:$AM,AT$94,FALSE) -> 31657766.36 | AU98: =VLOOKUP($U98,Output!$C:$AM,AU$94,FALSE) -> 31657766.36 | AV98: =VLOOKUP($U98,Output!$C:$AM,AV$94,FALSE) -> 31657766.36 | AW98: =VLOOKUP($U98,Output!$C:$AM,AW$94,FALSE) -> 31657766.36 | AX98: =VLOOKUP($U98,Output!$C:$AM,AX$94,FALSE) -> 31657766.36 | AY98: =VLOOKUP($U98,Output!$C:$AM,AY$94,FALSE) -> 31657766.36 | AZ98: =VLOOKUP($U98,Output!$C:$AM,AZ$94,FALSE) -> 31657766.36
S99: =LEFT(B$91,10) -> Figure 6. | T99: Volume récoltable | U99: OVOLTOTADMREGAPRE | V99: =VLOOKUP($U99,Output!$C:$AM,V$94,FALSE) -> 0 | W99: =VLOOKUP($U99,Output!$C:$AM,W$94,FALSE) -> 16581883.5 | X99: =VLOOKUP($U99,Output!$C:$AM,X$94,FALSE) -> 13889234.33 | Y99: =VLOOKUP($U99,Output!$C:$AM,Y$94,FALSE) -> 14117473.57 | Z99: =VLOOKUP($U99,Output!$C:$AM,Z$94,FALSE) -> 14897855.51 | AA99: =VLOOKUP($U99,Output!$C:$AM,AA$94,FALSE) -> 16822354 | AB99: =VLOOKUP($U99,Output!$C:$AM,AB$94,FALSE) -> 16461928.53 | AC99: =VLOOKUP($U99,Output!$C:$AM,AC$94,FALSE) -> 15703115.44 | AD99: =VLOOKUP($U99,Output!$C:$AM,AD$94,FALSE) -> 15339677.45 | AE99: =VLOOKUP($U99,Output!$C:$AM,AE$94,FALSE) -> 16229506.34 | AF99: =VLOOKUP($U99,Output!$C:$AM,AF$94,FALSE) -> 16757597.31 | AG99: =VLOOKUP($U99,Output!$C:$AM,AG$94,FALSE) -> 16355613.04 | AH99: =VLOOKUP($U99,Output!$C:$AM,AH$94,FALSE) -> 16551590.22 | AI99: =VLOOKUP($U99,Output!$C:$AM,AI$94,FALSE) -> 15638187.49 | AJ99: =VLOOKUP($U99,Output!$C:$AM,AJ$94,FALSE) -> 15603825.59 | AK99: =VLOOKUP($U99,Output!$C:$AM,AK$94,FALSE) -> 14303207.23 | AL99: =VLOOKUP($U99,Output!$C:$AM,AL$94,FALSE) -> 13617078.15 | AM99: =VLOOKUP($U99,Output!$C:$AM,AM$94,FALSE) -> 15128265.71 | AN99: =VLOOKUP($U99,Output!$C:$AM,AN$94,FALSE) -> 13153300.18 | AO99: =VLOOKUP($U99,Output!$C:$AM,AO$94,FALSE) -> 13328729.49 | AP99: =VLOOKUP($U99,Output!$C:$AM,AP$94,FALSE) -> 18838139.15 | AQ99: =VLOOKUP($U99,Output!$C:$AM,AQ$94,FALSE) -> 19630868.05 | AR99: =VLOOKUP($U99,Output!$C:$AM,AR$94,FALSE) -> 20090249.23 | AS99: =VLOOKUP($U99,Output!$C:$AM,AS$94,FALSE) -> 19872561.23 | AT99: =VLOOKUP($U99,Output!$C:$AM,AT$94,FALSE) -> 19375844.14 | AU99: =VLOOKUP($U99,Output!$C:$AM,AU$94,FALSE) -> 18787267.54 | AV99: =VLOOKUP($U99,Output!$C:$AM,AV$94,FALSE) -> 18572263.09 | AW99: =VLOOKUP($U99,Output!$C:$AM,AW$94,FALSE) -> 18046793.54 | AX99: =VLOOKUP($U99,Output!$C:$AM,AX$94,FALSE) -> 17168775.19 | AY99: =VLOOKUP($U99,Output!$C:$AM,AY$94,FALSE) -> 16176694.8 | AZ99: =VLOOKUP($U99,Output!$C:$AM,AZ$94,FALSE) -> 15384214.32
T116: * Source: Cahier_analyse, Tableau 13, onglet Budget | X116: Moyenne P2 à P6
B117: Figure 7. Répartition du budget annuel par familles de traitements prévus à la stratégie d’aménagement et coût moyen à l’hectare par famille de traitements
S118: =LEFT(B$117,10) -> Figure 7. | T118: Légende | U118: Output taux | V118: Output superficie | W118: $/ha | X118: ha | Y118: $
S119: =LEFT(B$117,10) -> Figure 7. | T119: Coupes avec protection de la régénération et des sols (CPRS) | U119: OTAUXCT_100 | V119: OSUPCT | W119: =IFERROR(VLOOKUP(U119,Output!$C:$AQ,37,FALSE),0) -> 0 | X119: =IFERROR(VLOOKUP(V119,Output!$C:$AQ,37,FALSE),"0000")/5 -> 2672.67 | Y119: =W119*X119 -> 0
S120: =LEFT(B$117,10) -> Figure 7. | T120: Coupe avec protection des petites tiges marchandes (CPPTM) | V120: OSUPREALaCPPTM | W120: =IFERROR(VLOOKUP(U120,Output!$C:$AQ,8,FALSE),0) -> 0 | X120: =IFERROR(VLOOKUP(V120,Output!$C:$AQ,37,FALSE),"0000")/5 -> 0 | Y120: =W120*X120 -> 0
S121: =LEFT(B$117,10) -> Figure 7. | T121: Coupe avec réserve de semenciers (CRS) | V121: OSUPREALaCRS | W121: =IFERROR(VLOOKUP(U121,Output!$C:$AQ,8,FALSE),0) -> 0 | X121: =IFERROR(VLOOKUP(V121,Output!$C:$AQ,37,FALSE),"0000")/5 -> 0 | Y121: 0
T122: Coupe à rétention variable (CRV, CPPTM, CPPTM, CPHR, CDL)
S123: =LEFT(B$117,10) -> Figure 7. | T123: Coupes finales | W123: =(ROUND(Y123/X123,0))&"$/ha" -> 0$/ha | X123: =SUM(X119:X121) -> 2672.67 | Y123: =SUM(Y119:Y121) -> 0
S124: Figure 7. | T124: Éclaircie commerciale (EC) | U124: OTAUXEC_SEPM_100 | V124: OSUPEC_SEPM | W124: =IFERROR(VLOOKUP(U124,Output!$C:$AQ,37,FALSE),0) -> 1460 | X124: =IFERROR(VLOOKUP(V124,Output!$C:$AQ,37,FALSE),"0000")/5 -> 12 | Y124: 17520
S125: Figure 7. | T125: Coupe progressive régulière initiale (CPROG) | U125: OTAUXCPROG_INI_100 | V125: OSUPCPROG_INI | W125: =IFERROR(VLOOKUP(U125,Output!$C:$AQ,37,FALSE),0) -> 530 | X125: =IFERROR(VLOOKUP(V125,Output!$C:$AQ,37,FALSE),"0000")/5 -> 0 | Y125: 0
S126: Figure 7. | T126: Coupe progressive régulière finale (CPROG) | U126: OTAUXCPROG_FIN_100 | V126: OSUPCPROG_FIN | W126: =IFERROR(VLOOKUP(U126,Output!$C:$AQ,37,FALSE),0) -> 0 | X126: =IFERROR(VLOOKUP(V126,Output!$C:$AQ,37,FALSE),"0000")/5 -> 0 | Y126: 0
S127: Figure 7. | T127: Coupe progessive irrégulière initiale (CPIRL) | U127: OTAUXCPIRL_INI_100 | V127: OSUPCPIRL_INI | W127: =IFERROR(VLOOKUP(U127,Output!$C:$AQ,37,FALSE),0) -> 540 | X127: =IFERROR(VLOOKUP(V127,Output!$C:$AQ,37,FALSE),"0000")/5 -> 1175.6868 | Y127: 634870.872
S128: Figure 7. | T128: Coupe progessive irrégulière finale (CPIRL) | U128: OTAUXCPIRL_FIN_100 | V128: OSUPCPIRL_FIN | W128: =IFERROR(VLOOKUP(U128,Output!$C:$AQ,37,FALSE),0) -> 0 | X128: =IFERROR(VLOOKUP(V128,Output!$C:$AQ,37,FALSE),"0000")/5 -> 0 | Y128: 0
S129: Figure 7. | T129: Coupe à couvert permanent (CPICP) | U129: OTAUXCPICP_100 | V129: OSUPCPICP | W129: =IFERROR(VLOOKUP(U129,Output!$C:$AQ,37,FALSE),0) -> 590 | X129: =IFERROR(VLOOKUP(V129,Output!$C:$AQ,37,FALSE),"0000")/5 -> 50 | Y129: 29500
S130: Figure 7. | T130: Coupe de jardinage (CJ) | U130: OTAUXCJ_100 | V130: OSUPCJ | W130: =IFERROR(VLOOKUP(U130,Output!$C:$AQ,37,FALSE),0) -> 675.04 | X130: =IFERROR(VLOOKUP(V130,Output!$C:$AQ,37,FALSE),"0000")/5 -> 0 | Y130: 0
S131: Figure 7. | T131: Coupes partielles | W131: =(ROUND(Y131/X131,0))&"$/ha" -> 551$/ha | X131: =SUM(X124:X130) -> 1237.6868 | Y131: =SUM(Y124:Y130) -> 681890.872
S132: Figure 7. | T132: Plantation ligniculture (pins, feuillus) | U132: OTAUXPL_PPF_100 | V132: OSUPPL_PPF | W132: =IFERROR(VLOOKUP(U132,Output!$C:$AQ,37,FALSE),0) -> 1640 | X132: =IFERROR(VLOOKUP(V132,Output!$C:$AQ,37,FALSE),"0000")/5 -> 0 | Y132: 0
S133: Figure 7. | T133: Plantation intensive | U133: OTAUXPL_SEPM_I_100 | V133: OSUPPL_SEPM_I | W133: =IFERROR(VLOOKUP(U133,Output!$C:$AQ,37,FALSE),0) -> 1550 | X133: =IFERROR(VLOOKUP(V133,Output!$C:$AQ,37,FALSE),"0000")/5 -> 93.2136 | Y133: 144481.08
S134: Figure 7. | T134: Plantation de base | U134: OTAUXPL_SEPM_E_100 | V134: OSUPPL_SEPM_E | W134: =IFERROR(VLOOKUP(U134,Output!$C:$AQ,37,FALSE),0) -> 1240 | X134: =IFERROR(VLOOKUP(V134,Output!$C:$AQ,37,FALSE),"0000")/5 -> 370.3808 | Y134: 459272.192
S135: Figure 7. | T135: Regarni | U135: OTAUXREG_100 | V135: OSUPREG | W135: =IFERROR(VLOOKUP(U135,Output!$C:$AQ,37,FALSE),0) -> 560 | X135: =IFERROR(VLOOKUP(V135,Output!$C:$AQ,37,FALSE),"0000")/5 -> 77.918 | Y135: 43634.08
S136: Figure 7. | T136: Ensemencement (ENS) | U136: OTAUXENS_100 | V136: OSUPENS | W136: =IFERROR(VLOOKUP(U136,Output!$C:$AQ,37,FALSE),0) -> 130 | X136: =IFERROR(VLOOKUP(V136,Output!$C:$AQ,37,FALSE),"0000")/5 -> 0 | Y136: =W136*X136 -> 0
S137: Figure 7. | T137: Reboisement | W137: =(ROUND(Y137/X137,0))&"$/ha" -> 1196$/ha | X137: =SUM(X132:X136) -> 541.5124 | Y137: =SUM(Y132:Y136) -> 647387.352
S138: Figure 7. | T138: Dégagement de la régénération naturelle | U138: OTAUXDEG_2_100 | V138: OSUPDEG_2 | W138: =IFERROR(VLOOKUP(U138,Output!$C:$AQ,37,FALSE),0) -> 1470 | X138: =IFERROR(VLOOKUP(V138,Output!$C:$AQ,37,FALSE),"0000")/5 -> 77.918 | Y138: 114539.46
S139: Figure 7. | T139: Dégagement de plantation | U139: OTAUXDEG_1_100 | V139: OSUPDEG_1 | W139: =IFERROR(VLOOKUP(U139,Output!$C:$AQ,37,FALSE),0) -> 1470 | X139: =IFERROR(VLOOKUP(V139,Output!$C:$AQ,37,FALSE),"0000")/5 -> 393.0128 | Y139: 577728.816
S140: Figure 7. | T140: Nettoiement de la régénération naturelle | U140: OTAUXNETT_100 | V140: OSUPREALNET | W140: =IFERROR(VLOOKUP(U140,Output!$C:$AQ,37,FALSE),0) -> 1140 | X140: =IFERROR(VLOOKUP(V140,Output!$C:$AQ,37,FALSE),"0000")/5-X141 -> 134.462 | Y140: 153286.68
C141: $ /m3 | E141: $ /ha | S141: Figure 7. | T141: Nettoiement de plantation | U141: OTAUXNETT_100 | V141: OSUPTCADNETT_T100% | W141: =IFERROR(VLOOKUP(U141,Output!$C:$AQ,37,FALSE),0) -> 1140 | X141: =IFERROR(VLOOKUP(V141,Output!$C:$AQ,37,FALSE),"0000")/5 -> 391.2392 | Y141: 446012.688
C142: =Y151/(Instructions!I5/5) -> 5.896995174 | E142: =Y151/Tableaux!F33 -> 11.33818794 | S142: Figure 7. | T142: Éclaircie précommerciale (EPC_1) | U142: OTAUXEPC_1_100 | V142: OSUPEPC_1 | W142: =IFERROR(VLOOKUP(U142,Output!$C:$AQ,37,FALSE),0) -> 1450 | X142: =IFERROR(VLOOKUP(V142,Output!$C:$AQ,37,FALSE),"0000")/5 -> 0 | Y142: 0
S143: Figure 7. | T143: Éclaircie précommerciale (EPC_2) | U143: OTAUXEPC_2_100 | V143: OSUPEPC_2 | W143: =IFERROR(VLOOKUP(U143,Output!$C:$AQ,37,FALSE),0) -> 1450 | X143: =IFERROR(VLOOKUP(V143,Output!$C:$AQ,37,FALSE),"0000")/5 -> 75.9996 | Y143: 110199.42
S144: Figure 7. | T144: Éclaircie précommerciale de la régénération naturelle | V144: OSUPREALEPC | W144: =IFERROR(VLOOKUP(U144,Output!$C:$AQ,37,FALSE),0) -> 0 | X144: =IFERROR(VLOOKUP(V144,Output!$C:$AQ,37,FALSE),"0000")/5 -> 75.9996 | Y144: 0
S145: Figure 7. | T145: Élagage (plantation) | U145: OTAUXELAG_100 | V145: OSUPELAG | W145: =IFERROR(VLOOKUP(U145,Output!$C:$AQ,37,FALSE),0) -> 1630 | X145: =IFERROR(VLOOKUP(V145,Output!$C:$AQ,37,FALSE),"0000")/5 -> 77.918 | Y145: 127006.34
S146: Figure 7. | T146: Travaux d'éducation | W146: =(ROUND(Y146/X146,0))&"$/ha" -> 1329$/ha | X146: =SUM(X138:X143)+X145 -> 1150.5496 | Y146: =SUM(Y138:Y143)+Y145 -> 1528773.404
S147: Figure 7. | T147: Préparation terrain lignicult. + ferti + élagage (SCA_LIGN) | U147: OTAUXSCA_LIGN_100 | V147: OSUPSCA_LIGN | W147: =IFERROR(VLOOKUP(U147,Output!$C:$AQ,37,FALSE),0) -> 1520 | X147: =IFERROR(VLOOKUP(V147,Output!$C:$AQ,37,FALSE),"0000")/5 -> 0 | Y147: 0
S148: Figure 7. | T148: Préparation de terrain partielle (SCA_PART) | U148: OTAUXSCA_PART_100 | V148: OSUPSCA_PART | W148: =IFERROR(VLOOKUP(U148,Output!$C:$AQ,37,FALSE),0) -> 540 | X148: =IFERROR(VLOOKUP(V148,Output!$C:$AQ,37,FALSE),"0000")/5 -> 355.5588 | Y148: 192001.752
S149: Figure 7. | T149: Préparation de terrain régulière, 1 passage (SCA_REG) | U149: OTAUXSCA_REG_100 | V149: OSUPSCA_REG | W149: =IFERROR(VLOOKUP(U149,Output!$C:$AQ,37,FALSE),0) -> 420 | X149: =IFERROR(VLOOKUP(V149,Output!$C:$AQ,37,FALSE),"0000")/5 -> 463.5944 | Y149: 194709.648 | AA149: Valideur
B150: Figure 9a Évolution de la superficie des vieilles forêts selon leur degré d'altération | S150: Figure 7. | T150: Préparation de terrain | W150: =(ROUND(Y150/X150,0))&"$/ha" -> 472$/ha | X150: =SUM(X147:X149) -> 819.1532 | Y150: =SUM(Y147:Y149) -> 386711.4 | Z150: =Y123+Y131+Y137+Y146+Y150 -> 3244763.028 | AA150: =Y151-Z150 -> -0.4031999991
S151: Figure 7. | T151: Investissement sylvicole annuel (O$INVESTISTS)* | V151: O$INVESTISTS | Y151: =IFERROR(VLOOKUP(V151,Output!$C:$AQ,37,FALSE),"0000")/5 -> 3244762.625
S155: =LEFT(B$117,10) -> Figure 7. | T155: =T123 -> Coupes finales | U155: =Y123 -> 0 | V155: =W123 -> 0$/ha
S156: =LEFT(B$117,10) -> Figure 7. | T156: =T131 -> Coupes partielles | U156: =Y131 -> 681890.872 | V156: =W131 -> 551$/ha
S157: =LEFT(B$117,10) -> Figure 7. | T157: =T137 -> Reboisement | U157: =Y137 -> 647387.352 | V157: =W137 -> 1196$/ha
S158: =LEFT(B$117,10) -> Figure 7. | T158: =T146 -> Travaux d'éducation | U158: =Y146 -> 1528773.404 | V158: =W146 -> 1329$/ha
S159: =LEFT(B$117,10) -> Figure 7. | T159: =T150 -> Préparation de terrain | U159: =Y150 -> 386711.4 | V159: =W150 -> 472$/ha
U161: Période | V161: P0 | W161: P1 | X161: P2 | Y161: P3 | Z161: P4 | AA161: P5 | AB161: P6 | AC161: P7 | AD161: P8 | AE161: P9 | AF161: P10 | AG161: P11 | AH161: P12 | AI161: P13 | AJ161: P14 | AK161: P15 | AL161: P16 | AM161: P17 | AN161: P18 | AO161: P19 | AP161: P20 | AQ161: P21 | AR161: P22 | AS161: P23 | AT161: P24 | AU161: P25 | AV161: P26 | AW161: P27 | AX161: P28 | AY161: P29 | AZ161: P30
S162: =LEFT(B$150,10) -> Figure 9a | U162: Axe des "X" Fin de période | V162: 2018 | W162: 2023 | X162: 2028 | Y162: 2033 | Z162: 2038 | AA162: 2043 | AB162: 2048 | AC162: 2053 | AD162: 2058 | AE162: 2063 | AF162: 2068 | AG162: 2073 | AH162: 2078 | AI162: 2083 | AJ162: 2088 | AK162: 2093 | AL162: 2098 | AM162: 2103 | AN162: 2108 | AO162: 2113 | AP162: 2118 | AQ162: 2123 | AR162: 2128 | AS162: 2133 | AT162: 2138 | AU162: 2143 | AV162: 2148 | AW162: 2153 | AX162: 2158 | AY162: 2163 | AZ162: 2168
S163: Figure 9a | U163: Colonne | V163: 6 | W163: 7 | X163: 8 | Y163: 9 | Z163: 10 | AA163: 11 | AB163: 12 | AC163: 13 | AD163: 14 | AE163: 15 | AF163: 16 | AG163: 17 | AH163: 18 | AI163: 19 | AJ163: 20 | AK163: 21 | AL163: 22 | AM163: 23 | AN163: 24 | AO163: 25 | AP163: 26 | AQ163: 27 | AR163: 28 | AS163: 29 | AT163: 30 | AU163: 31 | AV163: 32 | AW163: 33 | AX163: 34 | AY163: 35 | AZ163: 36
S164: Figure 9a | U164: OSUPREGECO | V164: =VLOOKUP($U164,Output!$C:$AL,V$163,FALSE) -> 379129.6 | W164: =VLOOKUP($U164,Output!$C:$AL,W$163,FALSE) -> 378149.94 | X164: =VLOOKUP($U164,Output!$C:$AL,X$163,FALSE) -> 376943.04 | Y164: =VLOOKUP($U164,Output!$C:$AL,Y$163,FALSE) -> 375788.5 | Z164: =VLOOKUP($U164,Output!$C:$AL,Z$163,FALSE) -> 374893.9 | AA164: =VLOOKUP($U164,Output!$C:$AL,AA$163,FALSE) -> 373874.47 | AB164: =VLOOKUP($U164,Output!$C:$AL,AB$163,FALSE) -> 372881.45 | AC164: =VLOOKUP($U164,Output!$C:$AL,AC$163,FALSE) -> 371924.11 | AD164: =VLOOKUP($U164,Output!$C:$AL,AD$163,FALSE) -> 371268.7 | AE164: =VLOOKUP($U164,Output!$C:$AL,AE$163,FALSE) -> 370640.03 | AF164: =VLOOKUP($U164,Output!$C:$AL,AF$163,FALSE) -> 370029.28 | AG164: =VLOOKUP($U164,Output!$C:$AL,AG$163,FALSE) -> 369325.38 | AH164: =VLOOKUP($U164,Output!$C:$AL,AH$163,FALSE) -> 368848.01 | AI164: =VLOOKUP($U164,Output!$C:$AL,AI$163,FALSE) -> 368565.26 | AJ164: =VLOOKUP($U164,Output!$C:$AL,AJ$163,FALSE) -> 368335.87 | AK164: =VLOOKUP($U164,Output!$C:$AL,AK$163,FALSE) -> 367899.29 | AL164: =VLOOKUP($U164,Output!$C:$AL,AL$163,FALSE) -> 367661.57 | AM164: =VLOOKUP($U164,Output!$C:$AL,AM$163,FALSE) -> 367574.09 | AN164: =VLOOKUP($U164,Output!$C:$AL,AN$163,FALSE) -> 367552.06 | AO164: =VLOOKUP($U164,Output!$C:$AL,AO$163,FALSE) -> 367492.79 | AP164: =VLOOKUP($U164,Output!$C:$AL,AP$163,FALSE) -> 367459.48 | AQ164: =VLOOKUP($U164,Output!$C:$AL,AQ$163,FALSE) -> 367439.48 | AR164: =VLOOKUP($U164,Output!$C:$AL,AR$163,FALSE) -> 367419.48 | AS164: =VLOOKUP($U164,Output!$C:$AL,AS$163,FALSE) -> 367369.79 | AT164: =VLOOKUP($U164,Output!$C:$AL,AT$163,FALSE) -> 367268.55 | AU164: =VLOOKUP($U164,Output!$C:$AL,AU$163,FALSE) -> 367243.43 | AV164: =VLOOKUP($U164,Output!$C:$AL,AV$163,FALSE) -> 367223.43 | AW164: =VLOOKUP($U164,Output!$C:$AL,AW$163,FALSE) -> 367203.43 | AX164: =VLOOKUP($U164,Output!$C:$AL,AX$163,FALSE) -> 367183.43 | AY164: =VLOOKUP($U164,Output!$C:$AL,AY$163,FALSE) -> 367183.43 | AZ164: =VLOOKUP($U164,Output!$C:$AL,AZ$163,FALSE) -> 367183.43
S165: Figure 9a | T165: Élevé | U165: OSUPVIEUXALERTEREGECO | V165: =VLOOKUP($U165,Output!$C:$AL,V$163,FALSE) -> 66945.43 | W165: =VLOOKUP($U165,Output!$C:$AL,W$163,FALSE) -> 66772.88 | X165: =VLOOKUP($U165,Output!$C:$AL,X$163,FALSE) -> 66560.5 | Y165: =VLOOKUP($U165,Output!$C:$AL,Y$163,FALSE) -> 66356.01 | Z165: =VLOOKUP($U165,Output!$C:$AL,Z$163,FALSE) -> 66198.9 | AA165: =VLOOKUP($U165,Output!$C:$AL,AA$163,FALSE) -> 66018.88 | AB165: =VLOOKUP($U165,Output!$C:$AL,AB$163,FALSE) -> 65842.89 | AC165: =VLOOKUP($U165,Output!$C:$AL,AC$163,FALSE) -> 65673.91 | AD165: =VLOOKUP($U165,Output!$C:$AL,AD$163,FALSE) -> 65557.74 | AE165: =VLOOKUP($U165,Output!$C:$AL,AE$163,FALSE) -> 65447.3 | AF165: =VLOOKUP($U165,Output!$C:$AL,AF$163,FALSE) -> 65338.57 | AG165: =VLOOKUP($U165,Output!$C:$AL,AG$163,FALSE) -> 65213.41 | AH165: =VLOOKUP($U165,Output!$C:$AL,AH$163,FALSE) -> 65129.48 | AI165: =VLOOKUP($U165,Output!$C:$AL,AI$163,FALSE) -> 65079.37 | AJ165: =VLOOKUP($U165,Output!$C:$AL,AJ$163,FALSE) -> 65039 | AK165: =VLOOKUP($U165,Output!$C:$AL,AK$163,FALSE) -> 64961.77 | AL165: =VLOOKUP($U165,Output!$C:$AL,AL$163,FALSE) -> 64919.62 | AM165: =VLOOKUP($U165,Output!$C:$AL,AM$163,FALSE) -> 64904.24 | AN165: =VLOOKUP($U165,Output!$C:$AL,AN$163,FALSE) -> 64900.32 | AO165: =VLOOKUP($U165,Output!$C:$AL,AO$163,FALSE) -> 64889.83 | AP165: =VLOOKUP($U165,Output!$C:$AL,AP$163,FALSE) -> 64883.69 | AQ165: =VLOOKUP($U165,Output!$C:$AL,AQ$163,FALSE) -> 64880.11 | AR165: =VLOOKUP($U165,Output!$C:$AL,AR$163,FALSE) -> 64876.63 | AS165: =VLOOKUP($U165,Output!$C:$AL,AS$163,FALSE) -> 64867.81 | AT165: =VLOOKUP($U165,Output!$C:$AL,AT$163,FALSE) -> 64849.92 | AU165: =VLOOKUP($U165,Output!$C:$AL,AU$163,FALSE) -> 64845.54 | AV165: =VLOOKUP($U165,Output!$C:$AL,AV$163,FALSE) -> 64842.02 | AW165: =VLOOKUP($U165,Output!$C:$AL,AW$163,FALSE) -> 64838.37 | AX165: =VLOOKUP($U165,Output!$C:$AL,AX$163,FALSE) -> 64834.85 | AY165: =VLOOKUP($U165,Output!$C:$AL,AY$163,FALSE) -> 64834.85 | AZ165: =VLOOKUP($U165,Output!$C:$AL,AZ$163,FALSE) -> 64834.85
S166: Figure 9a | U166: OSUPVIEUXACCEPTREGECO | V166: =VLOOKUP($U166,Output!$C:$AL,V$163,FALSE) -> 111575.72 | W166: =VLOOKUP($U166,Output!$C:$AL,W$163,FALSE) -> 111288.13 | X166: =VLOOKUP($U166,Output!$C:$AL,X$163,FALSE) -> 110934.16 | Y166: =VLOOKUP($U166,Output!$C:$AL,Y$163,FALSE) -> 110593.35 | Z166: =VLOOKUP($U166,Output!$C:$AL,Z$163,FALSE) -> 110331.5 | AA166: =VLOOKUP($U166,Output!$C:$AL,AA$163,FALSE) -> 110031.47 | AB166: =VLOOKUP($U166,Output!$C:$AL,AB$163,FALSE) -> 109738.14 | AC166: =VLOOKUP($U166,Output!$C:$AL,AC$163,FALSE) -> 109456.51 | AD166: =VLOOKUP($U166,Output!$C:$AL,AD$163,FALSE) -> 109262.89 | AE166: =VLOOKUP($U166,Output!$C:$AL,AE$163,FALSE) -> 109078.83 | AF166: =VLOOKUP($U166,Output!$C:$AL,AF$163,FALSE) -> 108897.61 | AG166: =VLOOKUP($U166,Output!$C:$AL,AG$163,FALSE) -> 108689.01 | AH166: =VLOOKUP($U166,Output!$C:$AL,AH$163,FALSE) -> 108549.13 | AI166: =VLOOKUP($U166,Output!$C:$AL,AI$163,FALSE) -> 108465.61 | AJ166: =VLOOKUP($U166,Output!$C:$AL,AJ$163,FALSE) -> 108398.34 | AK166: =VLOOKUP($U166,Output!$C:$AL,AK$163,FALSE) -> 108269.61 | AL166: =VLOOKUP($U166,Output!$C:$AL,AL$163,FALSE) -> 108199.37 | AM166: =VLOOKUP($U166,Output!$C:$AL,AM$163,FALSE) -> 108173.73 | AN166: =VLOOKUP($U166,Output!$C:$AL,AN$163,FALSE) -> 108167.19 | AO166: =VLOOKUP($U166,Output!$C:$AL,AO$163,FALSE) -> 108149.71 | AP166: =VLOOKUP($U166,Output!$C:$AL,AP$163,FALSE) -> 108139.49 | AQ166: =VLOOKUP($U166,Output!$C:$AL,AQ$163,FALSE) -> 108133.52 | AR166: =VLOOKUP($U166,Output!$C:$AL,AR$163,FALSE) -> 108127.72 | AS166: =VLOOKUP($U166,Output!$C:$AL,AS$163,FALSE) -> 108113.02 | AT166: =VLOOKUP($U166,Output!$C:$AL,AT$163,FALSE) -> 108083.2 | AU166: =VLOOKUP($U166,Output!$C:$AL,AU$163,FALSE) -> 108075.89 | AV166: =VLOOKUP($U166,Output!$C:$AL,AV$163,FALSE) -> 108070.03 | AW166: =VLOOKUP($U166,Output!$C:$AL,AW$163,FALSE) -> 108063.95 | AX166: =VLOOKUP($U166,Output!$C:$AL,AX$163,FALSE) -> 108058.08 | AY166: =VLOOKUP($U166,Output!$C:$AL,AY$163,FALSE) -> 108058.08 | AZ166: =VLOOKUP($U166,Output!$C:$AL,AZ$163,FALSE) -> 108058.08
S167: Figure 9a | T167: Moyen | V167: =V166-V165 -> 44630.29 | W167: =W166-W165 -> 44515.25 | X167: 44373.66 | Y167: 44237.34 | Z167: 44132.6 | AA167: 44012.59 | AB167: 43895.25 | AC167: 43782.6 | AD167: 43705.15 | AE167: 43631.53 | AF167: 43559.04 | AG167: 43475.6 | AH167: 43419.65 | AI167: 43386.24 | AJ167: 43359.34 | AK167: 43307.84 | AL167: 43279.75 | AM167: 43269.49 | AN167: 43266.87 | AO167: 43259.88 | AP167: 43255.8 | AQ167: 43253.41 | AR167: 43251.09 | AS167: 43245.21 | AT167: 43233.28 | AU167: 43230.35 | AV167: 43228.01 | AW167: 43225.58 | AX167: 43223.23 | AY167: 43223.23 | AZ167: 43223.23
S168: Figure 9a | T168: Faible | V168: =$V$164-V165-V167 -> 267553.88 | W168: 267841.47 | X168: 268195.44 | Y168: 268536.25 | Z168: 268798.1 | AA168: 269098.13 | AB168: 269391.46 | AC168: 269673.09 | AD168: 269866.71 | AE168: 270050.77 | AF168: 270231.99 | AG168: 270440.59 | AH168: 270580.47 | AI168: 270663.99 | AJ168: 270731.26 | AK168: 270859.99 | AL168: 270930.23 | AM168: 270955.87 | AN168: 270962.41 | AO168: 270979.89 | AP168: 270990.11 | AQ168: 270996.08 | AR168: 271001.88 | AS168: 271016.58 | AT168: 271046.4 | AU168: 271053.71 | AV168: 271059.57 | AW168: 271065.65 | AX168: 271071.52 | AY168: 271071.52 | AZ168: 271071.52
S169: Figure 9a | T169: Niveau prédit | U169: OSUPVIEUXTOTREGECO | V169: =VLOOKUP($U169,Output!$C:$AL,V$163,FALSE) -> 88651.5 | W169: =VLOOKUP($U169,Output!$C:$AL,W$163,FALSE) -> 133310.7 | X169: =VLOOKUP($U169,Output!$C:$AL,X$163,FALSE) -> 143253.87 | Y169: =VLOOKUP($U169,Output!$C:$AL,Y$163,FALSE) -> 162210.24 | Z169: =VLOOKUP($U169,Output!$C:$AL,Z$163,FALSE) -> 171960.41 | AA169: =VLOOKUP($U169,Output!$C:$AL,AA$163,FALSE) -> 191495.38 | AB169: =VLOOKUP($U169,Output!$C:$AL,AB$163,FALSE) -> 188279.86 | AC169: =VLOOKUP($U169,Output!$C:$AL,AC$163,FALSE) -> 200542.83 | AD169: =VLOOKUP($U169,Output!$C:$AL,AD$163,FALSE) -> 206742.37 | AE169: =VLOOKUP($U169,Output!$C:$AL,AE$163,FALSE) -> 202124.89 | AF169: =VLOOKUP($U169,Output!$C:$AL,AF$163,FALSE) -> 196101.11 | AG169: =VLOOKUP($U169,Output!$C:$AL,AG$163,FALSE) -> 186864.25 | AH169: =VLOOKUP($U169,Output!$C:$AL,AH$163,FALSE) -> 177846.25 | AI169: =VLOOKUP($U169,Output!$C:$AL,AI$163,FALSE) -> 183311.29 | AJ169: =VLOOKUP($U169,Output!$C:$AL,AJ$163,FALSE) -> 180132.58 | AK169: =VLOOKUP($U169,Output!$C:$AL,AK$163,FALSE) -> 178150.98 | AL169: =VLOOKUP($U169,Output!$C:$AL,AL$163,FALSE) -> 171291.81 | AM169: =VLOOKUP($U169,Output!$C:$AL,AM$163,FALSE) -> 172167.48 | AN169: =VLOOKUP($U169,Output!$C:$AL,AN$163,FALSE) -> 173062.23 | AO169: =VLOOKUP($U169,Output!$C:$AL,AO$163,FALSE) -> 171839.17 | AP169: =VLOOKUP($U169,Output!$C:$AL,AP$163,FALSE) -> 172235.09 | AQ169: =VLOOKUP($U169,Output!$C:$AL,AQ$163,FALSE) -> 173633.59 | AR169: =VLOOKUP($U169,Output!$C:$AL,AR$163,FALSE) -> 171147.68 | AS169: =VLOOKUP($U169,Output!$C:$AL,AS$163,FALSE) -> 171767.14 | AT169: =VLOOKUP($U169,Output!$C:$AL,AT$163,FALSE) -> 177995.69 | AU169: =VLOOKUP($U169,Output!$C:$AL,AU$163,FALSE) -> 180889.37 | AV169: =VLOOKUP($U169,Output!$C:$AL,AV$163,FALSE) -> 178567.49 | AW169: =VLOOKUP($U169,Output!$C:$AL,AW$163,FALSE) -> 179803.77 | AX169: =VLOOKUP($U169,Output!$C:$AL,AX$163,FALSE) -> 176949.12 | AY169: =VLOOKUP($U169,Output!$C:$AL,AY$163,FALSE) -> 175704.33 | AZ169: =VLOOKUP($U169,Output!$C:$AL,AZ$163,FALSE) -> 173976.43
S170: Figure 9a | T170: Portrait préindustriel
B176: Figure 9b Évolution de la superficie des peuplements en régénération selon leur degré d'altération
U177: Période | V177: P0 | W177: P1 | X177: P2 | Y177: P3 | Z177: P4 | AA177: P5 | AB177: P6 | AC177: P7 | AD177: P8 | AE177: P9 | AF177: P10 | AG177: P11 | AH177: P12 | AI177: P13 | AJ177: P14 | AK177: P15 | AL177: P16 | AM177: P17 | AN177: P18 | AO177: P19 | AP177: P20 | AQ177: P21 | AR177: P22 | AS177: P23 | AT177: P24 | AU177: P25 | AV177: P26 | AW177: P27 | AX177: P28 | AY177: P29 | AZ177: P30
U178: Axe des "X" Fin de période | V178: 2018 | W178: 2023 | X178: 2028 | Y178: 2033 | Z178: 2038 | AA178: 2043 | AB178: 2048 | AC178: 2053 | AD178: 2058 | AE178: 2063 | AF178: 2068 | AG178: 2073 | AH178: 2078 | AI178: 2083 | AJ178: 2088 | AK178: 2093 | AL178: 2098 | AM178: 2103 | AN178: 2108 | AO178: 2113 | AP178: 2118 | AQ178: 2123 | AR178: 2128 | AS178: 2133 | AT178: 2138 | AU178: 2143 | AV178: 2148 | AW178: 2153 | AX178: 2158 | AY178: 2163 | AZ178: 2168
S179: =LEFT(B$176,10) -> Figure 9b | U179: Colonne | V179: 6 | W179: 7 | X179: 8 | Y179: 9 | Z179: 10 | AA179: 11 | AB179: 12 | AC179: 13 | AD179: 14 | AE179: 15 | AF179: 16 | AG179: 17 | AH179: 18 | AI179: 19 | AJ179: 20 | AK179: 21 | AL179: 22 | AM179: 23 | AN179: 24 | AO179: 25 | AP179: 26 | AQ179: 27 | AR179: 28 | AS179: 29 | AT179: 30 | AU179: 31 | AV179: 32 | AW179: 33 | AX179: 34 | AY179: 35 | AZ179: 36
S180: Figure 9b | T180: Niveau prédit | U180: OSUPJEUNEREGECO | V180: =VLOOKUP($U180,Output!$C:$AL,V$179,FALSE) -> 26863.5 | W180: =VLOOKUP($U180,Output!$C:$AL,W$179,FALSE) -> 23201.29 | X180: =VLOOKUP($U180,Output!$C:$AL,X$179,FALSE) -> 28956.87 | Y180: =VLOOKUP($U180,Output!$C:$AL,Y$179,FALSE) -> 33336.41 | Z180: =VLOOKUP($U180,Output!$C:$AL,Z$179,FALSE) -> 39250.01 | AA180: =VLOOKUP($U180,Output!$C:$AL,AA$179,FALSE) -> 38052.76 | AB180: =VLOOKUP($U180,Output!$C:$AL,AB$179,FALSE) -> 36937.8 | AC180: =VLOOKUP($U180,Output!$C:$AL,AC$179,FALSE) -> 36029.37 | AD180: =VLOOKUP($U180,Output!$C:$AL,AD$179,FALSE) -> 35630.22 | AE180: =VLOOKUP($U180,Output!$C:$AL,AE$179,FALSE) -> 34757.91 | AF180: =VLOOKUP($U180,Output!$C:$AL,AF$179,FALSE) -> 33332.41 | AG180: =VLOOKUP($U180,Output!$C:$AL,AG$179,FALSE) -> 32777.55 | AH180: =VLOOKUP($U180,Output!$C:$AL,AH$179,FALSE) -> 33799.8 | AI180: =VLOOKUP($U180,Output!$C:$AL,AI$179,FALSE) -> 33756.99 | AJ180: =VLOOKUP($U180,Output!$C:$AL,AJ$179,FALSE) -> 33556.8 | AK180: =VLOOKUP($U180,Output!$C:$AL,AK$179,FALSE) -> 31843.15 | AL180: =VLOOKUP($U180,Output!$C:$AL,AL$179,FALSE) -> 31283.22 | AM180: =VLOOKUP($U180,Output!$C:$AL,AM$179,FALSE) -> 31343.54 | AN180: =VLOOKUP($U180,Output!$C:$AL,AN$179,FALSE) -> 32226.13 | AO180: =VLOOKUP($U180,Output!$C:$AL,AO$179,FALSE) -> 33544.45 | AP180: =VLOOKUP($U180,Output!$C:$AL,AP$179,FALSE) -> 34287.84 | AQ180: =VLOOKUP($U180,Output!$C:$AL,AQ$179,FALSE) -> 33350.08 | AR180: =VLOOKUP($U180,Output!$C:$AL,AR$179,FALSE) -> 33168.79 | AS180: =VLOOKUP($U180,Output!$C:$AL,AS$179,FALSE) -> 32203.59 | AT180: =VLOOKUP($U180,Output!$C:$AL,AT$179,FALSE) -> 31594.03 | AU180: =VLOOKUP($U180,Output!$C:$AL,AU$179,FALSE) -> 28076.55 | AV180: =VLOOKUP($U180,Output!$C:$AL,AV$179,FALSE) -> 26094.43 | AW180: =VLOOKUP($U180,Output!$C:$AL,AW$179,FALSE) -> 27373.03 | AX180: =VLOOKUP($U180,Output!$C:$AL,AX$179,FALSE) -> 31950.17 | AY180: =VLOOKUP($U180,Output!$C:$AL,AY$179,FALSE) -> 36979.85 | AZ180: =VLOOKUP($U180,Output!$C:$AL,AZ$179,FALSE) -> 39247.93
S181: Figure 9b | U181: OSUPREGECO | V181: =VLOOKUP($U181,Output!$C:$AL,V$179,FALSE) -> 379129.6 | W181: =VLOOKUP($U181,Output!$C:$AL,W$179,FALSE) -> 378149.94 | X181: =VLOOKUP($U181,Output!$C:$AL,X$179,FALSE) -> 376943.04 | Y181: =VLOOKUP($U181,Output!$C:$AL,Y$179,FALSE) -> 375788.5 | Z181: =VLOOKUP($U181,Output!$C:$AL,Z$179,FALSE) -> 374893.9 | AA181: =VLOOKUP($U181,Output!$C:$AL,AA$179,FALSE) -> 373874.47 | AB181: =VLOOKUP($U181,Output!$C:$AL,AB$179,FALSE) -> 372881.45 | AC181: =VLOOKUP($U181,Output!$C:$AL,AC$179,FALSE) -> 371924.11 | AD181: =VLOOKUP($U181,Output!$C:$AL,AD$179,FALSE) -> 371268.7 | AE181: =VLOOKUP($U181,Output!$C:$AL,AE$179,FALSE) -> 370640.03 | AF181: =VLOOKUP($U181,Output!$C:$AL,AF$179,FALSE) -> 370029.28 | AG181: =VLOOKUP($U181,Output!$C:$AL,AG$179,FALSE) -> 369325.38 | AH181: =VLOOKUP($U181,Output!$C:$AL,AH$179,FALSE) -> 368848.01 | AI181: =VLOOKUP($U181,Output!$C:$AL,AI$179,FALSE) -> 368565.26 | AJ181: =VLOOKUP($U181,Output!$C:$AL,AJ$179,FALSE) -> 368335.87 | AK181: =VLOOKUP($U181,Output!$C:$AL,AK$179,FALSE) -> 367899.29 | AL181: =VLOOKUP($U181,Output!$C:$AL,AL$179,FALSE) -> 367661.57 | AM181: =VLOOKUP($U181,Output!$C:$AL,AM$179,FALSE) -> 367574.09 | AN181: =VLOOKUP($U181,Output!$C:$AL,AN$179,FALSE) -> 367552.06 | AO181: =VLOOKUP($U181,Output!$C:$AL,AO$179,FALSE) -> 367492.79 | AP181: =VLOOKUP($U181,Output!$C:$AL,AP$179,FALSE) -> 367459.48 | AQ181: =VLOOKUP($U181,Output!$C:$AL,AQ$179,FALSE) -> 367439.48 | AR181: =VLOOKUP($U181,Output!$C:$AL,AR$179,FALSE) -> 367419.48 | AS181: =VLOOKUP($U181,Output!$C:$AL,AS$179,FALSE) -> 367369.79 | AT181: =VLOOKUP($U181,Output!$C:$AL,AT$179,FALSE) -> 367268.55 | AU181: =VLOOKUP($U181,Output!$C:$AL,AU$179,FALSE) -> 367243.43 | AV181: =VLOOKUP($U181,Output!$C:$AL,AV$179,FALSE) -> 367223.43 | AW181: =VLOOKUP($U181,Output!$C:$AL,AW$179,FALSE) -> 367203.43 | AX181: =VLOOKUP($U181,Output!$C:$AL,AX$179,FALSE) -> 367183.43 | AY181: =VLOOKUP($U181,Output!$C:$AL,AY$179,FALSE) -> 367183.43 | AZ181: =VLOOKUP($U181,Output!$C:$AL,AZ$179,FALSE) -> 367183.43
S182: Figure 9b | V182: =IFERROR(V180/V181,"0000") -> 0.07085571794 | W182: 0.0613547367 | X182: 0.07682028033 | Y182: 0.08871056459 | Z182: 0.1046963154 | AA182: 0.101779509 | AB182: 0.09906043865 | AC182: 0.09687290776 | AD182: 0.09596882258 | AE182: 0.09377807896 | AF182: 0.09008046606 | AG182: 0.08874979023 | AH182: 0.09163611863 | AI182: 0.09159026545 | AJ182: 0.09110380697 | AK182: 0.08655398601 | AL182: 0.08508699998 | AM182: 0.08527135305 | AN182: 0.08767772924 | AO182: 0.09127920578 | AP182: 0.09331053318 | AQ182: 0.09076346396 | AR182: 0.09027499032 | AS182: 0.08765987535 | AT182: 0.08602432743 | AU182: 0.07645215055 | AV182: 0.07105872847 | AW182: 0.07454459235 | AX182: 0.08701419342 | AY182: 0.1007121972 | AZ182: 0.1068891644
S183: Figure 9b
S184: Figure 9b | U184: OSUPJEUNEALERTEREGECO | V184: =VLOOKUP($U184,Output!$C:$AL,V$179,FALSE) -> 113750.63 | W184: =VLOOKUP($U184,Output!$C:$AL,W$179,FALSE) -> 113456.73 | X184: =VLOOKUP($U184,Output!$C:$AL,X$179,FALSE) -> 113094.66 | Y184: =VLOOKUP($U184,Output!$C:$AL,Y$179,FALSE) -> 112748.29 | Z184: =VLOOKUP($U184,Output!$C:$AL,Z$179,FALSE) -> 112479.91 | AA184: =VLOOKUP($U184,Output!$C:$AL,AA$179,FALSE) -> 112174.08 | AB184: =VLOOKUP($U184,Output!$C:$AL,AB$179,FALSE) -> 111876.17 | AC184: =VLOOKUP($U184,Output!$C:$AL,AC$179,FALSE) -> 111588.97 | AD184: =VLOOKUP($U184,Output!$C:$AL,AD$179,FALSE) -> 111392.35 | AE184: =VLOOKUP($U184,Output!$C:$AL,AE$179,FALSE) -> 111203.75 | AF184: =VLOOKUP($U184,Output!$C:$AL,AF$179,FALSE) -> 111020.52 | AG184: =VLOOKUP($U184,Output!$C:$AL,AG$179,FALSE) -> 110809.35 | AH184: =VLOOKUP($U184,Output!$C:$AL,AH$179,FALSE) -> 110666.14 | AI184: =VLOOKUP($U184,Output!$C:$AL,AI$179,FALSE) -> 110581.32 | AJ184: =VLOOKUP($U184,Output!$C:$AL,AJ$179,FALSE) -> 110512.5 | AK184: =VLOOKUP($U184,Output!$C:$AL,AK$179,FALSE) -> 110381.53 | AL184: =VLOOKUP($U184,Output!$C:$AL,AL$179,FALSE) -> 110310.21 | AM184: =VLOOKUP($U184,Output!$C:$AL,AM$179,FALSE) -> 110283.97 | AN184: =VLOOKUP($U184,Output!$C:$AL,AN$179,FALSE) -> 110277.36 | AO184: =VLOOKUP($U184,Output!$C:$AL,AO$179,FALSE) -> 110259.58 | AP184: =VLOOKUP($U184,Output!$C:$AL,AP$179,FALSE) -> 110249.58 | AQ184: =VLOOKUP($U184,Output!$C:$AL,AQ$179,FALSE) -> 110243.58 | AR184: =VLOOKUP($U184,Output!$C:$AL,AR$179,FALSE) -> 110237.58 | AS184: =VLOOKUP($U184,Output!$C:$AL,AS$179,FALSE) -> 110222.68 | AT184: =VLOOKUP($U184,Output!$C:$AL,AT$179,FALSE) -> 110192.3 | AU184: =VLOOKUP($U184,Output!$C:$AL,AU$179,FALSE) -> 110184.77 | AV184: =VLOOKUP($U184,Output!$C:$AL,AV$179,FALSE) -> 110178.77 | AW184: =VLOOKUP($U184,Output!$C:$AL,AW$179,FALSE) -> 110172.76 | AX184: =VLOOKUP($U184,Output!$C:$AL,AX$179,FALSE) -> 110166.76 | AY184: =VLOOKUP($U184,Output!$C:$AL,AY$179,FALSE) -> 110166.76 | AZ184: =VLOOKUP($U184,Output!$C:$AL,AZ$179,FALSE) -> 110166.76
S185: Figure 9b | T185: Faible | U185: OSUPJEUNEACCEPTREGECO | V185: =VLOOKUP($U185,Output!$C:$AL,V$179,FALSE) -> 75837.67 | W185: =VLOOKUP($U185,Output!$C:$AL,W$179,FALSE) -> 75641.74 | X185: =VLOOKUP($U185,Output!$C:$AL,X$179,FALSE) -> 75400.36 | Y185: =VLOOKUP($U185,Output!$C:$AL,Y$179,FALSE) -> 75169.44 | Z185: =VLOOKUP($U185,Output!$C:$AL,Z$179,FALSE) -> 74990.52 | AA185: =VLOOKUP($U185,Output!$C:$AL,AA$179,FALSE) -> 74786.63 | AB185: =VLOOKUP($U185,Output!$C:$AL,AB$179,FALSE) -> 74588.03 | AC185: =VLOOKUP($U185,Output!$C:$AL,AC$179,FALSE) -> 74396.56 | AD185: =VLOOKUP($U185,Output!$C:$AL,AD$179,FALSE) -> 74265.48 | AE185: =VLOOKUP($U185,Output!$C:$AL,AE$179,FALSE) -> 74139.75 | AF185: =VLOOKUP($U185,Output!$C:$AL,AF$179,FALSE) -> 74017.59 | AG185: =VLOOKUP($U185,Output!$C:$AL,AG$179,FALSE) -> 73876.82 | AH185: =VLOOKUP($U185,Output!$C:$AL,AH$179,FALSE) -> 73781.34 | AI185: =VLOOKUP($U185,Output!$C:$AL,AI$179,FALSE) -> 73724.79 | AJ185: =VLOOKUP($U185,Output!$C:$AL,AJ$179,FALSE) -> 73678.91 | AK185: =VLOOKUP($U185,Output!$C:$AL,AK$179,FALSE) -> 73591.6 | AL185: =VLOOKUP($U185,Output!$C:$AL,AL$179,FALSE) -> 73544.05 | AM185: =VLOOKUP($U185,Output!$C:$AL,AM$179,FALSE) -> 73526.56 | AN185: =VLOOKUP($U185,Output!$C:$AL,AN$179,FALSE) -> 73522.15 | AO185: =VLOOKUP($U185,Output!$C:$AL,AO$179,FALSE) -> 73510.3 | AP185: =VLOOKUP($U185,Output!$C:$AL,AP$179,FALSE) -> 73503.63 | AQ185: =VLOOKUP($U185,Output!$C:$AL,AQ$179,FALSE) -> 73499.63 | AR185: =VLOOKUP($U185,Output!$C:$AL,AR$179,FALSE) -> 73495.63 | AS185: =VLOOKUP($U185,Output!$C:$AL,AS$179,FALSE) -> 73485.7 | AT185: =VLOOKUP($U185,Output!$C:$AL,AT$179,FALSE) -> 73465.45 | AU185: =VLOOKUP($U185,Output!$C:$AL,AU$179,FALSE) -> 73460.42 | AV185: =VLOOKUP($U185,Output!$C:$AL,AV$179,FALSE) -> 73456.42 | AW185: =VLOOKUP($U185,Output!$C:$AL,AW$179,FALSE) -> 73452.41 | AX185: =VLOOKUP($U185,Output!$C:$AL,AX$179,FALSE) -> 73448.41 | AY185: =VLOOKUP($U185,Output!$C:$AL,AY$179,FALSE) -> 73448.41 | AZ185: =VLOOKUP($U185,Output!$C:$AL,AZ$179,FALSE) -> 73448.41
S186: Figure 9b | T186: Moyen | V186: =V184-V185 -> 37912.96 | W186: 37814.99 | X186: 37694.3 | Y186: 37578.85 | Z186: 37489.39 | AA186: 37387.45 | AB186: 37288.14 | AC186: 37192.41 | AD186: 37126.87 | AE186: 37064 | AF186: 37002.93 | AG186: 36932.53 | AH186: 36884.8 | AI186: 36856.53 | AJ186: 36833.59 | AK186: 36789.93 | AL186: 36766.16 | AM186: 36757.41 | AN186: 36755.21 | AO186: 36749.28 | AP186: 36745.95 | AQ186: 36743.95 | AR186: 36741.95 | AS186: 36736.98 | AT186: 36726.85 | AU186: 36724.35 | AV186: 36722.35 | AW186: 36720.35 | AX186: 36718.35 | AY186: 36718.35 | AZ186: 36718.35
S187: Figure 9b | T187: Élevé | V187: =$V$181-V184 -> 265378.97 | W187: 265672.87 | X187: 266034.94 | Y187: 266381.31 | Z187: 266649.69 | AA187: 266955.52 | AB187: 267253.43 | AC187: 267540.63 | AD187: 267737.25 | AE187: 267925.85 | AF187: 268109.08 | AG187: 268320.25 | AH187: 268463.46 | AI187: 268548.28 | AJ187: 268617.1 | AK187: 268748.07 | AL187: 268819.39 | AM187: 268845.63 | AN187: 268852.24 | AO187: 268870.02 | AP187: 268880.02 | AQ187: 268886.02 | AR187: 268892.02 | AS187: 268906.92 | AT187: 268937.3 | AU187: 268944.83 | AV187: 268950.83 | AW187: 268956.84 | AX187: 268962.84 | AY187: 268962.84 | AZ187: 268962.84
U199: Période | V199: P0 | W199: P1 | X199: P2 | Y199: P3 | Z199: P4 | AA199: P5 | AB199: P6 | AC199: P7 | AD199: P8 | AE199: P9 | AF199: P10 | AG199: P11 | AH199: P12 | AI199: P13 | AJ199: P14 | AK199: P15 | AL199: P16 | AM199: P17 | AN199: P18 | AO199: P19 | AP199: P20 | AQ199: P21 | AR199: P22 | AS199: P23 | AT199: P24 | AU199: P25 | AV199: P26 | AW199: P27 | AX199: P28 | AY199: P29 | AZ199: P30
U200: Axe des "X" Fin de période | V200: 2018 | W200: 2023 | X200: 2028 | Y200: 2033 | Z200: 2038 | AA200: 2043 | AB200: 2048 | AC200: 2053 | AD200: 2058 | AE200: 2063 | AF200: 2068 | AG200: 2073 | AH200: 2078 | AI200: 2083 | AJ200: 2088 | AK200: 2093 | AL200: 2098 | AM200: 2103 | AN200: 2108 | AO200: 2113 | AP200: 2118 | AQ200: 2123 | AR200: 2128 | AS200: 2133 | AT200: 2138 | AU200: 2143 | AV200: 2148 | AW200: 2153 | AX200: 2158 | AY200: 2163 | AZ200: 2168
U201: Colonne | V201: 6 | W201: 7 | X201: 8 | Y201: 9 | Z201: 10 | AA201: 11 | AB201: 12 | AC201: 13 | AD201: 14 | AE201: 15 | AF201: 16 | AG201: 17 | AH201: 18 | AI201: 19 | AJ201: 20 | AK201: 21 | AL201: 22 | AM201: 23 | AN201: 24 | AO201: 25 | AP201: 26 | AQ201: 27 | AR201: 28 | AS201: 29 | AT201: 30 | AU201: 31 | AV201: 32 | AW201: 33 | AX201: 34 | AY201: 35 | AZ201: 36
B202: Figure 10a Évolution de la superficie selon le type de couvert | S202: =LEFT(B$202,10) -> Figure 10a | U202: OSUPINC
S203: Figure 10a | U203: Résineux | V203: =SUM(V214,V220,V221,V222,V224,V225) -> 90014.6 | W203: =SUM(W214,W220,W221,W222,W224,W225) -> 93047.6 | X203: 94807.59 | Y203: 93508.17 | Z203: 93006.6 | AA203: 91230.46 | AB203: 89549.44 | AC203: 89062.72 | AD203: 88316.12 | AE203: 87915.17 | AF203: 88321.05 | AG203: 87859.64 | AH203: 87521.33 | AI203: 86188.5 | AJ203: 84984.81 | AK203: 82994.62 | AL203: 81429.26 | AM203: 80777.68 | AN203: 79658.16 | AO203: 80180.82 | AP203: 82321.95 | AQ203: 82774.91 | AR203: 83228.91 | AS203: 82129.73 | AT203: 81597.74 | AU203: 80601.09 | AV203: 80647.58 | AW203: 81004.79 | AX203: 81285.19 | AY203: 81329.08 | AZ203: 80987.44
S204: Figure 10a | U204: Mixtes résineux | V204: =V223 -> 57676.3 | W204: =W223 -> 54867.07 | X204: 47653.27 | Y204: 45140.14 | Z204: 40923.2 | AA204: 38617.85 | AB204: 36663.52 | AC204: 32035.83 | AD204: 30509.92 | AE204: 29393.94 | AF204: 26702.67 | AG204: 24086.85 | AH204: 22832.15 | AI204: 20870.12 | AJ204: 19896.51 | AK204: 20497.05 | AL204: 20333.61 | AM204: 20815.89 | AN204: 22052.06 | AO204: 21628.01 | AP204: 19297.12 | AQ204: 19064.71 | AR204: 18832.3 | AS204: 20161.48 | AT204: 20923.47 | AU204: 21895.2 | AV204: 22030.8 | AW204: 21891.41 | AX204: 21749.23 | AY204: 20985.84 | AZ204: 21410.55
S205: Figure 10a | U205: Mixtes feuillus intolérants | V205: =V213+V219 -> 34729.8 | W205: =W213+W219 -> 34532.61 | X205: =X213+X219 -> 38955.89 | Y205: =Y213+Y219 -> 42192.09 | Z205: 45670.73 | AA205: 48432.97 | AB205: 51435.47 | AC205: 55816.12 | AD205: 58566.8 | AE205: 61898.92 | AF205: 65007.97 | AG205: 67710.36 | AH205: 69447.84 | AI205: 74030.15 | AJ205: 77482.38 | AK205: 80766.96 | AL205: 84112.49 | AM205: 85958.32 | AN205: 87275.42 | AO205: 88238.66 | AP205: 88395.1 | AQ205: 88154.55 | AR205: 87912.96 | AS205: 88355.41 | AT205: 89501.36 | AU205: 89304.39 | AV205: 86274.13 | AW205: 84886.32 | AX205: 84623.09 | AY205: 85342.59 | AZ205: 85962.53
S206: Figure 10a | U206: Mixtes feuillus tolérants | V206: =V217 -> 28011 | W206: =W217 -> 27539.81 | X206: 26957.84 | Y206: 26562.93 | Z206: 26477.59 | AA206: 26203.28 | AB206: 25947.85 | AC206: 25778.31 | AD206: 24800.56 | AE206: 22324.25 | AF206: 20839.07 | AG206: 21334.01 | AH206: 20966.65 | AI206: 19488.36 | AJ206: 18005.94 | AK206: 15762.04 | AL206: 15284.7 | AM206: 14282.65 | AN206: 13481.9 | AO206: 13850.34 | AP206: 13850.34 | AQ206: 13850.34 | AR206: 13850.34 | AS206: 13128.21 | AT206: 11651.01 | AU206: 13464.47 | AV206: 17255.41 | AW206: 19874.91 | AX206: 20346.95 | AY206: 20346.95 | AZ206: 19643.94
S207: Figure 10a | U207: Feuillus intolérants | V207: =V212+V215+V218 -> 27953.1 | W207: =W212+W215+W218 -> 27896.63 | X207: =X212+X215+X218 -> 28352.48 | Y207: 28203.28 | Z207: 28731.13 | AA207: 29441.44 | AB207: 29537.78 | AC207: 29578.77 | AD207: 30899.18 | AE207: 30931.65 | AF207: 30982.42 | AG207: 30903.84 | AH207: 30701.29 | AI207: 30703.48 | AJ207: 30681.57 | AK207: 30685.94 | AL207: 30936.36 | AM207: 30936.36 | AN207: 30936.36 | AO207: 30936.36 | AP207: 32976.54 | AQ207: 34595.21 | AR207: 36253.06 | AS207: 36925.89 | AT207: 37991.14 | AU207: 38721.13 | AV207: 39624.12 | AW207: 39624.12 | AX207: 39624.12 | AY207: 39624.12 | AZ207: 39624.12
S208: Figure 10a | U208: Feuillus tolérants | V208: =V216 -> 47797.6 | W208: =W216 -> 47319.02 | X208: 47268.77 | Y208: 47234.68 | Z208: 47137.44 | AA208: 47001.26 | AB208: 46800.18 | AC208: 46705.15 | AD208: 45228.91 | AE208: 45228.91 | AF208: 45228.91 | AG208: 44483.48 | AH208: 44431.55 | AI208: 44337.46 | AJ208: 44337.46 | AK208: 44245.46 | AL208: 42617.94 | AM208: 41855.98 | AN208: 41200.95 | AO208: 39711.41 | AP208: 37671.23 | AQ208: 36052.56 | AR208: 34394.71 | AS208: 33721.88 | AT208: 32656.63 | AU208: 30309.94 | AV208: 28444.18 | AW208: 26974.69 | AX208: 26607.65 | AY208: 26607.65 | AZ208: 26607.65
S209: Figure 10a | U209: Total | V209: =SUM(V203:V208) -> 286182.4 | W209: =SUM(W203:W208) -> 285202.74 | X209: =SUM(X203:X208) -> 283995.84 | Y209: 282841.29 | Z209: 281946.69 | AA209: 280927.26 | AB209: 279934.24 | AC209: 278976.9 | AD209: 278321.49 | AE209: 277692.84 | AF209: 277082.09 | AG209: 276378.18 | AH209: 275900.81 | AI209: 275618.07 | AJ209: 275388.67 | AK209: 274952.07 | AL209: 274714.36 | AM209: 274626.88 | AN209: 274604.85 | AO209: 274545.6 | AP209: 274512.28 | AQ209: 274492.28 | AR209: 274472.28 | AS209: 274422.6 | AT209: 274321.35 | AU209: 274296.22 | AV209: 274276.22 | AW209: 274256.24 | AX209: 274236.23 | AY209: 274236.23 | AZ209: 274236.23
S210: Figure 10a
S211: Figure 10a
S212: Figure 10a | T212: Bétulaies blanches | U212: (FCTYF_BOP) | V212: =VLOOKUP($U$202&$U212,GTYF!$C:$AP,V$201,FALSE) -> 18590.7 | W212: =VLOOKUP($U$202&$U212,GTYF!$C:$AP,W$201,FALSE) -> 18552.99 | X212: =VLOOKUP($U$202&$U212,GTYF!$C:$AP,X$201,FALSE) -> 18552.99 | Y212: =VLOOKUP($U$202&$U212,GTYF!$C:$AP,Y$201,FALSE) -> 18475.49 | Z212: =VLOOKUP($U$202&$U212,GTYF!$C:$AP,Z$201,FALSE) -> 18475.49 | AA212: =VLOOKUP($U$202&$U212,GTYF!$C:$AP,AA$201,FALSE) -> 18446.21 | AB212: =VLOOKUP($U$202&$U212,GTYF!$C:$AP,AB$201,FALSE) -> 18392.9 | AC212: =VLOOKUP($U$202&$U212,GTYF!$C:$AP,AC$201,FALSE) -> 18281.02 | AD212: =VLOOKUP($U$202&$U212,GTYF!$C:$AP,AD$201,FALSE) -> 19646 | AE212: =VLOOKUP($U$202&$U212,GTYF!$C:$AP,AE$201,FALSE) -> 19523.32 | AF212: =VLOOKUP($U$202&$U212,GTYF!$C:$AP,AF$201,FALSE) -> 19426.91 | AG212: =VLOOKUP($U$202&$U212,GTYF!$C:$AP,AG$201,FALSE) -> 19367.82 | AH212: =VLOOKUP($U$202&$U212,GTYF!$C:$AP,AH$201,FALSE) -> 19149.59 | AI212: =VLOOKUP($U$202&$U212,GTYF!$C:$AP,AI$201,FALSE) -> 19149.02 | AJ212: =VLOOKUP($U$202&$U212,GTYF!$C:$AP,AJ$201,FALSE) -> 19129.8 | AK212: =VLOOKUP($U$202&$U212,GTYF!$C:$AP,AK$201,FALSE) -> 19129.8 | AL212: =VLOOKUP($U$202&$U212,GTYF!$C:$AP,AL$201,FALSE) -> 19380.22 | AM212: =VLOOKUP($U$202&$U212,GTYF!$C:$AP,AM$201,FALSE) -> 19380.22 | AN212: =VLOOKUP($U$202&$U212,GTYF!$C:$AP,AN$201,FALSE) -> 19380.22 | AO212: =VLOOKUP($U$202&$U212,GTYF!$C:$AP,AO$201,FALSE) -> 19380.22 | AP212: =VLOOKUP($U$202&$U212,GTYF!$C:$AP,AP$201,FALSE) -> 21420.4 | AQ212: =VLOOKUP($U$202&$U212,GTYF!$C:$AP,AQ$201,FALSE) -> 23039.07 | AR212: =VLOOKUP($U$202&$U212,GTYF!$C:$AP,AR$201,FALSE) -> 24696.92 | AS212: =VLOOKUP($U$202&$U212,GTYF!$C:$AP,AS$201,FALSE) -> 25369.75 | AT212: =VLOOKUP($U$202&$U212,GTYF!$C:$AP,AT$201,FALSE) -> 26435 | AU212: =VLOOKUP($U$202&$U212,GTYF!$C:$AP,AU$201,FALSE) -> 27164.99 | AV212: =VLOOKUP($U$202&$U212,GTYF!$C:$AP,AV$201,FALSE) -> 28067.98 | AW212: =VLOOKUP($U$202&$U212,GTYF!$C:$AP,AW$201,FALSE) -> 28067.98 | AX212: =VLOOKUP($U$202&$U212,GTYF!$C:$AP,AX$201,FALSE) -> 28067.98 | AY212: =VLOOKUP($U$202&$U212,GTYF!$C:$AP,AY$201,FALSE) -> 28067.98 | AZ212: =VLOOKUP($U$202&$U212,GTYF!$C:$AP,AZ$201,FALSE) -> 28067.98
S213: Figure 10a | T213: Bétulaies blanches à résineux | U213: (FCTYF_BOPR) | V213: =VLOOKUP($U$202&$U213,GTYF!$C:$AP,V$201,FALSE) -> 32111 | W213: =VLOOKUP($U$202&$U213,GTYF!$C:$AP,W$201,FALSE) -> 32310.61 | X213: =VLOOKUP($U$202&$U213,GTYF!$C:$AP,X$201,FALSE) -> 36817.29 | Y213: =VLOOKUP($U$202&$U213,GTYF!$C:$AP,Y$201,FALSE) -> 40740.36 | Z213: =VLOOKUP($U$202&$U213,GTYF!$C:$AP,Z$201,FALSE) -> 44581.61 | AA213: =VLOOKUP($U$202&$U213,GTYF!$C:$AP,AA$201,FALSE) -> 47657.04 | AB213: =VLOOKUP($U$202&$U213,GTYF!$C:$AP,AB$201,FALSE) -> 50831.64 | AC213: =VLOOKUP($U$202&$U213,GTYF!$C:$AP,AC$201,FALSE) -> 55379.38 | AD213: =VLOOKUP($U$202&$U213,GTYF!$C:$AP,AD$201,FALSE) -> 58298.58 | AE213: =VLOOKUP($U$202&$U213,GTYF!$C:$AP,AE$201,FALSE) -> 61832.44 | AF213: =VLOOKUP($U$202&$U213,GTYF!$C:$AP,AF$201,FALSE) -> 64950.69 | AG213: =VLOOKUP($U$202&$U213,GTYF!$C:$AP,AG$201,FALSE) -> 67672.78 | AH213: =VLOOKUP($U$202&$U213,GTYF!$C:$AP,AH$201,FALSE) -> 69441.04 | AI213: =VLOOKUP($U$202&$U213,GTYF!$C:$AP,AI$201,FALSE) -> 74023.35 | AJ213: =VLOOKUP($U$202&$U213,GTYF!$C:$AP,AJ$201,FALSE) -> 77475.58 | AK213: =VLOOKUP($U$202&$U213,GTYF!$C:$AP,AK$201,FALSE) -> 80766.96 | AL213: =VLOOKUP($U$202&$U213,GTYF!$C:$AP,AL$201,FALSE) -> 84112.49 | AM213: =VLOOKUP($U$202&$U213,GTYF!$C:$AP,AM$201,FALSE) -> 85958.32 | AN213: =VLOOKUP($U$202&$U213,GTYF!$C:$AP,AN$201,FALSE) -> 87275.42 | AO213: =VLOOKUP($U$202&$U213,GTYF!$C:$AP,AO$201,FALSE) -> 88238.66 | AP213: =VLOOKUP($U$202&$U213,GTYF!$C:$AP,AP$201,FALSE) -> 88395.1 | AQ213: =VLOOKUP($U$202&$U213,GTYF!$C:$AP,AQ$201,FALSE) -> 88154.55 | AR213: =VLOOKUP($U$202&$U213,GTYF!$C:$AP,AR$201,FALSE) -> 87912.96 | AS213: =VLOOKUP($U$202&$U213,GTYF!$C:$AP,AS$201,FALSE) -> 88355.41 | AT213: =VLOOKUP($U$202&$U213,GTYF!$C:$AP,AT$201,FALSE) -> 89501.36 | AU213: =VLOOKUP($U$202&$U213,GTYF!$C:$AP,AU$201,FALSE) -> 89304.39 | AV213: =VLOOKUP($U$202&$U213,GTYF!$C:$AP,AV$201,FALSE) -> 86274.13 | AW213: =VLOOKUP($U$202&$U213,GTYF!$C:$AP,AW$201,FALSE) -> 84886.32 | AX213: =VLOOKUP($U$202&$U213,GTYF!$C:$AP,AX$201,FALSE) -> 84623.09 | AY213: =VLOOKUP($U$202&$U213,GTYF!$C:$AP,AY$201,FALSE) -> 85342.59 | AZ213: =VLOOKUP($U$202&$U213,GTYF!$C:$AP,AZ$201,FALSE) -> 85962.53
S214: Figure 10a | T214: Pessières | U214: (FCTYF_EPX) | V214: =VLOOKUP($U$202&$U214,GTYF!$C:$AP,V$201,FALSE) -> 56987.5 | W214: =VLOOKUP($U$202&$U214,GTYF!$C:$AP,W$201,FALSE) -> 60183.03 | X214: =VLOOKUP($U$202&$U214,GTYF!$C:$AP,X$201,FALSE) -> 62824.46 | Y214: =VLOOKUP($U$202&$U214,GTYF!$C:$AP,Y$201,FALSE) -> 62928.01 | Z214: =VLOOKUP($U$202&$U214,GTYF!$C:$AP,Z$201,FALSE) -> 63614.58 | AA214: =VLOOKUP($U$202&$U214,GTYF!$C:$AP,AA$201,FALSE) -> 63969.75 | AB214: =VLOOKUP($U$202&$U214,GTYF!$C:$AP,AB$201,FALSE) -> 63264.19 | AC214: =VLOOKUP($U$202&$U214,GTYF!$C:$AP,AC$201,FALSE) -> 64002.85 | AD214: =VLOOKUP($U$202&$U214,GTYF!$C:$AP,AD$201,FALSE) -> 64167.21 | AE214: =VLOOKUP($U$202&$U214,GTYF!$C:$AP,AE$201,FALSE) -> 64321.25 | AF214: =VLOOKUP($U$202&$U214,GTYF!$C:$AP,AF$201,FALSE) -> 64982.34 | AG214: =VLOOKUP($U$202&$U214,GTYF!$C:$AP,AG$201,FALSE) -> 64673.26 | AH214: =VLOOKUP($U$202&$U214,GTYF!$C:$AP,AH$201,FALSE) -> 64679.33 | AI214: =VLOOKUP($U$202&$U214,GTYF!$C:$AP,AI$201,FALSE) -> 63773.9 | AJ214: =VLOOKUP($U$202&$U214,GTYF!$C:$AP,AJ$201,FALSE) -> 62771.67 | AK214: =VLOOKUP($U$202&$U214,GTYF!$C:$AP,AK$201,FALSE) -> 61599.11 | AL214: =VLOOKUP($U$202&$U214,GTYF!$C:$AP,AL$201,FALSE) -> 60305.85 | AM214: =VLOOKUP($U$202&$U214,GTYF!$C:$AP,AM$201,FALSE) -> 59698.99 | AN214: =VLOOKUP($U$202&$U214,GTYF!$C:$AP,AN$201,FALSE) -> 58785.44 | AO214: =VLOOKUP($U$202&$U214,GTYF!$C:$AP,AO$201,FALSE) -> 59824.75 | AP214: =VLOOKUP($U$202&$U214,GTYF!$C:$AP,AP$201,FALSE) -> 62609.69 | AQ214: =VLOOKUP($U$202&$U214,GTYF!$C:$AP,AQ$201,FALSE) -> 63827.53 | AR214: =VLOOKUP($U$202&$U214,GTYF!$C:$AP,AR$201,FALSE) -> 64345.28 | AS214: =VLOOKUP($U$202&$U214,GTYF!$C:$AP,AS$201,FALSE) -> 64576.13 | AT214: =VLOOKUP($U$202&$U214,GTYF!$C:$AP,AT$201,FALSE) -> 64462.92 | AU214: =VLOOKUP($U$202&$U214,GTYF!$C:$AP,AU$201,FALSE) -> 63486.27 | AV214: =VLOOKUP($U$202&$U214,GTYF!$C:$AP,AV$201,FALSE) -> 63552.76 | AW214: =VLOOKUP($U$202&$U214,GTYF!$C:$AP,AW$201,FALSE) -> 63929.97 | AX214: =VLOOKUP($U$202&$U214,GTYF!$C:$AP,AX$201,FALSE) -> 64230.37 | AY214: =VLOOKUP($U$202&$U214,GTYF!$C:$AP,AY$201,FALSE) -> 64274.26 | AZ214: =VLOOKUP($U$202&$U214,GTYF!$C:$AP,AZ$201,FALSE) -> 63932.62
S215: Figure 10a | T215: Érablières rouges | U215: (FCTYF_ERO) | V215: =VLOOKUP($U$202&$U215,GTYF!$C:$AP,V$201,FALSE) -> 4412.1 | W215: =VLOOKUP($U$202&$U215,GTYF!$C:$AP,W$201,FALSE) -> 4412.1 | X215: =VLOOKUP($U$202&$U215,GTYF!$C:$AP,X$201,FALSE) -> 4395.93 | Y215: =VLOOKUP($U$202&$U215,GTYF!$C:$AP,Y$201,FALSE) -> 4395.93 | Z215: =VLOOKUP($U$202&$U215,GTYF!$C:$AP,Z$201,FALSE) -> 4395.93 | AA215: =VLOOKUP($U$202&$U215,GTYF!$C:$AP,AA$201,FALSE) -> 4395.93 | AB215: =VLOOKUP($U$202&$U215,GTYF!$C:$AP,AB$201,FALSE) -> 4395.93 | AC215: =VLOOKUP($U$202&$U215,GTYF!$C:$AP,AC$201,FALSE) -> 4384.13 | AD215: =VLOOKUP($U$202&$U215,GTYF!$C:$AP,AD$201,FALSE) -> 4372.33 | AE215: =VLOOKUP($U$202&$U215,GTYF!$C:$AP,AE$201,FALSE) -> 4319.1 | AF215: =VLOOKUP($U$202&$U215,GTYF!$C:$AP,AF$201,FALSE) -> 4267.28 | AG215: =VLOOKUP($U$202&$U215,GTYF!$C:$AP,AG$201,FALSE) -> 4233.09 | AH215: =VLOOKUP($U$202&$U215,GTYF!$C:$AP,AH$201,FALSE) -> 4233.09 | AI215: =VLOOKUP($U$202&$U215,GTYF!$C:$AP,AI$201,FALSE) -> 4215.75 | AJ215: =VLOOKUP($U$202&$U215,GTYF!$C:$AP,AJ$201,FALSE) -> 4210.04 | AK215: =VLOOKUP($U$202&$U215,GTYF!$C:$AP,AK$201,FALSE) -> 4207.61 | AL215: =VLOOKUP($U$202&$U215,GTYF!$C:$AP,AL$201,FALSE) -> 4207.61 | AM215: =VLOOKUP($U$202&$U215,GTYF!$C:$AP,AM$201,FALSE) -> 4207.61 | AN215: =VLOOKUP($U$202&$U215,GTYF!$C:$AP,AN$201,FALSE) -> 4207.61 | AO215: =VLOOKUP($U$202&$U215,GTYF!$C:$AP,AO$201,FALSE) -> 4207.61 | AP215: =VLOOKUP($U$202&$U215,GTYF!$C:$AP,AP$201,FALSE) -> 4207.61 | AQ215: =VLOOKUP($U$202&$U215,GTYF!$C:$AP,AQ$201,FALSE) -> 4207.61 | AR215: =VLOOKUP($U$202&$U215,GTYF!$C:$AP,AR$201,FALSE) -> 4207.61 | AS215: =VLOOKUP($U$202&$U215,GTYF!$C:$AP,AS$201,FALSE) -> 4207.61 | AT215: =VLOOKUP($U$202&$U215,GTYF!$C:$AP,AT$201,FALSE) -> 4207.61 | AU215: =VLOOKUP($U$202&$U215,GTYF!$C:$AP,AU$201,FALSE) -> 4207.61 | AV215: =VLOOKUP($U$202&$U215,GTYF!$C:$AP,AV$201,FALSE) -> 4207.61 | AW215: =VLOOKUP($U$202&$U215,GTYF!$C:$AP,AW$201,FALSE) -> 4207.61 | AX215: =VLOOKUP($U$202&$U215,GTYF!$C:$AP,AX$201,FALSE) -> 4207.61 | AY215: =VLOOKUP($U$202&$U215,GTYF!$C:$AP,AY$201,FALSE) -> 4207.61 | AZ215: =VLOOKUP($U$202&$U215,GTYF!$C:$AP,AZ$201,FALSE) -> 4207.61
S216: Figure 10a | T216: Feuillus tolérants | U216: (FCTYF_FT) | V216: =VLOOKUP($U$202&$U216,GTYF!$C:$AP,V$201,FALSE) -> 47797.6 | W216: =VLOOKUP($U$202&$U216,GTYF!$C:$AP,W$201,FALSE) -> 47319.02 | X216: =VLOOKUP($U$202&$U216,GTYF!$C:$AP,X$201,FALSE) -> 47268.77 | Y216: =VLOOKUP($U$202&$U216,GTYF!$C:$AP,Y$201,FALSE) -> 47234.68 | Z216: =VLOOKUP($U$202&$U216,GTYF!$C:$AP,Z$201,FALSE) -> 47137.44 | AA216: =VLOOKUP($U$202&$U216,GTYF!$C:$AP,AA$201,FALSE) -> 47001.26 | AB216: =VLOOKUP($U$202&$U216,GTYF!$C:$AP,AB$201,FALSE) -> 46800.18 | AC216: =VLOOKUP($U$202&$U216,GTYF!$C:$AP,AC$201,FALSE) -> 46705.15 | AD216: =VLOOKUP($U$202&$U216,GTYF!$C:$AP,AD$201,FALSE) -> 45228.91 | AE216: =VLOOKUP($U$202&$U216,GTYF!$C:$AP,AE$201,FALSE) -> 45228.91 | AF216: =VLOOKUP($U$202&$U216,GTYF!$C:$AP,AF$201,FALSE) -> 45228.91 | AG216: =VLOOKUP($U$202&$U216,GTYF!$C:$AP,AG$201,FALSE) -> 44483.48 | AH216: =VLOOKUP($U$202&$U216,GTYF!$C:$AP,AH$201,FALSE) -> 44431.55 | AI216: =VLOOKUP($U$202&$U216,GTYF!$C:$AP,AI$201,FALSE) -> 44337.46 | AJ216: =VLOOKUP($U$202&$U216,GTYF!$C:$AP,AJ$201,FALSE) -> 44337.46 | AK216: =VLOOKUP($U$202&$U216,GTYF!$C:$AP,AK$201,FALSE) -> 44245.46 | AL216: =VLOOKUP($U$202&$U216,GTYF!$C:$AP,AL$201,FALSE) -> 42617.94 | AM216: =VLOOKUP($U$202&$U216,GTYF!$C:$AP,AM$201,FALSE) -> 41855.98 | AN216: =VLOOKUP($U$202&$U216,GTYF!$C:$AP,AN$201,FALSE) -> 41200.95 | AO216: =VLOOKUP($U$202&$U216,GTYF!$C:$AP,AO$201,FALSE) -> 39711.41 | AP216: =VLOOKUP($U$202&$U216,GTYF!$C:$AP,AP$201,FALSE) -> 37671.23 | AQ216: =VLOOKUP($U$202&$U216,GTYF!$C:$AP,AQ$201,FALSE) -> 36052.56 | AR216: =VLOOKUP($U$202&$U216,GTYF!$C:$AP,AR$201,FALSE) -> 34394.71 | AS216: =VLOOKUP($U$202&$U216,GTYF!$C:$AP,AS$201,FALSE) -> 33721.88 | AT216: =VLOOKUP($U$202&$U216,GTYF!$C:$AP,AT$201,FALSE) -> 32656.63 | AU216: =VLOOKUP($U$202&$U216,GTYF!$C:$AP,AU$201,FALSE) -> 30309.94 | AV216: =VLOOKUP($U$202&$U216,GTYF!$C:$AP,AV$201,FALSE) -> 28444.18 | AW216: =VLOOKUP($U$202&$U216,GTYF!$C:$AP,AW$201,FALSE) -> 26974.69 | AX216: =VLOOKUP($U$202&$U216,GTYF!$C:$AP,AX$201,FALSE) -> 26607.65 | AY216: =VLOOKUP($U$202&$U216,GTYF!$C:$AP,AY$201,FALSE) -> 26607.65 | AZ216: =VLOOKUP($U$202&$U216,GTYF!$C:$AP,AZ$201,FALSE) -> 26607.65
S217: Figure 10a | T217: Feuillus tolérants à résineux | U217: (FCTYF_FTR) | V217: =VLOOKUP($U$202&$U217,GTYF!$C:$AP,V$201,FALSE) -> 28011 | W217: =VLOOKUP($U$202&$U217,GTYF!$C:$AP,W$201,FALSE) -> 27539.81 | X217: =VLOOKUP($U$202&$U217,GTYF!$C:$AP,X$201,FALSE) -> 26957.84 | Y217: =VLOOKUP($U$202&$U217,GTYF!$C:$AP,Y$201,FALSE) -> 26562.93 | Z217: =VLOOKUP($U$202&$U217,GTYF!$C:$AP,Z$201,FALSE) -> 26477.59 | AA217: =VLOOKUP($U$202&$U217,GTYF!$C:$AP,AA$201,FALSE) -> 26203.28 | AB217: =VLOOKUP($U$202&$U217,GTYF!$C:$AP,AB$201,FALSE) -> 25947.85 | AC217: =VLOOKUP($U$202&$U217,GTYF!$C:$AP,AC$201,FALSE) -> 25778.31 | AD217: =VLOOKUP($U$202&$U217,GTYF!$C:$AP,AD$201,FALSE) -> 24800.56 | AE217: =VLOOKUP($U$202&$U217,GTYF!$C:$AP,AE$201,FALSE) -> 22324.25 | AF217: =VLOOKUP($U$202&$U217,GTYF!$C:$AP,AF$201,FALSE) -> 20839.07 | AG217: =VLOOKUP($U$202&$U217,GTYF!$C:$AP,AG$201,FALSE) -> 21334.01 | AH217: =VLOOKUP($U$202&$U217,GTYF!$C:$AP,AH$201,FALSE) -> 20966.65 | AI217: =VLOOKUP($U$202&$U217,GTYF!$C:$AP,AI$201,FALSE) -> 19488.36 | AJ217: =VLOOKUP($U$202&$U217,GTYF!$C:$AP,AJ$201,FALSE) -> 18005.94 | AK217: =VLOOKUP($U$202&$U217,GTYF!$C:$AP,AK$201,FALSE) -> 15762.04 | AL217: =VLOOKUP($U$202&$U217,GTYF!$C:$AP,AL$201,FALSE) -> 15284.7 | AM217: =VLOOKUP($U$202&$U217,GTYF!$C:$AP,AM$201,FALSE) -> 14282.65 | AN217: =VLOOKUP($U$202&$U217,GTYF!$C:$AP,AN$201,FALSE) -> 13481.9 | AO217: =VLOOKUP($U$202&$U217,GTYF!$C:$AP,AO$201,FALSE) -> 13850.34 | AP217: =VLOOKUP($U$202&$U217,GTYF!$C:$AP,AP$201,FALSE) -> 13850.34 | AQ217: =VLOOKUP($U$202&$U217,GTYF!$C:$AP,AQ$201,FALSE) -> 13850.34 | AR217: =VLOOKUP($U$202&$U217,GTYF!$C:$AP,AR$201,FALSE) -> 13850.34 | AS217: =VLOOKUP($U$202&$U217,GTYF!$C:$AP,AS$201,FALSE) -> 13128.21 | AT217: =VLOOKUP($U$202&$U217,GTYF!$C:$AP,AT$201,FALSE) -> 11651.01 | AU217: =VLOOKUP($U$202&$U217,GTYF!$C:$AP,AU$201,FALSE) -> 13464.47 | AV217: =VLOOKUP($U$202&$U217,GTYF!$C:$AP,AV$201,FALSE) -> 17255.41 | AW217: =VLOOKUP($U$202&$U217,GTYF!$C:$AP,AW$201,FALSE) -> 19874.91 | AX217: =VLOOKUP($U$202&$U217,GTYF!$C:$AP,AX$201,FALSE) -> 20346.95 | AY217: =VLOOKUP($U$202&$U217,GTYF!$C:$AP,AY$201,FALSE) -> 20346.95 | AZ217: =VLOOKUP($U$202&$U217,GTYF!$C:$AP,AZ$201,FALSE) -> 19643.94
S218: Figure 10a | T218: Peupleraies | U218: (FCTYF_PEU) | V218: =VLOOKUP($U$202&$U218,GTYF!$C:$AP,V$201,FALSE) -> 4950.3 | W218: =VLOOKUP($U$202&$U218,GTYF!$C:$AP,W$201,FALSE) -> 4931.54 | X218: =VLOOKUP($U$202&$U218,GTYF!$C:$AP,X$201,FALSE) -> 5403.56 | Y218: =VLOOKUP($U$202&$U218,GTYF!$C:$AP,Y$201,FALSE) -> 5331.86 | Z218: =VLOOKUP($U$202&$U218,GTYF!$C:$AP,Z$201,FALSE) -> 5859.71 | AA218: =VLOOKUP($U$202&$U218,GTYF!$C:$AP,AA$201,FALSE) -> 6599.3 | AB218: =VLOOKUP($U$202&$U218,GTYF!$C:$AP,AB$201,FALSE) -> 6748.95 | AC218: =VLOOKUP($U$202&$U218,GTYF!$C:$AP,AC$201,FALSE) -> 6913.62 | AD218: =VLOOKUP($U$202&$U218,GTYF!$C:$AP,AD$201,FALSE) -> 6880.85 | AE218: =VLOOKUP($U$202&$U218,GTYF!$C:$AP,AE$201,FALSE) -> 7089.23 | AF218: =VLOOKUP($U$202&$U218,GTYF!$C:$AP,AF$201,FALSE) -> 7288.23 | AG218: =VLOOKUP($U$202&$U218,GTYF!$C:$AP,AG$201,FALSE) -> 7302.93 | AH218: =VLOOKUP($U$202&$U218,GTYF!$C:$AP,AH$201,FALSE) -> 7318.61 | AI218: =VLOOKUP($U$202&$U218,GTYF!$C:$AP,AI$201,FALSE) -> 7338.71 | AJ218: =VLOOKUP($U$202&$U218,GTYF!$C:$AP,AJ$201,FALSE) -> 7341.73 | AK218: =VLOOKUP($U$202&$U218,GTYF!$C:$AP,AK$201,FALSE) -> 7348.53 | AL218: =VLOOKUP($U$202&$U218,GTYF!$C:$AP,AL$201,FALSE) -> 7348.53 | AM218: =VLOOKUP($U$202&$U218,GTYF!$C:$AP,AM$201,FALSE) -> 7348.53 | AN218: =VLOOKUP($U$202&$U218,GTYF!$C:$AP,AN$201,FALSE) -> 7348.53 | AO218: =VLOOKUP($U$202&$U218,GTYF!$C:$AP,AO$201,FALSE) -> 7348.53 | AP218: =VLOOKUP($U$202&$U218,GTYF!$C:$AP,AP$201,FALSE) -> 7348.53 | AQ218: =VLOOKUP($U$202&$U218,GTYF!$C:$AP,AQ$201,FALSE) -> 7348.53 | AR218: =VLOOKUP($U$202&$U218,GTYF!$C:$AP,AR$201,FALSE) -> 7348.53 | AS218: =VLOOKUP($U$202&$U218,GTYF!$C:$AP,AS$201,FALSE) -> 7348.53 | AT218: =VLOOKUP($U$202&$U218,GTYF!$C:$AP,AT$201,FALSE) -> 7348.53 | AU218: =VLOOKUP($U$202&$U218,GTYF!$C:$AP,AU$201,FALSE) -> 7348.53 | AV218: =VLOOKUP($U$202&$U218,GTYF!$C:$AP,AV$201,FALSE) -> 7348.53 | AW218: =VLOOKUP($U$202&$U218,GTYF!$C:$AP,AW$201,FALSE) -> 7348.53 | AX218: =VLOOKUP($U$202&$U218,GTYF!$C:$AP,AX$201,FALSE) -> 7348.53 | AY218: =VLOOKUP($U$202&$U218,GTYF!$C:$AP,AY$201,FALSE) -> 7348.53 | AZ218: =VLOOKUP($U$202&$U218,GTYF!$C:$AP,AZ$201,FALSE) -> 7348.53
S219: Figure 10a | T219: Peupleraies à résineux | U219: (FCTYF_PEUR) | V219: =VLOOKUP($U$202&$U219,GTYF!$C:$AP,V$201,FALSE) -> 2618.8 | W219: =VLOOKUP($U$202&$U219,GTYF!$C:$AP,W$201,FALSE) -> 2222 | X219: =VLOOKUP($U$202&$U219,GTYF!$C:$AP,X$201,FALSE) -> 2138.6 | Y219: =VLOOKUP($U$202&$U219,GTYF!$C:$AP,Y$201,FALSE) -> 1451.73 | Z219: =VLOOKUP($U$202&$U219,GTYF!$C:$AP,Z$201,FALSE) -> 1089.12 | AA219: =VLOOKUP($U$202&$U219,GTYF!$C:$AP,AA$201,FALSE) -> 775.93 | AB219: =VLOOKUP($U$202&$U219,GTYF!$C:$AP,AB$201,FALSE) -> 603.83 | AC219: =VLOOKUP($U$202&$U219,GTYF!$C:$AP,AC$201,FALSE) -> 436.74 | AD219: =VLOOKUP($U$202&$U219,GTYF!$C:$AP,AD$201,FALSE) -> 268.22 | AE219: =VLOOKUP($U$202&$U219,GTYF!$C:$AP,AE$201,FALSE) -> 66.48 | AF219: =VLOOKUP($U$202&$U219,GTYF!$C:$AP,AF$201,FALSE) -> 57.28 | AG219: =VLOOKUP($U$202&$U219,GTYF!$C:$AP,AG$201,FALSE) -> 37.58 | AH219: =VLOOKUP($U$202&$U219,GTYF!$C:$AP,AH$201,FALSE) -> 6.8 | AI219: =VLOOKUP($U$202&$U219,GTYF!$C:$AP,AI$201,FALSE) -> 6.8 | AJ219: =VLOOKUP($U$202&$U219,GTYF!$C:$AP,AJ$201,FALSE) -> 6.8 | AK219: =VLOOKUP($U$202&$U219,GTYF!$C:$AP,AK$201,FALSE) -> 0 | AL219: =VLOOKUP($U$202&$U219,GTYF!$C:$AP,AL$201,FALSE) -> 0 | AM219: =VLOOKUP($U$202&$U219,GTYF!$C:$AP,AM$201,FALSE) -> 0 | AN219: =VLOOKUP($U$202&$U219,GTYF!$C:$AP,AN$201,FALSE) -> 0 | AO219: =VLOOKUP($U$202&$U219,GTYF!$C:$AP,AO$201,FALSE) -> 0 | AP219: =VLOOKUP($U$202&$U219,GTYF!$C:$AP,AP$201,FALSE) -> 0 | AQ219: =VLOOKUP($U$202&$U219,GTYF!$C:$AP,AQ$201,FALSE) -> 0 | AR219: =VLOOKUP($U$202&$U219,GTYF!$C:$AP,AR$201,FALSE) -> 0 | AS219: =VLOOKUP($U$202&$U219,GTYF!$C:$AP,AS$201,FALSE) -> 0 | AT219: =VLOOKUP($U$202&$U219,GTYF!$C:$AP,AT$201,FALSE) -> 0 | AU219: =VLOOKUP($U$202&$U219,GTYF!$C:$AP,AU$201,FALSE) -> 0 | AV219: =VLOOKUP($U$202&$U219,GTYF!$C:$AP,AV$201,FALSE) -> 0 | AW219: =VLOOKUP($U$202&$U219,GTYF!$C:$AP,AW$201,FALSE) -> 0 | AX219: =VLOOKUP($U$202&$U219,GTYF!$C:$AP,AX$201,FALSE) -> 0 | AY219: =VLOOKUP($U$202&$U219,GTYF!$C:$AP,AY$201,FALSE) -> 0 | AZ219: =VLOOKUP($U$202&$U219,GTYF!$C:$AP,AZ$201,FALSE) -> 0
S220: Figure 10a | T220: Pinèdes grises | U220: (FCTYF_PIG) | V220: =VLOOKUP($U$202&$U220,GTYF!$C:$AP,V$201,FALSE) -> 3772.6 | W220: =VLOOKUP($U$202&$U220,GTYF!$C:$AP,W$201,FALSE) -> 3772.6 | X220: =VLOOKUP($U$202&$U220,GTYF!$C:$AP,X$201,FALSE) -> 3575.5 | Y220: =VLOOKUP($U$202&$U220,GTYF!$C:$AP,Y$201,FALSE) -> 3571.5 | Z220: =VLOOKUP($U$202&$U220,GTYF!$C:$AP,Z$201,FALSE) -> 3565.48 | AA220: =VLOOKUP($U$202&$U220,GTYF!$C:$AP,AA$201,FALSE) -> 3561.06 | AB220: =VLOOKUP($U$202&$U220,GTYF!$C:$AP,AB$201,FALSE) -> 3480.14 | AC220: =VLOOKUP($U$202&$U220,GTYF!$C:$AP,AC$201,FALSE) -> 3480.14 | AD220: =VLOOKUP($U$202&$U220,GTYF!$C:$AP,AD$201,FALSE) -> 3270.94 | AE220: =VLOOKUP($U$202&$U220,GTYF!$C:$AP,AE$201,FALSE) -> 3270.79 | AF220: =VLOOKUP($U$202&$U220,GTYF!$C:$AP,AF$201,FALSE) -> 3270.79 | AG220: =VLOOKUP($U$202&$U220,GTYF!$C:$AP,AG$201,FALSE) -> 3270.79 | AH220: =VLOOKUP($U$202&$U220,GTYF!$C:$AP,AH$201,FALSE) -> 2974.56 | AI220: =VLOOKUP($U$202&$U220,GTYF!$C:$AP,AI$201,FALSE) -> 2744.86 | AJ220: =VLOOKUP($U$202&$U220,GTYF!$C:$AP,AJ$201,FALSE) -> 2744.86 | AK220: =VLOOKUP($U$202&$U220,GTYF!$C:$AP,AK$201,FALSE) -> 2744.86 | AL220: =VLOOKUP($U$202&$U220,GTYF!$C:$AP,AL$201,FALSE) -> 2730.36 | AM220: =VLOOKUP($U$202&$U220,GTYF!$C:$AP,AM$201,FALSE) -> 2726.45 | AN220: =VLOOKUP($U$202&$U220,GTYF!$C:$AP,AN$201,FALSE) -> 2648.47 | AO220: =VLOOKUP($U$202&$U220,GTYF!$C:$AP,AO$201,FALSE) -> 2157.87 | AP220: =VLOOKUP($U$202&$U220,GTYF!$C:$AP,AP$201,FALSE) -> 1689.28 | AQ220: =VLOOKUP($U$202&$U220,GTYF!$C:$AP,AQ$201,FALSE) -> 944.4 | AR220: =VLOOKUP($U$202&$U220,GTYF!$C:$AP,AR$201,FALSE) -> 944.4 | AS220: =VLOOKUP($U$202&$U220,GTYF!$C:$AP,AS$201,FALSE) -> 944.4 | AT220: =VLOOKUP($U$202&$U220,GTYF!$C:$AP,AT$201,FALSE) -> 918.68 | AU220: =VLOOKUP($U$202&$U220,GTYF!$C:$AP,AU$201,FALSE) -> 918.68 | AV220: =VLOOKUP($U$202&$U220,GTYF!$C:$AP,AV$201,FALSE) -> 918.68 | AW220: =VLOOKUP($U$202&$U220,GTYF!$C:$AP,AW$201,FALSE) -> 918.68 | AX220: =VLOOKUP($U$202&$U220,GTYF!$C:$AP,AX$201,FALSE) -> 918.68 | AY220: =VLOOKUP($U$202&$U220,GTYF!$C:$AP,AY$201,FALSE) -> 918.68 | AZ220: =VLOOKUP($U$202&$U220,GTYF!$C:$AP,AZ$201,FALSE) -> 918.68
S221: Figure 10a | T221: Pinèdes blanches | U221: (FCTYF_PIN) | V221: =VLOOKUP($U$202&$U221,GTYF!$C:$AP,V$201,FALSE) -> 7326.6 | W221: =VLOOKUP($U$202&$U221,GTYF!$C:$AP,W$201,FALSE) -> 7303.11 | X221: =VLOOKUP($U$202&$U221,GTYF!$C:$AP,X$201,FALSE) -> 7254.82 | Y221: =VLOOKUP($U$202&$U221,GTYF!$C:$AP,Y$201,FALSE) -> 7202.68 | Z221: =VLOOKUP($U$202&$U221,GTYF!$C:$AP,Z$201,FALSE) -> 7163.87 | AA221: =VLOOKUP($U$202&$U221,GTYF!$C:$AP,AA$201,FALSE) -> 7127.27 | AB221: =VLOOKUP($U$202&$U221,GTYF!$C:$AP,AB$201,FALSE) -> 7087.99 | AC221: =VLOOKUP($U$202&$U221,GTYF!$C:$AP,AC$201,FALSE) -> 7050.72 | AD221: =VLOOKUP($U$202&$U221,GTYF!$C:$AP,AD$201,FALSE) -> 7014.58 | AE221: =VLOOKUP($U$202&$U221,GTYF!$C:$AP,AE$201,FALSE) -> 6981.59 | AF221: =VLOOKUP($U$202&$U221,GTYF!$C:$AP,AF$201,FALSE) -> 6899.88 | AG221: =VLOOKUP($U$202&$U221,GTYF!$C:$AP,AG$201,FALSE) -> 6883.24 | AH221: =VLOOKUP($U$202&$U221,GTYF!$C:$AP,AH$201,FALSE) -> 6859.25 | AI221: =VLOOKUP($U$202&$U221,GTYF!$C:$AP,AI$201,FALSE) -> 6859.25 | AJ221: =VLOOKUP($U$202&$U221,GTYF!$C:$AP,AJ$201,FALSE) -> 6806.93 | AK221: =VLOOKUP($U$202&$U221,GTYF!$C:$AP,AK$201,FALSE) -> 6342.04 | AL221: =VLOOKUP($U$202&$U221,GTYF!$C:$AP,AL$201,FALSE) -> 6342.04 | AM221: =VLOOKUP($U$202&$U221,GTYF!$C:$AP,AM$201,FALSE) -> 6330.03 | AN221: =VLOOKUP($U$202&$U221,GTYF!$C:$AP,AN$201,FALSE) -> 6227.8 | AO221: =VLOOKUP($U$202&$U221,GTYF!$C:$AP,AO$201,FALSE) -> 6227.8 | AP221: =VLOOKUP($U$202&$U221,GTYF!$C:$AP,AP$201,FALSE) -> 6072.58 | AQ221: =VLOOKUP($U$202&$U221,GTYF!$C:$AP,AQ$201,FALSE) -> 6072.58 | AR221: =VLOOKUP($U$202&$U221,GTYF!$C:$AP,AR$201,FALSE) -> 6072.58 | AS221: =VLOOKUP($U$202&$U221,GTYF!$C:$AP,AS$201,FALSE) -> 6072.58 | AT221: =VLOOKUP($U$202&$U221,GTYF!$C:$AP,AT$201,FALSE) -> 6072.58 | AU221: =VLOOKUP($U$202&$U221,GTYF!$C:$AP,AU$201,FALSE) -> 6072.58 | AV221: =VLOOKUP($U$202&$U221,GTYF!$C:$AP,AV$201,FALSE) -> 6072.58 | AW221: =VLOOKUP($U$202&$U221,GTYF!$C:$AP,AW$201,FALSE) -> 6072.58 | AX221: =VLOOKUP($U$202&$U221,GTYF!$C:$AP,AX$201,FALSE) -> 6072.58 | AY221: =VLOOKUP($U$202&$U221,GTYF!$C:$AP,AY$201,FALSE) -> 6072.58 | AZ221: =VLOOKUP($U$202&$U221,GTYF!$C:$AP,AZ$201,FALSE) -> 6072.58
S222: Figure 10a | T222: Prucheraies | U222: (FCTYF_PRU) | V222: =VLOOKUP($U$202&$U222,GTYF!$C:$AP,V$201,FALSE) -> 0 | W222: =VLOOKUP($U$202&$U222,GTYF!$C:$AP,W$201,FALSE) -> 0 | X222: =VLOOKUP($U$202&$U222,GTYF!$C:$AP,X$201,FALSE) -> 0 | Y222: =VLOOKUP($U$202&$U222,GTYF!$C:$AP,Y$201,FALSE) -> 0 | Z222: =VLOOKUP($U$202&$U222,GTYF!$C:$AP,Z$201,FALSE) -> 0 | AA222: =VLOOKUP($U$202&$U222,GTYF!$C:$AP,AA$201,FALSE) -> 0 | AB222: =VLOOKUP($U$202&$U222,GTYF!$C:$AP,AB$201,FALSE) -> 0 | AC222: =VLOOKUP($U$202&$U222,GTYF!$C:$AP,AC$201,FALSE) -> 0 | AD222: =VLOOKUP($U$202&$U222,GTYF!$C:$AP,AD$201,FALSE) -> 0 | AE222: =VLOOKUP($U$202&$U222,GTYF!$C:$AP,AE$201,FALSE) -> 0 | AF222: =VLOOKUP($U$202&$U222,GTYF!$C:$AP,AF$201,FALSE) -> 0 | AG222: =VLOOKUP($U$202&$U222,GTYF!$C:$AP,AG$201,FALSE) -> 0 | AH222: =VLOOKUP($U$202&$U222,GTYF!$C:$AP,AH$201,FALSE) -> 0 | AI222: =VLOOKUP($U$202&$U222,GTYF!$C:$AP,AI$201,FALSE) -> 0 | AJ222: =VLOOKUP($U$202&$U222,GTYF!$C:$AP,AJ$201,FALSE) -> 0 | AK222: =VLOOKUP($U$202&$U222,GTYF!$C:$AP,AK$201,FALSE) -> 0 | AL222: =VLOOKUP($U$202&$U222,GTYF!$C:$AP,AL$201,FALSE) -> 0 | AM222: =VLOOKUP($U$202&$U222,GTYF!$C:$AP,AM$201,FALSE) -> 0 | AN222: =VLOOKUP($U$202&$U222,GTYF!$C:$AP,AN$201,FALSE) -> 0 | AO222: =VLOOKUP($U$202&$U222,GTYF!$C:$AP,AO$201,FALSE) -> 0 | AP222: =VLOOKUP($U$202&$U222,GTYF!$C:$AP,AP$201,FALSE) -> 0 | AQ222: =VLOOKUP($U$202&$U222,GTYF!$C:$AP,AQ$201,FALSE) -> 0 | AR222: =VLOOKUP($U$202&$U222,GTYF!$C:$AP,AR$201,FALSE) -> 0 | AS222: =VLOOKUP($U$202&$U222,GTYF!$C:$AP,AS$201,FALSE) -> 0 | AT222: =VLOOKUP($U$202&$U222,GTYF!$C:$AP,AT$201,FALSE) -> 0 | AU222: =VLOOKUP($U$202&$U222,GTYF!$C:$AP,AU$201,FALSE) -> 0 | AV222: =VLOOKUP($U$202&$U222,GTYF!$C:$AP,AV$201,FALSE) -> 0 | AW222: =VLOOKUP($U$202&$U222,GTYF!$C:$AP,AW$201,FALSE) -> 0 | AX222: =VLOOKUP($U$202&$U222,GTYF!$C:$AP,AX$201,FALSE) -> 0 | AY222: =VLOOKUP($U$202&$U222,GTYF!$C:$AP,AY$201,FALSE) -> 0 | AZ222: =VLOOKUP($U$202&$U222,GTYF!$C:$AP,AZ$201,FALSE) -> 0
S223: Figure 10a | T223: Résineux à feuillus | U223: (FCTYF_RF) | V223: =VLOOKUP($U$202&$U223,GTYF!$C:$AP,V$201,FALSE) -> 57676.3 | W223: =VLOOKUP($U$202&$U223,GTYF!$C:$AP,W$201,FALSE) -> 54867.07 | X223: =VLOOKUP($U$202&$U223,GTYF!$C:$AP,X$201,FALSE) -> 47653.27 | Y223: =VLOOKUP($U$202&$U223,GTYF!$C:$AP,Y$201,FALSE) -> 45140.14 | Z223: =VLOOKUP($U$202&$U223,GTYF!$C:$AP,Z$201,FALSE) -> 40923.2 | AA223: =VLOOKUP($U$202&$U223,GTYF!$C:$AP,AA$201,FALSE) -> 38617.85 | AB223: =VLOOKUP($U$202&$U223,GTYF!$C:$AP,AB$201,FALSE) -> 36663.52 | AC223: =VLOOKUP($U$202&$U223,GTYF!$C:$AP,AC$201,FALSE) -> 32035.83 | AD223: =VLOOKUP($U$202&$U223,GTYF!$C:$AP,AD$201,FALSE) -> 30509.92 | AE223: =VLOOKUP($U$202&$U223,GTYF!$C:$AP,AE$201,FALSE) -> 29393.94 | AF223: =VLOOKUP($U$202&$U223,GTYF!$C:$AP,AF$201,FALSE) -> 26702.67 | AG223: =VLOOKUP($U$202&$U223,GTYF!$C:$AP,AG$201,FALSE) -> 24086.85 | AH223: =VLOOKUP($U$202&$U223,GTYF!$C:$AP,AH$201,FALSE) -> 22832.15 | AI223: =VLOOKUP($U$202&$U223,GTYF!$C:$AP,AI$201,FALSE) -> 20870.12 | AJ223: =VLOOKUP($U$202&$U223,GTYF!$C:$AP,AJ$201,FALSE) -> 19896.51 | AK223: =VLOOKUP($U$202&$U223,GTYF!$C:$AP,AK$201,FALSE) -> 20497.05 | AL223: =VLOOKUP($U$202&$U223,GTYF!$C:$AP,AL$201,FALSE) -> 20333.61 | AM223: =VLOOKUP($U$202&$U223,GTYF!$C:$AP,AM$201,FALSE) -> 20815.89 | AN223: =VLOOKUP($U$202&$U223,GTYF!$C:$AP,AN$201,FALSE) -> 22052.06 | AO223: =VLOOKUP($U$202&$U223,GTYF!$C:$AP,AO$201,FALSE) -> 21628.01 | AP223: =VLOOKUP($U$202&$U223,GTYF!$C:$AP,AP$201,FALSE) -> 19297.12 | AQ223: =VLOOKUP($U$202&$U223,GTYF!$C:$AP,AQ$201,FALSE) -> 19064.71 | AR223: =VLOOKUP($U$202&$U223,GTYF!$C:$AP,AR$201,FALSE) -> 18832.3 | AS223: =VLOOKUP($U$202&$U223,GTYF!$C:$AP,AS$201,FALSE) -> 20161.48 | AT223: =VLOOKUP($U$202&$U223,GTYF!$C:$AP,AT$201,FALSE) -> 20923.47 | AU223: =VLOOKUP($U$202&$U223,GTYF!$C:$AP,AU$201,FALSE) -> 21895.2 | AV223: =VLOOKUP($U$202&$U223,GTYF!$C:$AP,AV$201,FALSE) -> 22030.8 | AW223: =VLOOKUP($U$202&$U223,GTYF!$C:$AP,AW$201,FALSE) -> 21891.41 | AX223: =VLOOKUP($U$202&$U223,GTYF!$C:$AP,AX$201,FALSE) -> 21749.23 | AY223: =VLOOKUP($U$202&$U223,GTYF!$C:$AP,AY$201,FALSE) -> 20985.84 | AZ223: =VLOOKUP($U$202&$U223,GTYF!$C:$AP,AZ$201,FALSE) -> 21410.55
S224: Figure 10a | T224: Sapinières | U224: (FCTYF_SAB) | V224: =VLOOKUP($U$202&$U224,GTYF!$C:$AP,V$201,FALSE) -> 11361.3 | W224: =VLOOKUP($U$202&$U224,GTYF!$C:$AP,W$201,FALSE) -> 11224 | X224: =VLOOKUP($U$202&$U224,GTYF!$C:$AP,X$201,FALSE) -> 10607.95 | Y224: =VLOOKUP($U$202&$U224,GTYF!$C:$AP,Y$201,FALSE) -> 9281.12 | Z224: =VLOOKUP($U$202&$U224,GTYF!$C:$AP,Z$201,FALSE) -> 8157.81 | AA224: =VLOOKUP($U$202&$U224,GTYF!$C:$AP,AA$201,FALSE) -> 6087.52 | AB224: =VLOOKUP($U$202&$U224,GTYF!$C:$AP,AB$201,FALSE) -> 5252.26 | AC224: =VLOOKUP($U$202&$U224,GTYF!$C:$AP,AC$201,FALSE) -> 4084.15 | AD224: =VLOOKUP($U$202&$U224,GTYF!$C:$AP,AD$201,FALSE) -> 3438.53 | AE224: =VLOOKUP($U$202&$U224,GTYF!$C:$AP,AE$201,FALSE) -> 2936.68 | AF224: =VLOOKUP($U$202&$U224,GTYF!$C:$AP,AF$201,FALSE) -> 2783.18 | AG224: =VLOOKUP($U$202&$U224,GTYF!$C:$AP,AG$201,FALSE) -> 2647.49 | AH224: =VLOOKUP($U$202&$U224,GTYF!$C:$AP,AH$201,FALSE) -> 2643.33 | AI224: =VLOOKUP($U$202&$U224,GTYF!$C:$AP,AI$201,FALSE) -> 2465.63 | AJ224: =VLOOKUP($U$202&$U224,GTYF!$C:$AP,AJ$201,FALSE) -> 2318.09 | AK224: =VLOOKUP($U$202&$U224,GTYF!$C:$AP,AK$201,FALSE) -> 1985.35 | AL224: =VLOOKUP($U$202&$U224,GTYF!$C:$AP,AL$201,FALSE) -> 1747.75 | AM224: =VLOOKUP($U$202&$U224,GTYF!$C:$AP,AM$201,FALSE) -> 1738.95 | AN224: =VLOOKUP($U$202&$U224,GTYF!$C:$AP,AN$201,FALSE) -> 1733.19 | AO224: =VLOOKUP($U$202&$U224,GTYF!$C:$AP,AO$201,FALSE) -> 1727.14 | AP224: =VLOOKUP($U$202&$U224,GTYF!$C:$AP,AP$201,FALSE) -> 1727.14 | AQ224: =VLOOKUP($U$202&$U224,GTYF!$C:$AP,AQ$201,FALSE) -> 1727.14 | AR224: =VLOOKUP($U$202&$U224,GTYF!$C:$AP,AR$201,FALSE) -> 1683.39 | AS224: =VLOOKUP($U$202&$U224,GTYF!$C:$AP,AS$201,FALSE) -> 373.36 | AT224: =VLOOKUP($U$202&$U224,GTYF!$C:$AP,AT$201,FALSE) -> 0.3 | AU224: =VLOOKUP($U$202&$U224,GTYF!$C:$AP,AU$201,FALSE) -> 0.3 | AV224: =VLOOKUP($U$202&$U224,GTYF!$C:$AP,AV$201,FALSE) -> 0.3 | AW224: =VLOOKUP($U$202&$U224,GTYF!$C:$AP,AW$201,FALSE) -> 0.3 | AX224: =VLOOKUP($U$202&$U224,GTYF!$C:$AP,AX$201,FALSE) -> 0.3 | AY224: =VLOOKUP($U$202&$U224,GTYF!$C:$AP,AY$201,FALSE) -> 0.3 | AZ224: =VLOOKUP($U$202&$U224,GTYF!$C:$AP,AZ$201,FALSE) -> 0.3
B225: * Attention, étant donné que le graphique fait appel aux GTYF, certains TYF ne paraissent pas dans les bons types de couvert (ex: EoRx, PbFx, PuFx, ToFx) | S225: Figure 10a | T225: Cédrières | U225: (FCTYF_THO) | V225: =VLOOKUP($U$202&$U225,GTYF!$C:$AP,V$201,FALSE) -> 10566.6 | W225: =VLOOKUP($U$202&$U225,GTYF!$C:$AP,W$201,FALSE) -> 10564.86 | X225: =VLOOKUP($U$202&$U225,GTYF!$C:$AP,X$201,FALSE) -> 10544.86 | Y225: =VLOOKUP($U$202&$U225,GTYF!$C:$AP,Y$201,FALSE) -> 10524.86 | Z225: =VLOOKUP($U$202&$U225,GTYF!$C:$AP,Z$201,FALSE) -> 10504.86 | AA225: =VLOOKUP($U$202&$U225,GTYF!$C:$AP,AA$201,FALSE) -> 10484.86 | AB225: =VLOOKUP($U$202&$U225,GTYF!$C:$AP,AB$201,FALSE) -> 10464.86 | AC225: =VLOOKUP($U$202&$U225,GTYF!$C:$AP,AC$201,FALSE) -> 10444.86 | AD225: =VLOOKUP($U$202&$U225,GTYF!$C:$AP,AD$201,FALSE) -> 10424.86 | AE225: =VLOOKUP($U$202&$U225,GTYF!$C:$AP,AE$201,FALSE) -> 10404.86 | AF225: =VLOOKUP($U$202&$U225,GTYF!$C:$AP,AF$201,FALSE) -> 10384.86 | AG225: =VLOOKUP($U$202&$U225,GTYF!$C:$AP,AG$201,FALSE) -> 10384.86 | AH225: =VLOOKUP($U$202&$U225,GTYF!$C:$AP,AH$201,FALSE) -> 10364.86 | AI225: =VLOOKUP($U$202&$U225,GTYF!$C:$AP,AI$201,FALSE) -> 10344.86 | AJ225: =VLOOKUP($U$202&$U225,GTYF!$C:$AP,AJ$201,FALSE) -> 10343.26 | AK225: =VLOOKUP($U$202&$U225,GTYF!$C:$AP,AK$201,FALSE) -> 10323.26 | AL225: =VLOOKUP($U$202&$U225,GTYF!$C:$AP,AL$201,FALSE) -> 10303.26 | AM225: =VLOOKUP($U$202&$U225,GTYF!$C:$AP,AM$201,FALSE) -> 10283.26 | AN225: =VLOOKUP($U$202&$U225,GTYF!$C:$AP,AN$201,FALSE) -> 10263.26 | AO225: =VLOOKUP($U$202&$U225,GTYF!$C:$AP,AO$201,FALSE) -> 10243.26 | AP225: =VLOOKUP($U$202&$U225,GTYF!$C:$AP,AP$201,FALSE) -> 10223.26 | AQ225: =VLOOKUP($U$202&$U225,GTYF!$C:$AP,AQ$201,FALSE) -> 10203.26 | AR225: =VLOOKUP($U$202&$U225,GTYF!$C:$AP,AR$201,FALSE) -> 10183.26 | AS225: =VLOOKUP($U$202&$U225,GTYF!$C:$AP,AS$201,FALSE) -> 10163.26 | AT225: =VLOOKUP($U$202&$U225,GTYF!$C:$AP,AT$201,FALSE) -> 10143.26 | AU225: =VLOOKUP($U$202&$U225,GTYF!$C:$AP,AU$201,FALSE) -> 10123.26 | AV225: =VLOOKUP($U$202&$U225,GTYF!$C:$AP,AV$201,FALSE) -> 10103.26 | AW225: =VLOOKUP($U$202&$U225,GTYF!$C:$AP,AW$201,FALSE) -> 10083.26 | AX225: =VLOOKUP($U$202&$U225,GTYF!$C:$AP,AX$201,FALSE) -> 10063.26 | AY225: =VLOOKUP($U$202&$U225,GTYF!$C:$AP,AY$201,FALSE) -> 10063.26 | AZ225: =VLOOKUP($U$202&$U225,GTYF!$C:$AP,AZ$201,FALSE) -> 10063.26
U228: Colonne | V228: 6 | W228: 7 | X228: 8 | Y228: 9 | Z228: 10 | AA228: 11 | AB228: 12 | AC228: 13 | AD228: 14 | AE228: 15 | AF228: 16 | AG228: 17 | AH228: 18 | AI228: 19 | AJ228: 20 | AK228: 21 | AL228: 22 | AM228: 23 | AN228: 24 | AO228: 25 | AP228: 26 | AQ228: 27 | AR228: 28 | AS228: 29 | AT228: 30 | AU228: 31 | AV228: 32 | AW228: 33 | AX228: 34 | AY228: 35 | AZ228: 36
B229: Figure 10c Évolution des superficies de hêtraie et d'érablière à hêtre | U229: Période | V229: P0 | W229: P1 | X229: P2 | Y229: P3 | Z229: P4 | AA229: P5 | AB229: P6 | AC229: P7 | AD229: P8 | AE229: P9 | AF229: P10 | AG229: P11 | AH229: P12 | AI229: P13 | AJ229: P14 | AK229: P15 | AL229: P16 | AM229: P17 | AN229: P18 | AO229: P19 | AP229: P20 | AQ229: P21 | AR229: P22 | AS229: P23 | AT229: P24 | AU229: P25 | AV229: P26 | AW229: P27 | AX229: P28 | AY229: P29 | AZ229: P30
U230: Axe des "X" Fin de période | V230: 2018 | W230: 2023 | X230: 2028 | Y230: 2033 | Z230: 2038 | AA230: 2043 | AB230: 2048 | AC230: 2053 | AD230: 2058 | AE230: 2063 | AF230: 2068 | AG230: 2073 | AH230: 2078 | AI230: 2083 | AJ230: 2088 | AK230: 2093 | AL230: 2098 | AM230: 2103 | AN230: 2108 | AO230: 2113 | AP230: 2118 | AQ230: 2123 | AR230: 2128 | AS230: 2133 | AT230: 2138 | AU230: 2143 | AV230: 2148 | AW230: 2153 | AX230: 2158 | AY230: 2163 | AZ230: 2168
S231: =LEFT(B$229,10) -> Figure 10c | T231: Hêtraie | U231: OSUPESHG_FX | V231: =VLOOKUP($U231,Output!$C:$AQ,V$228,FALSE) -> 0 | W231: =VLOOKUP($U231,Output!$C:$AQ,W$228,FALSE) -> 0 | X231: =VLOOKUP($U231,Output!$C:$AQ,X$228,FALSE) -> 0 | Y231: =VLOOKUP($U231,Output!$C:$AQ,Y$228,FALSE) -> 0 | Z231: =VLOOKUP($U231,Output!$C:$AQ,Z$228,FALSE) -> 0 | AA231: =VLOOKUP($U231,Output!$C:$AQ,AA$228,FALSE) -> 0 | AB231: =VLOOKUP($U231,Output!$C:$AQ,AB$228,FALSE) -> 0 | AC231: =VLOOKUP($U231,Output!$C:$AQ,AC$228,FALSE) -> 0 | AD231: =VLOOKUP($U231,Output!$C:$AQ,AD$228,FALSE) -> 0 | AE231: =VLOOKUP($U231,Output!$C:$AQ,AE$228,FALSE) -> 0 | AF231: =VLOOKUP($U231,Output!$C:$AQ,AF$228,FALSE) -> 0 | AG231: =VLOOKUP($U231,Output!$C:$AQ,AG$228,FALSE) -> 0 | AH231: =VLOOKUP($U231,Output!$C:$AQ,AH$228,FALSE) -> 0 | AI231: =VLOOKUP($U231,Output!$C:$AQ,AI$228,FALSE) -> 0 | AJ231: =VLOOKUP($U231,Output!$C:$AQ,AJ$228,FALSE) -> 0 | AK231: =VLOOKUP($U231,Output!$C:$AQ,AK$228,FALSE) -> 0 | AL231: =VLOOKUP($U231,Output!$C:$AQ,AL$228,FALSE) -> 0 | AM231: =VLOOKUP($U231,Output!$C:$AQ,AM$228,FALSE) -> 0 | AN231: =VLOOKUP($U231,Output!$C:$AQ,AN$228,FALSE) -> 0 | AO231: =VLOOKUP($U231,Output!$C:$AQ,AO$228,FALSE) -> 0 | AP231: =VLOOKUP($U231,Output!$C:$AQ,AP$228,FALSE) -> 0 | AQ231: =VLOOKUP($U231,Output!$C:$AQ,AQ$228,FALSE) -> 0 | AR231: =VLOOKUP($U231,Output!$C:$AQ,AR$228,FALSE) -> 0 | AS231: =VLOOKUP($U231,Output!$C:$AQ,AS$228,FALSE) -> 0 | AT231: =VLOOKUP($U231,Output!$C:$AQ,AT$228,FALSE) -> 0 | AU231: =VLOOKUP($U231,Output!$C:$AQ,AU$228,FALSE) -> 0 | AV231: =VLOOKUP($U231,Output!$C:$AQ,AV$228,FALSE) -> 0 | AW231: =VLOOKUP($U231,Output!$C:$AQ,AW$228,FALSE) -> 0 | AX231: =VLOOKUP($U231,Output!$C:$AQ,AX$228,FALSE) -> 0 | AY231: =VLOOKUP($U231,Output!$C:$AQ,AY$228,FALSE) -> 0 | AZ231: =VLOOKUP($U231,Output!$C:$AQ,AZ$228,FALSE) -> 0
S232: =LEFT(B$229,10) -> Figure 10c | T232: Érablière à hêtre | U232: OSUPESHG | V232: =VLOOKUP($U232,Output!$C:$AQ,V$228,FALSE) -> 0 | W232: =VLOOKUP($U232,Output!$C:$AQ,W$228,FALSE) -> 0 | X232: =VLOOKUP($U232,Output!$C:$AQ,X$228,FALSE) -> 0 | Y232: =VLOOKUP($U232,Output!$C:$AQ,Y$228,FALSE) -> 0 | Z232: =VLOOKUP($U232,Output!$C:$AQ,Z$228,FALSE) -> 0 | AA232: =VLOOKUP($U232,Output!$C:$AQ,AA$228,FALSE) -> 0 | AB232: =VLOOKUP($U232,Output!$C:$AQ,AB$228,FALSE) -> 0 | AC232: =VLOOKUP($U232,Output!$C:$AQ,AC$228,FALSE) -> 0 | AD232: =VLOOKUP($U232,Output!$C:$AQ,AD$228,FALSE) -> 0 | AE232: =VLOOKUP($U232,Output!$C:$AQ,AE$228,FALSE) -> 0 | AF232: =VLOOKUP($U232,Output!$C:$AQ,AF$228,FALSE) -> 0 | AG232: =VLOOKUP($U232,Output!$C:$AQ,AG$228,FALSE) -> 0 | AH232: =VLOOKUP($U232,Output!$C:$AQ,AH$228,FALSE) -> 0 | AI232: =VLOOKUP($U232,Output!$C:$AQ,AI$228,FALSE) -> 0 | AJ232: =VLOOKUP($U232,Output!$C:$AQ,AJ$228,FALSE) -> 0 | AK232: =VLOOKUP($U232,Output!$C:$AQ,AK$228,FALSE) -> 0 | AL232: =VLOOKUP($U232,Output!$C:$AQ,AL$228,FALSE) -> 0 | AM232: =VLOOKUP($U232,Output!$C:$AQ,AM$228,FALSE) -> 0 | AN232: =VLOOKUP($U232,Output!$C:$AQ,AN$228,FALSE) -> 0 | AO232: =VLOOKUP($U232,Output!$C:$AQ,AO$228,FALSE) -> 0 | AP232: =VLOOKUP($U232,Output!$C:$AQ,AP$228,FALSE) -> 0 | AQ232: =VLOOKUP($U232,Output!$C:$AQ,AQ$228,FALSE) -> 0 | AR232: =VLOOKUP($U232,Output!$C:$AQ,AR$228,FALSE) -> 0 | AS232: =VLOOKUP($U232,Output!$C:$AQ,AS$228,FALSE) -> 0 | AT232: =VLOOKUP($U232,Output!$C:$AQ,AT$228,FALSE) -> 0 | AU232: =VLOOKUP($U232,Output!$C:$AQ,AU$228,FALSE) -> 0 | AV232: =VLOOKUP($U232,Output!$C:$AQ,AV$228,FALSE) -> 0 | AW232: =VLOOKUP($U232,Output!$C:$AQ,AW$228,FALSE) -> 0 | AX232: =VLOOKUP($U232,Output!$C:$AQ,AX$228,FALSE) -> 0 | AY232: =VLOOKUP($U232,Output!$C:$AQ,AY$228,FALSE) -> 0 | AZ232: =VLOOKUP($U232,Output!$C:$AQ,AZ$228,FALSE) -> 0
S233: =LEFT(B$229,10) -> Figure 10c | T233: Total | U233: Total | V233: =SUM(V231:V232) -> 0 | W233: =SUM(W231:W232) -> 0 | X233: 0 | Y233: 0 | Z233: 0 | AA233: 0 | AB233: 0 | AC233: 0 | AD233: 0 | AE233: 0 | AF233: 0 | AG233: 0 | AH233: 0 | AI233: 0 | AJ233: 0 | AK233: 0 | AL233: 0 | AM233: 0 | AN233: 0 | AO233: 0 | AP233: 0 | AQ233: 0 | AR233: 0 | AS233: 0 | AT233: 0 | AU233: 0 | AV233: 0 | AW233: 0 | AX233: 0 | AY233: 0 | AZ233: 0
B255: Figure 11b Évolution du volume de sapin et d'épinettes sur pied dans la composante SEPM
U262: Colonne | V262: 6 | W262: 7 | X262: 8 | Y262: 9 | Z262: 10 | AA262: 11 | AB262: 12 | AC262: 13 | AD262: 14 | AE262: 15 | AF262: 16 | AG262: 17 | AH262: 18 | AI262: 19 | AJ262: 20 | AK262: 21 | AL262: 22 | AM262: 23 | AN262: 24 | AO262: 25 | AP262: 26 | AQ262: 27 | AR262: 28 | AS262: 29 | AT262: 30 | AU262: 31 | AV262: 32 | AW262: 33 | AX262: 34 | AY262: 35 | AZ262: 36
U263: Axe des "X" Fin de période | V263: 2018 | W263: 2023 | X263: 2028 | Y263: 2033 | Z263: 2038 | AA263: 2043 | AB263: 2048 | AC263: 2053 | AD263: 2058 | AE263: 2063 | AF263: 2068 | AG263: 2073 | AH263: 2078 | AI263: 2083 | AJ263: 2088 | AK263: 2093 | AL263: 2098 | AM263: 2103 | AN263: 2108 | AO263: 2113 | AP263: 2118 | AQ263: 2123 | AR263: 2128 | AS263: 2133 | AT263: 2138 | AU263: 2143 | AV263: 2148 | AW263: 2153 | AX263: 2158 | AY263: 2163 | AZ263: 2168
S264: =LEFT(B$255,10) -> Figure 11b | U264: Période | V264: P0 | W264: P1 | X264: P2 | Y264: P3 | Z264: P4 | AA264: P5 | AB264: P6 | AC264: P7 | AD264: P8 | AE264: P9 | AF264: P10 | AG264: P11 | AH264: P12 | AI264: P13 | AJ264: P14 | AK264: P15 | AL264: P16 | AM264: P17 | AN264: P18 | AO264: P19 | AP264: P20 | AQ264: P21 | AR264: P22 | AS264: P23 | AT264: P24 | AU264: P25 | AV264: P26 | AW264: P27 | AX264: P28 | AY264: P29 | AZ264: P30
S265: Figure 11b | T265: Légende | Y265: PERIOD3 | Z265: PERIOD4 | AA265: PERIOD5 | AB265: PERIOD6 | AC265: PERIOD7 | AD265: PERIOD8 | AE265: PERIOD9 | AF265: PERIOD10 | AG265: PERIOD11 | AH265: PERIOD12 | AI265: PERIOD13 | AJ265: PERIOD14 | AK265: PERIOD15 | AL265: PERIOD16 | AM265: PERIOD17 | AN265: PERIOD18 | AO265: PERIOD19 | AP265: PERIOD20 | AQ265: PERIOD21 | AR265: PERIOD22 | AS265: PERIOD23 | AT265: PERIOD24 | AU265: PERIOD25 | AV265: PERIOD26 | AW265: PERIOD27 | AX265: PERIOD28 | AY265: PERIOD29 | AZ265: PERIOD30
S266: Figure 11b | T266: Volume Sapin | U266: OVOLSABPIEDINC(FCTYF_SEPM) | V266: =VLOOKUP($U266,GTYF!$C:$AL,Figures!V$262,FALSE) -> 1404078.84 | W266: =VLOOKUP($U266,GTYF!$C:$AL,Figures!W$262,FALSE) -> 1521557.65 | X266: =VLOOKUP($U266,GTYF!$C:$AL,Figures!X$262,FALSE) -> 1534506.66 | Y266: =VLOOKUP($U266,GTYF!$C:$AL,Figures!Y$262,FALSE) -> 1431483.18 | Z266: =VLOOKUP($U266,GTYF!$C:$AL,Figures!Z$262,FALSE) -> 1364502.08 | AA266: =VLOOKUP($U266,GTYF!$C:$AL,Figures!AA$262,FALSE) -> 1202443.51 | AB266: =VLOOKUP($U266,GTYF!$C:$AL,Figures!AB$262,FALSE) -> 1129487.66 | AC266: =VLOOKUP($U266,GTYF!$C:$AL,Figures!AC$262,FALSE) -> 1015966.17 | AD266: =VLOOKUP($U266,GTYF!$C:$AL,Figures!AD$262,FALSE) -> 961644.57 | AE266: =VLOOKUP($U266,GTYF!$C:$AL,Figures!AE$262,FALSE) -> 853560.14 | AF266: =VLOOKUP($U266,GTYF!$C:$AL,Figures!AF$262,FALSE) -> 832651.8 | AG266: =VLOOKUP($U266,GTYF!$C:$AL,Figures!AG$262,FALSE) -> 790571.23 | AH266: =VLOOKUP($U266,GTYF!$C:$AL,Figures!AH$262,FALSE) -> 801217.86 | AI266: =VLOOKUP($U266,GTYF!$C:$AL,Figures!AI$262,FALSE) -> 758601.58 | AJ266: =VLOOKUP($U266,GTYF!$C:$AL,Figures!AJ$262,FALSE) -> 769634.45 | AK266: =VLOOKUP($U266,GTYF!$C:$AL,Figures!AK$262,FALSE) -> 736609.2 | AL266: =VLOOKUP($U266,GTYF!$C:$AL,Figures!AL$262,FALSE) -> 664392.09 | AM266: =VLOOKUP($U266,GTYF!$C:$AL,Figures!AM$262,FALSE) -> 624145.85 | AN266: =VLOOKUP($U266,GTYF!$C:$AL,Figures!AN$262,FALSE) -> 615734.64 | AO266: =VLOOKUP($U266,GTYF!$C:$AL,Figures!AO$262,FALSE) -> 582035.21 | AP266: =VLOOKUP($U266,GTYF!$C:$AL,Figures!AP$262,FALSE) -> 589343.63 | AQ266: =VLOOKUP($U266,GTYF!$C:$AL,Figures!AQ$262,FALSE) -> 611484.51 | AR266: =VLOOKUP($U266,GTYF!$C:$AL,Figures!AR$262,FALSE) -> 603984.98 | AS266: =VLOOKUP($U266,GTYF!$C:$AL,Figures!AS$262,FALSE) -> 557320.62 | AT266: =VLOOKUP($U266,GTYF!$C:$AL,Figures!AT$262,FALSE) -> 541111.4 | AU266: =VLOOKUP($U266,GTYF!$C:$AL,Figures!AU$262,FALSE) -> 544883.27 | AV266: =VLOOKUP($U266,GTYF!$C:$AL,Figures!AV$262,FALSE) -> 565993.86 | AW266: =VLOOKUP($U266,GTYF!$C:$AL,Figures!AW$262,FALSE) -> 581978.46 | AX266: =VLOOKUP($U266,GTYF!$C:$AL,Figures!AX$262,FALSE) -> 591374.43 | AY266: =VLOOKUP($U266,GTYF!$C:$AL,Figures!AY$262,FALSE) -> 593371.3 | AZ266: =VLOOKUP($U266,GTYF!$C:$AL,Figures!AZ$262,FALSE) -> 588490.78
S267: Figure 11b | T267: Volume Épinettes | U267: OVOLGEPXPIEDINC(FCTYF_SEPM) | V267: =VLOOKUP($U267,GTYF!$C:$AL,Figures!V$262,FALSE) -> 3665174.19 | W267: =VLOOKUP($U267,GTYF!$C:$AL,Figures!W$262,FALSE) -> 4058311.85 | X267: =VLOOKUP($U267,GTYF!$C:$AL,Figures!X$262,FALSE) -> 4265701.22 | Y267: =VLOOKUP($U267,GTYF!$C:$AL,Figures!Y$262,FALSE) -> 4360032.82 | Z267: =VLOOKUP($U267,GTYF!$C:$AL,Figures!Z$262,FALSE) -> 4563386.43 | AA267: =VLOOKUP($U267,GTYF!$C:$AL,Figures!AA$262,FALSE) -> 4815281.79 | AB267: =VLOOKUP($U267,GTYF!$C:$AL,Figures!AB$262,FALSE) -> 5121938.22 | AC267: =VLOOKUP($U267,GTYF!$C:$AL,Figures!AC$262,FALSE) -> 5372314.75 | AD267: =VLOOKUP($U267,GTYF!$C:$AL,Figures!AD$262,FALSE) -> 5393116.68 | AE267: =VLOOKUP($U267,GTYF!$C:$AL,Figures!AE$262,FALSE) -> 5394486.93 | AF267: =VLOOKUP($U267,GTYF!$C:$AL,Figures!AF$262,FALSE) -> 5340050.4 | AG267: =VLOOKUP($U267,GTYF!$C:$AL,Figures!AG$262,FALSE) -> 5306710.65 | AH267: =VLOOKUP($U267,GTYF!$C:$AL,Figures!AH$262,FALSE) -> 5269014.03 | AI267: =VLOOKUP($U267,GTYF!$C:$AL,Figures!AI$262,FALSE) -> 5224339.35 | AJ267: =VLOOKUP($U267,GTYF!$C:$AL,Figures!AJ$262,FALSE) -> 5230796.58 | AK267: =VLOOKUP($U267,GTYF!$C:$AL,Figures!AK$262,FALSE) -> 5217389.43 | AL267: =VLOOKUP($U267,GTYF!$C:$AL,Figures!AL$262,FALSE) -> 5125035.8 | AM267: =VLOOKUP($U267,GTYF!$C:$AL,Figures!AM$262,FALSE) -> 5101124.9 | AN267: =VLOOKUP($U267,GTYF!$C:$AL,Figures!AN$262,FALSE) -> 5193373.97 | AO267: =VLOOKUP($U267,GTYF!$C:$AL,Figures!AO$262,FALSE) -> 5378170.59 | AP267: =VLOOKUP($U267,GTYF!$C:$AL,Figures!AP$262,FALSE) -> 5586546.81 | AQ267: =VLOOKUP($U267,GTYF!$C:$AL,Figures!AQ$262,FALSE) -> 5840343.89 | AR267: =VLOOKUP($U267,GTYF!$C:$AL,Figures!AR$262,FALSE) -> 5941853.13 | AS267: =VLOOKUP($U267,GTYF!$C:$AL,Figures!AS$262,FALSE) -> 6125626.67 | AT267: =VLOOKUP($U267,GTYF!$C:$AL,Figures!AT$262,FALSE) -> 5958625.84 | AU267: =VLOOKUP($U267,GTYF!$C:$AL,Figures!AU$262,FALSE) -> 5802423.06 | AV267: =VLOOKUP($U267,GTYF!$C:$AL,Figures!AV$262,FALSE) -> 5779867.81 | AW267: =VLOOKUP($U267,GTYF!$C:$AL,Figures!AW$262,FALSE) -> 5761563.81 | AX267: =VLOOKUP($U267,GTYF!$C:$AL,Figures!AX$262,FALSE) -> 5727690.93 | AY267: =VLOOKUP($U267,GTYF!$C:$AL,Figures!AY$262,FALSE) -> 5762256.92 | AZ267: =VLOOKUP($U267,GTYF!$C:$AL,Figures!AZ$262,FALSE) -> 5847141.63
S268: Figure 11b
S269: Figure 11b | T269: SEPM sur pied | U269: OVOLGSEPMPIEDINC(FCTYF_SEPM) | V269: =VLOOKUP($U269,GTYF!$C:$AL,Figures!V$262,FALSE) -> 5650332.48 | W269: =VLOOKUP($U269,GTYF!$C:$AL,Figures!W$262,FALSE) -> 6245721.83 | X269: =VLOOKUP($U269,GTYF!$C:$AL,Figures!X$262,FALSE) -> 6509477.74 | Y269: =VLOOKUP($U269,GTYF!$C:$AL,Figures!Y$262,FALSE) -> 6549038.2 | Z269: =VLOOKUP($U269,GTYF!$C:$AL,Figures!Z$262,FALSE) -> 6727937.37 | AA269: =VLOOKUP($U269,GTYF!$C:$AL,Figures!AA$262,FALSE) -> 6819603.83 | AB269: =VLOOKUP($U269,GTYF!$C:$AL,Figures!AB$262,FALSE) -> 6975151.72 | AC269: =VLOOKUP($U269,GTYF!$C:$AL,Figures!AC$262,FALSE) -> 7217340.17 | AD269: =VLOOKUP($U269,GTYF!$C:$AL,Figures!AD$262,FALSE) -> 7187939.28 | AE269: =VLOOKUP($U269,GTYF!$C:$AL,Figures!AE$262,FALSE) -> 7132048.12 | AF269: =VLOOKUP($U269,GTYF!$C:$AL,Figures!AF$262,FALSE) -> 7199617.68 | AG269: =VLOOKUP($U269,GTYF!$C:$AL,Figures!AG$262,FALSE) -> 7240583.99 | AH269: =VLOOKUP($U269,GTYF!$C:$AL,Figures!AH$262,FALSE) -> 7245743.23 | AI269: =VLOOKUP($U269,GTYF!$C:$AL,Figures!AI$262,FALSE) -> 7252707.52 | AJ269: =VLOOKUP($U269,GTYF!$C:$AL,Figures!AJ$262,FALSE) -> 7322509.22 | AK269: =VLOOKUP($U269,GTYF!$C:$AL,Figures!AK$262,FALSE) -> 7376470.08 | AL269: =VLOOKUP($U269,GTYF!$C:$AL,Figures!AL$262,FALSE) -> 7330729.03 | AM269: =VLOOKUP($U269,GTYF!$C:$AL,Figures!AM$262,FALSE) -> 7359336.06 | AN269: =VLOOKUP($U269,GTYF!$C:$AL,Figures!AN$262,FALSE) -> 7361991.18 | AO269: =VLOOKUP($U269,GTYF!$C:$AL,Figures!AO$262,FALSE) -> 7417007.67 | AP269: =VLOOKUP($U269,GTYF!$C:$AL,Figures!AP$262,FALSE) -> 7534307.18 | AQ269: =VLOOKUP($U269,GTYF!$C:$AL,Figures!AQ$262,FALSE) -> 7528371.7 | AR269: =VLOOKUP($U269,GTYF!$C:$AL,Figures!AR$262,FALSE) -> 7610618.91 | AS269: =VLOOKUP($U269,GTYF!$C:$AL,Figures!AS$262,FALSE) -> 7667989.12 | AT269: =VLOOKUP($U269,GTYF!$C:$AL,Figures!AT$262,FALSE) -> 7429474.23 | AU269: =VLOOKUP($U269,GTYF!$C:$AL,Figures!AU$262,FALSE) -> 7231614.65 | AV269: =VLOOKUP($U269,GTYF!$C:$AL,Figures!AV$262,FALSE) -> 7234688.74 | AW269: =VLOOKUP($U269,GTYF!$C:$AL,Figures!AW$262,FALSE) -> 7271725.6 | AX269: =VLOOKUP($U269,GTYF!$C:$AL,Figures!AX$262,FALSE) -> 7316385.96 | AY269: =VLOOKUP($U269,GTYF!$C:$AL,Figures!AY$262,FALSE) -> 7416202.63 | AZ269: =VLOOKUP($U269,GTYF!$C:$AL,Figures!AZ$262,FALSE) -> 7588831.62
S270: Figure 11b
S271: Figure 11b | T271: % Sapin | V271: =IF(ISERROR(V266),0,V266/V269) -> 0.2484949063 | W271: 0.2436159809 | X271: 0.2357342204 | Y271: 0.2185791465 | Z271: 0.2028113529 | AA271: 0.1763216075 | AB271: 0.1619301924 | AC271: 0.1407673944 | AD271: 0.1337858505 | AE271: 0.1196795262 | AF271: 0.1156522245 | AG271: 0.1091861141 | AH271: 0.110577733 | AI271: 0.1045956393 | AJ271: 0.1051052893 | AK271: 0.09985930832 | AL271: 0.09063110739 | AM271: 0.08481007592 | AN271: 0.08363697062 | AO271: 0.0784730495 | AP271: 0.07822134351 | AQ271: 0.08122400625 | AR271: 0.07936082297 | AS271: 0.0726814568 | AT271: 0.07283306776 | AU271: 0.07534738732 | AV271: 0.07823333945 | AW271: 0.0800330612 | AX271: 0.08082876344 | AY271: 0.08001012507 | AZ271: 0.07754695445
S272: Figure 11b | T272: % Épinettes | V272: =IF(ISERROR(V267),0,V267/V269) -> 0.6486652251 | W272: =IF(ISERROR(W267),0,W267/W269) -> 0.6497746714 | X272: 0.6553062151 | Y272: 0.6657516244 | Z272: 0.6782742138 | AA272: 0.706094065 | AB272: 0.7343120875 | AC272: 0.7443621367 | AD272: 0.7503008122 | AE272: 0.7563727613 | AF272: 0.7417130516 | AG272: 0.7329119664 | AH272: 0.7271875172 | AI272: 0.7203295232 | AJ272: 0.7143448267 | AK272: 0.7073016461 | AL272: 0.6991167971 | AM272: 0.6931501508 | AN272: 0.7054306156 | AO272: 0.7251132572 | AP272: 0.7414811577 | AQ272: 0.7757778339 | AR272: 0.7807319221 | AS272: 0.7988569851 | AT272: 0.8020252383 | AU272: 0.8023689509 | AV272: 0.7989103634 | AW272: 0.7923241507 | AX272: 0.7828579522 | AY272: 0.7769821305 | AZ272: 0.7704929985
S273: Figure 11b | T273: % Volume autre | V273: =1-(V272+V271) -> 0.1028398686 | W273: 0.1066093477 | X273: 0.1089595646 | Y273: 0.1156692291 | Z273: 0.1189144334 | AA273: 0.1175843275 | AB273: 0.1037577201 | AC273: 0.114870469 | AD273: 0.1159133373 | AE273: 0.1239477125 | AF273: 0.1426347239 | AG273: 0.1579019195 | AH273: 0.1622347498 | AI273: 0.1750748374 | AJ273: 0.180549884 | AK273: 0.1928390456 | AL273: 0.2102520955 | AM273: 0.2220397732 | AN273: 0.2109324138 | AO273: 0.1964136933 | AP273: 0.1802974988 | AQ273: 0.1429981599 | AR273: 0.1399072549 | AS273: 0.1284615581 | AT273: 0.1251416939 | AU273: 0.1222836618 | AV273: 0.1228562972 | AW273: 0.1276427881 | AX273: 0.1363132844 | AY273: 0.1430077444 | AZ273: 0.151960047
B278: Figure 14 Indicateur de productivité
... 351 more rows

Sheet UTA
M1: Jeune forêt | R1: Niveau d'altération des vieilles forêts | W1: Niveau d'altération combiné | AA1: Info à récupérer par le SSP Niveau d'altération des vieilles forêts
A2: Inscrire la liste des numéros d'UTA de l'UA: | B2: VieuxAlerte (%) | C2: VieuxAccept (%) | D2: RegeAlerte (%) | E2: RegeAccept (%) | G2: VieuxAlerte (ha) | H2: VieuxAccept (ha) | I2: RegeAlerte (ha) | J2: RegeAccept (ha) | K2: SupUTA | M2: OSUPJEUNEREGECO PERIOD1 (%) | N2: État Jeune 2023 | O2: OSUPJEUNEREGECO PERIOD6 (%) | P2: État Jeune 2048 | R2: OSUPVIEUXTOTREGECO PERIOD1 (%) | S2: État Vielle 2023 | T2: OSUPVIEUXTOTREGECO PERIOD6 (%) | U2: État Vielle 2048 | W2: UTA | X2: 2023 | Y2: 2048 | AA2: UA | AB2: UTA | AC2: 2023 | AD2: 2048 | AE2: Mode de répartition spatiale | AP2: Mode de répartition spatiale
A3: UTA36 | B3: =ROUND(G3/$K3,3) -> 0.201 | C3: =ROUND(H3/$K3,3) -> 0.335 | D3: =ROUND(I3/$K3,3) -> 0.3 | E3: =ROUND(J3/$K3,3) -> 0.2 | G3: =VLOOKUP(CONCATENATE("OSUPVIEUXALERTEREGECO_"&A3),Output!$C:$AQ,6,FALSE) -> 7135.88 | H3: =VLOOKUP(CONCATENATE("OSUPVIEUXACCEPTREGECO_"&A3),Output!$C:$AQ,6,FALSE) -> 11893.14 | I3: =VLOOKUP(CONCATENATE("OSUPJEUNEALERTEREGECO_"&A3),Output!$C:$AQ,6,FALSE) -> 10650.57 | J3: =VLOOKUP(CONCATENATE("OSUPJEUNEACCEPTREGECO_"&A3),Output!$C:$AQ,6,FALSE) -> 7100.38 | K3: =VLOOKUP(CONCATENATE("OSUPREGECO_"&A3),Output!$C:$AQ,6,FALSE) -> 35501.9 | M3: =ROUND(VLOOKUP("OSUPJEUNEREGECO_"&A3,Output!$C:$AQ,7,FALSE)/VLOOKUP("OSUPREGECO_"&A3,Output!$C:$AQ,6,FALSE),3) -> 0.067 | N3: =IF(M3<=$E3,"Faible",IF(M3<$D3,"Modéré","Supérieur")) -> Faible | O3: =ROUND(VLOOKUP("OSUPJEUNEREGECO_"&$A3,Output!$C:$AQ,12,FALSE)/VLOOKUP("OSUPREGECO_"&A3,Output!$C:$AQ,6,FALSE),3) -> 0.12 | P3: =IF(O3<=$E3,"Faible",IF(O3<$D3,"Modéré","Supérieur")) -> Faible | R3: =ROUND(VLOOKUP("OSUPVIEUXTOTREGECO_"&$A3,Output!$C:$AQ,7,FALSE)/VLOOKUP("OSUPREGECO_"&A3,Output!$C:$AQ,6,FALSE),3) -> 0.29 | S3: =IF(R3<$B3,"Supérieur",IF(R3<$C3,"Modéré","Faible")) -> Modéré | T3: =ROUND(VLOOKUP("OSUPVIEUXTOTREGECO_"&$A3,Output!$C:$AQ,12,FALSE)/VLOOKUP("OSUPREGECO_"&A3,Output!$C:$AQ,6,FALSE),3) -> 0.472 | U3: =IF(T3<$B3,"Supérieur",IF(T3<$C3,"Modéré","Faible")) -> Faible | W3: =A3 -> UTA36 | X3: =IF(S3>N3,S3,N3) -> Modéré | Y3: =IF(U3>P3,U3,P3) -> Faible | AA3: =Tableaux!$O$33 -> 07352 | AB3: =W3 -> UTA36 | AC3: =S3 -> Modéré | AD3: =U3 -> Faible | AE3: COS sapinière | AG3: Note: "Élevé" a été renommé "Supérieur" pour le bon fonctionnement des formules. | AP3: COS sapinière
A4: UTA37 | B4: =ROUND(G4/$K4,3) -> 0.174 | C4: 0.29 | D4: 0.3 | E4: 0.2 | G4: =VLOOKUP(CONCATENATE("OSUPVIEUXALERTEREGECO_"&A4),Output!$C:$AQ,6,FALSE) -> 7044.93 | H4: =VLOOKUP(CONCATENATE("OSUPVIEUXACCEPTREGECO_"&A4),Output!$C:$AQ,6,FALSE) -> 11741.55 | I4: =VLOOKUP(CONCATENATE("OSUPJEUNEALERTEREGECO_"&A4),Output!$C:$AQ,6,FALSE) -> 12146.43 | J4: =VLOOKUP(CONCATENATE("OSUPJEUNEACCEPTREGECO_"&A4),Output!$C:$AQ,6,FALSE) -> 8097.62 | K4: =VLOOKUP(CONCATENATE("OSUPREGECO_"&A4),Output!$C:$AQ,6,FALSE) -> 40488.1 | M4: =ROUND(VLOOKUP("OSUPJEUNEREGECO_"&A4,Output!$C:$AQ,7,FALSE)/VLOOKUP("OSUPREGECO_"&A4,Output!$C:$AQ,6,FALSE),3) -> 0.105 | N4: =IF(M4<=$E4,"Faible",IF(M4<$D4,"Modéré","Supérieur")) -> Faible | O4: =ROUND(VLOOKUP("OSUPJEUNEREGECO_"&$A4,Output!$C:$AQ,12,FALSE)/VLOOKUP("OSUPREGECO_"&A4,Output!$C:$AQ,6,FALSE),3) -> 0.067 | P4: =IF(O4<=$E4,"Faible",IF(O4<$D4,"Modéré","Supérieur")) -> Faible | R4: =ROUND(VLOOKUP("OSUPVIEUXTOTREGECO_"&$A4,Output!$C:$AQ,7,FALSE)/VLOOKUP("OSUPREGECO_"&A4,Output!$C:$AQ,6,FALSE),3) -> 0.345 | S4: =IF(R4<$B4,"Supérieur",IF(R4<$C4,"Modéré","Faible")) -> Faible | T4: =ROUND(VLOOKUP("OSUPVIEUXTOTREGECO_"&$A4,Output!$C:$AQ,12,FALSE)/VLOOKUP("OSUPREGECO_"&A4,Output!$C:$AQ,6,FALSE),3) -> 0.49 | U4: =IF(T4<$B4,"Supérieur",IF(T4<$C4,"Modéré","Faible")) -> Faible | W4: =A4 -> UTA37 | X4: =IF(S4>N4,S4,N4) -> Faible | Y4: =IF(U4>P4,U4,P4) -> Faible | AA4: =Tableaux!$O$33 -> 07352 | AB4: =W4 -> UTA37 | AC4: =S4 -> Faible | AD4: =U4 -> Faible | AE4: COS sapinière | AP4: COS pessière
A5: UTA38 | B5: 0.174 | C5: 0.29 | D5: 0.3 | E5: 0.2 | G5: =VLOOKUP(CONCATENATE("OSUPVIEUXALERTEREGECO_"&A5),Output!$C:$AQ,6,FALSE) -> 10322.78 | H5: =VLOOKUP(CONCATENATE("OSUPVIEUXACCEPTREGECO_"&A5),Output!$C:$AQ,6,FALSE) -> 17204.63 | I5: =VLOOKUP(CONCATENATE("OSUPJEUNEALERTEREGECO_"&A5),Output!$C:$AQ,6,FALSE) -> 17797.89 | J5: =VLOOKUP(CONCATENATE("OSUPJEUNEACCEPTREGECO_"&A5),Output!$C:$AQ,6,FALSE) -> 11865.26 | K5: =VLOOKUP(CONCATENATE("OSUPREGECO_"&A5),Output!$C:$AQ,6,FALSE) -> 59326.3 | M5: =ROUND(VLOOKUP("OSUPJEUNEREGECO_"&A5,Output!$C:$AQ,7,FALSE)/VLOOKUP("OSUPREGECO_"&A5,Output!$C:$AQ,6,FALSE),3) -> 0.012 | N5: Faible | O5: =ROUND(VLOOKUP("OSUPJEUNEREGECO_"&$A5,Output!$C:$AQ,12,FALSE)/VLOOKUP("OSUPREGECO_"&A5,Output!$C:$AQ,6,FALSE),3) -> 0.02 | P5: Faible | R5: =ROUND(VLOOKUP("OSUPVIEUXTOTREGECO_"&$A5,Output!$C:$AQ,7,FALSE)/VLOOKUP("OSUPREGECO_"&A5,Output!$C:$AQ,6,FALSE),3) -> 0.385 | S5: Faible | T5: =ROUND(VLOOKUP("OSUPVIEUXTOTREGECO_"&$A5,Output!$C:$AQ,12,FALSE)/VLOOKUP("OSUPREGECO_"&A5,Output!$C:$AQ,6,FALSE),3) -> 0.651 | U5: Faible | W5: UTA38 | X5: Faible | Y5: Faible | AA5: =Tableaux!$O$33 -> 07352 | AB5: =W5 -> UTA38 | AC5: =S5 -> Faible | AD5: =U5 -> Faible | AE5: COS sapinière | AP5: CMO
A6: UTA39 | B6: 0.174 | C6: 0.29 | D6: 0.3 | E6: 0.2 | G6: =VLOOKUP(CONCATENATE("OSUPVIEUXALERTEREGECO_"&A6),Output!$C:$AQ,6,FALSE) -> 5480.01 | H6: =VLOOKUP(CONCATENATE("OSUPVIEUXACCEPTREGECO_"&A6),Output!$C:$AQ,6,FALSE) -> 9133.35 | I6: =VLOOKUP(CONCATENATE("OSUPJEUNEALERTEREGECO_"&A6),Output!$C:$AQ,6,FALSE) -> 9448.29 | J6: =VLOOKUP(CONCATENATE("OSUPJEUNEACCEPTREGECO_"&A6),Output!$C:$AQ,6,FALSE) -> 6298.86 | K6: =VLOOKUP(CONCATENATE("OSUPREGECO_"&A6),Output!$C:$AQ,6,FALSE) -> 31494.3 | M6: =ROUND(VLOOKUP("OSUPJEUNEREGECO_"&A6,Output!$C:$AQ,7,FALSE)/VLOOKUP("OSUPREGECO_"&A6,Output!$C:$AQ,6,FALSE),3) -> 0.019 | N6: Faible | O6: =ROUND(VLOOKUP("OSUPJEUNEREGECO_"&$A6,Output!$C:$AQ,12,FALSE)/VLOOKUP("OSUPREGECO_"&A6,Output!$C:$AQ,6,FALSE),3) -> 0.088 | P6: Faible | R6: =ROUND(VLOOKUP("OSUPVIEUXTOTREGECO_"&$A6,Output!$C:$AQ,7,FALSE)/VLOOKUP("OSUPREGECO_"&A6,Output!$C:$AQ,6,FALSE),3) -> 0.305 | S6: Faible | T6: =ROUND(VLOOKUP("OSUPVIEUXTOTREGECO_"&$A6,Output!$C:$AQ,12,FALSE)/VLOOKUP("OSUPREGECO_"&A6,Output!$C:$AQ,6,FALSE),3) -> 0.455 | U6: Faible | W6: UTA39 | X6: Faible | Y6: Faible | AA6: =Tableaux!$O$33 -> 07352 | AB6: UTA39 | AC6: Faible | AD6: =U6 -> Faible | AE6: COS sapinière | AP6: CMO entente Cris
A7: UTA40 | B7: 0.174 | C7: 0.29 | D7: 0.3 | E7: 0.2 | G7: =VLOOKUP(CONCATENATE("OSUPVIEUXALERTEREGECO_"&A7),Output!$C:$AQ,6,FALSE) -> 6163.62 | H7: =VLOOKUP(CONCATENATE("OSUPVIEUXACCEPTREGECO_"&A7),Output!$C:$AQ,6,FALSE) -> 10272.7 | I7: =VLOOKUP(CONCATENATE("OSUPJEUNEALERTEREGECO_"&A7),Output!$C:$AQ,6,FALSE) -> 10626.93 | J7: =VLOOKUP(CONCATENATE("OSUPJEUNEACCEPTREGECO_"&A7),Output!$C:$AQ,6,FALSE) -> 7084.62 | K7: =VLOOKUP(CONCATENATE("OSUPREGECO_"&A7),Output!$C:$AQ,6,FALSE) -> 35423.1 | M7: =ROUND(VLOOKUP("OSUPJEUNEREGECO_"&A7,Output!$C:$AQ,7,FALSE)/VLOOKUP("OSUPREGECO_"&A7,Output!$C:$AQ,6,FALSE),3) -> 0.038 | N7: Faible | O7: =ROUND(VLOOKUP("OSUPJEUNEREGECO_"&$A7,Output!$C:$AQ,12,FALSE)/VLOOKUP("OSUPREGECO_"&A7,Output!$C:$AQ,6,FALSE),3) -> 0.178 | P7: Faible | R7: =ROUND(VLOOKUP("OSUPVIEUXTOTREGECO_"&$A7,Output!$C:$AQ,7,FALSE)/VLOOKUP("OSUPREGECO_"&A7,Output!$C:$AQ,6,FALSE),3) -> 0.291 | S7: Faible | T7: =ROUND(VLOOKUP("OSUPVIEUXTOTREGECO_"&$A7,Output!$C:$AQ,12,FALSE)/VLOOKUP("OSUPREGECO_"&A7,Output!$C:$AQ,6,FALSE),3) -> 0.482 | U7: Faible | W7: UTA40 | X7: Faible | Y7: Faible | AA7: =Tableaux!$O$33 -> 07352 | AB7: UTA40 | AC7: =S7 -> Faible | AD7: =U7 -> Faible | AE7: COS sapinière | AG7: Voir à renommer "Élevé" dans la légende des figures | AP7: CMO entente BM
A8: UTA41 | B8: 0.174 | C8: 0.29 | D8: 0.3 | E8: 0.2 | G8: =VLOOKUP(CONCATENATE("OSUPVIEUXALERTEREGECO_"&A8),Output!$C:$AQ,6,FALSE) -> 7823.23 | H8: =VLOOKUP(CONCATENATE("OSUPVIEUXACCEPTREGECO_"&A8),Output!$C:$AQ,6,FALSE) -> 13038.72 | I8: =VLOOKUP(CONCATENATE("OSUPJEUNEALERTEREGECO_"&A8),Output!$C:$AQ,6,FALSE) -> 13488.33 | J8: =VLOOKUP(CONCATENATE("OSUPJEUNEACCEPTREGECO_"&A8),Output!$C:$AQ,6,FALSE) -> 8992.22 | K8: =VLOOKUP(CONCATENATE("OSUPREGECO_"&A8),Output!$C:$AQ,6,FALSE) -> 44961.1 | M8: =ROUND(VLOOKUP("OSUPJEUNEREGECO_"&A8,Output!$C:$AQ,7,FALSE)/VLOOKUP("OSUPREGECO_"&A8,Output!$C:$AQ,6,FALSE),3) -> 0.092 | N8: Faible | O8: =ROUND(VLOOKUP("OSUPJEUNEREGECO_"&$A8,Output!$C:$AQ,12,FALSE)/VLOOKUP("OSUPREGECO_"&A8,Output!$C:$AQ,6,FALSE),3) -> 0.153 | P8: Faible | R8: =ROUND(VLOOKUP("OSUPVIEUXTOTREGECO_"&$A8,Output!$C:$AQ,7,FALSE)/VLOOKUP("OSUPREGECO_"&A8,Output!$C:$AQ,6,FALSE),3) -> 0.332 | S8: Faible | T8: =ROUND(VLOOKUP("OSUPVIEUXTOTREGECO_"&$A8,Output!$C:$AQ,12,FALSE)/VLOOKUP("OSUPREGECO_"&A8,Output!$C:$AQ,6,FALSE),3) -> 0.404 | U8: Faible | W8: UTA41 | X8: Faible | Y8: Faible | AA8: =Tableaux!$O$33 -> 07352 | AB8: UTA41 | AC8: Faible | AD8: Faible | AE8: COS sapinière
A9: UTA42 | B9: 0.174 | C9: 0.29 | D9: 0.3 | E9: 0.2 | G9: =VLOOKUP(CONCATENATE("OSUPVIEUXALERTEREGECO_"&A9),Output!$C:$AQ,6,FALSE) -> 5326.8 | H9: =VLOOKUP(CONCATENATE("OSUPVIEUXACCEPTREGECO_"&A9),Output!$C:$AQ,6,FALSE) -> 8878 | I9: =VLOOKUP(CONCATENATE("OSUPJEUNEALERTEREGECO_"&A9),Output!$C:$AQ,6,FALSE) -> 9184.14 | J9: =VLOOKUP(CONCATENATE("OSUPJEUNEACCEPTREGECO_"&A9),Output!$C:$AQ,6,FALSE) -> 6122.76 | K9: =VLOOKUP(CONCATENATE("OSUPREGECO_"&A9),Output!$C:$AQ,6,FALSE) -> 30613.8 | M9: =ROUND(VLOOKUP("OSUPJEUNEREGECO_"&A9,Output!$C:$AQ,7,FALSE)/VLOOKUP("OSUPREGECO_"&A9,Output!$C:$AQ,6,FALSE),3) -> 0.046 | N9: Faible | O9: =ROUND(VLOOKUP("OSUPJEUNEREGECO_"&$A9,Output!$C:$AQ,12,FALSE)/VLOOKUP("OSUPREGECO_"&A9,Output!$C:$AQ,6,FALSE),3) -> 0.118 | P9: Faible | R9: =ROUND(VLOOKUP("OSUPVIEUXTOTREGECO_"&$A9,Output!$C:$AQ,7,FALSE)/VLOOKUP("OSUPREGECO_"&A9,Output!$C:$AQ,6,FALSE),3) -> 0.441 | S9: Faible | T9: =ROUND(VLOOKUP("OSUPVIEUXTOTREGECO_"&$A9,Output!$C:$AQ,12,FALSE)/VLOOKUP("OSUPREGECO_"&A9,Output!$C:$AQ,6,FALSE),3) -> 0.477 | U9: Faible | W9: UTA42 | X9: Faible | Y9: Faible | AA9: =Tableaux!$O$33 -> 07352 | AB9: UTA42 | AC9: Faible | AD9: Faible | AE9: COS sapinière
A10: UTA43 | B10: 0.174 | C10: 0.29 | D10: 0.3 | E10: 0.2 | G10: =VLOOKUP(CONCATENATE("OSUPVIEUXALERTEREGECO_"&A10),Output!$C:$AQ,6,FALSE) -> 8740.33 | H10: =VLOOKUP(CONCATENATE("OSUPVIEUXACCEPTREGECO_"&A10),Output!$C:$AQ,6,FALSE) -> 14567.22 | I10: =VLOOKUP(CONCATENATE("OSUPJEUNEALERTEREGECO_"&A10),Output!$C:$AQ,6,FALSE) -> 15069.54 | J10: =VLOOKUP(CONCATENATE("OSUPJEUNEACCEPTREGECO_"&A10),Output!$C:$AQ,6,FALSE) -> 10046.36 | K10: =VLOOKUP(CONCATENATE("OSUPREGECO_"&A10),Output!$C:$AQ,6,FALSE) -> 50231.8 | M10: =ROUND(VLOOKUP("OSUPJEUNEREGECO_"&A10,Output!$C:$AQ,7,FALSE)/VLOOKUP("OSUPREGECO_"&A10,Output!$C:$AQ,6,FALSE),3) -> 0.114 | N10: Faible | O10: =ROUND(VLOOKUP("OSUPJEUNEREGECO_"&$A10,Output!$C:$AQ,12,FALSE)/VLOOKUP("OSUPREGECO_"&A10,Output!$C:$AQ,6,FALSE),3) -> 0.083 | P10: Faible | R10: =ROUND(VLOOKUP("OSUPVIEUXTOTREGECO_"&$A10,Output!$C:$AQ,7,FALSE)/VLOOKUP("OSUPREGECO_"&A10,Output!$C:$AQ,6,FALSE),3) -> 0.32 | S10: Faible | T10: =ROUND(VLOOKUP("OSUPVIEUXTOTREGECO_"&$A10,Output!$C:$AQ,12,FALSE)/VLOOKUP("OSUPREGECO_"&A10,Output!$C:$AQ,6,FALSE),3) -> 0.411 | U10: Faible | W10: UTA43 | X10: Faible | Y10: Faible | AA10: =Tableaux!$O$33 -> 07352 | AB10: UTA43 | AC10: Faible | AD10: Faible | AE10: COS sapinière
A11: UTA44 | B11: 0.174 | C11: 0.29 | D11: 0.3 | E11: =ROUND(J11/$K11,3) -> 0.2 | G11: =VLOOKUP(CONCATENATE("OSUPVIEUXALERTEREGECO_"&A11),Output!$C:$AQ,6,FALSE) -> 8848.63 | H11: =VLOOKUP(CONCATENATE("OSUPVIEUXACCEPTREGECO_"&A11),Output!$C:$AQ,6,FALSE) -> 14747.72 | I11: =VLOOKUP(CONCATENATE("OSUPJEUNEALERTEREGECO_"&A11),Output!$C:$AQ,6,FALSE) -> 15256.26 | J11: =VLOOKUP(CONCATENATE("OSUPJEUNEACCEPTREGECO_"&A11),Output!$C:$AQ,6,FALSE) -> 10170.84 | K11: =VLOOKUP(CONCATENATE("OSUPREGECO_"&A11),Output!$C:$AQ,6,FALSE) -> 50854.2 | M11: =ROUND(VLOOKUP("OSUPJEUNEREGECO_"&A11,Output!$C:$AQ,7,FALSE)/VLOOKUP("OSUPREGECO_"&A11,Output!$C:$AQ,6,FALSE),3) -> 0.053 | N11: Faible | O11: =ROUND(VLOOKUP("OSUPJEUNEREGECO_"&$A11,Output!$C:$AQ,12,FALSE)/VLOOKUP("OSUPREGECO_"&A11,Output!$C:$AQ,6,FALSE),3) -> 0.099 | P11: Faible | R11: =ROUND(VLOOKUP("OSUPVIEUXTOTREGECO_"&$A11,Output!$C:$AQ,7,FALSE)/VLOOKUP("OSUPREGECO_"&A11,Output!$C:$AQ,6,FALSE),3) -> 0.425 | S11: Faible | T11: =ROUND(VLOOKUP("OSUPVIEUXTOTREGECO_"&$A11,Output!$C:$AQ,12,FALSE)/VLOOKUP("OSUPREGECO_"&A11,Output!$C:$AQ,6,FALSE),3) -> 0.551 | U11: Faible | W11: UTA44 | X11: Faible | Y11: Faible | AA11: =Tableaux!$O$33 -> 07352 | AB11: UTA44 | AC11: Faible | AD11: Faible | AE11: COS sapinière
G12: =VLOOKUP(CONCATENATE("OSUPVIEUXALERTEREGECO_"&A12),Output!$C:$AQ,6,FALSE) ->  | H12: =VLOOKUP(CONCATENATE("OSUPVIEUXACCEPTREGECO_"&A12),Output!$C:$AQ,6,FALSE) ->  | I12: =VLOOKUP(CONCATENATE("OSUPJEUNEALERTEREGECO_"&A12),Output!$C:$AQ,6,FALSE) ->  | J12: =VLOOKUP(CONCATENATE("OSUPJEUNEACCEPTREGECO_"&A12),Output!$C:$AQ,6,FALSE) ->  | K12: =VLOOKUP(CONCATENATE("OSUPREGECO_"&A12),Output!$C:$AQ,6,FALSE) ->  | M12: =ROUND(VLOOKUP("OSUPJEUNEREGECO_"&A12,Output!$C:$AQ,7,FALSE)/VLOOKUP("OSUPREGECO_"&A12,Output!$C:$AQ,6,FALSE),3) ->  | O12: =ROUND(VLOOKUP("OSUPJEUNEREGECO_"&$A12,Output!$C:$AQ,12,FALSE)/VLOOKUP("OSUPREGECO_"&A12,Output!$C:$AQ,6,FALSE),3) ->  | R12: =ROUND(VLOOKUP("OSUPVIEUXTOTREGECO_"&$A12,Output!$C:$AQ,7,FALSE)/VLOOKUP("OSUPREGECO_"&A12,Output!$C:$AQ,6,FALSE),3) ->  | T12: =ROUND(VLOOKUP("OSUPVIEUXTOTREGECO_"&$A12,Output!$C:$AQ,12,FALSE)/VLOOKUP("OSUPREGECO_"&A12,Output!$C:$AQ,6,FALSE),3) ->  | W12: 0 | AA12: =Tableaux!$O$33 -> 07352 | AB12: 0 | AG12: Compléter cellules en jaune
G13: =VLOOKUP(CONCATENATE("OSUPVIEUXALERTEREGECO_"&A13),Output!$C:$AQ,6,FALSE) ->  | H13: =VLOOKUP(CONCATENATE("OSUPVIEUXACCEPTREGECO_"&A13),Output!$C:$AQ,6,FALSE) ->  | I13: =VLOOKUP(CONCATENATE("OSUPJEUNEALERTEREGECO_"&A13),Output!$C:$AQ,6,FALSE) ->  | J13: =VLOOKUP(CONCATENATE("OSUPJEUNEACCEPTREGECO_"&A13),Output!$C:$AQ,6,FALSE) ->  | K13: =VLOOKUP(CONCATENATE("OSUPREGECO_"&A13),Output!$C:$AQ,6,FALSE) ->  | M13: =ROUND(VLOOKUP("OSUPJEUNEREGECO_"&A13,Output!$C:$AQ,7,FALSE)/VLOOKUP("OSUPREGECO_"&A13,Output!$C:$AQ,6,FALSE),3) ->  | O13: =ROUND(VLOOKUP("OSUPJEUNEREGECO_"&$A13,Output!$C:$AQ,12,FALSE)/VLOOKUP("OSUPREGECO_"&A13,Output!$C:$AQ,6,FALSE),3) ->  | R13: =ROUND(VLOOKUP("OSUPVIEUXTOTREGECO_"&$A13,Output!$C:$AQ,7,FALSE)/VLOOKUP("OSUPREGECO_"&A13,Output!$C:$AQ,6,FALSE),3) ->  | T13: =ROUND(VLOOKUP("OSUPVIEUXTOTREGECO_"&$A13,Output!$C:$AQ,12,FALSE)/VLOOKUP("OSUPREGECO_"&A13,Output!$C:$AQ,6,FALSE),3) ->  | W13: 0 | AA13: =Tableaux!$O$33 -> 07352 | AB13: 0
G14: =VLOOKUP(CONCATENATE("OSUPVIEUXALERTEREGECO_"&A14),Output!$C:$AQ,6,FALSE) ->  | H14: =VLOOKUP(CONCATENATE("OSUPVIEUXACCEPTREGECO_"&A14),Output!$C:$AQ,6,FALSE) ->  | I14: =VLOOKUP(CONCATENATE("OSUPJEUNEALERTEREGECO_"&A14),Output!$C:$AQ,6,FALSE) ->  | J14: =VLOOKUP(CONCATENATE("OSUPJEUNEACCEPTREGECO_"&A14),Output!$C:$AQ,6,FALSE) ->  | K14: =VLOOKUP(CONCATENATE("OSUPREGECO_"&A14),Output!$C:$AQ,6,FALSE) ->  | M14: =ROUND(VLOOKUP("OSUPJEUNEREGECO_"&A14,Output!$C:$AQ,7,FALSE)/VLOOKUP("OSUPREGECO_"&A14,Output!$C:$AQ,6,FALSE),3) ->  | O14: =ROUND(VLOOKUP("OSUPJEUNEREGECO_"&$A14,Output!$C:$AQ,12,FALSE)/VLOOKUP("OSUPREGECO_"&A14,Output!$C:$AQ,6,FALSE),3) ->  | R14: =ROUND(VLOOKUP("OSUPVIEUXTOTREGECO_"&$A14,Output!$C:$AQ,7,FALSE)/VLOOKUP("OSUPREGECO_"&A14,Output!$C:$AQ,6,FALSE),3) ->  | T14: =ROUND(VLOOKUP("OSUPVIEUXTOTREGECO_"&$A14,Output!$C:$AQ,12,FALSE)/VLOOKUP("OSUPREGECO_"&A14,Output!$C:$AQ,6,FALSE),3) ->  | W14: 0 | AA14: =Tableaux!$O$33 -> 07352 | AB14: 0
G15: =VLOOKUP(CONCATENATE("OSUPVIEUXALERTEREGECO_"&A15),Output!$C:$AQ,6,FALSE) ->  | H15: =VLOOKUP(CONCATENATE("OSUPVIEUXACCEPTREGECO_"&A15),Output!$C:$AQ,6,FALSE) ->  | I15: =VLOOKUP(CONCATENATE("OSUPJEUNEALERTEREGECO_"&A15),Output!$C:$AQ,6,FALSE) ->  | J15: =VLOOKUP(CONCATENATE("OSUPJEUNEACCEPTREGECO_"&A15),Output!$C:$AQ,6,FALSE) ->  | K15: =VLOOKUP(CONCATENATE("OSUPREGECO_"&A15),Output!$C:$AQ,6,FALSE) ->  | M15: =ROUND(VLOOKUP("OSUPJEUNEREGECO_"&A15,Output!$C:$AQ,7,FALSE)/VLOOKUP("OSUPREGECO_"&A15,Output!$C:$AQ,6,FALSE),3) ->  | O15: =ROUND(VLOOKUP("OSUPJEUNEREGECO_"&$A15,Output!$C:$AQ,12,FALSE)/VLOOKUP("OSUPREGECO_"&A15,Output!$C:$AQ,6,FALSE),3) ->  | R15: =ROUND(VLOOKUP("OSUPVIEUXTOTREGECO_"&$A15,Output!$C:$AQ,7,FALSE)/VLOOKUP("OSUPREGECO_"&A15,Output!$C:$AQ,6,FALSE),3) ->  | T15: =ROUND(VLOOKUP("OSUPVIEUXTOTREGECO_"&$A15,Output!$C:$AQ,12,FALSE)/VLOOKUP("OSUPREGECO_"&A15,Output!$C:$AQ,6,FALSE),3) ->  | W15: 0 | AA15: =Tableaux!$O$33 -> 07352 | AB15: 0
G16: =VLOOKUP(CONCATENATE("OSUPVIEUXALERTEREGECO_"&A16),Output!$C:$AQ,6,FALSE) ->  | H16: =VLOOKUP(CONCATENATE("OSUPVIEUXACCEPTREGECO_"&A16),Output!$C:$AQ,6,FALSE) ->  | I16: =VLOOKUP(CONCATENATE("OSUPJEUNEALERTEREGECO_"&A16),Output!$C:$AQ,6,FALSE) ->  | J16: =VLOOKUP(CONCATENATE("OSUPJEUNEACCEPTREGECO_"&A16),Output!$C:$AQ,6,FALSE) ->  | K16: =VLOOKUP(CONCATENATE("OSUPREGECO_"&A16),Output!$C:$AQ,6,FALSE) ->  | M16: =ROUND(VLOOKUP("OSUPJEUNEREGECO_"&A16,Output!$C:$AQ,7,FALSE)/VLOOKUP("OSUPREGECO_"&A16,Output!$C:$AQ,6,FALSE),3) ->  | O16: =ROUND(VLOOKUP("OSUPJEUNEREGECO_"&$A16,Output!$C:$AQ,12,FALSE)/VLOOKUP("OSUPREGECO_"&A16,Output!$C:$AQ,6,FALSE),3) ->  | R16: =ROUND(VLOOKUP("OSUPVIEUXTOTREGECO_"&$A16,Output!$C:$AQ,7,FALSE)/VLOOKUP("OSUPREGECO_"&A16,Output!$C:$AQ,6,FALSE),3) ->  | T16: =ROUND(VLOOKUP("OSUPVIEUXTOTREGECO_"&$A16,Output!$C:$AQ,12,FALSE)/VLOOKUP("OSUPREGECO_"&A16,Output!$C:$AQ,6,FALSE),3) ->  | W16: 0 | AA16: =Tableaux!$O$33 -> 07352 | AB16: 0
G17: =VLOOKUP(CONCATENATE("OSUPVIEUXALERTEREGECO_"&A17),Output!$C:$AQ,6,FALSE) ->  | H17: =VLOOKUP(CONCATENATE("OSUPVIEUXACCEPTREGECO_"&A17),Output!$C:$AQ,6,FALSE) ->  | I17: =VLOOKUP(CONCATENATE("OSUPJEUNEALERTEREGECO_"&A17),Output!$C:$AQ,6,FALSE) ->  | J17: =VLOOKUP(CONCATENATE("OSUPJEUNEACCEPTREGECO_"&A17),Output!$C:$AQ,6,FALSE) ->  | K17: =VLOOKUP(CONCATENATE("OSUPREGECO_"&A17),Output!$C:$AQ,6,FALSE) ->  | M17: =ROUND(VLOOKUP("OSUPJEUNEREGECO_"&A17,Output!$C:$AQ,7,FALSE)/VLOOKUP("OSUPREGECO_"&A17,Output!$C:$AQ,6,FALSE),3) ->  | O17: =ROUND(VLOOKUP("OSUPJEUNEREGECO_"&$A17,Output!$C:$AQ,12,FALSE)/VLOOKUP("OSUPREGECO_"&A17,Output!$C:$AQ,6,FALSE),3) ->  | R17: =ROUND(VLOOKUP("OSUPVIEUXTOTREGECO_"&$A17,Output!$C:$AQ,7,FALSE)/VLOOKUP("OSUPREGECO_"&A17,Output!$C:$AQ,6,FALSE),3) ->  | T17: =ROUND(VLOOKUP("OSUPVIEUXTOTREGECO_"&$A17,Output!$C:$AQ,12,FALSE)/VLOOKUP("OSUPREGECO_"&A17,Output!$C:$AQ,6,FALSE),3) ->  | W17: 0 | AA17: =Tableaux!$O$33 -> 07352 | AB17: 0
G18: =VLOOKUP(CONCATENATE("OSUPVIEUXALERTEREGECO_"&A18),Output!$C:$AQ,6,FALSE) ->  | H18: =VLOOKUP(CONCATENATE("OSUPVIEUXACCEPTREGECO_"&A18),Output!$C:$AQ,6,FALSE) ->  | I18: =VLOOKUP(CONCATENATE("OSUPJEUNEALERTEREGECO_"&A18),Output!$C:$AQ,6,FALSE) ->  | J18: =VLOOKUP(CONCATENATE("OSUPJEUNEACCEPTREGECO_"&A18),Output!$C:$AQ,6,FALSE) ->  | K18: =VLOOKUP(CONCATENATE("OSUPREGECO_"&A18),Output!$C:$AQ,6,FALSE) ->  | M18: =ROUND(VLOOKUP("OSUPJEUNEREGECO_"&A18,Output!$C:$AQ,7,FALSE)/VLOOKUP("OSUPREGECO_"&A18,Output!$C:$AQ,6,FALSE),3) ->  | O18: =ROUND(VLOOKUP("OSUPJEUNEREGECO_"&$A18,Output!$C:$AQ,12,FALSE)/VLOOKUP("OSUPREGECO_"&A18,Output!$C:$AQ,6,FALSE),3) ->  | R18: =ROUND(VLOOKUP("OSUPVIEUXTOTREGECO_"&$A18,Output!$C:$AQ,7,FALSE)/VLOOKUP("OSUPREGECO_"&A18,Output!$C:$AQ,6,FALSE),3) ->  | T18: =ROUND(VLOOKUP("OSUPVIEUXTOTREGECO_"&$A18,Output!$C:$AQ,12,FALSE)/VLOOKUP("OSUPREGECO_"&A18,Output!$C:$AQ,6,FALSE),3) ->  | W18: 0 | AA18: =Tableaux!$O$33 -> 07352 | AB18: 0
G19: =VLOOKUP(CONCATENATE("OSUPVIEUXALERTEREGECO_"&A19),Output!$C:$AQ,6,FALSE) ->  | H19: =VLOOKUP(CONCATENATE("OSUPVIEUXACCEPTREGECO_"&A19),Output!$C:$AQ,6,FALSE) ->  | I19: =VLOOKUP(CONCATENATE("OSUPJEUNEALERTEREGECO_"&A19),Output!$C:$AQ,6,FALSE) ->  | J19: =VLOOKUP(CONCATENATE("OSUPJEUNEACCEPTREGECO_"&A19),Output!$C:$AQ,6,FALSE) ->  | K19: =VLOOKUP(CONCATENATE("OSUPREGECO_"&A19),Output!$C:$AQ,6,FALSE) ->  | M19: =ROUND(VLOOKUP("OSUPJEUNEREGECO_"&A19,Output!$C:$AQ,7,FALSE)/VLOOKUP("OSUPREGECO_"&A19,Output!$C:$AQ,6,FALSE),3) ->  | O19: =ROUND(VLOOKUP("OSUPJEUNEREGECO_"&$A19,Output!$C:$AQ,12,FALSE)/VLOOKUP("OSUPREGECO_"&A19,Output!$C:$AQ,6,FALSE),3) ->  | R19: =ROUND(VLOOKUP("OSUPVIEUXTOTREGECO_"&$A19,Output!$C:$AQ,7,FALSE)/VLOOKUP("OSUPREGECO_"&A19,Output!$C:$AQ,6,FALSE),3) ->  | T19: =ROUND(VLOOKUP("OSUPVIEUXTOTREGECO_"&$A19,Output!$C:$AQ,12,FALSE)/VLOOKUP("OSUPREGECO_"&A19,Output!$C:$AQ,6,FALSE),3) ->  | W19: 0 | AA19: =Tableaux!$O$33 -> 07352 | AB19: 0
G20: =VLOOKUP(CONCATENATE("OSUPVIEUXALERTEREGECO_"&A20),Output!$C:$AQ,6,FALSE) ->  | H20: =VLOOKUP(CONCATENATE("OSUPVIEUXACCEPTREGECO_"&A20),Output!$C:$AQ,6,FALSE) ->  | I20: =VLOOKUP(CONCATENATE("OSUPJEUNEALERTEREGECO_"&A20),Output!$C:$AQ,6,FALSE) ->  | J20: =VLOOKUP(CONCATENATE("OSUPJEUNEACCEPTREGECO_"&A20),Output!$C:$AQ,6,FALSE) ->  | K20: =VLOOKUP(CONCATENATE("OSUPREGECO_"&A20),Output!$C:$AQ,6,FALSE) ->  | M20: =ROUND(VLOOKUP("OSUPJEUNEREGECO_"&A20,Output!$C:$AQ,7,FALSE)/VLOOKUP("OSUPREGECO_"&A20,Output!$C:$AQ,6,FALSE),3) ->  | O20: =ROUND(VLOOKUP("OSUPJEUNEREGECO_"&$A20,Output!$C:$AQ,12,FALSE)/VLOOKUP("OSUPREGECO_"&A20,Output!$C:$AQ,6,FALSE),3) ->  | R20: =ROUND(VLOOKUP("OSUPVIEUXTOTREGECO_"&$A20,Output!$C:$AQ,7,FALSE)/VLOOKUP("OSUPREGECO_"&A20,Output!$C:$AQ,6,FALSE),3) ->  | T20: =ROUND(VLOOKUP("OSUPVIEUXTOTREGECO_"&$A20,Output!$C:$AQ,12,FALSE)/VLOOKUP("OSUPREGECO_"&A20,Output!$C:$AQ,6,FALSE),3) ->  | W20: 0 | AA20: =Tableaux!$O$33 -> 07352 | AB20: 0
B21: =ROUND(G21/$K21,2) ->  | C21: =H21/$K21 ->  | D21: =ROUND(I21/$K21,3) ->  | G21: =VLOOKUP(CONCATENATE("OSUPVIEUXALERTEREGECO_"&A21),Output!$C:$AQ,6,FALSE) ->  | H21: =VLOOKUP(CONCATENATE("OSUPVIEUXACCEPTREGECO_"&A21),Output!$C:$AQ,6,FALSE) ->  | I21: =VLOOKUP(CONCATENATE("OSUPJEUNEALERTEREGECO_"&A21),Output!$C:$AQ,6,FALSE) ->  | J21: =VLOOKUP(CONCATENATE("OSUPJEUNEACCEPTREGECO_"&A21),Output!$C:$AQ,6,FALSE) ->  | K21: =VLOOKUP(CONCATENATE("OSUPREGECO_"&A21),Output!$C:$AQ,6,FALSE) ->  | M21: =ROUND(VLOOKUP("OSUPJEUNEREGECO_"&A21,Output!$C:$AQ,7,FALSE)/VLOOKUP("OSUPREGECO_"&A21,Output!$C:$AQ,6,FALSE),3) ->  | O21: =ROUND(VLOOKUP("OSUPJEUNEREGECO_"&$A21,Output!$C:$AQ,12,FALSE)/VLOOKUP("OSUPREGECO_"&A21,Output!$C:$AQ,6,FALSE),3) ->  | R21: =ROUND(VLOOKUP("OSUPVIEUXTOTREGECO_"&$A21,Output!$C:$AQ,7,FALSE)/VLOOKUP("OSUPREGECO_"&A21,Output!$C:$AQ,6,FALSE),3) ->  | T21: =ROUND(VLOOKUP("OSUPVIEUXTOTREGECO_"&$A21,Output!$C:$AQ,12,FALSE)/VLOOKUP("OSUPREGECO_"&A21,Output!$C:$AQ,6,FALSE),3) ->  | W21: 0 | AA21: =Tableaux!$O$33 -> 07352 | AB21: 0
G22: =VLOOKUP(CONCATENATE("OSUPVIEUXALERTEREGECO_"&A22),Output!$C:$AQ,6,FALSE) ->  | H22: =VLOOKUP(CONCATENATE("OSUPVIEUXACCEPTREGECO_"&A22),Output!$C:$AQ,6,FALSE) ->  | I22: =VLOOKUP(CONCATENATE("OSUPJEUNEALERTEREGECO_"&A22),Output!$C:$AQ,6,FALSE) ->  | J22: =VLOOKUP(CONCATENATE("OSUPJEUNEACCEPTREGECO_"&A22),Output!$C:$AQ,6,FALSE) ->  | K22: =VLOOKUP(CONCATENATE("OSUPREGECO_"&A22),Output!$C:$AQ,6,FALSE) ->  | M22: =ROUND(VLOOKUP("OSUPJEUNEREGECO_"&A22,Output!$C:$AQ,7,FALSE)/VLOOKUP("OSUPREGECO_"&A22,Output!$C:$AQ,6,FALSE),3) ->  | O22: =ROUND(VLOOKUP("OSUPJEUNEREGECO_"&$A22,Output!$C:$AQ,12,FALSE)/VLOOKUP("OSUPREGECO_"&A22,Output!$C:$AQ,6,FALSE),3) ->  | R22: =ROUND(VLOOKUP("OSUPVIEUXTOTREGECO_"&$A22,Output!$C:$AQ,7,FALSE)/VLOOKUP("OSUPREGECO_"&A22,Output!$C:$AQ,6,FALSE),3) ->  | T22: =ROUND(VLOOKUP("OSUPVIEUXTOTREGECO_"&$A22,Output!$C:$AQ,12,FALSE)/VLOOKUP("OSUPREGECO_"&A22,Output!$C:$AQ,6,FALSE),3) ->  | W22: 0 | AA22: =Tableaux!$O$33 -> 07352 | AB22: 0
G23: =VLOOKUP(CONCATENATE("OSUPVIEUXALERTEREGECO_"&A23),Output!$C:$AQ,6,FALSE) ->  | H23: =VLOOKUP(CONCATENATE("OSUPVIEUXACCEPTREGECO_"&A23),Output!$C:$AQ,6,FALSE) ->  | I23: =VLOOKUP(CONCATENATE("OSUPJEUNEALERTEREGECO_"&A23),Output!$C:$AQ,6,FALSE) ->  | J23: =VLOOKUP(CONCATENATE("OSUPJEUNEACCEPTREGECO_"&A23),Output!$C:$AQ,6,FALSE) ->  | K23: =VLOOKUP(CONCATENATE("OSUPREGECO_"&A23),Output!$C:$AQ,6,FALSE) ->  | M23: =ROUND(VLOOKUP("OSUPJEUNEREGECO_"&A23,Output!$C:$AQ,7,FALSE)/VLOOKUP("OSUPREGECO_"&A23,Output!$C:$AQ,6,FALSE),3) ->  | O23: =ROUND(VLOOKUP("OSUPJEUNEREGECO_"&$A23,Output!$C:$AQ,12,FALSE)/VLOOKUP("OSUPREGECO_"&A23,Output!$C:$AQ,6,FALSE),3) ->  | R23: =ROUND(VLOOKUP("OSUPVIEUXTOTREGECO_"&$A23,Output!$C:$AQ,7,FALSE)/VLOOKUP("OSUPREGECO_"&A23,Output!$C:$AQ,6,FALSE),3) ->  | T23: =ROUND(VLOOKUP("OSUPVIEUXTOTREGECO_"&$A23,Output!$C:$AQ,12,FALSE)/VLOOKUP("OSUPREGECO_"&A23,Output!$C:$AQ,6,FALSE),3) ->  | W23: 0 | AA23: =Tableaux!$O$33 -> 07352 | AB23: 0
G24: =VLOOKUP(CONCATENATE("OSUPVIEUXALERTEREGECO_"&A24),Output!$C:$AQ,6,FALSE) ->  | H24: =VLOOKUP(CONCATENATE("OSUPVIEUXACCEPTREGECO_"&A24),Output!$C:$AQ,6,FALSE) ->  | I24: =VLOOKUP(CONCATENATE("OSUPJEUNEALERTEREGECO_"&A24),Output!$C:$AQ,6,FALSE) ->  | J24: =VLOOKUP(CONCATENATE("OSUPJEUNEACCEPTREGECO_"&A24),Output!$C:$AQ,6,FALSE) ->  | K24: =VLOOKUP(CONCATENATE("OSUPREGECO_"&A24),Output!$C:$AQ,6,FALSE) ->  | M24: =ROUND(VLOOKUP("OSUPJEUNEREGECO_"&A24,Output!$C:$AQ,7,FALSE)/VLOOKUP("OSUPREGECO_"&A24,Output!$C:$AQ,6,FALSE),3) ->  | O24: =ROUND(VLOOKUP("OSUPJEUNEREGECO_"&$A24,Output!$C:$AQ,12,FALSE)/VLOOKUP("OSUPREGECO_"&A24,Output!$C:$AQ,6,FALSE),3) ->  | R24: =ROUND(VLOOKUP("OSUPVIEUXTOTREGECO_"&$A24,Output!$C:$AQ,7,FALSE)/VLOOKUP("OSUPREGECO_"&A24,Output!$C:$AQ,6,FALSE),3) ->  | T24: =ROUND(VLOOKUP("OSUPVIEUXTOTREGECO_"&$A24,Output!$C:$AQ,12,FALSE)/VLOOKUP("OSUPREGECO_"&A24,Output!$C:$AQ,6,FALSE),3) ->  | W24: 0 | AA24: =Tableaux!$O$33 -> 07352 | AB24: 0
G25: =VLOOKUP(CONCATENATE("OSUPVIEUXALERTEREGECO_"&A25),Output!$C:$AQ,6,FALSE) ->  | H25: =VLOOKUP(CONCATENATE("OSUPVIEUXACCEPTREGECO_"&A25),Output!$C:$AQ,6,FALSE) ->  | I25: =VLOOKUP(CONCATENATE("OSUPJEUNEALERTEREGECO_"&A25),Output!$C:$AQ,6,FALSE) ->  | J25: =VLOOKUP(CONCATENATE("OSUPJEUNEACCEPTREGECO_"&A25),Output!$C:$AQ,6,FALSE) ->  | K25: =VLOOKUP(CONCATENATE("OSUPREGECO_"&A25),Output!$C:$AQ,6,FALSE) ->  | M25: =ROUND(VLOOKUP("OSUPJEUNEREGECO_"&A25,Output!$C:$AQ,7,FALSE)/VLOOKUP("OSUPREGECO_"&A25,Output!$C:$AQ,6,FALSE),3) ->  | O25: =ROUND(VLOOKUP("OSUPJEUNEREGECO_"&$A25,Output!$C:$AQ,12,FALSE)/VLOOKUP("OSUPREGECO_"&A25,Output!$C:$AQ,6,FALSE),3) ->  | R25: =ROUND(VLOOKUP("OSUPVIEUXTOTREGECO_"&$A25,Output!$C:$AQ,7,FALSE)/VLOOKUP("OSUPREGECO_"&A25,Output!$C:$AQ,6,FALSE),3) ->  | T25: =ROUND(VLOOKUP("OSUPVIEUXTOTREGECO_"&$A25,Output!$C:$AQ,12,FALSE)/VLOOKUP("OSUPREGECO_"&A25,Output!$C:$AQ,6,FALSE),3) ->  | W25: 0 | AA25: =Tableaux!$O$33 -> 07352 | AB25: 0
G26: =VLOOKUP(CONCATENATE("OSUPVIEUXALERTEREGECO_"&A26),Output!$C:$AQ,6,FALSE) ->  | H26: =VLOOKUP(CONCATENATE("OSUPVIEUXACCEPTREGECO_"&A26),Output!$C:$AQ,6,FALSE) ->  | I26: =VLOOKUP(CONCATENATE("OSUPJEUNEALERTEREGECO_"&A26),Output!$C:$AQ,6,FALSE) ->  | J26: =VLOOKUP(CONCATENATE("OSUPJEUNEACCEPTREGECO_"&A26),Output!$C:$AQ,6,FALSE) ->  | K26: =VLOOKUP(CONCATENATE("OSUPREGECO_"&A26),Output!$C:$AQ,6,FALSE) ->  | M26: =ROUND(VLOOKUP("OSUPJEUNEREGECO_"&A26,Output!$C:$AQ,7,FALSE)/VLOOKUP("OSUPREGECO_"&A26,Output!$C:$AQ,6,FALSE),3) ->  | O26: =ROUND(VLOOKUP("OSUPJEUNEREGECO_"&$A26,Output!$C:$AQ,12,FALSE)/VLOOKUP("OSUPREGECO_"&A26,Output!$C:$AQ,6,FALSE),3) ->  | R26: =ROUND(VLOOKUP("OSUPVIEUXTOTREGECO_"&$A26,Output!$C:$AQ,7,FALSE)/VLOOKUP("OSUPREGECO_"&A26,Output!$C:$AQ,6,FALSE),3) ->  | T26: =ROUND(VLOOKUP("OSUPVIEUXTOTREGECO_"&$A26,Output!$C:$AQ,12,FALSE)/VLOOKUP("OSUPREGECO_"&A26,Output!$C:$AQ,6,FALSE),3) ->  | W26: 0 | AA26: =Tableaux!$O$33 -> 07352 | AB26: 0
C27: =ROUND(H27/$K27,3) ->  | G27: =VLOOKUP(CONCATENATE("OSUPVIEUXALERTEREGECO_"&A27),Output!$C:$AQ,6,FALSE) ->  | H27: =VLOOKUP(CONCATENATE("OSUPVIEUXACCEPTREGECO_"&A27),Output!$C:$AQ,6,FALSE) ->  | I27: =VLOOKUP(CONCATENATE("OSUPJEUNEALERTEREGECO_"&A27),Output!$C:$AQ,6,FALSE) ->  | J27: =VLOOKUP(CONCATENATE("OSUPJEUNEACCEPTREGECO_"&A27),Output!$C:$AQ,6,FALSE) ->  | K27: =VLOOKUP(CONCATENATE("OSUPREGECO_"&A27),Output!$C:$AQ,6,FALSE) ->  | M27: =ROUND(VLOOKUP("OSUPJEUNEREGECO_"&A27,Output!$C:$AQ,7,FALSE)/VLOOKUP("OSUPREGECO_"&A27,Output!$C:$AQ,6,FALSE),3) ->  | O27: =ROUND(VLOOKUP("OSUPJEUNEREGECO_"&$A27,Output!$C:$AQ,12,FALSE)/VLOOKUP("OSUPREGECO_"&A27,Output!$C:$AQ,6,FALSE),3) ->  | R27: =ROUND(VLOOKUP("OSUPVIEUXTOTREGECO_"&$A27,Output!$C:$AQ,7,FALSE)/VLOOKUP("OSUPREGECO_"&A27,Output!$C:$AQ,6,FALSE),3) ->  | T27: =ROUND(VLOOKUP("OSUPVIEUXTOTREGECO_"&$A27,Output!$C:$AQ,12,FALSE)/VLOOKUP("OSUPREGECO_"&A27,Output!$C:$AQ,6,FALSE),3) ->  | W27: 0 | AA27: =Tableaux!$O$33 -> 07352 | AB27: 0
G28: =VLOOKUP(CONCATENATE("OSUPVIEUXALERTEREGECO_"&A28),Output!$C:$AQ,6,FALSE) ->  | H28: =VLOOKUP(CONCATENATE("OSUPVIEUXACCEPTREGECO_"&A28),Output!$C:$AQ,6,FALSE) ->  | I28: =VLOOKUP(CONCATENATE("OSUPJEUNEALERTEREGECO_"&A28),Output!$C:$AQ,6,FALSE) ->  | J28: =VLOOKUP(CONCATENATE("OSUPJEUNEACCEPTREGECO_"&A28),Output!$C:$AQ,6,FALSE) ->  | K28: =VLOOKUP(CONCATENATE("OSUPREGECO_"&A28),Output!$C:$AQ,6,FALSE) ->  | M28: =ROUND(VLOOKUP("OSUPJEUNEREGECO_"&A28,Output!$C:$AQ,7,FALSE)/VLOOKUP("OSUPREGECO_"&A28,Output!$C:$AQ,6,FALSE),3) ->  | O28: =ROUND(VLOOKUP("OSUPJEUNEREGECO_"&$A28,Output!$C:$AQ,12,FALSE)/VLOOKUP("OSUPREGECO_"&A28,Output!$C:$AQ,6,FALSE),3) ->  | R28: =ROUND(VLOOKUP("OSUPVIEUXTOTREGECO_"&$A28,Output!$C:$AQ,7,FALSE)/VLOOKUP("OSUPREGECO_"&A28,Output!$C:$AQ,6,FALSE),3) ->  | T28: =ROUND(VLOOKUP("OSUPVIEUXTOTREGECO_"&$A28,Output!$C:$AQ,12,FALSE)/VLOOKUP("OSUPREGECO_"&A28,Output!$C:$AQ,6,FALSE),3) ->  | W28: 0 | AA28: =Tableaux!$O$33 -> 07352 | AB28: 0
G29: =VLOOKUP(CONCATENATE("OSUPVIEUXALERTEREGECO_"&A29),Output!$C:$AQ,6,FALSE) ->  | H29: =VLOOKUP(CONCATENATE("OSUPVIEUXACCEPTREGECO_"&A29),Output!$C:$AQ,6,FALSE) ->  | I29: =VLOOKUP(CONCATENATE("OSUPJEUNEALERTEREGECO_"&A29),Output!$C:$AQ,6,FALSE) ->  | J29: =VLOOKUP(CONCATENATE("OSUPJEUNEACCEPTREGECO_"&A29),Output!$C:$AQ,6,FALSE) ->  | K29: =VLOOKUP(CONCATENATE("OSUPREGECO_"&A29),Output!$C:$AQ,6,FALSE) ->  | M29: =ROUND(VLOOKUP("OSUPJEUNEREGECO_"&A29,Output!$C:$AQ,7,FALSE)/VLOOKUP("OSUPREGECO_"&A29,Output!$C:$AQ,6,FALSE),3) ->  | O29: =ROUND(VLOOKUP("OSUPJEUNEREGECO_"&$A29,Output!$C:$AQ,12,FALSE)/VLOOKUP("OSUPREGECO_"&A29,Output!$C:$AQ,6,FALSE),3) ->  | R29: =ROUND(VLOOKUP("OSUPVIEUXTOTREGECO_"&$A29,Output!$C:$AQ,7,FALSE)/VLOOKUP("OSUPREGECO_"&A29,Output!$C:$AQ,6,FALSE),3) ->  | T29: =ROUND(VLOOKUP("OSUPVIEUXTOTREGECO_"&$A29,Output!$C:$AQ,12,FALSE)/VLOOKUP("OSUPREGECO_"&A29,Output!$C:$AQ,6,FALSE),3) ->  | W29: 0 | AA29: =Tableaux!$O$33 -> 07352 | AB29: 0
G30: =VLOOKUP(CONCATENATE("OSUPVIEUXALERTEREGECO_"&A30),Output!$C:$AQ,6,FALSE) ->  | H30: =VLOOKUP(CONCATENATE("OSUPVIEUXACCEPTREGECO_"&A30),Output!$C:$AQ,6,FALSE) ->  | I30: =VLOOKUP(CONCATENATE("OSUPJEUNEALERTEREGECO_"&A30),Output!$C:$AQ,6,FALSE) ->  | J30: =VLOOKUP(CONCATENATE("OSUPJEUNEACCEPTREGECO_"&A30),Output!$C:$AQ,6,FALSE) ->  | K30: =VLOOKUP(CONCATENATE("OSUPREGECO_"&A30),Output!$C:$AQ,6,FALSE) ->  | M30: =ROUND(VLOOKUP("OSUPJEUNEREGECO_"&A30,Output!$C:$AQ,7,FALSE)/VLOOKUP("OSUPREGECO_"&A30,Output!$C:$AQ,6,FALSE),3) ->  | O30: =ROUND(VLOOKUP("OSUPJEUNEREGECO_"&$A30,Output!$C:$AQ,12,FALSE)/VLOOKUP("OSUPREGECO_"&A30,Output!$C:$AQ,6,FALSE),3) ->  | R30: =ROUND(VLOOKUP("OSUPVIEUXTOTREGECO_"&$A30,Output!$C:$AQ,7,FALSE)/VLOOKUP("OSUPREGECO_"&A30,Output!$C:$AQ,6,FALSE),3) ->  | T30: =ROUND(VLOOKUP("OSUPVIEUXTOTREGECO_"&$A30,Output!$C:$AQ,12,FALSE)/VLOOKUP("OSUPREGECO_"&A30,Output!$C:$AQ,6,FALSE),3) ->  | W30: 0 | AA30: =Tableaux!$O$33 -> 07352 | AB30: 0
G31: =VLOOKUP(CONCATENATE("OSUPVIEUXALERTEREGECO_"&A31),Output!$C:$AQ,6,FALSE) ->  | H31: =VLOOKUP(CONCATENATE("OSUPVIEUXACCEPTREGECO_"&A31),Output!$C:$AQ,6,FALSE) ->  | I31: =VLOOKUP(CONCATENATE("OSUPJEUNEALERTEREGECO_"&A31),Output!$C:$AQ,6,FALSE) ->  | J31: =VLOOKUP(CONCATENATE("OSUPJEUNEACCEPTREGECO_"&A31),Output!$C:$AQ,6,FALSE) ->  | K31: =VLOOKUP(CONCATENATE("OSUPREGECO_"&A31),Output!$C:$AQ,6,FALSE) ->  | M31: =ROUND(VLOOKUP("OSUPJEUNEREGECO_"&A31,Output!$C:$AQ,7,FALSE)/VLOOKUP("OSUPREGECO_"&A31,Output!$C:$AQ,6,FALSE),3) ->  | O31: =ROUND(VLOOKUP("OSUPJEUNEREGECO_"&$A31,Output!$C:$AQ,12,FALSE)/VLOOKUP("OSUPREGECO_"&A31,Output!$C:$AQ,6,FALSE),3) ->  | R31: =ROUND(VLOOKUP("OSUPVIEUXTOTREGECO_"&$A31,Output!$C:$AQ,7,FALSE)/VLOOKUP("OSUPREGECO_"&A31,Output!$C:$AQ,6,FALSE),3) ->  | T31: =ROUND(VLOOKUP("OSUPVIEUXTOTREGECO_"&$A31,Output!$C:$AQ,12,FALSE)/VLOOKUP("OSUPREGECO_"&A31,Output!$C:$AQ,6,FALSE),3) ->  | W31: 0 | AA31: =Tableaux!$O$33 -> 07352 | AB31: 0
G32: =VLOOKUP(CONCATENATE("OSUPVIEUXALERTEREGECO_"&A32),Output!$C:$AQ,6,FALSE) ->  | H32: =VLOOKUP(CONCATENATE("OSUPVIEUXACCEPTREGECO_"&A32),Output!$C:$AQ,6,FALSE) ->  | I32: =VLOOKUP(CONCATENATE("OSUPJEUNEALERTEREGECO_"&A32),Output!$C:$AQ,6,FALSE) ->  | J32: =VLOOKUP(CONCATENATE("OSUPJEUNEACCEPTREGECO_"&A32),Output!$C:$AQ,6,FALSE) ->  | K32: =VLOOKUP(CONCATENATE("OSUPREGECO_"&A32),Output!$C:$AQ,6,FALSE) ->  | M32: =ROUND(VLOOKUP("OSUPJEUNEREGECO_"&A32,Output!$C:$AQ,7,FALSE)/VLOOKUP("OSUPREGECO_"&A32,Output!$C:$AQ,6,FALSE),3) ->  | O32: =ROUND(VLOOKUP("OSUPJEUNEREGECO_"&$A32,Output!$C:$AQ,12,FALSE)/VLOOKUP("OSUPREGECO_"&A32,Output!$C:$AQ,6,FALSE),3) ->  | R32: =ROUND(VLOOKUP("OSUPVIEUXTOTREGECO_"&$A32,Output!$C:$AQ,7,FALSE)/VLOOKUP("OSUPREGECO_"&A32,Output!$C:$AQ,6,FALSE),3) ->  | T32: =ROUND(VLOOKUP("OSUPVIEUXTOTREGECO_"&$A32,Output!$C:$AQ,12,FALSE)/VLOOKUP("OSUPREGECO_"&A32,Output!$C:$AQ,6,FALSE),3) ->  | W32: 0 | AA32: =Tableaux!$O$33 -> 07352 | AB32: 0
G33: =VLOOKUP(CONCATENATE("OSUPVIEUXALERTEREGECO_"&A33),Output!$C:$AQ,6,FALSE) ->  | H33: =VLOOKUP(CONCATENATE("OSUPVIEUXACCEPTREGECO_"&A33),Output!$C:$AQ,6,FALSE) ->  | I33: =VLOOKUP(CONCATENATE("OSUPJEUNEALERTEREGECO_"&A33),Output!$C:$AQ,6,FALSE) ->  | J33: =VLOOKUP(CONCATENATE("OSUPJEUNEACCEPTREGECO_"&A33),Output!$C:$AQ,6,FALSE) ->  | K33: =VLOOKUP(CONCATENATE("OSUPREGECO_"&A33),Output!$C:$AQ,6,FALSE) ->  | M33: =ROUND(VLOOKUP("OSUPJEUNEREGECO_"&A33,Output!$C:$AQ,7,FALSE)/VLOOKUP("OSUPREGECO_"&A33,Output!$C:$AQ,6,FALSE),3) ->  | O33: =ROUND(VLOOKUP("OSUPJEUNEREGECO_"&$A33,Output!$C:$AQ,12,FALSE)/VLOOKUP("OSUPREGECO_"&A33,Output!$C:$AQ,6,FALSE),3) ->  | R33: =ROUND(VLOOKUP("OSUPVIEUXTOTREGECO_"&$A33,Output!$C:$AQ,7,FALSE)/VLOOKUP("OSUPREGECO_"&A33,Output!$C:$AQ,6,FALSE),3) ->  | T33: =ROUND(VLOOKUP("OSUPVIEUXTOTREGECO_"&$A33,Output!$C:$AQ,12,FALSE)/VLOOKUP("OSUPREGECO_"&A33,Output!$C:$AQ,6,FALSE),3) ->  | W33: 0 | AA33: =Tableaux!$O$33 -> 07352 | AB33: =W33 -> 0
G34: =VLOOKUP(CONCATENATE("OSUPVIEUXALERTEREGECO_"&A34),Output!$C:$AQ,6,FALSE) ->  | H34: =VLOOKUP(CONCATENATE("OSUPVIEUXACCEPTREGECO_"&A34),Output!$C:$AQ,6,FALSE) ->  | I34: =VLOOKUP(CONCATENATE("OSUPJEUNEALERTEREGECO_"&A34),Output!$C:$AQ,6,FALSE) ->  | J34: =VLOOKUP(CONCATENATE("OSUPJEUNEACCEPTREGECO_"&A34),Output!$C:$AQ,6,FALSE) ->  | K34: =VLOOKUP(CONCATENATE("OSUPREGECO_"&A34),Output!$C:$AQ,6,FALSE) ->  | M34: =ROUND(VLOOKUP("OSUPJEUNEREGECO_"&A34,Output!$C:$AQ,7,FALSE)/VLOOKUP("OSUPREGECO_"&A34,Output!$C:$AQ,6,FALSE),3) ->  | O34: =ROUND(VLOOKUP("OSUPJEUNEREGECO_"&$A34,Output!$C:$AQ,12,FALSE)/VLOOKUP("OSUPREGECO_"&A34,Output!$C:$AQ,6,FALSE),3) ->  | R34: =ROUND(VLOOKUP("OSUPVIEUXTOTREGECO_"&$A34,Output!$C:$AQ,7,FALSE)/VLOOKUP("OSUPREGECO_"&A34,Output!$C:$AQ,6,FALSE),3) ->  | T34: =ROUND(VLOOKUP("OSUPVIEUXTOTREGECO_"&$A34,Output!$C:$AQ,12,FALSE)/VLOOKUP("OSUPREGECO_"&A34,Output!$C:$AQ,6,FALSE),3) ->  | W34: 0 | AA34: =Tableaux!$O$33 -> 07352 | AB34: 0
G35: =VLOOKUP(CONCATENATE("OSUPVIEUXALERTEREGECO_"&A35),Output!$C:$AQ,6,FALSE) ->  | H35: =VLOOKUP(CONCATENATE("OSUPVIEUXACCEPTREGECO_"&A35),Output!$C:$AQ,6,FALSE) ->  | I35: =VLOOKUP(CONCATENATE("OSUPJEUNEALERTEREGECO_"&A35),Output!$C:$AQ,6,FALSE) ->  | J35: =VLOOKUP(CONCATENATE("OSUPJEUNEACCEPTREGECO_"&A35),Output!$C:$AQ,6,FALSE) ->  | K35: =VLOOKUP(CONCATENATE("OSUPREGECO_"&A35),Output!$C:$AQ,6,FALSE) ->  | M35: =ROUND(VLOOKUP("OSUPJEUNEREGECO_"&A35,Output!$C:$AQ,7,FALSE)/VLOOKUP("OSUPREGECO_"&A35,Output!$C:$AQ,6,FALSE),3) ->  | O35: =ROUND(VLOOKUP("OSUPJEUNEREGECO_"&$A35,Output!$C:$AQ,12,FALSE)/VLOOKUP("OSUPREGECO_"&A35,Output!$C:$AQ,6,FALSE),3) ->  | R35: =ROUND(VLOOKUP("OSUPVIEUXTOTREGECO_"&$A35,Output!$C:$AQ,7,FALSE)/VLOOKUP("OSUPREGECO_"&A35,Output!$C:$AQ,6,FALSE),3) ->  | T35: =ROUND(VLOOKUP("OSUPVIEUXTOTREGECO_"&$A35,Output!$C:$AQ,12,FALSE)/VLOOKUP("OSUPREGECO_"&A35,Output!$C:$AQ,6,FALSE),3) ->  | W35: 0 | AA35: =Tableaux!$O$33 -> 07352 | AB35: 0
G36: =VLOOKUP(CONCATENATE("OSUPVIEUXALERTEREGECO_"&A36),Output!$C:$AQ,6,FALSE) ->  | H36: =VLOOKUP(CONCATENATE("OSUPVIEUXACCEPTREGECO_"&A36),Output!$C:$AQ,6,FALSE) ->  | I36: =VLOOKUP(CONCATENATE("OSUPJEUNEALERTEREGECO_"&A36),Output!$C:$AQ,6,FALSE) ->  | J36: =VLOOKUP(CONCATENATE("OSUPJEUNEACCEPTREGECO_"&A36),Output!$C:$AQ,6,FALSE) ->  | K36: =VLOOKUP(CONCATENATE("OSUPREGECO_"&A36),Output!$C:$AQ,6,FALSE) ->  | M36: =ROUND(VLOOKUP("OSUPJEUNEREGECO_"&A36,Output!$C:$AQ,7,FALSE)/VLOOKUP("OSUPREGECO_"&A36,Output!$C:$AQ,6,FALSE),3) ->  | O36: =ROUND(VLOOKUP("OSUPJEUNEREGECO_"&$A36,Output!$C:$AQ,12,FALSE)/VLOOKUP("OSUPREGECO_"&A36,Output!$C:$AQ,6,FALSE),3) ->  | R36: =ROUND(VLOOKUP("OSUPVIEUXTOTREGECO_"&$A36,Output!$C:$AQ,7,FALSE)/VLOOKUP("OSUPREGECO_"&A36,Output!$C:$AQ,6,FALSE),3) ->  | T36: =ROUND(VLOOKUP("OSUPVIEUXTOTREGECO_"&$A36,Output!$C:$AQ,12,FALSE)/VLOOKUP("OSUPREGECO_"&A36,Output!$C:$AQ,6,FALSE),3) ->  | W36: 0 | AA36: =Tableaux!$O$33 -> 07352 | AB36: 0
G37: =VLOOKUP(CONCATENATE("OSUPVIEUXALERTEREGECO_"&A37),Output!$C:$AQ,6,FALSE) ->  | H37: =VLOOKUP(CONCATENATE("OSUPVIEUXACCEPTREGECO_"&A37),Output!$C:$AQ,6,FALSE) ->  | I37: =VLOOKUP(CONCATENATE("OSUPJEUNEALERTEREGECO_"&A37),Output!$C:$AQ,6,FALSE) ->  | J37: =VLOOKUP(CONCATENATE("OSUPJEUNEACCEPTREGECO_"&A37),Output!$C:$AQ,6,FALSE) ->  | K37: =VLOOKUP(CONCATENATE("OSUPREGECO_"&A37),Output!$C:$AQ,6,FALSE) ->  | M37: =ROUND(VLOOKUP("OSUPJEUNEREGECO_"&A37,Output!$C:$AQ,7,FALSE)/VLOOKUP("OSUPREGECO_"&A37,Output!$C:$AQ,6,FALSE),3) ->  | O37: =ROUND(VLOOKUP("OSUPJEUNEREGECO_"&$A37,Output!$C:$AQ,12,FALSE)/VLOOKUP("OSUPREGECO_"&A37,Output!$C:$AQ,6,FALSE),3) ->  | R37: =ROUND(VLOOKUP("OSUPVIEUXTOTREGECO_"&$A37,Output!$C:$AQ,7,FALSE)/VLOOKUP("OSUPREGECO_"&A37,Output!$C:$AQ,6,FALSE),3) ->  | T37: =ROUND(VLOOKUP("OSUPVIEUXTOTREGECO_"&$A37,Output!$C:$AQ,12,FALSE)/VLOOKUP("OSUPREGECO_"&A37,Output!$C:$AQ,6,FALSE),3) ->  | W37: 0 | AA37: =Tableaux!$O$33 -> 07352 | AB37: 0
G38: =VLOOKUP(CONCATENATE("OSUPVIEUXALERTEREGECO_"&A38),Output!$C:$AQ,6,FALSE) ->  | H38: =VLOOKUP(CONCATENATE("OSUPVIEUXACCEPTREGECO_"&A38),Output!$C:$AQ,6,FALSE) ->  | I38: =VLOOKUP(CONCATENATE("OSUPJEUNEALERTEREGECO_"&A38),Output!$C:$AQ,6,FALSE) ->  | J38: =VLOOKUP(CONCATENATE("OSUPJEUNEACCEPTREGECO_"&A38),Output!$C:$AQ,6,FALSE) ->  | K38: =VLOOKUP(CONCATENATE("OSUPREGECO_"&A38),Output!$C:$AQ,6,FALSE) ->  | M38: =ROUND(VLOOKUP("OSUPJEUNEREGECO_"&A38,Output!$C:$AQ,7,FALSE)/VLOOKUP("OSUPREGECO_"&A38,Output!$C:$AQ,6,FALSE),3) ->  | O38: =ROUND(VLOOKUP("OSUPJEUNEREGECO_"&$A38,Output!$C:$AQ,12,FALSE)/VLOOKUP("OSUPREGECO_"&A38,Output!$C:$AQ,6,FALSE),3) ->  | R38: =ROUND(VLOOKUP("OSUPVIEUXTOTREGECO_"&$A38,Output!$C:$AQ,7,FALSE)/VLOOKUP("OSUPREGECO_"&A38,Output!$C:$AQ,6,FALSE),3) ->  | T38: =ROUND(VLOOKUP("OSUPVIEUXTOTREGECO_"&$A38,Output!$C:$AQ,12,FALSE)/VLOOKUP("OSUPREGECO_"&A38,Output!$C:$AQ,6,FALSE),3) ->  | W38: 0 | AA38: =Tableaux!$O$33 -> 07352 | AB38: 0
G39: =VLOOKUP(CONCATENATE("OSUPVIEUXALERTEREGECO_"&A39),Output!$C:$AQ,6,FALSE) ->  | H39: =VLOOKUP(CONCATENATE("OSUPVIEUXACCEPTREGECO_"&A39),Output!$C:$AQ,6,FALSE) ->  | I39: =VLOOKUP(CONCATENATE("OSUPJEUNEALERTEREGECO_"&A39),Output!$C:$AQ,6,FALSE) ->  | J39: =VLOOKUP(CONCATENATE("OSUPJEUNEACCEPTREGECO_"&A39),Output!$C:$AQ,6,FALSE) ->  | K39: =VLOOKUP(CONCATENATE("OSUPREGECO_"&A39),Output!$C:$AQ,6,FALSE) ->  | M39: =ROUND(VLOOKUP("OSUPJEUNEREGECO_"&A39,Output!$C:$AQ,7,FALSE)/VLOOKUP("OSUPREGECO_"&A39,Output!$C:$AQ,6,FALSE),3) ->  | O39: =ROUND(VLOOKUP("OSUPJEUNEREGECO_"&$A39,Output!$C:$AQ,12,FALSE)/VLOOKUP("OSUPREGECO_"&A39,Output!$C:$AQ,6,FALSE),3) ->  | R39: =ROUND(VLOOKUP("OSUPVIEUXTOTREGECO_"&$A39,Output!$C:$AQ,7,FALSE)/VLOOKUP("OSUPREGECO_"&A39,Output!$C:$AQ,6,FALSE),3) ->  | T39: =ROUND(VLOOKUP("OSUPVIEUXTOTREGECO_"&$A39,Output!$C:$AQ,12,FALSE)/VLOOKUP("OSUPREGECO_"&A39,Output!$C:$AQ,6,FALSE),3) ->  | W39: 0 | AA39: =Tableaux!$O$33 -> 07352 | AB39: 0
G40: =VLOOKUP(CONCATENATE("OSUPVIEUXALERTEREGECO_"&A40),Output!$C:$AQ,6,FALSE) ->  | H40: =VLOOKUP(CONCATENATE("OSUPVIEUXACCEPTREGECO_"&A40),Output!$C:$AQ,6,FALSE) ->  | I40: =VLOOKUP(CONCATENATE("OSUPJEUNEALERTEREGECO_"&A40),Output!$C:$AQ,6,FALSE) ->  | J40: =VLOOKUP(CONCATENATE("OSUPJEUNEACCEPTREGECO_"&A40),Output!$C:$AQ,6,FALSE) ->  | K40: =VLOOKUP(CONCATENATE("OSUPREGECO_"&A40),Output!$C:$AQ,6,FALSE) ->  | M40: =ROUND(VLOOKUP("OSUPJEUNEREGECO_"&A40,Output!$C:$AQ,7,FALSE)/VLOOKUP("OSUPREGECO_"&A40,Output!$C:$AQ,6,FALSE),3) ->  | O40: =ROUND(VLOOKUP("OSUPJEUNEREGECO_"&$A40,Output!$C:$AQ,12,FALSE)/VLOOKUP("OSUPREGECO_"&A40,Output!$C:$AQ,6,FALSE),3) ->  | R40: =ROUND(VLOOKUP("OSUPVIEUXTOTREGECO_"&$A40,Output!$C:$AQ,7,FALSE)/VLOOKUP("OSUPREGECO_"&A40,Output!$C:$AQ,6,FALSE),3) ->  | T40: =ROUND(VLOOKUP("OSUPVIEUXTOTREGECO_"&$A40,Output!$C:$AQ,12,FALSE)/VLOOKUP("OSUPREGECO_"&A40,Output!$C:$AQ,6,FALSE),3) ->  | W40: 0 | AA40: =Tableaux!$O$33 -> 07352 | AB40: 0
G41: =VLOOKUP(CONCATENATE("OSUPVIEUXALERTEREGECO_"&A41),Output!$C:$AQ,6,FALSE) ->  | H41: =VLOOKUP(CONCATENATE("OSUPVIEUXACCEPTREGECO_"&A41),Output!$C:$AQ,6,FALSE) ->  | I41: =VLOOKUP(CONCATENATE("OSUPJEUNEALERTEREGECO_"&A41),Output!$C:$AQ,6,FALSE) ->  | J41: =VLOOKUP(CONCATENATE("OSUPJEUNEACCEPTREGECO_"&A41),Output!$C:$AQ,6,FALSE) ->  | K41: =VLOOKUP(CONCATENATE("OSUPREGECO_"&A41),Output!$C:$AQ,6,FALSE) ->  | M41: =ROUND(VLOOKUP("OSUPJEUNEREGECO_"&A41,Output!$C:$AQ,7,FALSE)/VLOOKUP("OSUPREGECO_"&A41,Output!$C:$AQ,6,FALSE),3) ->  | O41: =ROUND(VLOOKUP("OSUPJEUNEREGECO_"&$A41,Output!$C:$AQ,12,FALSE)/VLOOKUP("OSUPREGECO_"&A41,Output!$C:$AQ,6,FALSE),3) ->  | R41: =ROUND(VLOOKUP("OSUPVIEUXTOTREGECO_"&$A41,Output!$C:$AQ,7,FALSE)/VLOOKUP("OSUPREGECO_"&A41,Output!$C:$AQ,6,FALSE),3) ->  | T41: =ROUND(VLOOKUP("OSUPVIEUXTOTREGECO_"&$A41,Output!$C:$AQ,12,FALSE)/VLOOKUP("OSUPREGECO_"&A41,Output!$C:$AQ,6,FALSE),3) ->  | W41: 0 | AA41: =Tableaux!$O$33 -> 07352 | AB41: 0
G42: =VLOOKUP(CONCATENATE("OSUPVIEUXALERTEREGECO_"&A42),Output!$C:$AQ,6,FALSE) ->  | H42: =VLOOKUP(CONCATENATE("OSUPVIEUXACCEPTREGECO_"&A42),Output!$C:$AQ,6,FALSE) ->  | I42: =VLOOKUP(CONCATENATE("OSUPJEUNEALERTEREGECO_"&A42),Output!$C:$AQ,6,FALSE) ->  | J42: =VLOOKUP(CONCATENATE("OSUPJEUNEACCEPTREGECO_"&A42),Output!$C:$AQ,6,FALSE) ->  | K42: =VLOOKUP(CONCATENATE("OSUPREGECO_"&A42),Output!$C:$AQ,6,FALSE) ->  | M42: =ROUND(VLOOKUP("OSUPJEUNEREGECO_"&A42,Output!$C:$AQ,7,FALSE)/VLOOKUP("OSUPREGECO_"&A42,Output!$C:$AQ,6,FALSE),3) ->  | O42: =ROUND(VLOOKUP("OSUPJEUNEREGECO_"&$A42,Output!$C:$AQ,12,FALSE)/VLOOKUP("OSUPREGECO_"&A42,Output!$C:$AQ,6,FALSE),3) ->  | R42: =ROUND(VLOOKUP("OSUPVIEUXTOTREGECO_"&$A42,Output!$C:$AQ,7,FALSE)/VLOOKUP("OSUPREGECO_"&A42,Output!$C:$AQ,6,FALSE),3) ->  | T42: =ROUND(VLOOKUP("OSUPVIEUXTOTREGECO_"&$A42,Output!$C:$AQ,12,FALSE)/VLOOKUP("OSUPREGECO_"&A42,Output!$C:$AQ,6,FALSE),3) ->  | W42: 0 | AA42: =Tableaux!$O$33 -> 07352 | AB42: 0

Sheet Output
C1: 1 | D1: 2 | E1: 3 | F1: 4 | G1: 5 | H1: 6 | I1: 7 | J1: 8 | K1: 9 | L1: 10 | M1: 11 | N1: 12 | O1: 13 | P1: 14 | Q1: 15 | R1: 16 | S1: 17 | T1: 18 | U1: 19 | V1: 20 | W1: 21 | X1: 22 | Y1: 23 | Z1: 24 | AA1: 25 | AB1: 26 | AC1: 27 | AD1: 28 | AE1: 29 | AF1: 30 | AG1: 31 | AH1: 32 | AI1: 33 | AJ1: 34 | AK1: 35 | AL1: 36 | AM1: 37 | AN1: 38 | AO1: 39 | AP1: 40 | AQ1: 41
A2: Record | B2: Group | C2: Name | D2: Description | E2: Attribute | F2: Minimum | G2: Maximum | H2: Period0 | I2: Period1 | J2: Period2 | K2: Period3 | L2: Period4 | M2: Period5 | N2: Period6 | O2: Period7 | P2: Period8 | Q2: Period9 | R2: Period10 | S2: Period11 | T2: Period12 | U2: Period13 | V2: Period14 | W2: Period15 | X2: Period16 | Y2: Period17 | Z2: Period18 | AA2: Period19 | AB2: Period20 | AC2: Period21 | AD2: Period22 | AE2: Period23 | AF2: Period24 | AG2: Period25 | AH2: Period26 | AI2: Period27 | AJ2: Period28 | AK2: Period29 | AL2: Period30 | AM2: Moyemme P2 à P6 | AN2: Moyenne P7 à P11 | AO2: Moyenne P12 à P20 | AP2: Moyenne P21 à P30 | AQ2: Moyenne P2 à P30
B3: <Non regroupÚ(s)> | C3: OSUPTOT | D3: Superficie Totale | F3: 460921.8 | G3: 460921.8 | H3: 460921.8 | I3: 460921.8 | J3: 460921.8 | K3: 460921.8 | L3: 460921.8 | M3: 460921.8 | N3: 460921.8 | O3: 460921.8 | P3: 460921.8 | Q3: 460921.8 | R3: 460921.8 | S3: 460921.8 | T3: 460921.8 | U3: 460921.8 | V3: 460921.8 | W3: 460921.8 | X3: 460921.8 | Y3: 460921.8 | Z3: 460921.8 | AA3: 460921.8 | AB3: 460921.8 | AC3: 460921.8 | AD3: 460921.8 | AE3: 460921.8 | AF3: 460921.8 | AG3: 460921.8 | AH3: 460921.8 | AI3: 460921.8 | AJ3: 460921.8 | AK3: 460921.8 | AL3: 460921.8 | AM3: =AVERAGE(J3:N3) -> 460921.8 | AN3: =AVERAGE(O3:S3) -> 460921.8 | AO3: =AVERAGE(T3:AB3) -> 460921.8 | AP3: =AVERAGE(AC3:AL3) -> 460921.8 | AQ3: =AVERAGE(J3:AL3) -> 460921.8
B4: <Non regroupÚ(s)> | C4: OSUPINC | D4: Superficie InclusActions par courbe | F4: 274236.23 | G4: 286182.4 | H4: 286182.4 | I4: 285202.74 | J4: 283995.84 | K4: 282841.3 | L4: 281946.7 | M4: 280927.27 | N4: 279934.25 | O4: 278976.91 | P4: 278321.5 | Q4: 277692.83 | R4: 277082.08 | S4: 276378.18 | T4: 275900.81 | U4: 275618.06 | V4: 275388.67 | W4: 274952.09 | X4: 274714.37 | Y4: 274626.89 | Z4: 274604.86 | AA4: 274545.59 | AB4: 274512.28 | AC4: 274492.28 | AD4: 274472.28 | AE4: 274422.59 | AF4: 274321.35 | AG4: 274296.23 | AH4: 274276.23 | AI4: 274256.23 | AJ4: 274236.23 | AK4: 274236.23 | AL4: 274236.23 | AM4: =AVERAGE(J4:N4) -> 281929.072 | AN4: =AVERAGE(O4:S4) -> 277690.3 | AO4: =AVERAGE(T4:AB4) -> 274984.8467 | AP4: =AVERAGE(AC4:AL4) -> 274324.588 | AQ4: =AVERAGE(J4:AL4) -> 276420.909
B5: <Non regroupÚ(s)> | C5: OSUPregECO | D5: Superficie Disponible aux RÚsultats ╔cologiques | F5: 367183.43 | G5: 379129.6 | H5: 379129.6 | I5: 378149.94 | J5: 376943.04 | K5: 375788.5 | L5: 374893.9 | M5: 373874.47 | N5: 372881.45 | O5: 371924.11 | P5: 371268.7 | Q5: 370640.03 | R5: 370029.28 | S5: 369325.38 | T5: 368848.01 | U5: 368565.26 | V5: 368335.87 | W5: 367899.29 | X5: 367661.57 | Y5: 367574.09 | Z5: 367552.06 | AA5: 367492.79 | AB5: 367459.48 | AC5: 367439.48 | AD5: 367419.48 | AE5: 367369.79 | AF5: 367268.55 | AG5: 367243.43 | AH5: 367223.43 | AI5: 367203.43 | AJ5: 367183.43 | AK5: 367183.43 | AL5: 367183.43 | AM5: 374876.272 | AN5: 370637.5 | AO5: 367932.0467 | AP5: 367271.788 | AQ5: 369368.109
B6: <Non regroupÚ(s)> | C6: OSUPEXIN | D6: Superficie ExcluActionsInclus | F6: 92947.2 | G6: 92947.2 | H6: 92947.2 | I6: 92947.2 | J6: 92947.2 | K6: 92947.2 | L6: 92947.2 | M6: 92947.2 | N6: 92947.2 | O6: 92947.2 | P6: 92947.2 | Q6: 92947.2 | R6: 92947.2 | S6: 92947.2 | T6: 92947.2 | U6: 92947.2 | V6: 92947.2 | W6: 92947.2 | X6: 92947.2 | Y6: 92947.2 | Z6: 92947.2 | AA6: 92947.2 | AB6: 92947.2 | AC6: 92947.2 | AD6: 92947.2 | AE6: 92947.2 | AF6: 92947.2 | AG6: 92947.2 | AH6: 92947.2 | AI6: 92947.2 | AJ6: 92947.2 | AK6: 92947.2 | AL6: 92947.2 | AM6: 92947.2 | AN6: 92947.2 | AO6: 92947.2 | AP6: 92947.2 | AQ6: 92947.2
B7: <Non regroupÚ(s)> | C7: OSUPEXTI | D7: Superficie Improductive | F7: 15467 | G7: 15467 | H7: 15467 | I7: 15467 | J7: 15467 | K7: 15467 | L7: 15467 | M7: 15467 | N7: 15467 | O7: 15467 | P7: 15467 | Q7: 15467 | R7: 15467 | S7: 15467 | T7: 15467 | U7: 15467 | V7: 15467 | W7: 15467 | X7: 15467 | Y7: 15467 | Z7: 15467 | AA7: 15467 | AB7: 15467 | AC7: 15467 | AD7: 15467 | AE7: 15467 | AF7: 15467 | AG7: 15467 | AH7: 15467 | AI7: 15467 | AJ7: 15467 | AK7: 15467 | AL7: 15467 | AM7: 15467 | AN7: 15467 | AO7: 15467 | AP7: 15467 | AQ7: 15467
B8: <Non regroupÚ(s)> | C8: OSUPLOCK | D8: Superficie Sous Verrous | F8: 14102.01 | G8: 77421.5 | H8: 70659.5 | I8: 77421.5 | J8: 51524.5 | K8: 50072.29 | L8: 55146.4 | M8: 32356.73 | N8: 37837.47 | O8: 42847.22 | P8: 38110.75 | Q8: 31809.62 | R8: 27300.82 | S8: 24857.84 | T8: 21513.5 | U8: 19097.54 | V8: 16971.35 | W8: 17258.74 | X8: 17779.77 | Y8: 18557.39 | Z8: 16826.87 | AA8: 16406.92 | AB8: 14756.77 | AC8: 14102.01 | AD8: 14249.29 | AE8: 14973.63 | AF8: 16170.9 | AG8: 16422.64 | AH8: 16793.66 | AI8: 19380.82 | AJ8: 22040.19 | AK8: 24447.01 | AL8: 26795.84 | AM8: 45387.478 | AN8: 32985.25 | AO8: 17685.42778 | AP8: 18537.599 | AQ8: 25393.39586
B9: Economique | C9: oSupTcsdDEG_1_T100% | D9: oSupTcsdDEG_1_T100% | F9: 0 | G9: 3785.9 | H9: 0 | I9: 3785.9 | J9: 2239.86 | K9: 1647.3 | L9: 2107.92 | M9: 2090.92 | N9: 1739.32 | O9: 2500 | P9: 2500 | Q9: 2474.28 | R9: 2500 | S9: 2500 | T9: 2500 | U9: 2500 | V9: 2500 | W9: 2500 | X9: 2500 | Y9: 2335.44 | Z9: 2359.48 | AA9: 2500 | AB9: 2500 | AC9: 2500 | AD9: 2500 | AE9: 2500 | AF9: 2500 | AG9: 2500 | AH9: 2500 | AI9: 2500 | AJ9: 2038.63 | AK9: 2500 | AL9: 1850 | AM9: 1965.064 | AN9: 2494.856 | AO9: 2466.102222 | AP9: 2388.863 | AQ9: 2358.039655
B10: Economique | C10: oSupTcsdDEG_2_T100% | D10: oSupTcsdDEG_2_T100% | F10: 0 | G10: 620.22 | H10: 0 | I10: 293.6 | J10: 603.6 | K10: 175 | L10: 220.86 | M10: 457.56 | N10: 490.93 | O10: 297.24 | P10: 451.72 | Q10: 412.39 | R10: 388.57 | S10: 208.01 | T10: 518.41 | U10: 486.6 | V10: 412.35 | W10: 4.2 | X10: 0 | Y10: 427.99 | Z10: 509.01 | AA10: 304.51 | AB10: 50.1 | AC10: 252.96 | AD10: 368.62 | AE10: 214.35 | AF10: 0 | AG10: 460.75 | AH10: 620.22 | AI10: 357.49 | AJ10: 191.37 | AK10: 0 | AL10: 0 | AM10: 389.59 | AN10: 351.586 | AO10: 301.4633333 | AP10: 246.576 | AQ10: 306.3727586
B11: Economique | C11: oSupDEG_1_T100% | D11: oSupDEG_1_T100% | F11: 0 | G11: 3785.9 | H11: 0 | I11: 3785.9 | J11: 2239.86 | K11: 1647.3 | L11: 2107.92 | M11: 2090.92 | N11: 1739.32 | O11: 2500 | P11: 2500 | Q11: 2474.28 | R11: 2500 | S11: 2500 | T11: 2500 | U11: 2500 | V11: 2500 | W11: 2500 | X11: 2500 | Y11: 2335.44 | Z11: 2359.48 | AA11: 2500 | AB11: 2500 | AC11: 2500 | AD11: 2500 | AE11: 2500 | AF11: 2500 | AG11: 2500 | AH11: 2500 | AI11: 2500 | AJ11: 2038.63 | AK11: 2500 | AL11: 1850 | AM11: 1965.064 | AN11: 2494.856 | AO11: 2466.102222 | AP11: 2388.863 | AQ11: 2358.039655
B12: Economique | C12: oSupDEG_2_T100% | D12: oSupDEG_2_T100% | F12: 0 | G12: 620.22 | H12: 0 | I12: 293.6 | J12: 603.6 | K12: 175 | L12: 220.86 | M12: 457.56 | N12: 490.93 | O12: 297.24 | P12: 451.72 | Q12: 412.39 | R12: 388.57 | S12: 208.01 | T12: 518.41 | U12: 486.6 | V12: 412.35 | W12: 4.2 | X12: 0 | Y12: 427.99 | Z12: 509.01 | AA12: 304.51 | AB12: 50.1 | AC12: 252.96 | AD12: 368.62 | AE12: 214.35 | AF12: 0 | AG12: 460.75 | AH12: 620.22 | AI12: 357.49 | AJ12: 191.37 | AK12: 0 | AL12: 0 | AM12: 389.59 | AN12: 351.586 | AO12: 301.4633333 | AP12: 246.576 | AQ12: 306.3727586
B13: Economique | C13: oSupDEG_1 | D13: oSupDEG_1 | F13: 0 | G13: 3785.9 | H13: 0 | I13: 3785.9 | J13: 2239.86 | K13: 1647.3 | L13: 2107.92 | M13: 2090.92 | N13: 1739.32 | O13: 2500 | P13: 2500 | Q13: 2474.28 | R13: 2500 | S13: 2500 | T13: 2500 | U13: 2500 | V13: 2500 | W13: 2500 | X13: 2500 | Y13: 2335.44 | Z13: 2359.48 | AA13: 2500 | AB13: 2500 | AC13: 2500 | AD13: 2500 | AE13: 2500 | AF13: 2500 | AG13: 2500 | AH13: 2500 | AI13: 2500 | AJ13: 2038.63 | AK13: 2500 | AL13: 1850 | AM13: 1965.064 | AN13: 2494.856 | AO13: 2466.102222 | AP13: 2388.863 | AQ13: 2358.039655
B14: Economique | C14: oSupDEG_2 | D14: oSupDEG_2 | F14: 0 | G14: 620.22 | H14: 0 | I14: 293.6 | J14: 603.6 | K14: 175 | L14: 220.86 | M14: 457.56 | N14: 490.93 | O14: 297.24 | P14: 451.72 | Q14: 412.39 | R14: 388.57 | S14: 208.01 | T14: 518.41 | U14: 486.6 | V14: 412.35 | W14: 4.2 | X14: 0 | Y14: 427.99 | Z14: 509.01 | AA14: 304.51 | AB14: 50.1 | AC14: 252.96 | AD14: 368.62 | AE14: 214.35 | AF14: 0 | AG14: 460.75 | AH14: 620.22 | AI14: 357.49 | AJ14: 191.37 | AK14: 0 | AL14: 0 | AM14: 389.59 | AN14: 351.586 | AO14: 301.4633333 | AP14: 246.576 | AQ14: 306.3727586
B15: Economique | C15: oSupTcsdSCA_LIGN_T100% | D15: oSupTcsdSCA_LIGN_T100% | F15: 0 | G15: 0 | H15: 0 | I15: 0 | J15: 0 | K15: 0 | L15: 0 | M15: 0 | N15: 0 | O15: 0 | P15: 0 | Q15: 0 | R15: 0 | S15: 0 | T15: 0 | U15: 0 | V15: 0 | W15: 0 | X15: 0 | Y15: 0 | Z15: 0 | AA15: 0 | AB15: 0 | AC15: 0 | AD15: 0 | AE15: 0 | AF15: 0 | AG15: 0 | AH15: 0 | AI15: 0 | AJ15: 0 | AK15: 0 | AL15: 0 | AM15: 0 | AN15: 0 | AO15: 0 | AP15: 0 | AQ15: 0
B16: Economique | C16: oSupTcsdSCA_PART_T100% | D16: oSupTcsdSCA_PART_T100% | F16: 0 | G16: 4421.27 | H16: 0 | I16: 4421.27 | J16: 1453.6 | K16: 2301.75 | L16: 1885.13 | M16: 1607.56 | N16: 1640.93 | O16: 1615.97 | P16: 2101.72 | Q16: 1451.9 | R16: 1538.57 | S16: 1608.01 | T16: 2168.41 | U16: 2136.6 | V16: 2062.35 | W16: 1567.07 | X16: 1150 | Y16: 1827.99 | Z16: 1609.01 | AA16: 1672.54 | AB16: 1450.1 | AC16: 1652.96 | AD16: 1768.62 | AE16: 1614.35 | AF16: 1400 | AG16: 1860.75 | AH16: 2043.56 | AI16: 2303.05 | AJ16: 1591.37 | AK16: 1400 | AL16: 1440.36 | AM16: 1777.794 | AN16: 1663.234 | AO16: 1738.23 | AP16: 1707.502 | AQ16: 1721.525172
B17: Economique | C17: oSupTcsdSCA_REG_T100% | D17: oSupTcsdSCA_REG_T100% | F17: 0 | G17: 3785.9 | H17: 0 | I17: 3785.9 | J17: 2239.86 | K17: 1850 | L17: 2500 | M17: 2500 | N17: 2500 | O17: 2500 | P17: 2500 | Q17: 2500 | R17: 2500 | S17: 2500 | T17: 2500 | U17: 2500 | V17: 2500 | W17: 2500 | X17: 2500 | Y17: 2500 | Z17: 2500 | AA17: 2500 | AB17: 2500 | AC17: 2500 | AD17: 2500 | AE17: 2500 | AF17: 2500 | AG17: 2500 | AH17: 2500 | AI17: 2500 | AJ17: 2038.63 | AK17: 2500 | AL17: 1850 | AM17: 2317.972 | AN17: 2500 | AO17: 2500 | AP17: 2388.863 | AQ17: 2430.292759
B18: Economique | C18: oSupSCA_LIGN_T100% | D18: oSupSCA_LIGN_T100% | F18: 0 | G18: 0 | H18: 0 | I18: 0 | J18: 0 | K18: 0 | L18: 0 | M18: 0 | N18: 0 | O18: 0 | P18: 0 | Q18: 0 | R18: 0 | S18: 0 | T18: 0 | U18: 0 | V18: 0 | W18: 0 | X18: 0 | Y18: 0 | Z18: 0 | AA18: 0 | AB18: 0 | AC18: 0 | AD18: 0 | AE18: 0 | AF18: 0 | AG18: 0 | AH18: 0 | AI18: 0 | AJ18: 0 | AK18: 0 | AL18: 0 | AM18: 0 | AN18: 0 | AO18: 0 | AP18: 0 | AQ18: 0
B19: Economique | C19: oSupSCA_PART_T100% | D19: oSupSCA_PART_T100% | F19: 0 | G19: 4421.27 | H19: 0 | I19: 4421.27 | J19: 1453.6 | K19: 2301.75 | L19: 1885.13 | M19: 1607.56 | N19: 1640.93 | O19: 1615.97 | P19: 2101.72 | Q19: 1451.9 | R19: 1538.57 | S19: 1608.01 | T19: 2168.41 | U19: 2136.6 | V19: 2062.35 | W19: 1567.07 | X19: 1150 | Y19: 1827.99 | Z19: 1609.01 | AA19: 1672.54 | AB19: 1450.1 | AC19: 1652.96 | AD19: 1768.62 | AE19: 1614.35 | AF19: 1400 | AG19: 1860.75 | AH19: 2043.56 | AI19: 2303.05 | AJ19: 1591.37 | AK19: 1400 | AL19: 1440.36 | AM19: 1777.794 | AN19: 1663.234 | AO19: 1738.23 | AP19: 1707.502 | AQ19: 1721.525172
B20: Economique | C20: oSupSCA_REG_T100% | D20: oSupSCA_REG_T100% | F20: 0 | G20: 3785.9 | H20: 0 | I20: 3785.9 | J20: 2239.86 | K20: 1850 | L20: 2500 | M20: 2500 | N20: 2500 | O20: 2500 | P20: 2500 | Q20: 2500 | R20: 2500 | S20: 2500 | T20: 2500 | U20: 2500 | V20: 2500 | W20: 2500 | X20: 2500 | Y20: 2500 | Z20: 2500 | AA20: 2500 | AB20: 2500 | AC20: 2500 | AD20: 2500 | AE20: 2500 | AF20: 2500 | AG20: 2500 | AH20: 2500 | AI20: 2500 | AJ20: 2038.63 | AK20: 2500 | AL20: 1850 | AM20: 2317.972 | AN20: 2500 | AO20: 2500 | AP20: 2388.863 | AQ20: 2430.292759
B21: Economique | C21: oSupSCA_LIGN | D21: oSupSCA_LIGN | F21: 0 | G21: 0 | H21: 0 | I21: 0 | J21: 0 | K21: 0 | L21: 0 | M21: 0 | N21: 0 | O21: 0 | P21: 0 | Q21: 0 | R21: 0 | S21: 0 | T21: 0 | U21: 0 | V21: 0 | W21: 0 | X21: 0 | Y21: 0 | Z21: 0 | AA21: 0 | AB21: 0 | AC21: 0 | AD21: 0 | AE21: 0 | AF21: 0 | AG21: 0 | AH21: 0 | AI21: 0 | AJ21: 0 | AK21: 0 | AL21: 0 | AM21: 0 | AN21: 0 | AO21: 0 | AP21: 0 | AQ21: 0
B22: Economique | C22: oSupSCA_PART | D22: oSupSCA_PART | F22: 0 | G22: 4421.27 | H22: 0 | I22: 4421.27 | J22: 1453.6 | K22: 2301.75 | L22: 1885.13 | M22: 1607.56 | N22: 1640.93 | O22: 1615.97 | P22: 2101.72 | Q22: 1451.9 | R22: 1538.57 | S22: 1608.01 | T22: 2168.41 | U22: 2136.6 | V22: 2062.35 | W22: 1567.07 | X22: 1150 | Y22: 1827.99 | Z22: 1609.01 | AA22: 1672.54 | AB22: 1450.1 | AC22: 1652.96 | AD22: 1768.62 | AE22: 1614.35 | AF22: 1400 | AG22: 1860.75 | AH22: 2043.56 | AI22: 2303.05 | AJ22: 1591.37 | AK22: 1400 | AL22: 1440.36 | AM22: 1777.794 | AN22: 1663.234 | AO22: 1738.23 | AP22: 1707.502 | AQ22: 1721.525172
B23: Economique | C23: oSupSCA_REG | D23: oSupSCA_REG | F23: 0 | G23: 3785.9 | H23: 0 | I23: 3785.9 | J23: 2239.86 | K23: 1850 | L23: 2500 | M23: 2500 | N23: 2500 | O23: 2500 | P23: 2500 | Q23: 2500 | R23: 2500 | S23: 2500 | T23: 2500 | U23: 2500 | V23: 2500 | W23: 2500 | X23: 2500 | Y23: 2500 | Z23: 2500 | AA23: 2500 | AB23: 2500 | AC23: 2500 | AD23: 2500 | AE23: 2500 | AF23: 2500 | AG23: 2500 | AH23: 2500 | AI23: 2500 | AJ23: 2038.63 | AK23: 2500 | AL23: 1850 | AM23: 2317.972 | AN23: 2500 | AO23: 2500 | AP23: 2388.863 | AQ23: 2430.292759
B24: Economique | C24: oSupTcsdREG_T100% | D24: oSupTcsdREG_T100% | F24: 0 | G24: 620.22 | H24: 0 | I24: 293.6 | J24: 603.6 | K24: 175 | L24: 220.86 | M24: 457.56 | N24: 490.93 | O24: 297.24 | P24: 451.72 | Q24: 412.39 | R24: 388.57 | S24: 208.01 | T24: 518.41 | U24: 486.6 | V24: 412.35 | W24: 4.2 | X24: 0 | Y24: 427.99 | Z24: 509.01 | AA24: 304.51 | AB24: 50.1 | AC24: 252.96 | AD24: 368.62 | AE24: 214.35 | AF24: 0 | AG24: 460.75 | AH24: 620.22 | AI24: 357.49 | AJ24: 191.37 | AK24: 0 | AL24: 0 | AM24: 389.59 | AN24: 351.586 | AO24: 301.4633333 | AP24: 246.576 | AQ24: 306.3727586
B25: Economique | C25: oSupREG_T100% | D25: oSupREG_T100% | F25: 0 | G25: 620.22 | H25: 0 | I25: 293.6 | J25: 603.6 | K25: 175 | L25: 220.86 | M25: 457.56 | N25: 490.93 | O25: 297.24 | P25: 451.72 | Q25: 412.39 | R25: 388.57 | S25: 208.01 | T25: 518.41 | U25: 486.6 | V25: 412.35 | W25: 4.2 | X25: 0 | Y25: 427.99 | Z25: 509.01 | AA25: 304.51 | AB25: 50.1 | AC25: 252.96 | AD25: 368.62 | AE25: 214.35 | AF25: 0 | AG25: 460.75 | AH25: 620.22 | AI25: 357.49 | AJ25: 191.37 | AK25: 0 | AL25: 0 | AM25: 389.59 | AN25: 351.586 | AO25: 301.4633333 | AP25: 246.576 | AQ25: 306.3727586
B26: Economique | C26: oSupREG | D26: oSupREG | F26: 0 | G26: 620.22 | H26: 0 | I26: 293.6 | J26: 603.6 | K26: 175 | L26: 220.86 | M26: 457.56 | N26: 490.93 | O26: 297.24 | P26: 451.72 | Q26: 412.39 | R26: 388.57 | S26: 208.01 | T26: 518.41 | U26: 486.6 | V26: 412.35 | W26: 4.2 | X26: 0 | Y26: 427.99 | Z26: 509.01 | AA26: 304.51 | AB26: 50.1 | AC26: 252.96 | AD26: 368.62 | AE26: 214.35 | AF26: 0 | AG26: 460.75 | AH26: 620.22 | AI26: 357.49 | AJ26: 191.37 | AK26: 0 | AL26: 0 | AM26: 389.59 | AN26: 351.586 | AO26: 301.4633333 | AP26: 246.576 | AQ26: 306.3727586
B27: Economique | C27: oSupTcsdELAG_T100% | D27: oSupTcsdELAG_T100% | F27: 0 | G27: 620.22 | H27: 0 | I27: 293.6 | J27: 603.6 | K27: 175 | L27: 220.86 | M27: 457.56 | N27: 490.93 | O27: 297.24 | P27: 451.72 | Q27: 412.39 | R27: 388.57 | S27: 208.01 | T27: 518.41 | U27: 486.6 | V27: 412.35 | W27: 4.2 | X27: 0 | Y27: 427.99 | Z27: 509.01 | AA27: 304.51 | AB27: 50.1 | AC27: 252.96 | AD27: 368.62 | AE27: 214.35 | AF27: 0 | AG27: 460.75 | AH27: 620.22 | AI27: 357.49 | AJ27: 191.37 | AK27: 0 | AL27: 0 | AM27: 389.59 | AN27: 351.586 | AO27: 301.4633333 | AP27: 246.576 | AQ27: 306.3727586
B28: Economique | C28: oSupELAG_T100% | D28: oSupELAG_T100% | F28: 0 | G28: 620.22 | H28: 0 | I28: 293.6 | J28: 603.6 | K28: 175 | L28: 220.86 | M28: 457.56 | N28: 490.93 | O28: 297.24 | P28: 451.72 | Q28: 412.39 | R28: 388.57 | S28: 208.01 | T28: 518.41 | U28: 486.6 | V28: 412.35 | W28: 4.2 | X28: 0 | Y28: 427.99 | Z28: 509.01 | AA28: 304.51 | AB28: 50.1 | AC28: 252.96 | AD28: 368.62 | AE28: 214.35 | AF28: 0 | AG28: 460.75 | AH28: 620.22 | AI28: 357.49 | AJ28: 191.37 | AK28: 0 | AL28: 0 | AM28: 389.59 | AN28: 351.586 | AO28: 301.4633333 | AP28: 246.576 | AQ28: 306.3727586
B29: Economique | C29: oSupELAG | D29: oSupELAG | F29: 0 | G29: 620.22 | H29: 0 | I29: 293.6 | J29: 603.6 | K29: 175 | L29: 220.86 | M29: 457.56 | N29: 490.93 | O29: 297.24 | P29: 451.72 | Q29: 412.39 | R29: 388.57 | S29: 208.01 | T29: 518.41 | U29: 486.6 | V29: 412.35 | W29: 4.2 | X29: 0 | Y29: 427.99 | Z29: 509.01 | AA29: 304.51 | AB29: 50.1 | AC29: 252.96 | AD29: 368.62 | AE29: 214.35 | AF29: 0 | AG29: 460.75 | AH29: 620.22 | AI29: 357.49 | AJ29: 191.37 | AK29: 0 | AL29: 0 | AM29: 389.59 | AN29: 351.586 | AO29: 301.4633333 | AP29: 246.576 | AQ29: 306.3727586
B30: Economique | C30: oSupActCPICP_T100% | D30: oSupActCPICP_T100% | F30: 0 | G30: 250 | H30: 0 | I30: 21.74 | J30: 250 | K30: 250 | L30: 250 | M30: 250 | N30: 250 | O30: 250 | P30: 250 | Q30: 250 | R30: 250 | S30: 250 | T30: 250 | U30: 250 | V30: 250 | W30: 250 | X30: 250 | Y30: 250 | Z30: 250 | AA30: 250 | AB30: 250 | AC30: 250 | AD30: 250 | AE30: 250 | AF30: 250 | AG30: 250 | AH30: 250 | AI30: 250 | AJ30: 250 | AK30: 250 | AL30: 250 | AM30: 250 | AN30: 250 | AO30: 250 | AP30: 250 | AQ30: 250
B31: Economique | C31: oSupActCPIRL_FIN_T100% | D31: oSupActCPIRL_FIN_T100% | F31: 0 | G31: 5248.43 | H31: 0 | I31: 0 | J31: 0 | K31: 0 | L31: 0 | M31: 0 | N31: 0 | O31: 0 | P31: 2585.2 | Q31: 2743.13 | R31: 3110.95 | S31: 1792.82 | T31: 2681.12 | U31: 1840.58 | V31: 2610.37 | W31: 3559.27 | X31: 4524.99 | Y31: 3477.48 | Z31: 3810.31 | AA31: 3194.86 | AB31: 3020.46 | AC31: 2239.45 | AD31: 2358.63 | AE31: 2540.37 | AF31: 2256.7 | AG31: 4759.24 | AH31: 5248.43 | AI31: 2872.42 | AJ31: 1301.57 | AK31: 1865.46 | AL31: 2103.01 | AM31: 0 | AN31: 2046.42 | AO31: 3191.048889 | AP31: 2754.528 | AQ31: 2292.993793
B32: Economique | C32: oSupActCPIRL_INI_T100% | D32: oSupActCPIRL_INI_T100% | F32: 0 | G32: 7328.26 | H32: 0 | I32: 7328.26 | J32: 5901.3 | K32: 6416.43 | L32: 5739.79 | M32: 5627.33 | N32: 5707.32 | O32: 5101.59 | P32: 1971.24 | Q32: 1451.9 | R32: 1538.57 | S32: 3356.66 | T32: 1918.41 | U32: 2928.87 | V32: 2671.02 | W32: 2285.26 | X32: 1939 | Y32: 2305.11 | Z32: 1359.01 | AA32: 1422.54 | AB32: 1203.03 | AC32: 2000.4 | AD32: 2340.2 | AE32: 2663.34 | AF32: 3502.38 | AG32: 1610.75 | AH32: 1793.56 | AI32: 3790.18 | AJ32: 4659.77 | AK32: 4727.02 | AL32: 4992.17 | AM32: 5878.434 | AN32: 2683.992 | AO32: 2003.583333 | AP32: 3207.977 | AQ32: 3204.281034
B33: Economique | C33: oSupCPICP_T100% | D33: oSupCPICP_T100% | F33: 0 | G33: 250 | H33: 0 | I33: 21.74 | J33: 250 | K33: 250 | L33: 250 | M33: 250 | N33: 250 | O33: 250 | P33: 250 | Q33: 250 | R33: 250 | S33: 250 | T33: 250 | U33: 250 | V33: 250 | W33: 250 | X33: 250 | Y33: 250 | Z33: 250 | AA33: 250 | AB33: 250 | AC33: 250 | AD33: 250 | AE33: 250 | AF33: 250 | AG33: 250 | AH33: 250 | AI33: 250 | AJ33: 250 | AK33: 250 | AL33: 250 | AM33: 250 | AN33: 250 | AO33: 250 | AP33: 250 | AQ33: 250
B34: Economique | C34: oSupCPIRL_FIN_T100% | D34: oSupCPIRL_FIN_T100% | F34: 0 | G34: 5248.43 | H34: 0 | I34: 0 | J34: 0 | K34: 0 | L34: 0 | M34: 0 | N34: 0 | O34: 0 | P34: 2585.2 | Q34: 2743.13 | R34: 3110.95 | S34: 1792.82 | T34: 2681.12 | U34: 1840.58 | V34: 2610.37 | W34: 3559.27 | X34: 4524.99 | Y34: 3477.48 | Z34: 3810.31 | AA34: 3194.86 | AB34: 3020.46 | AC34: 2239.45 | AD34: 2358.63 | AE34: 2540.37 | AF34: 2256.7 | AG34: 4759.24 | AH34: 5248.43 | AI34: 2872.42 | AJ34: 1301.57 | AK34: 1865.46 | AL34: 2103.01 | AM34: 0 | AN34: 2046.42 | AO34: 3191.048889 | AP34: 2754.528 | AQ34: 2292.993793
B35: Economique | C35: oSupCPIRL_INI_T100% | D35: oSupCPIRL_INI_T100% | F35: 0 | G35: 7328.26 | H35: 0 | I35: 7328.26 | J35: 5901.3 | K35: 6416.43 | L35: 5739.79 | M35: 5627.33 | N35: 5707.32 | O35: 5101.59 | P35: 1971.24 | Q35: 1451.9 | R35: 1538.57 | S35: 3356.66 | T35: 1918.41 | U35: 2928.87 | V35: 2671.02 | W35: 2285.26 | X35: 1939 | Y35: 2305.11 | Z35: 1359.01 | AA35: 1422.54 | AB35: 1203.03 | AC35: 2000.4 | AD35: 2340.2 | AE35: 2663.34 | AF35: 3502.38 | AG35: 1610.75 | AH35: 1793.56 | AI35: 3790.18 | AJ35: 4659.77 | AK35: 4727.02 | AL35: 4992.17 | AM35: 5878.434 | AN35: 2683.992 | AO35: 2003.583333 | AP35: 3207.977 | AQ35: 3204.281034
B36: Economique | C36: oSupCPICP | D36: oSupCPICP | F36: 0 | G36: 250 | H36: 0 | I36: 21.74 | J36: 250 | K36: 250 | L36: 250 | M36: 250 | N36: 250 | O36: 250 | P36: 250 | Q36: 250 | R36: 250 | S36: 250 | T36: 250 | U36: 250 | V36: 250 | W36: 250 | X36: 250 | Y36: 250 | Z36: 250 | AA36: 250 | AB36: 250 | AC36: 250 | AD36: 250 | AE36: 250 | AF36: 250 | AG36: 250 | AH36: 250 | AI36: 250 | AJ36: 250 | AK36: 250 | AL36: 250 | AM36: 250 | AN36: 250 | AO36: 250 | AP36: 250 | AQ36: 250
B37: Economique | C37: oSupCPIRL_FIN | D37: oSupCPIRL_FIN | F37: 0 | G37: 5248.43 | H37: 0 | I37: 0 | J37: 0 | K37: 0 | L37: 0 | M37: 0 | N37: 0 | O37: 0 | P37: 2585.2 | Q37: 2743.13 | R37: 3110.95 | S37: 1792.82 | T37: 2681.12 | U37: 1840.58 | V37: 2610.37 | W37: 3559.27 | X37: 4524.99 | Y37: 3477.48 | Z37: 3810.31 | AA37: 3194.86 | AB37: 3020.46 | AC37: 2239.45 | AD37: 2358.63 | AE37: 2540.37 | AF37: 2256.7 | AG37: 4759.24 | AH37: 5248.43 | AI37: 2872.42 | AJ37: 1301.57 | AK37: 1865.46 | AL37: 2103.01 | AM37: 0 | AN37: 2046.42 | AO37: 3191.048889 | AP37: 2754.528 | AQ37: 2292.993793
B38: Economique | C38: oSupCPIRL_INI | D38: oSupCPIRL_INI | F38: 0 | G38: 7328.26 | H38: 0 | I38: 7328.26 | J38: 5901.3 | K38: 6416.43 | L38: 5739.79 | M38: 5627.33 | N38: 5707.32 | O38: 5101.59 | P38: 1971.24 | Q38: 1451.9 | R38: 1538.57 | S38: 3356.66 | T38: 1918.41 | U38: 2928.87 | V38: 2671.02 | W38: 2285.26 | X38: 1939 | Y38: 2305.11 | Z38: 1359.01 | AA38: 1422.54 | AB38: 1203.03 | AC38: 2000.4 | AD38: 2340.2 | AE38: 2663.34 | AF38: 3502.38 | AG38: 1610.75 | AH38: 1793.56 | AI38: 3790.18 | AJ38: 4659.77 | AK38: 4727.02 | AL38: 4992.17 | AM38: 5878.434 | AN38: 2683.992 | AO38: 2003.583333 | AP38: 3207.977 | AQ38: 3204.281034
B39: Economique | C39: oSupActCT_T100% | D39: oSupActCT_T100% | F39: 0 | G39: 14292.02 | H39: 0 | I39: 7629.36 | J39: 14292.02 | K39: 13608.25 | L39: 13909.01 | M39: 12625.49 | N39: 12381.98 | O39: 13121.05 | P39: 12404.42 | Q39: 12501.85 | R39: 12270.77 | S39: 12065.12 | T39: 12340.13 | U39: 11373.28 | V39: 11130.16 | W39: 10640 | X39: 10435.65 | Y39: 10948.06 | Z39: 11129.66 | AA39: 11571.73 | AB39: 11641.06 | AC39: 10189.86 | AD39: 11351.18 | AE39: 10692.23 | AF39: 9661.55 | AG39: 8406.37 | AH39: 9554.35 | AI39: 11531.25 | AJ39: 13909.17 | AK39: 13710.11 | AL39: 13722.44 | AM39: 13363.35 | AN39: 12472.642 | AO39: 11245.52556 | AP39: 11272.851 | AQ39: 11831.66207
B40: Economique | C40: oSupCT_T100% | D40: oSupCT_T100% | F40: 0 | G40: 14292.02 | H40: 0 | I40: 7629.36 | J40: 14292.02 | K40: 13608.25 | L40: 13909.01 | M40: 12625.49 | N40: 12381.98 | O40: 13121.05 | P40: 12404.42 | Q40: 12501.85 | R40: 12270.77 | S40: 12065.12 | T40: 12340.13 | U40: 11373.28 | V40: 11130.16 | W40: 10640 | X40: 10435.65 | Y40: 10948.06 | Z40: 11129.66 | AA40: 11571.73 | AB40: 11641.06 | AC40: 10189.86 | AD40: 11351.18 | AE40: 10692.23 | AF40: 9661.55 | AG40: 8406.37 | AH40: 9554.35 | AI40: 11531.25 | AJ40: 13909.17 | AK40: 13710.11 | AL40: 13722.44 | AM40: 13363.35 | AN40: 12472.642 | AO40: 11245.52556 | AP40: 11272.851 | AQ40: 11831.66207
B41: Economique | C41: oSupCT | D41: oSupCT | F41: 0 | G41: 14292.02 | H41: 0 | I41: 7629.36 | J41: 14292.02 | K41: 13608.25 | L41: 13909.01 | M41: 12625.49 | N41: 12381.98 | O41: 13121.05 | P41: 12404.42 | Q41: 12501.85 | R41: 12270.77 | S41: 12065.12 | T41: 12340.13 | U41: 11373.28 | V41: 11130.16 | W41: 10640 | X41: 10435.65 | Y41: 10948.06 | Z41: 11129.66 | AA41: 11571.73 | AB41: 11641.06 | AC41: 10189.86 | AD41: 11351.18 | AE41: 10692.23 | AF41: 9661.55 | AG41: 8406.37 | AH41: 9554.35 | AI41: 11531.25 | AJ41: 13909.17 | AK41: 13710.11 | AL41: 13722.44 | AM41: 13363.35 | AN41: 12472.642 | AO41: 11245.52556 | AP41: 11272.851 | AQ41: 11831.66207
B42: Economique | C42: oSupActPL_PPF_T100% | D42: oSupActPL_PPF_T100% | F42: 0 | G42: 0 | H42: 0 | I42: 0 | J42: 0 | K42: 0 | L42: 0 | M42: 0 | N42: 0 | O42: 0 | P42: 0 | Q42: 0 | R42: 0 | S42: 0 | T42: 0 | U42: 0 | V42: 0 | W42: 0 | X42: 0 | Y42: 0 | Z42: 0 | AA42: 0 | AB42: 0 | AC42: 0 | AD42: 0 | AE42: 0 | AF42: 0 | AG42: 0 | AH42: 0 | AI42: 0 | AJ42: 0 | AK42: 0 | AL42: 0 | AM42: 0 | AN42: 0 | AO42: 0 | AP42: 0 | AQ42: 0
B43: Economique | C43: oSupActPL_SEPM_E_T100% | D43: oSupActPL_SEPM_E_T100% | F43: 0 | G43: 2702.93 | H43: 0 | I43: 2702.93 | J43: 1998.17 | K43: 313.54 | L43: 2400 | M43: 2147.81 | N43: 2400 | O43: 2400 | P43: 2500 | Q43: 2400 | R43: 2300 | S43: 2400 | T43: 2400 | U43: 2494.99 | V43: 1431.89 | W43: 206.47 | X43: 1010.58 | Y43: 2213 | Z43: 632.58 | AA43: 526.05 | AB43: 26 | AC43: 486.55 | AD43: 630.76 | AE43: 1124.91 | AF43: 0 | AG43: 0 | AH43: 2150 | AI43: 2250 | AJ43: 1242.16 | AK43: 726.02 | AL43: 304.74 | AM43: 1851.904 | AN43: 2400 | AO43: 1215.728889 | AP43: 891.514 | AQ43: 1417.80069
B44: Economique | C44: oSupActPL_SEPM_I_T100% | D44: oSupActPL_SEPM_I_T100% | F44: 0 | G44: 2500 | H44: 0 | I44: 1082.97 | J44: 241.69 | K44: 1536.46 | L44: 100 | M44: 352.19 | N44: 100 | O44: 100 | P44: 0 | Q44: 100 | R44: 200 | S44: 100 | T44: 100 | U44: 5.01 | V44: 1068.11 | W44: 2293.53 | X44: 1489.42 | Y44: 287 | Z44: 1867.42 | AA44: 1973.94 | AB44: 2474 | AC44: 2013.45 | AD44: 1869.24 | AE44: 1375.09 | AF44: 2500 | AG44: 2500 | AH44: 350 | AI44: 250 | AJ44: 796.47 | AK44: 1773.98 | AL44: 1545.26 | AM44: 466.068 | AN44: 100 | AO44: 1284.27 | AP44: 1497.349 | AQ44: 1012.491724
B45: Economique | C45: oSupPL_PPF_T100% | D45: oSupPL_PPF_T100% | F45: 0 | G45: 0 | H45: 0 | I45: 0 | J45: 0 | K45: 0 | L45: 0 | M45: 0 | N45: 0 | O45: 0 | P45: 0 | Q45: 0 | R45: 0 | S45: 0 | T45: 0 | U45: 0 | V45: 0 | W45: 0 | X45: 0 | Y45: 0 | Z45: 0 | AA45: 0 | AB45: 0 | AC45: 0 | AD45: 0 | AE45: 0 | AF45: 0 | AG45: 0 | AH45: 0 | AI45: 0 | AJ45: 0 | AK45: 0 | AL45: 0 | AM45: 0 | AN45: 0 | AO45: 0 | AP45: 0 | AQ45: 0
B46: Economique | C46: oSupPL_SEPM_E_T100% | D46: oSupPL_SEPM_E_T100% | F46: 0 | G46: 2702.93 | H46: 0 | I46: 2702.93 | J46: 1998.17 | K46: 313.54 | L46: 2400 | M46: 2147.81 | N46: 2400 | O46: 2400 | P46: 2500 | Q46: 2400 | R46: 2300 | S46: 2400 | T46: 2400 | U46: 2494.99 | V46: 1431.89 | W46: 206.47 | X46: 1010.58 | Y46: 2213 | Z46: 632.58 | AA46: 526.05 | AB46: 26 | AC46: 486.55 | AD46: 630.76 | AE46: 1124.91 | AF46: 0 | AG46: 0 | AH46: 2150 | AI46: 2250 | AJ46: 1242.16 | AK46: 726.02 | AL46: 304.74 | AM46: 1851.904 | AN46: 2400 | AO46: 1215.728889 | AP46: 891.514 | AQ46: 1417.80069
B47: Economique | C47: oSupPL_SEPM_I_T100% | D47: oSupPL_SEPM_I_T100% | F47: 0 | G47: 2500 | H47: 0 | I47: 1082.97 | J47: 241.69 | K47: 1536.46 | L47: 100 | M47: 352.19 | N47: 100 | O47: 100 | P47: 0 | Q47: 100 | R47: 200 | S47: 100 | T47: 100 | U47: 5.01 | V47: 1068.11 | W47: 2293.53 | X47: 1489.42 | Y47: 287 | Z47: 1867.42 | AA47: 1973.94 | AB47: 2474 | AC47: 2013.45 | AD47: 1869.24 | AE47: 1375.09 | AF47: 2500 | AG47: 2500 | AH47: 350 | AI47: 250 | AJ47: 796.47 | AK47: 1773.98 | AL47: 1545.26 | AM47: 466.068 | AN47: 100 | AO47: 1284.27 | AP47: 1497.349 | AQ47: 1012.491724
B48: Economique | C48: oSupPL_PPF | D48: oSupPL_PPF | F48: 0 | G48: 0 | H48: 0 | I48: 0 | J48: 0 | K48: 0 | L48: 0 | M48: 0 | N48: 0 | O48: 0 | P48: 0 | Q48: 0 | R48: 0 | S48: 0 | T48: 0 | U48: 0 | V48: 0 | W48: 0 | X48: 0 | Y48: 0 | Z48: 0 | AA48: 0 | AB48: 0 | AC48: 0 | AD48: 0 | AE48: 0 | AF48: 0 | AG48: 0 | AH48: 0 | AI48: 0 | AJ48: 0 | AK48: 0 | AL48: 0 | AM48: 0 | AN48: 0 | AO48: 0 | AP48: 0 | AQ48: 0
B49: Economique | C49: oSupPL_SEPM_E | D49: oSupPL_SEPM_E | F49: 0 | G49: 2702.93 | H49: 0 | I49: 2702.93 | J49: 1998.17 | K49: 313.54 | L49: 2400 | M49: 2147.81 | N49: 2400 | O49: 2400 | P49: 2500 | Q49: 2400 | R49: 2300 | S49: 2400 | T49: 2400 | U49: 2494.99 | V49: 1431.89 | W49: 206.47 | X49: 1010.58 | Y49: 2213 | Z49: 632.58 | AA49: 526.05 | AB49: 26 | AC49: 486.55 | AD49: 630.76 | AE49: 1124.91 | AF49: 0 | AG49: 0 | AH49: 2150 | AI49: 2250 | AJ49: 1242.16 | AK49: 726.02 | AL49: 304.74 | AM49: 1851.904 | AN49: 2400 | AO49: 1215.728889 | AP49: 891.514 | AQ49: 1417.80069
B50: Economique | C50: oSupPL_SEPM_I | D50: oSupPL_SEPM_I | F50: 0 | G50: 2500 | H50: 0 | I50: 1082.97 | J50: 241.69 | K50: 1536.46 | L50: 100 | M50: 352.19 | N50: 100 | O50: 100 | P50: 0 | Q50: 100 | R50: 200 | S50: 100 | T50: 100 | U50: 5.01 | V50: 1068.11 | W50: 2293.53 | X50: 1489.42 | Y50: 287 | Z50: 1867.42 | AA50: 1973.94 | AB50: 2474 | AC50: 2013.45 | AD50: 1869.24 | AE50: 1375.09 | AF50: 2500 | AG50: 2500 | AH50: 350 | AI50: 250 | AJ50: 796.47 | AK50: 1773.98 | AL50: 1545.26 | AM50: 466.068 | AN50: 100 | AO50: 1284.27 | AP50: 1497.349 | AQ50: 1012.491724
B51: Economique | C51: oSupActEPC_2_T100% | D51: oSupActEPC_2_T100% | F51: 0 | G51: 2596.86 | H51: 0 | I51: 0 | J51: 396.8 | K51: 0 | L51: 679.18 | M51: 458.41 | N51: 365.6 | O51: 318.67 | P51: 1142.81 | Q51: 1115.08 | R51: 835.68 | S51: 1018.3 | T51: 297.47 | U51: 58.6 | V51: 172.5 | W51: 1581.02 | X51: 1574.15 | Y51: 311.86 | Z51: 509.82 | AA51: 416.59 | AB51: 949.9 | AC51: 676.2 | AD51: 0 | AE51: 883.26 | AF51: 542.93 | AG51: 50.16 | AH51: 0 | AI51: 50.89 | AJ51: 1421.08 | AK51: 895.9 | AL51: 2596.86 | AM51: 379.998 | AN51: 886.108 | AO51: 652.4344444 | AP51: 711.728 | AQ51: 666.1972414
B52: Economique | C52: oSupEPC_2_T100% | D52: oSupEPC_2_T100% | F52: 0 | G52: 2596.86 | H52: 0 | I52: 0 | J52: 396.8 | K52: 0 | L52: 679.18 | M52: 458.41 | N52: 365.6 | O52: 318.67 | P52: 1142.81 | Q52: 1115.08 | R52: 835.68 | S52: 1018.3 | T52: 297.47 | U52: 58.6 | V52: 172.5 | W52: 1581.02 | X52: 1574.15 | Y52: 311.86 | Z52: 509.82 | AA52: 416.59 | AB52: 949.9 | AC52: 676.2 | AD52: 0 | AE52: 883.26 | AF52: 542.93 | AG52: 50.16 | AH52: 0 | AI52: 50.89 | AJ52: 1421.08 | AK52: 895.9 | AL52: 2596.86 | AM52: 379.998 | AN52: 886.108 | AO52: 652.4344444 | AP52: 711.728 | AQ52: 666.1972414
B53: Economique | C53: oSupEPC_2 | D53: oSupEPC_2 | F53: 0 | G53: 2596.86 | H53: 0 | I53: 0 | J53: 396.8 | K53: 0 | L53: 679.18 | M53: 458.41 | N53: 365.6 | O53: 318.67 | P53: 1142.81 | Q53: 1115.08 | R53: 835.68 | S53: 1018.3 | T53: 297.47 | U53: 58.6 | V53: 172.5 | W53: 1581.02 | X53: 1574.15 | Y53: 311.86 | Z53: 509.82 | AA53: 416.59 | AB53: 949.9 | AC53: 676.2 | AD53: 0 | AE53: 883.26 | AF53: 542.93 | AG53: 50.16 | AH53: 0 | AI53: 50.89 | AJ53: 1421.08 | AK53: 895.9 | AL53: 2596.86 | AM53: 379.998 | AN53: 886.108 | AO53: 652.4344444 | AP53: 711.728 | AQ53: 666.1972414
B54: Economique | C54: oSupActEC_SEPM_T100% | D54: oSupActEC_SEPM_T100% | F54: 0 | G54: 100 | H54: 0 | I54: 0 | J54: 0 | K54: 100 | L54: 100 | M54: 0 | N54: 100 | O54: 100 | P54: 100 | Q54: 100 | R54: 100 | S54: 100 | T54: 100 | U54: 100 | V54: 100 | W54: 100 | X54: 100 | Y54: 100 | Z54: 100 | AA54: 100 | AB54: 100 | AC54: 100 | AD54: 100 | AE54: 100 | AF54: 100 | AG54: 100 | AH54: 100 | AI54: 100 | AJ54: 100 | AK54: 100 | AL54: 100 | AM54: 60 | AN54: 100 | AO54: 100 | AP54: 100 | AQ54: 93.10344828
B55: Economique | C55: oSupEC_SEPM_T100% | D55: oSupEC_SEPM_T100% | F55: 0 | G55: 100 | H55: 0 | I55: 0 | J55: 0 | K55: 100 | L55: 100 | M55: 0 | N55: 100 | O55: 100 | P55: 100 | Q55: 100 | R55: 100 | S55: 100 | T55: 100 | U55: 100 | V55: 100 | W55: 100 | X55: 100 | Y55: 100 | Z55: 100 | AA55: 100 | AB55: 100 | AC55: 100 | AD55: 100 | AE55: 100 | AF55: 100 | AG55: 100 | AH55: 100 | AI55: 100 | AJ55: 100 | AK55: 100 | AL55: 100 | AM55: 60 | AN55: 100 | AO55: 100 | AP55: 100 | AQ55: 93.10344828
B56: Economique | C56: oSupEC_SEPM | D56: oSupEC_SEPM | F56: 0 | G56: 100 | H56: 0 | I56: 0 | J56: 0 | K56: 100 | L56: 100 | M56: 0 | N56: 100 | O56: 100 | P56: 100 | Q56: 100 | R56: 100 | S56: 100 | T56: 100 | U56: 100 | V56: 100 | W56: 100 | X56: 100 | Y56: 100 | Z56: 100 | AA56: 100 | AB56: 100 | AC56: 100 | AD56: 100 | AE56: 100 | AF56: 100 | AG56: 100 | AH56: 100 | AI56: 100 | AJ56: 100 | AK56: 100 | AL56: 100 | AM56: 60 | AN56: 100 | AO56: 100 | AP56: 100 | AQ56: 93.10344828
B57: Economique | C57: oSupActNETT_T100% | D57: oSupActNETT_T100% | F57: 0 | G57: 1413.6 | H57: 0 | I57: 376.9 | J57: 1413.6 | K57: 0 | L57: 0 | M57: 0 | N57: 0 | O57: 210.1 | P57: 0 | Q57: 0 | R57: 313.17 | S57: 0 | T57: 0 | U57: 0 | V57: 35.98 | W57: 47.09 | X57: 653.76 | Y57: 501.84 | Z57: 0 | AA57: 873.88 | AB57: 1316.07 | AC57: 320.96 | AD57: 517.51 | AE57: 98 | AF57: 831.61 | AG57: 196.16 | AH57: 0 | AI57: 0 | AJ57: 0 | AK57: 0 | AL57: 0 | AM57: 282.72 | AN57: 104.654 | AO57: 380.9577778 | AP57: 196.424 | AQ57: 252.7493103
B58: Economique | C58: oSupTcsdNETT_T100% | D58: oSupTcsdNETT_T100% | F58: 0 | G58: 620.22 | H58: 0 | I58: 293.6 | J58: 603.6 | K58: 175 | L58: 220.86 | M58: 457.56 | N58: 490.93 | O58: 297.24 | P58: 451.72 | Q58: 412.39 | R58: 388.57 | S58: 208.01 | T58: 518.41 | U58: 486.6 | V58: 412.35 | W58: 4.2 | X58: 0 | Y58: 427.99 | Z58: 509.01 | AA58: 304.51 | AB58: 50.1 | AC58: 252.96 | AD58: 368.62 | AE58: 214.35 | AF58: 0 | AG58: 460.75 | AH58: 620.22 | AI58: 357.49 | AJ58: 191.37 | AK58: 0 | AL58: 0 | AM58: 389.59 | AN58: 351.586 | AO58: 301.4633333 | AP58: 246.576 | AQ58: 306.3727586
B59: Economique | C59: oSupTcadNETT_T100% | D59: oSupTcadNETT_T100% | F59: 0 | G59: 3785.9 | H59: 0 | I59: 0 | J59: 0 | K59: 3785.9 | L59: 2239.86 | M59: 1647.3 | N59: 2107.92 | O59: 2090.92 | P59: 1739.32 | Q59: 2500 | R59: 2500 | S59: 2474.28 | T59: 2500 | U59: 2500 | V59: 2500 | W59: 2500 | X59: 2500 | Y59: 2500 | Z59: 2500 | AA59: 2335.44 | AB59: 2359.48 | AC59: 2500 | AD59: 2500 | AE59: 2500 | AF59: 2500 | AG59: 2500 | AH59: 2500 | AI59: 2500 | AJ59: 2500 | AK59: 2500 | AL59: 2038.63 | AM59: 1956.196 | AN59: 2260.904 | AO59: 2466.102222 | AP59: 2453.863 | AQ59: 2338.587931
B60: Economique | C60: oSupNETT_T100% | D60: oSupNETT_T100% | F60: 0 | G60: 3960.9 | H60: 0 | I60: 670.5 | J60: 2017.2 | K60: 3960.9 | L60: 2460.72 | M60: 2104.86 | N60: 2598.85 | O60: 2598.26 | P60: 2191.05 | Q60: 2912.39 | R60: 3201.75 | S60: 2682.29 | T60: 3018.41 | U60: 2986.6 | V60: 2948.34 | W60: 2551.29 | X60: 3153.76 | Y60: 3429.83 | Z60: 3009.01 | AA60: 3513.82 | AB60: 3725.65 | AC60: 3073.93 | AD60: 3386.14 | AE60: 2812.35 | AF60: 3331.61 | AG60: 3156.91 | AH60: 3120.22 | AI60: 2857.49 | AJ60: 2691.37 | AK60: 2500 | AL60: 2038.63 | AM60: 2628.506 | AN60: 2717.148 | AO60: 3148.523333 | AP60: 2896.865 | AQ60: 2897.711379
B61: Economique | C61: oSupNETT | D61: oSupNETT | F61: 0 | G61: 3960.9 | H61: 0 | I61: 670.5 | J61: 2017.2 | K61: 3960.9 | L61: 2460.72 | M61: 2104.86 | N61: 2598.85 | O61: 2598.26 | P61: 2191.05 | Q61: 2912.39 | R61: 3201.75 | S61: 2682.29 | T61: 3018.41 | U61: 2986.6 | V61: 2948.34 | W61: 2551.29 | X61: 3153.76 | Y61: 3429.83 | Z61: 3009.01 | AA61: 3513.82 | AB61: 3725.65 | AC61: 3073.93 | AD61: 3386.14 | AE61: 2812.35 | AF61: 3331.61 | AG61: 3156.91 | AH61: 3120.22 | AI61: 2857.49 | AJ61: 2691.37 | AK61: 2500 | AL61: 2038.63 | AM61: 2628.506 | AN61: 2717.148 | AO61: 3148.523333 | AP61: 2896.865 | AQ61: 2897.711379
B62: Economique | C62: oTauxDEG | D62: oTauxDEG | F62: 0 | G62: 5996861.55 | H62: 0 | I62: 5996861.55 | J62: 4179883.84 | K62: 2678786.88 | L62: 3423303.4 | M62: 3746259.58 | N62: 3278470.85 | O62: 4111946.95 | P62: 4339034.87 | Q62: 4243403.62 | R62: 4246204.89 | S62: 3980771.18 | T62: 4437060.86 | U62: 4390309.31 | V62: 4281161.21 | W62: 3681176.6 | X62: 3675000 | Y62: 4062233.07 | Z62: 4216690.12 | AA62: 4122624.19 | AB62: 3748642.66 | AC62: 4046852.26 | AD62: 4216873.73 | AE62: 3990098.71 | AF62: 3675000 | AG62: 4352308.34 | AH62: 4586717.51 | AI62: 4200508.5 | AJ62: 3278101.66 | AK62: 3675000 | AL62: 2719500 | AM62: 3461340.91 | AN62: 4184272.302 | AO62: 4068322.002 | AP62: 3874096.071 | AQ62: 3916687.062
B63: Economique | C63: oTauxSCA | D63: oTauxSCA | F63: 0 | G63: 3977560.67 | H63: 0 | I63: 3977560.67 | J63: 1725684.53 | K63: 2019942.83 | L63: 2067969.94 | M63: 1918082.08 | N63: 1936102.92 | O63: 1922622.4 | P63: 2184931.18 | Q63: 1834025.04 | R63: 1880830.37 | S63: 1918324.11 | T63: 2220940.73 | U63: 2203766.69 | V63: 2163671.47 | W63: 1896217.45 | X63: 1671000 | Y63: 2037113.84 | Z63: 1918867.75 | AA63: 1953171.52 | AB63: 1833052.41 | AC63: 1942598.79 | AD63: 2005055.66 | AE63: 1921750.55 | AF63: 1806000 | AG63: 2054807.14 | AH63: 2153521.26 | AI63: 2293646.65 | AJ63: 1715564.51 | AK63: 1806000 | AL63: 1554795.36 | AM63: 1933556.46 | AN63: 1948146.62 | AO63: 1988644.651 | AP63: 1925373.992 | AQ63: 1950346.799
B64: Economique | C64: oTauxREG | D64: oTauxREG | F64: 0 | G64: 347320.96 | H64: 0 | I64: 164416 | J64: 338016 | K64: 98000 | L64: 123682.06 | M64: 256233.27 | N64: 274921.55 | O64: 166455.98 | P64: 252965.67 | Q64: 230938.14 | R64: 217601.86 | S64: 116484.26 | T64: 290308.9 | U64: 272498.79 | V64: 230918.56 | W64: 2352.99 | X64: 0 | Y64: 239673.61 | Z64: 285048.04 | AA64: 170523.5 | AB64: 28054.35 | AC64: 141658 | AD64: 206428.09 | AE64: 120037.6 | AF64: 0 | AG64: 258022.22 | AH64: 347320.96 | AI64: 200193.71 | AJ64: 107165.52 | AK64: 0 | AL64: 0 | AM64: 218170.576 | AN64: 196889.182 | AO64: 168819.86 | AP64: 138082.61 | AQ64: 171569.0907
B65: Economique | C65: oTauxELA | D65: oTauxELA | F65: 0 | G65: 1010952.07 | H65: 0 | I65: 478568 | J65: 983868 | K65: 285250 | L65: 360003.14 | M65: 745821.83 | N65: 800218.08 | O65: 484505.8 | P65: 736310.78 | Q65: 672194.94 | R65: 633376.85 | S65: 339052.39 | T65: 845006.27 | U65: 793166.11 | V65: 672137.94 | W65: 6848.88 | X65: 0 | Y65: 697621.4 | Z65: 829693.41 | AA65: 496345.19 | AB65: 81658.19 | AC65: 412325.97 | AD65: 600853.19 | AE65: 349395.16 | AF65: 0 | AG65: 751028.97 | AH65: 1010952.07 | AI65: 582706.7 | AJ65: 311928.2 | AK65: 0 | AL65: 0 | AM65: 635032.21 | AN65: 573088.152 | AO65: 491386.3767 | AP65: 401919.026 | AQ65: 499388.6021
B66: Economique | C66: oTauxCPI | D66: oTauxCPI | F66: 0 | G66: 3970086.96 | H66: 0 | I66: 3970086.96 | J66: 3334203.34 | K66: 3612373.68 | L66: 3246986.31 | M66: 3186259.19 | N66: 3229455.21 | O66: 2902359.69 | P66: 1211967.14 | Q66: 931525.04 | R66: 978330.37 | S66: 1960097.72 | T66: 1183440.73 | U66: 1729089.55 | V66: 1589850.73 | W66: 1381541.85 | X66: 1194558.37 | Y66: 1392259.56 | Z66: 881367.75 | AA66: 915671.52 | AB66: 797134.71 | AC66: 1227714.14 | AD66: 1411208.61 | AE66: 1585703.6 | AF66: 2038787.39 | AG66: 1017307.14 | AH66: 1116021.26 | AI66: 2194199.64 | AJ66: 2663777.4 | AK66: 2700089.36 | AL66: 2843269.32 | AM66: 3321855.546 | AN66: 1596855.992 | AO66: 1229434.974 | AP66: 1879807.786 | AQ66: 1877812.08
B67: Economique | C67: oTauxCT | D67: oTauxCT | F67: 0 | G67: 0 | H67: 0 | I67: 0 | J67: 0 | K67: 0 | L67: 0 | M67: 0 | N67: 0 | O67: 0 | P67: 0 | Q67: 0 | R67: 0 | S67: 0 | T67: 0 | U67: 0 | V67: 0 | W67: 0 | X67: 0 | Y67: 0 | Z67: 0 | AA67: 0 | AB67: 0 | AC67: 0 | AD67: 0 | AE67: 0 | AF67: 0 | AG67: 0 | AH67: 0 | AI67: 0 | AJ67: 0 | AK67: 0 | AL67: 0 | AM67: 0 | AN67: 0 | AO67: 0 | AP67: 0 | AQ67: 0
B68: Economique | C68: oTauxPL | D68: oTauxPL | F68: 0 | G68: 5030233.94 | H68: 0 | I68: 5030233.94 | J68: 2852347.97 | K68: 2770302.6 | L68: 3131000 | M68: 3209178.72 | N68: 3131000 | O68: 3131000 | P68: 3100000 | Q68: 3131000 | R68: 3162000 | S68: 3131000 | T68: 3131000 | U68: 3101552.64 | V68: 3431113.48 | W68: 3810995.54 | X68: 3561720.2 | Y68: 3188970 | Z68: 3678899.49 | AA68: 3711922.95 | AB68: 3866940 | AC68: 3724169.46 | AD68: 3679464.56 | AE68: 3526279.45 | AF68: 3875000 | AG68: 3875000 | AH68: 3208500 | AI68: 3177500 | AJ68: 2774812.65 | AK68: 3649935.1 | AL68: 2773030.88 | AM68: =AVERAGE(J68:N68) -> 3018765.858 | AN68: =AVERAGE(O68:S68) -> 3131000 | AO68: =AVERAGE(T68:AB68) -> 3498123.811 | AP68: =AVERAGE(AC68:AL68) -> 3426369.21 | AQ68: =AVERAGE(J68:AL68) -> 3327435.713
B69: Economique | C69: oTauxEPC | D69: oTauxEPC | F69: 0 | G69: 3765440.84 | H69: 0 | I69: 0 | J69: 575360 | K69: 0 | L69: 984804.25 | M69: 664700.36 | N69: 530113.3 | O69: 462064.61 | P69: 1657077.98 | Q69: 1616868.47 | R69: 1211742.53 | S69: 1476542.25 | T69: 431335.85 | U69: 84966.56 | V69: 250119.48 | W69: 2292478.42 | X69: 2282516.05 | Y69: 452203.23 | Z69: 739236.37 | AA69: 604060.4 | AB69: 1377354.78 | AC69: 980485.81 | AD69: 0 | AE69: 1280731.98 | AF69: 787251.33 | AG69: 72724.78 | AH69: 0 | AI69: 73786.89 | AJ69: 2060571 | AK69: 1299054.85 | AL69: 3765440.84 | AM69: 550995.582 | AN69: 1284859.168 | AO69: 946030.1267 | AP69: 1032004.748 | AQ69: 965985.9438
B70: Economique | C70: oTauxEC | D70: oTauxEC | F70: 0 | G70: 146000 | H70: 0 | I70: 0 | J70: 0 | K70: 146000 | L70: 146000 | M70: 0 | N70: 146000 | O70: 146000 | P70: 146000 | Q70: 146000 | R70: 146000 | S70: 146000 | T70: 146000 | U70: 146000 | V70: 146000 | W70: 146000 | X70: 146000 | Y70: 146000 | Z70: 146000 | AA70: 146000 | AB70: 146000 | AC70: 146000 | AD70: 146000 | AE70: 146000 | AF70: 146000 | AG70: 146000 | AH70: 146000 | AI70: 146000 | AJ70: 146000 | AK70: 146000 | AL70: 146000 | AM70: 87600 | AN70: 146000 | AO70: 146000 | AP70: 146000 | AQ70: 135931.0345
B71: Economique | C71: oTauxNET | D71: oTauxNET | F71: 0 | G71: 4515423.32 | H71: 0 | I71: 764372.68 | J71: 2299605.32 | K71: 4515423.32 | L71: 2805219.91 | M71: 2399544.28 | N71: 2962687.1 | O71: 2962013.57 | P71: 2497791.69 | Q71: 3320124.07 | R71: 3649992.44 | S71: 3057807.41 | T71: 3440985.98 | U71: 3404729.67 | V71: 3361106.44 | W71: 2908467.58 | X71: 3595284.69 | Y71: 3910004.61 | Z71: 3430276.37 | AA71: 4005760.03 | AB71: 4247242.21 | AC71: 3504274.88 | AD71: 3860195.47 | AE71: 3206082.26 | AF71: 3798040.58 | AG71: 3598880.71 | AH71: 3557046.24 | AI71: 3257537.2 | AJ71: 3068158.37 | AK71: 2850000 | AL71: 2324042.91 | AM71: 2996495.986 | AN71: 3097545.836 | AO71: 3589317.509 | AP71: 3302425.862 | AQ71: 3303390.528
B72: Economique | C72: oSupRealDEG | D72: oSupRealDEG | F72: 0 | G72: 4079.5 | H72: 0 | I72: 4079.5 | J72: 2843.46 | K72: 1822.3 | L72: 2328.78 | M72: 2548.48 | N72: 2230.25 | O72: 2797.24 | P72: 2951.72 | Q72: 2886.67 | R72: 2888.57 | S72: 2708.01 | T72: 3018.41 | U72: 2986.6 | V72: 2912.35 | W72: 2504.2 | X72: 2500 | Y72: 2763.42 | Z72: 2868.5 | AA72: 2804.51 | AB72: 2550.1 | AC72: 2752.96 | AD72: 2868.62 | AE72: 2714.35 | AF72: 2500 | AG72: 2960.75 | AH72: 3120.22 | AI72: 2857.49 | AJ72: 2230 | AK72: 2500 | AL72: 1850 | AM72: 2354.654 | AN72: 2846.442 | AO72: 2767.565556 | AP72: 2635.439 | AQ72: 2664.412414
B73: Economique | C73: oSupRealSCA | D73: oSupRealSCA | F73: 0 | G73: 8207.16 | H73: 0 | I73: 8207.16 | J73: 3693.46 | K73: 4151.75 | L73: 4385.13 | M73: 4107.56 | N73: 4140.93 | O73: 4115.97 | P73: 4601.72 | Q73: 3951.9 | R73: 4038.57 | S73: 4108.01 | T73: 4668.41 | U73: 4636.6 | V73: 4562.35 | W73: 4067.07 | X73: 3650 | Y73: 4327.99 | Z73: 4109.01 | AA73: 4172.54 | AB73: 3950.1 | AC73: 4152.96 | AD73: 4268.62 | AE73: 4114.35 | AF73: 3900 | AG73: 4360.75 | AH73: 4543.56 | AI73: 4803.05 | AJ73: 3630 | AK73: 3900 | AL73: 3290.36 | AM73: 4095.766 | AN73: 4163.234 | AO73: 4238.23 | AP73: 4096.365 | AQ73: 4151.817931
B74: Economique | C74: oSupRealREG | D74: oSupRealREG | F74: 0 | G74: 620.22 | H74: 0 | I74: 293.6 | J74: 603.6 | K74: 175 | L74: 220.86 | M74: 457.56 | N74: 490.93 | O74: 297.24 | P74: 451.72 | Q74: 412.39 | R74: 388.57 | S74: 208.01 | T74: 518.41 | U74: 486.6 | V74: 412.35 | W74: 4.2 | X74: 0 | Y74: 427.99 | Z74: 509.01 | AA74: 304.51 | AB74: 50.1 | AC74: 252.96 | AD74: 368.62 | AE74: 214.35 | AF74: 0 | AG74: 460.75 | AH74: 620.22 | AI74: 357.49 | AJ74: 191.37 | AK74: 0 | AL74: 0 | AM74: 389.59 | AN74: 351.586 | AO74: 301.4633333 | AP74: 246.576 | AQ74: 306.3727586
B75: Economique | C75: oSupRealELA | D75: oSupRealELA | F75: 0 | G75: 620.22 | H75: 0 | I75: 293.6 | J75: 603.6 | K75: 175 | L75: 220.86 | M75: 457.56 | N75: 490.93 | O75: 297.24 | P75: 451.72 | Q75: 412.39 | R75: 388.57 | S75: 208.01 | T75: 518.41 | U75: 486.6 | V75: 412.35 | W75: 4.2 | X75: 0 | Y75: 427.99 | Z75: 509.01 | AA75: 304.51 | AB75: 50.1 | AC75: 252.96 | AD75: 368.62 | AE75: 214.35 | AF75: 0 | AG75: 460.75 | AH75: 620.22 | AI75: 357.49 | AJ75: 191.37 | AK75: 0 | AL75: 0 | AM75: 389.59 | AN75: 351.586 | AO75: 301.4633333 | AP75: 246.576 | AQ75: 306.3727586
B76: Economique | C76: oSupRealCPI | D76: oSupRealCPI | F76: 0 | G76: 7350 | H76: 0 | I76: 7350 | J76: 6151.3 | K76: 6666.43 | L76: 5989.79 | M76: 5877.33 | N76: 5957.32 | O76: 5351.59 | P76: 4806.43 | Q76: 4445.02 | R76: 4899.53 | S76: 5399.48 | T76: 4849.53 | U76: 5019.45 | V76: 5531.39 | W76: 6094.53 | X76: 6713.98 | Y76: 6032.59 | Z76: 5419.33 | AA76: 4867.39 | AB76: 4473.49 | AC76: 4489.84 | AD76: 4948.83 | AE76: 5453.71 | AF76: 6009.08 | AG76: 6619.99 | AH76: 7291.99 | AI76: 6912.61 | AJ76: 6211.35 | AK76: 6842.48 | AL76: 7345.17 | AM76: 6128.434 | AN76: 4980.41 | AO76: 5444.631111 | AP76: 6212.505 | AQ76: 5747.274138
B77: Economique | C77: oSupRealCT | D77: oSupRealCT | F77: 0 | G77: 14292.02 | H77: 0 | I77: 7629.36 | J77: 14292.02 | K77: 13608.25 | L77: 13909.01 | M77: 12625.49 | N77: 12381.98 | O77: 13121.05 | P77: 12404.42 | Q77: 12501.85 | R77: 12270.77 | S77: 12065.12 | T77: 12340.13 | U77: 11373.28 | V77: 11130.16 | W77: 10640 | X77: 10435.65 | Y77: 10948.06 | Z77: 11129.66 | AA77: 11571.73 | AB77: 11641.06 | AC77: 10189.86 | AD77: 11351.18 | AE77: 10692.23 | AF77: 9661.55 | AG77: 8406.37 | AH77: 9554.35 | AI77: 11531.25 | AJ77: 13909.17 | AK77: 13710.11 | AL77: 13722.44 | AM77: 13363.35 | AN77: 12472.642 | AO77: 11245.52556 | AP77: 11272.851 | AQ77: 11831.66207
B78: Economique | C78: oSupRealPL | D78: oSupRealPL | F78: 0 | G78: 3785.9 | H78: 0 | I78: 3785.9 | J78: 2239.86 | K78: 1850 | L78: 2500 | M78: 2500 | N78: 2500 | O78: 2500 | P78: 2500 | Q78: 2500 | R78: 2500 | S78: 2500 | T78: 2500 | U78: 2500 | V78: 2500 | W78: 2500 | X78: 2500 | Y78: 2500 | Z78: 2500 | AA78: 2500 | AB78: 2500 | AC78: 2500 | AD78: 2500 | AE78: 2500 | AF78: 2500 | AG78: 2500 | AH78: 2500 | AI78: 2500 | AJ78: 2038.63 | AK78: 2500 | AL78: 1850 | AM78: 2317.972 | AN78: 2500 | AO78: 2500 | AP78: 2388.863 | AQ78: 2430.292759
B79: Economique | C79: oSupRealEPC | D79: oSupRealEPC | F79: 0 | G79: 2596.86 | H79: 0 | I79: 0 | J79: 396.8 | K79: 0 | L79: 679.18 | M79: 458.41 | N79: 365.6 | O79: 318.67 | P79: 1142.81 | Q79: 1115.08 | R79: 835.68 | S79: 1018.3 | T79: 297.47 | U79: 58.6 | V79: 172.5 | W79: 1581.02 | X79: 1574.15 | Y79: 311.86 | Z79: 509.82 | AA79: 416.59 | AB79: 949.9 | AC79: 676.2 | AD79: 0 | AE79: 883.26 | AF79: 542.93 | AG79: 50.16 | AH79: 0 | AI79: 50.89 | AJ79: 1421.08 | AK79: 895.9 | AL79: 2596.86 | AM79: 379.998 | AN79: 886.108 | AO79: 652.4344444 | AP79: 711.728 | AQ79: 666.1972414
B80: Economique | C80: oSupRealEC | D80: oSupRealEC | F80: 0 | G80: 100 | H80: 0 | I80: 0 | J80: 0 | K80: 100 | L80: 100 | M80: 0 | N80: 100 | O80: 100 | P80: 100 | Q80: 100 | R80: 100 | S80: 100 | T80: 100 | U80: 100 | V80: 100 | W80: 100 | X80: 100 | Y80: 100 | Z80: 100 | AA80: 100 | AB80: 100 | AC80: 100 | AD80: 100 | AE80: 100 | AF80: 100 | AG80: 100 | AH80: 100 | AI80: 100 | AJ80: 100 | AK80: 100 | AL80: 100 | AM80: 60 | AN80: 100 | AO80: 100 | AP80: 100 | AQ80: 93.10344828
B81: Economique | C81: oSupRealNET | D81: oSupRealNET | F81: 0 | G81: 3960.9 | H81: 0 | I81: 670.5 | J81: 2017.2 | K81: 3960.9 | L81: 2460.72 | M81: 2104.86 | N81: 2598.85 | O81: 2598.26 | P81: 2191.05 | Q81: 2912.39 | R81: 3201.75 | S81: 2682.29 | T81: 3018.41 | U81: 2986.6 | V81: 2948.34 | W81: 2551.29 | X81: 3153.76 | Y81: 3429.83 | Z81: 3009.01 | AA81: 3513.82 | AB81: 3725.65 | AC81: 3073.93 | AD81: 3386.14 | AE81: 2812.35 | AF81: 3331.61 | AG81: 3156.91 | AH81: 3120.22 | AI81: 2857.49 | AJ81: 2691.37 | AK81: 2500 | AL81: 2038.63 | AM81: 2628.506 | AN81: 2717.148 | AO81: 3148.523333 | AP81: 2896.865 | AQ81: 2897.711379
B82: Economique | C82: oCoutProdPlants | D82: oCoutProdPlants | F82: 0 | G82: 0 | H82: 0 | I82: 0 | J82: 0 | K82: 0 | L82: 0 | M82: 0 | N82: 0 | O82: 0 | P82: 0 | Q82: 0 | R82: 0 | S82: 0 | T82: 0 | U82: 0 | V82: 0 | W82: 0 | X82: 0 | Y82: 0 | Z82: 0 | AA82: 0 | AB82: 0 | AC82: 0 | AD82: 0 | AE82: 0 | AF82: 0 | AG82: 0 | AH82: 0 | AI82: 0 | AJ82: 0 | AK82: 0 | AL82: 0 | AM82: 0 | AN82: 0 | AO82: 0 | AP82: 0 | AQ82: 0
B83: Economique | C83: oCoutTransPlants | D83: oCoutTransPlants | F83: 0 | G83: 0 | H83: 0 | I83: 0 | J83: 0 | K83: 0 | L83: 0 | M83: 0 | N83: 0 | O83: 0 | P83: 0 | Q83: 0 | R83: 0 | S83: 0 | T83: 0 | U83: 0 | V83: 0 | W83: 0 | X83: 0 | Y83: 0 | Z83: 0 | AA83: 0 | AB83: 0 | AC83: 0 | AD83: 0 | AE83: 0 | AF83: 0 | AG83: 0 | AH83: 0 | AI83: 0 | AJ83: 0 | AK83: 0 | AL83: 0 | AM83: 0 | AN83: 0 | AO83: 0 | AP83: 0 | AQ83: 0
B84: Economique | C84: o$InvestisTS | D84: o$InvestisTS | F84: 0 | G84: 20382099.8 | H84: 0 | I84: 20382099.8 | J84: 16288969 | K84: 16126079.31 | L84: 16288969 | M84: 16126079.31 | N84: 16288969 | O84: 16288969 | P84: 16126079.31 | Q84: 16126079.31 | R84: 16126079.31 | S84: 16126079.31 | T84: 16126079.31 | U84: 16126079.31 | V84: 16126079.31 | W84: 16126079.31 | X84: 16126079.31 | Y84: 16126079.31 | Z84: 16126079.31 | AA84: 16126079.31 | AB84: 16126079.31 | AC84: 16126079.31 | AD84: 16126079.31 | AE84: 16126079.31 | AF84: 16126079.31 | AG84: 16126079.31 | AH84: 16126079.31 | AI84: 16126079.31 | AJ84: 16126079.31 | AK84: 16126079.31 | AL84: 16126079.31 | AM84: 16223813.12 | AN84: 16158657.25 | AO84: 16126079.31 | AP84: 16126079.31 | AQ84: 16148546.85
B85: Economique | C85: oTauxREGAPAR | D85: oTauxREGAPAR | F85: 0 | G85: 3970086.96 | H85: 0 | I85: 3970086.96 | J85: 3334203.34 | K85: 3758373.68 | L85: 3392986.31 | M85: 3186259.19 | N85: 3375455.21 | O85: 3048359.69 | P85: 1357967.14 | Q85: 1077525.04 | R85: 1124330.37 | S85: 2106097.72 | T85: 1329440.73 | U85: 1875089.55 | V85: 1735850.73 | W85: 1527541.85 | X85: 1340558.37 | Y85: 1538259.56 | Z85: 1027367.75 | AA85: 1061671.52 | AB85: 943134.71 | AC85: 1373714.14 | AD85: 1557208.61 | AE85: 1731703.6 | AF85: 2184787.39 | AG85: 1163307.14 | AH85: 1262021.26 | AI85: 2340199.64 | AJ85: 2809777.4 | AK85: 2846089.36 | AL85: 2989269.32 | AM85: 3409455.546 | AN85: 1742855.992 | AO85: 1375434.974 | AP85: 2025807.786 | AQ85: 2013743.114
B86: Economique | C86: oTauxREGAEDU | D86: oTauxREGAEDU | F86: 0 | G86: 9552800.74 | H86: 0 | I86: 6761234.22 | J86: 7054849.16 | K86: 7194210.2 | L86: 7213327.56 | M86: 6810504.22 | N86: 6771271.25 | O86: 7536025.13 | P86: 8493904.55 | Q86: 9180396.15 | R86: 9107939.86 | S86: 8515120.83 | T86: 8309382.69 | U86: 7880005.54 | V86: 7892387.13 | W86: 8882122.6 | X86: 9552800.74 | Y86: 8424440.9 | Z86: 8386202.86 | AA86: 8732444.62 | AB86: 9373239.65 | AC86: 8531612.95 | AD86: 8077069.2 | AE86: 8476912.95 | AF86: 8260291.92 | AG86: 8023913.82 | AH86: 8143763.75 | AI86: 7531832.6 | AJ86: 8406831.03 | AK86: 7824054.85 | AL86: 8808983.75 | AM86: 7008832.478 | AN86: 8566677.304 | AO86: 8603669.637 | AP86: 8208526.682 | AQ86: 8186063.533
B87: Economique | C87: oTauxAUTRES | D87: oTauxAUTRES | F87: 0 | G87: 4456128.67 | H87: 0 | I87: 4456128.67 | J87: 2709552.53 | K87: 2305192.83 | L87: 2427973.07 | M87: 2663903.91 | N87: 2736321 | O87: 2407128.2 | P87: 2921241.95 | Q87: 2506219.98 | R87: 2514207.22 | S87: 2257376.5 | T87: 3065946.99 | U87: 2996932.8 | V87: 2835809.41 | W87: 1903066.33 | X87: 1671000 | Y87: 2734735.24 | Z87: 2748561.16 | AA87: 2449516.72 | AB87: 1914710.6 | AC87: 2354924.76 | AD87: 2605908.85 | AE87: 2271145.71 | AF87: 1806000 | AG87: 2805836.12 | AH87: 3164473.34 | AI87: 2876353.36 | AJ87: 2027492.71 | AK87: 1806000 | AL87: 1554795.36 | AM87: 2568588.668 | AN87: 2521234.77 | AO87: 2480031.028 | AP87: 2327293.021 | AQ87: 2449735.402
B88: Economique | C88: oTauxREGAREG | D88: oTauxREGAREG | F88: 0 | G88: 5194649.94 | H88: 0 | I88: 5194649.94 | J88: 3190363.97 | K88: 2868302.6 | L88: 3254682.06 | M88: 3465411.99 | N88: 3405921.55 | O88: 3297455.98 | P88: 3352965.67 | Q88: 3361938.14 | R88: 3379601.86 | S88: 3247484.26 | T88: 3421308.9 | U88: 3374051.42 | V88: 3662032.03 | W88: 3813348.53 | X88: 3561720.2 | Y88: 3428643.61 | Z88: 3963947.54 | AA88: 3882446.45 | AB88: 3894994.35 | AC88: 3865827.47 | AD88: 3885892.65 | AE88: 3646317.05 | AF88: 3875000 | AG88: 4133022.22 | AH88: 3555820.96 | AI88: 3377693.71 | AJ88: 2881978.16 | AK88: 3649935.1 | AL88: 2773030.88 | AM88: 3236936.434 | AN88: 3327889.182 | AO88: 3666943.67 | AP88: 3564451.82 | AQ88: 3499004.804
B89: Economique | C89: oTauxREGAFIN | D89: oTauxREGAFIN | F89: 0 | G89: 0 | H89: 0 | I89: 0 | J89: 0 | K89: 0 | L89: 0 | M89: 0 | N89: 0 | O89: 0 | P89: 0 | Q89: 0 | R89: 0 | S89: 0 | T89: 0 | U89: 0 | V89: 0 | W89: 0 | X89: 0 | Y89: 0 | Z89: 0 | AA89: 0 | AB89: 0 | AC89: 0 | AD89: 0 | AE89: 0 | AF89: 0 | AG89: 0 | AH89: 0 | AI89: 0 | AJ89: 0 | AK89: 0 | AL89: 0 | AM89: 0 | AN89: 0 | AO89: 0 | AP89: 0 | AQ89: 0
B90: Economique | C90: oSupRealREGAPAR | D90: oSupRealREGAPAR | F90: 0 | G90: 7445.17 | H90: 0 | I90: 7350 | J90: 6151.3 | K90: 6766.43 | L90: 6089.79 | M90: 5877.33 | N90: 6057.32 | O90: 5451.59 | P90: 4906.43 | Q90: 4545.02 | R90: 4999.53 | S90: 5499.48 | T90: 4949.53 | U90: 5119.45 | V90: 5631.39 | W90: 6194.53 | X90: 6813.98 | Y90: 6132.59 | Z90: 5519.33 | AA90: 4967.39 | AB90: 4573.49 | AC90: 4589.84 | AD90: 5048.83 | AE90: 5553.71 | AF90: 6109.08 | AG90: 6719.99 | AH90: 7391.99 | AI90: 7012.61 | AJ90: 6311.35 | AK90: 6942.48 | AL90: 7445.17 | AM90: 6188.434 | AN90: 5080.41 | AO90: 5544.631111 | AP90: 6312.505 | AQ90: 5840.377586
B91: Economique | C91: oSupRealREGAEDU | D91: oSupRealREGAEDU | F91: 0 | G91: 7227.91 | H91: 0 | I91: 4750 | J91: 5257.46 | K91: 5783.2 | L91: 5468.67 | M91: 5111.75 | N91: 5194.7 | O91: 5714.17 | P91: 6285.58 | Q91: 6914.14 | R91: 6926.01 | S91: 6408.6 | T91: 6334.29 | U91: 6031.81 | V91: 6033.19 | W91: 6636.51 | X91: 7227.91 | Y91: 6505.12 | Z91: 6387.33 | AA91: 6734.92 | AB91: 7225.65 | AC91: 6503.08 | AD91: 6254.76 | AE91: 6409.97 | AF91: 6374.55 | AG91: 6167.82 | AH91: 6240.43 | AI91: 5765.87 | AJ91: 6342.45 | AK91: 5895.9 | AL91: 6485.49 | AM91: 5363.156 | AN91: 6449.7 | AO91: 6568.525556 | AP91: 6244.032 | AQ91: 6228.321724
B92: Economique | C92: oSupRealAUTRES | D92: oSupRealAUTRES | F92: 0 | G92: 8500.76 | H92: 0 | I92: 8500.76 | J92: 4297.06 | K92: 4326.75 | L92: 4605.99 | M92: 4565.12 | N92: 4631.86 | O92: 4413.21 | P92: 5053.45 | Q92: 4364.29 | R92: 4427.15 | S92: 4316.02 | T92: 5186.82 | U92: 5123.21 | V92: 4974.71 | W92: 4071.27 | X92: 3650 | Y92: 4755.98 | Z92: 4618.03 | AA92: 4477.05 | AB92: 4000.19 | AC92: 4405.92 | AD92: 4637.24 | AE92: 4328.71 | AF92: 3900 | AG92: 4821.51 | AH92: 5163.77 | AI92: 5160.54 | AJ92: 3821.37 | AK92: 3900 | AL92: 3290.36 | AM92: 4485.356 | AN92: 4514.824 | AO92: 4539.695556 | AP92: 4342.942 | AQ92: 4458.192414
B93: Economique | C93: oSupRealREGAREG | D93: oSupRealREGAREG | F93: 0 | G93: 4079.5 | H93: 0 | I93: 4079.5 | J93: 2843.46 | K93: 2025 | L93: 2720.86 | M93: 2957.56 | N93: 2990.93 | O93: 2797.24 | P93: 2951.72 | Q93: 2912.39 | R93: 2888.57 | S93: 2708.01 | T93: 3018.41 | U93: 2986.6 | V93: 2912.35 | W93: 2504.2 | X93: 2500 | Y93: 2927.99 | Z93: 3009.01 | AA93: 2804.51 | AB93: 2550.1 | AC93: 2752.96 | AD93: 2868.62 | AE93: 2714.35 | AF93: 2500 | AG93: 2960.75 | AH93: 3120.22 | AI93: 2857.49 | AJ93: 2230 | AK93: 2500 | AL93: 1850 | AM93: 2707.562 | AN93: 2851.586 | AO93: 2801.463333 | AP93: 2635.439 | AQ93: 2736.665517
B94: Economique | C94: oSupRealREGAFIN | D94: oSupRealREGAFIN | F94: 0 | G94: 14292.02 | H94: 0 | I94: 7629.36 | J94: 14292.02 | K94: 13608.25 | L94: 13909.01 | M94: 12625.49 | N94: 12381.98 | O94: 13121.05 | P94: 12404.42 | Q94: 12501.85 | R94: 12270.77 | S94: 12065.12 | T94: 12340.13 | U94: 11373.28 | V94: 11130.16 | W94: 10640 | X94: 10435.65 | Y94: 10948.06 | Z94: 11129.66 | AA94: 11571.73 | AB94: 11641.06 | AC94: 10189.86 | AD94: 11351.18 | AE94: 10692.23 | AF94: 9661.55 | AG94: 8406.37 | AH94: 9554.35 | AI94: 11531.25 | AJ94: 13909.17 | AK94: 13710.11 | AL94: 13722.44 | AM94: 13363.35 | AN94: 12472.642 | AO94: 11245.52556 | AP94: 11272.851 | AQ94: 11831.66207
B95: VolExpl | C95: OVOLBOJADMaEC | D95: Volume BOJ Admissible InclusActions aEC | F95: 0 | G95: 0 | H95: 0 | I95: 0 | J95: 0 | K95: 0 | L95: 0 | M95: 0 | N95: 0 | O95: 0 | P95: 0 | Q95: 0 | R95: 0 | S95: 0 | T95: 0 | U95: 0 | V95: 0 | W95: 0 | X95: 0 | Y95: 0 | Z95: 0 | AA95: 0 | AB95: 0 | AC95: 0 | AD95: 0 | AE95: 0 | AF95: 0 | AG95: 0 | AH95: 0 | AI95: 0 | AJ95: 0 | AK95: 0 | AL95: 0 | AM95: 0 | AN95: 0 | AO95: 0 | AP95: 0 | AQ95: 0
B96: VolExpl | C96: OVOLBOJADMaEC2 | D96: Volume BOJ Admissible InclusActions aEC2 | F96: 0 | G96: 0 | H96: 0 | I96: 0 | J96: 0 | K96: 0 | L96: 0 | M96: 0 | N96: 0 | O96: 0 | P96: 0 | Q96: 0 | R96: 0 | S96: 0 | T96: 0 | U96: 0 | V96: 0 | W96: 0 | X96: 0 | Y96: 0 | Z96: 0 | AA96: 0 | AB96: 0 | AC96: 0 | AD96: 0 | AE96: 0 | AF96: 0 | AG96: 0 | AH96: 0 | AI96: 0 | AJ96: 0 | AK96: 0 | AL96: 0 | AM96: 0 | AN96: 0 | AO96: 0 | AP96: 0 | AQ96: 0
